Workbook

Sheet FlashCards
B2: Mounce Chapter (4th edition) | G2: Word Type | J2: Properties | V2: Chapter | W2: Chapter | Y2: Type | Z2: Type | AB2: Properties | AC2: Properties | AF2: Library | AR2: =COUNT(AR4:AR2003) -> 1592 | AT2: Selected | AU2: Selected | AW2: Include? | AX2: Include? | AY2: Include? | AZ2: Include? | BA2: Include? | BB2: Include? | BC2: Include? | BD2: Include? | BE2: Include? | BF2: Include? | BI2: Count: | BJ2: =COUNTIF(BG4:BG2003,"<2500") -> 1592 | CI2: English to Greek: | CK2: =LOWER('English To Greek'!D4) -> crowd | CL2: =IF(LEN(CK2)<2,"^%*^&%*&^%&^",CK2) -> crowd | CN2: Contains "Extra"… | CO2: Count: | CP2: =COUNTIF(CI4:CI2003,TRUE) -> 2 | CT2: Greek To English | CV2: =LOWER('Greek to English'!D6) -> arest | CW2: =IF(LEN(CV2)<2,"^%*^&%*&^%&^",CV2) -> arest | CZ2: Count: | DA2: =COUNTIF(CT4:CT2003,TRUE) -> 2 | DE2: Short Word Def: | DF2: 3 | DH2: count: | DI2: =COUNTIF(DE4:DE2003,TRUE) -> 126
B3: R | C3: Chapter 4 | D3: R | E3: Chapter 22 | G3: R | H3: Nouns | J3: R | K3: Chapter? | N3: Chapter: | O3: =IF(BJ2=0,"None",IF(AA24="37","Extra",IF(AA24="38","Index",AA24))) -> 24 | P3: =IF(BJ2=1,BJ2& " word available",BJ2& " words available") -> 1592 words available | V3: 04 | W3: =IF(B3="R",TRUE,FALSE) -> TRUE | X3: =IF(W3,V3&":",":") -> 04: | Y3: Noun | Z3: =IF(G3="R",TRUE,FALSE) -> TRUE | AA3: =IF(Z3,Y3&":",":") -> Noun : | AB3: Chapter | AC3: =IF(J3="R",TRUE,FALSE) -> TRUE | AE3: # | AF3: Chapter | AG3: Lexical | AH3: Root | AI3: English Definition | AJ3: Pronunciation | AK3: Part of Speech | AL3: Article | AM3: Past Imperfect | AN3: Future Active | AO3: Aorist Active | AP3: Phonetic. | AQ3: Strong #s | AR3: Sort # | AS3: Copy | AT3: Chapter? | AU3: Type? | AV3: Selected? | AW3: Chapter | AX3: Root | AY3: Definition | AZ3: Pronunciation | BA3: Grammar | BB3: Article | BC3: Past | BD3: Future | BE3: Aorist | BF3: Strongs | BG3: Num | BH3: Rank | BI3: Chapter | BJ3: Lexical | BK3: Root | BL3: English Definition | BM3: Pronunciation | BN3: Part of Speech | BO3: Article | BP3: Past Imperfect | BQ3: Future Active | BR3: Force Art | BS3: Aorist | BT3: Strongs | BU3: Index | BV3: Lookup | BW3: Chapter | BX3: Type | BY3: Lexical | BZ3: Past | CA3: Future | CB3: Root | CC3: Pronunc | CD3: Def | CE3: Force Article | CF3: Formatted Chapter | CG3: Aorist | CH3: Strong # | CI3: Has Text? | CJ3: Num | CK3: Rank | CL3: Lexical | CM3: English | CN3: Chapter | CO3: Index | CP3: Lookup | CQ3: Result A | CR3: Result B | CT3: Has Text? | CU3: Num | CV3: Rank | CW3: Root | CX3: Type | CY3: Result | CZ3: Index | DA3: Lookup | DB3: Result A | DE3: Is Short? | DF3: Number | DG3: Rank | DH3: Index | DI3: Lookup | DJ3: Greek | DK3: English | DL3: Result
B4: R | C4: Chapter 6 | D4: R | E4: Chapter 23 | G4: R | H4: Proper Nouns | J4: R | K4: Root? | V4: 06 | W4: =IF(B4="R",TRUE,FALSE) -> TRUE | X4: =IF(W4,V4&":",":") -> 06: | Y4: Proper Noun | Z4: =IF(G4="R",TRUE,FALSE) -> TRUE | AA4: =IF(Z4,Y4&":",":") -> Proper Noun: | AB4: Root | AC4: =IF(J4="R",TRUE,FALSE) -> TRUE | AE4: 1 | AF4: 07 | AG4: -ς, -ος | AI4: (nominative, singular, masculine) | AK4: Noun Ending | AQ4: 0 | AR4: 0.01 | AS4: =IF(AG4="","",AG4) -> -ς, -ος | AT4: =IF(ISERR(FIND(AF4,$Y$22,1)),FALSE,TRUE) -> TRUE | AU4: =IF(ISERR(FIND(AK4,$Y$23,1)),FALSE,TRUE) -> TRUE | AV4: =AND(AT4,AU4) -> TRUE | AW4: =IF(AC$3,AF4," ") -> 07 | AX4: =IF(AC$4,AH4," ") ->  | AY4: =IF(TRUE,AI4," ") -> (nominative, singular, masculine) | AZ4: =IF(AC$6,AJ4," ") ->  | BA4: =IF(AC$7,AK4," ") -> Noun Ending | BB4: =IF(AC$8,AL4," ") ->  | BC4: =IF(AC$9,AM4," ") ->  | BD4: =IF(AC$10,AN4," ") ->  | BE4: =IF(AC$9,AO4," ") ->  | BF4: =IF(AC$12,AQ4," ") -> 0 | BG4: =IF(AV4,AE4,AE4+5000) -> 1 | BH4: =RANK(BG4,BG$4:BG$2003,1) -> 1 | BI4: =IF($AV4,AW4," ") -> 07 | BJ4: =IF($AV4,BO4&AG4," ") -> -ς, -ος | BK4: =IF($AV4,AX4," ") ->  | BL4: (nominative, singular, masculine) | BN4: Noun Ending | BO4: =IF($AV4,IF(BB4=" ","",BB4&" "),"") ->  | BP4: =IF($AV4,BC4," ") ->  | BR4: =IF($AV4,IF(AL4=" ","",AL4&" "),"") ->  | BS4: =IF($AV4,BE4," ") ->  | BT4: =IF($AV4,BF4," ") -> 0 | BU4: 1 | BV4: =IF(BU4<=BJ$2,MATCH(BU4,BH$4:BH$2003,0),"") -> 1 | BW4: =VLOOKUP($BU4,BH$4:BQ$2003,2,0) -> 07 | BX4: =VLOOKUP($BU4,BH$4:BQ$2003,7,0) -> Noun Ending | BY4: =VLOOKUP($BU4,BH$4:BQ$2003,3,0) -> -ς, -ος | BZ4: =VLOOKUP($BU4,BH$4:BQ$2003,9,0) ->  | CA4: =VLOOKUP($BU4,BH$4:BQ$2003,10,0) ->  | CB4: =VLOOKUP($BU4,BH$4:BQ$2003,4,0) ->  | CC4: =VLOOKUP($BU4,BH$4:BQ$2003,6,0) ->  | CD4: =VLOOKUP($BU4,BH$4:BQ$2003,5,0) -> (nominative, singular, masculine) | CE4: =IF(AC$8,BY4,VLOOKUP($BU4,BH$4:BR$2003,11,0)&BY4) -> -ς, -ος | CF4: =IF(BV4="","",IF(BW4="37","Extra", IF(BW4=38, "Index of Textbook","Chapter " &BW4))&": "&BX4) -> Chapter 07: Noun Ending | CG4: =VLOOKUP($BU4,BH$4:BS$2003,12,0) ->  | CH4: =VLOOKUP($BU4,BH$4:BT$2003,13,0) -> 0 | CI4: =IF(ISERR(SEARCH(CL$2,AY4,1)),FALSE, TRUE) -> FALSE | CJ4: =IF(CI4,AE4,AE4+5000) -> 5001 | CK4: =RANK(CJ4,CJ$4:CJ$2003,1) -> 3 | CL4: =IF($CI4,IF(BB4=" ","",BB4&" ")&AG4," ") ->  | CM4: =IF($CI4,AY4," ") ->  | CN4: =IF($CI4,IF(AW4="37"," [Extra]",IF(AW4="38"," [Index]", " [Chap. "&TEXT(VALUE(AW4),"#")&"]"))," ") ->  | CO4: 1 | CP4: =IF(CO4<=CP$2,MATCH(CO4,CK$4:CK$2003,0),"") -> 893 | CQ4: =VLOOKUP($CO4,CK$4:CM$2003,2,0) -> ὁ λαός | CR4: =VLOOKUP($CO4,CK$4:CN$2003,3,0)&VLOOKUP($CO4,CK$4:CN$2003,4,0) -> people, crowd [Chap. 20] | CT4: =IF(ISERR(FIND(CW$2,AP4,1)),FALSE, TRUE) -> FALSE | CU4: =IF(CT4,AE4,AE4+5000) -> 5001 | CV4: =RANK(CU4,CU$4:CU$2003,1) -> 3 | CW4: =IF($CT4,IF(AH4=" ",""," ["&AH4&"]")," ") ->  | CX4: =IF($CT4,IF(AK4="Noun ","Noun",IF(AK4="Verb ","Verb",AK4))," ") ->  | CY4: =IF($CT4,IF(BB4=" ","",BB4&" ")&AG4&CW4&": "&AY4& IF(AF4="37"," (Extra",IF(AF4="38"," (Index"," (Chapter "&TEXT(AF4,"#"))) &", "&CX4& IF(LEN(AM4)>1," ["&AM4&"]","") &IF(LEN(AN4)>1," ["&AN4&"]","") &")"," ") ->  | CZ4: 1 | DA4: =IF(CZ4<=DA$2,MATCH(CZ4,CV$4:CV$2003,0),"") -> 255 | DB4: =VLOOKUP($CZ4,CV$4:CY$2003,4,0) -> ἀρεστός: pleasing, agreeable (Extra, Adjective) | DE4: =IF(AND(LEN(AG4)<=DF$2,AG4<>" "),TRUE,FALSE) -> FALSE | DF4: =IF(DE4,AE4,AE4+5000) -> 5001 | DG4: =RANK(DF4,DF$4:DF$2003,1) -> 127 | DH4: 1 | DI4: =IF(DH4<=DA$2,MATCH(DH4,DG$4:DG$2003,0),"") -> 10 | DJ4: =IF($DE4,IF(BB4=" ","",BB4&" ")&AG4," ") ->  | DK4: =IF($DE4,AY4," ") ->  | DL4: =IF($DH4<=$DI$2,VLOOKUP($DH4,DG$4:DK$2003,4,0)&" [" &VLOOKUP($DH4,DG$4:DK$2003,5,0) &"]"," ") -> -ες [(nominative, plural, masculine or feminine, 3ʳᵈ declension)]
B5: R | C5: Chapter 7 | D5: R | E5: Chapter 24 | G5: R | H5: Pronouns | J5: £ | K5: Show Definition? | N5: Root: | O5: =Z27 -> *ἀγ | P5: ="(word " & TEXT(Z19,"#") & " of " & TEXT(BJ2,"#")&")" -> (word 97 of 1592) | V5: 07 | W5: TRUE | X5: 07: | Y5: Pronoun | Z5: TRUE | AA5: Pronoun: | AB5: Definition | AC5: FALSE | AE5: 2 | AF5: 07 | AG5: -, -η, -α | AI5: (nominative, singular, feminine) | AK5: Noun Ending | AQ5: 0 | AR5: 0.02 | AS5: =IF(AG5="","",AG5) -> -, -η, -α | AT5: TRUE | AU5: =IF(ISERR(FIND(AK5,$Y$23,1)),FALSE,TRUE) -> TRUE | AV5: =AND(AT5,AU5) -> TRUE | AW5: =IF(AC$3,AF5," ") -> 07 | AX5: =IF(AC$4,AH5," ") ->  | AY5: =IF(TRUE,AI5," ") -> (nominative, singular, feminine) | AZ5: =IF(AC$6,AJ5," ") ->  | BA5: =IF(AC$7,AK5," ") -> Noun Ending | BB5: =IF(AC$8,AL5," ") ->  | BC5: =IF(AC$9,AM5," ") ->  | BD5: =IF(AC$10,AN5," ") ->  | BE5: =IF(AC$9,AO5," ") ->  | BF5: =IF(AC$12,AQ5," ") -> 0 | BG5: 2 | BH5: 2 | BI5: =IF(AV5,AW5," ") -> 07 | BJ5: -, -η, -α | BL5: (nominative, singular, feminine) | BN5: Noun Ending | BR5: =IF($AV5,IF(AL5=" ","",AL5&" "),"") ->  | BS5: =IF($AV5,BE5," ") ->  | BT5: 0 | BU5: 2 | BV5: 2 | BW5: 07 | BX5: Noun Ending | BY5: -, -η, -α | CD5: (nominative, singular, feminine) | CE5: -, -η, -α | CF5: =IF(BV5="","",IF(BW5="37","Extra", IF(BW5=38, "Index of Textbook","Chapter " &BW5))&": "&BX5) -> Chapter 07: Noun Ending | CH5: 0 | CI5: =IF(ISERR(SEARCH(CL$2,AY5,1)),FALSE, TRUE) -> FALSE | CJ5: 5002 | CK5: 4 | CM5: =IF($CI5,AY5," ") ->  | CN5: =IF($CI5,IF(AW5="37"," [Extra]",IF(AW5="38"," [Index]", " [Chap. "&TEXT(VALUE(AW5),"#")&"]"))," ") ->  | CO5: 2 | CP5: 1131 | CQ5: ὁ ὄχλος | CR5: crowd, multitude [Chap. 8] | CT5: =IF(ISERR(FIND(CW$2,AP5,1)),FALSE, TRUE) -> FALSE | CU5: 5002 | CV5: 4 | CY5: =IF($CT5,IF(BB5=" ","",BB5&" ")&AG5&CW5&": "&AY5& IF(AF5="37"," (Extra",IF(AF5="38"," (Index"," (Chapter "&TEXT(AF5,"#"))) &", "&CX5& IF(LEN(AM5)>1," ["&AM5&"]","") &IF(LEN(AN5)>1," ["&AN5&"]","") &")"," ") ->  | CZ5: 2 | DA5: 1171 | DB5: παρίστημι: I present, I am present, I stand with (Chapter 38, Verb [παρίστην] [παραστήσω]) | DE5: FALSE | DF5: 5002 | DG5: 128 | DH5: 2 | DI5: 97 | DK5: =IF($DE5,AY5," ") ->  | DL5: ἄγω [I lead, I bring, I arrest]
B6: R | C6: Chapter 8 | D6: R | E6: Chapter 25 | G6: R | H6: Noun Endings | J6: R | K6: Pronunciation? | V6: 08 | W6: TRUE | X6: 08: | Y6: Noun Ending | Z6: TRUE | AA6: Noun Ending: | AB6: Pronunciation | AC6: TRUE | AE6: 3 | AF6: 07 | AG6: -ν, -ον | AI6: (nominative, singular, neuter; accusative, singular, masculine or neuter) | AK6: Noun Ending | AQ6: 0 | AR6: 0.03 | AS6: -ν, -ον | AT6: TRUE | AU6: TRUE | AV6: TRUE | AW6: 07 | AY6: (nominative, singular, neuter; accusative, singular, masculine or neuter) | BA6: Noun Ending | BF6: 0 | BG6: 3 | BH6: 3 | BI6: 07 | BJ6: -ν, -ον | BL6: (nominative, singular, neuter; accusative, singular, masculine or neuter) | BN6: Noun Ending | BT6: 0 | BU6: 3 | BV6: 3 | BW6: 07 | BX6: Noun Ending | BY6: -ν, -ον | CD6: (nominative, singular, neuter; accusative, singular, masculine or neuter) | CE6: -ν, -ον | CF6: Chapter 07: Noun Ending | CH6: 0 | CI6: FALSE | CJ6: 5003 | CK6: 5 | CO6: 3 | CT6: FALSE | CU6: 5003 | CV6: 5 | CZ6: 3 | DE6: FALSE | DF6: 5003 | DG6: 129 | DH6: 3 | DL6: ἄδω [I sing]
B7: R | C7: Chapter 9 | D7: R | E7: Chapter 27 | G7: R | H7: Articles | J7: R | K7: Part of Speech? | N7: Type: | O7: =Z25 -> Verb | P7: =IF(Q7<>" ","Imperfect","") -> Imperfect | Q7: =AA26 -> ἦγον | V7: 09 | W7: TRUE | X7: 09: | Y7: Article | Z7: TRUE | AA7: Article: | AB7: Grammar | AC7: TRUE | AE7: 4 | AF7: 07 | AG7: -υ, -ου | AI7: (genitive, singular, masculine or neuter) | AK7: Noun Ending | AQ7: 0 | AR7: 0.04 | AS7: -υ, -ου | AT7: TRUE | AU7: TRUE | AV7: TRUE | AW7: 07 | AY7: (genitive, singular, masculine or neuter) | BA7: Noun Ending | BF7: 0 | BG7: 4 | BH7: 4 | BI7: 07 | BJ7: -υ, -ου | BL7: (genitive, singular, masculine or neuter) | BN7: Noun Ending | BT7: 0 | BU7: 4 | BV7: 4 | BW7: 07 | BX7: Noun Ending | BY7: -υ, -ου | CD7: (genitive, singular, masculine or neuter) | CE7: -υ, -ου | CF7: Chapter 07: Noun Ending | CH7: 0 | CI7: FALSE | CJ7: 5004 | CK7: 6 | CO7: 4 | CT7: FALSE | CU7: 5004 | CV7: 6 | CZ7: 4 | DE7: FALSE | DF7: 5004 | DG7: 130 | DH7: 4 | DL7: ἀεί [always, constantly]
B8: R | C8: Chapter 10 | D8: R | E8: Chapter 28 | G8: R | H8: Verbs | J8: R | K8: Article? | P8: =IF(Q8<>" ","Future Active","") -> Future Active | Q8: =AB26 -> ἄξω | V8: 10 | W8: TRUE | X8: 10: | Y8: Verb | Z8: TRUE | AA8: Verb : | AB8: Article | AC8: TRUE | AE8: 5 | AF8: 07 | AG8: -ς, -ης, -ας | AI8: (genitive, singular, feminine) | AK8: Noun Ending | AQ8: 0 | AR8: 0.05 | AS8: -ς, -ης, -ας | AT8: TRUE | AU8: TRUE | AV8: TRUE | AW8: 07 | AY8: (genitive, singular, feminine) | BA8: Noun Ending | BF8: 0 | BG8: 5 | BH8: 5 | BI8: 07 | BJ8: -ς, -ης, -ας | BL8: (genitive, singular, feminine) | BN8: Noun Ending | BT8: 0 | BU8: 5 | BV8: 5 | BW8: 07 | BX8: Noun Ending | BY8: -ς, -ης, -ας | CD8: (genitive, singular, feminine) | CE8: -ς, -ης, -ας | CF8: Chapter 07: Noun Ending | CH8: 0 | CI8: FALSE | CJ8: 5005 | CK8: 7 | CO8: 5 | CT8: FALSE | CU8: 5005 | CV8: 7 | CZ8: 5 | DE8: FALSE | DF8: 5005 | DG8: 131 | DH8: 5 | DL8: ὁ ἀήρ [air]
B9: R | C9: Chapter 11 | D9: R | E9: Chapter 29 | G9: R | H9: Verb Endings | J9: R | K9: Verb Tenses? | N9: Greek: | O9: =Z26 -> ἄγω | P9: =IF(Q7<>" ","Aorist Active","") -> Aorist Active | Q9: =AC26 -> ἤγαγον | V9: 11 | W9: TRUE | X9: 11: | Y9: Verb Ending | Z9: TRUE | AA9: Verb Ending: | AB9: Tenses | AC9: TRUE | AE9: 6 | AF9: 07 | AG9: -ι, -ῳ | AI9: (dative, singular, masculine; dative, singular, neuter) | AK9: Noun Ending | AQ9: 0 | AR9: 0.06 | AS9: -ι, -ῳ | AT9: TRUE | AU9: TRUE | AV9: TRUE | AW9: 07 | AY9: (dative, singular, masculine; dative, singular, neuter) | BA9: Noun Ending | BF9: 0 | BG9: 6 | BH9: 6 | BI9: 07 | BJ9: -ι, -ῳ | BK9: =IF($AV9,AX9," ") ->  | BL9: =IF($AV9,AY9," ") -> (dative, singular, masculine; dative, singular, neuter) | BM9: =IF($AV9,AZ9," ") ->  | BN9: =IF($AV9,BA9," ") -> Noun Ending | BP9: =IF($AV9,BC9," ") ->  | BQ9: =IF($AV9,BD9," ") ->  | BT9: 0 | BU9: 6 | BV9: 6 | BW9: 07 | BX9: Noun Ending | BY9: -ι, -ῳ | CD9: (dative, singular, masculine; dative, singular, neuter) | CE9: -ι, -ῳ | CF9: Chapter 07: Noun Ending | CH9: 0 | CI9: FALSE | CJ9: 5006 | CK9: 8 | CO9: 6 | CT9: FALSE | CU9: 5006 | CV9: 8 | CZ9: 6 | DE9: FALSE | DF9: 5006 | DG9: 132 | DH9: 6 | DL9: ἅμα [together with [dative]]
B10: R | C10: Chapter 12 | D10: R | E10: Chapter 30 | G10: R | H10: Prepositions | J10: R | K10: Endings Chart? | V10: 12 | W10: TRUE | X10: 12: | Y10: Preposition | Z10: TRUE | AA10: Preposition: | AB10: (updated to just link to "tenses") | AC10: =AC9 -> TRUE | AE10: 7 | AF10: 07 | AG10: -ι, -ῃ, -ᾳ | AI10: (dative, singular, feminine) | AK10: Noun Ending | AQ10: 0 | AR10: 0.07 | AS10: -ι, -ῃ, -ᾳ | AT10: TRUE | AU10: =IF(ISERR(FIND(AK10,$Y$23,1)),FALSE,TRUE) -> TRUE | AV10: TRUE | AW10: 07 | AY10: (dative, singular, feminine) | BA10: Noun Ending | BF10: 0 | BG10: 7 | BH10: 7 | BI10: 07 | BJ10: -ι, -ῃ, -ᾳ | BL10: (dative, singular, feminine) | BN10: Noun Ending | BT10: 0 | BU10: 7 | BV10: 7 | BW10: 07 | BX10: Noun Ending | BY10: -ι, -ῃ, -ᾳ | CD10: (dative, singular, feminine) | CE10: -ι, -ῃ, -ᾳ | CF10: Chapter 07: Noun Ending | CH10: 0 | CI10: FALSE | CJ10: 5007 | CK10: 9 | CO10: 7 | CT10: FALSE | CU10: 5007 | CV10: 9 | CZ10: 7 | DE10: FALSE | DF10: 5007 | DG10: 133 | DH10: 7 | DL10: ἅμα [at the same time]
B11: R | C11: Chapter 13 | D11: R | E11: Chapter 31 | G11: R | H11: Conjunctions | J11: R | K11: Strong's #? | N11: Pronunciation: | O11: =Z28 -> AH-goe | V11: 13 | W11: TRUE | X11: 13: | Y11: Conjunction | Z11: TRUE | AA11: Conjunction: | AB11: Chart | AC11: =IF(J10="R",TRUE,FALSE) -> TRUE | AE11: 8 | AF11: 07 | AG11: -ν, -ην, -αν | AI11: (accusative, singular, feminine) | AK11: Noun Ending | AQ11: 0 | AR11: 0.08 | AS11: -ν, -ην, -αν | AT11: TRUE | AU11: TRUE | AV11: TRUE | AW11: 07 | AY11: (accusative, singular, feminine) | BA11: Noun Ending | BF11: 0 | BG11: 8 | BH11: 8 | BI11: 07 | BJ11: -ν, -ην, -αν | BL11: (accusative, singular, feminine) | BN11: Noun Ending | BT11: 0 | BU11: 8 | BV11: 8 | BW11: 07 | BX11: Noun Ending | BY11: -ν, -ην, -αν | CD11: (accusative, singular, feminine) | CE11: -ν, -ην, -αν | CF11: Chapter 07: Noun Ending | CH11: 0 | CI11: FALSE | CJ11: 5008 | CK11: 10 | CO11: 8 | CT11: FALSE | CU11: 5008 | CV11: 10 | CZ11: 8 | DE11: FALSE | DF11: 5008 | DG11: 134 | DH11: 8 | DL11: ἄν [modifies relative pronoun ("who" becomes "whoever") (particle)]
B12: R | C12: Chapter 14 | D12: R | E12: Chapter 32 | G12: R | H12: Adjectives | V12: 14 | W12: TRUE | X12: 14: | Y12: Adjective | Z12: TRUE | AA12: Adjective: | AB12: Strong's Number | AC12: =IF(J11="R",TRUE,FALSE) -> TRUE | AE12: 9 | AF12: 07 | AG12: -ι, -οι | AI12: (nominative, plural, masculine) | AK12: Noun Ending | AQ12: 0 | AR12: 0.1 | AS12: -ι, -οι | AT12: TRUE | AU12: TRUE | AV12: TRUE | AW12: 07 | AY12: (nominative, plural, masculine) | BA12: Noun Ending | BB12: =IF(AC$8,AL12," ") ->  | BF12: 0 | BG12: 9 | BH12: 9 | BI12: 07 | BJ12: -ι, -οι | BL12: (nominative, plural, masculine) | BN12: Noun Ending | BT12: 0 | BU12: 9 | BV12: 9 | BW12: 07 | BX12: Noun Ending | BY12: -ι, -οι | CD12: (nominative, plural, masculine) | CE12: -ι, -οι | CF12: Chapter 07: Noun Ending | CH12: 0 | CI12: FALSE | CJ12: 5009 | CK12: 11 | CO12: 9 | CT12: FALSE | CU12: 5009 | CV12: 11 | CZ12: 9 | DE12: FALSE | DF12: 5009 | DG12: 135 | DH12: 9 | DL12: -ἄν [ending that changes "what" to "whatever"]
B13: R | C13: Chapter 16 | D13: R | E13: Chapter 33 | G13: R | H13: Adverbs | K13: 0.06079828739 | N13: Definition: | O13: =Z29 ->  | Q13: Strong's Number | V13: 16 | W13: TRUE | X13: 16: | Y13: Adverb | Z13: TRUE | AA13: Adverb: | AE13: 10 | AF13: 10 | AG13: -ες | AI13: (nominative, plural, masculine or feminine, 3ʳᵈ declension) | AK13: Noun Ending | AQ13: 0 | AR13: 0.11 | AS13: -ες | AT13: TRUE | AU13: TRUE | AV13: TRUE | AW13: 10 | AY13: (nominative, plural, masculine or feminine, 3ʳᵈ declension) | BA13: Noun Ending | BF13: 0 | BG13: 10 | BH13: 10 | BI13: 10 | BJ13: -ες | BL13: (nominative, plural, masculine or feminine, 3ʳᵈ declension) | BN13: Noun Ending | BT13: 0 | BU13: 10 | BV13: 10 | BW13: 10 | BX13: Noun Ending | BY13: -ες | CD13: (nominative, plural, masculine or feminine, 3ʳᵈ declension) | CE13: -ες | CF13: Chapter 10: Noun Ending | CH13: 0 | CI13: FALSE | CJ13: 5010 | CK13: 12 | CO13: 10 | CT13: FALSE | CU13: 5010 | CV13: 12 | CZ13: 10 | DE13: TRUE | DF13: 10 | DG13: 1 | DH13: 10 | DJ13: -ες | DK13: (nominative, plural, masculine or feminine, 3ʳᵈ declension) | DL13: ἀνά [among, between, each]
B14: R | C14: Chapter 17 | D14: R | E14: Chapter 34 | G14: R | H14: Idioms | K14: FALSE | Q14: =IF(ISERR(VALUE(Z30)),Z30,IF(VALUE(Z30)<1,""," "&Z30)) -> 71 | V14: 17 | W14: TRUE | X14: 17: | Y14: Idiom | Z14: TRUE | AA14: Idiom: | AE14: 11 | AF14: 07 | AG14: -ι, -αι | AI14: (nominative, plural, feminine) | AK14: Noun Ending | AQ14: 0 | AR14: 0.12 | AS14: -ι, -αι | AT14: TRUE | AU14: TRUE | AV14: TRUE | AW14: 07 | AY14: (nominative, plural, feminine) | BA14: Noun Ending | BF14: 0 | BG14: 11 | BH14: 11 | BI14: 07 | BJ14: -ι, -αι | BL14: (nominative, plural, feminine) | BN14: Noun Ending | BT14: 0 | BU14: 11 | BV14: 11 | BW14: 07 | BX14: Noun Ending | BY14: -ι, -αι | CD14: (nominative, plural, feminine) | CE14: -ι, -αι | CF14: Chapter 07: Noun Ending | CH14: 0 | CI14: FALSE | CJ14: 5011 | CK14: 13 | CO14: 11 | CT14: FALSE | CU14: 5011 | CV14: 13 | CZ14: 11 | DE14: FALSE | DF14: 5011 | DG14: 136 | DH14: 11 | DL14: ἄνω [above, high]
B15: R | C15: Chapter 18 | D15: R | E15: Chapter 35 | G15: R | H15: Interjections | V15: 18 | W15: TRUE | X15: 18: | Y15: Interjection | Z15: =IF(G15="R",TRUE,FALSE) -> TRUE | AA15: Interjection: | AE15: 12 | AF15: 07 | AG15: -α | AI15: (nominative or accusative, plural, neuter) | AK15: Noun Ending | AQ15: 0 | AR15: 0.13 | AS15: -α | AT15: TRUE | AU15: TRUE | AV15: TRUE | AW15: 07 | AY15: (nominative or accusative, plural, neuter) | BA15: Noun Ending | BF15: 0 | BG15: 12 | BH15: 12 | BI15: 07 | BJ15: -α | BL15: (nominative or accusative, plural, neuter) | BN15: Noun Ending | BO15: =IF($AV15,IF(BB15=" ","",BB15&" "),"") ->  | BT15: 0 | BU15: 12 | BV15: 12 | BW15: 07 | BX15: Noun Ending | BY15: -α | CD15: (nominative or accusative, plural, neuter) | CE15: -α | CF15: Chapter 07: Noun Ending | CH15: 0 | CI15: FALSE | CJ15: 5012 | CK15: 14 | CO15: 12 | CT15: FALSE | CU15: 5012 | CV15: 14 | CZ15: 12 | DE15: FALSE | DF15: 5012 | DG15: 137 | DH15: 12 | DL15: ἄρα [then, therefore (particle)]
B16: R | C16: Chapter 19 | D16: R | E16: Chapter 36 | V16: 19 | W16: TRUE | X16: 19: | AE16: 13 | AF16: 07 | AG16: -ων | AI16: (genitive, plural, masculine, feminine, neuter) | AK16: Noun Ending | AQ16: 0 | AR16: 0.2 | AS16: -ων | AT16: TRUE | AU16: TRUE | AV16: TRUE | AW16: 07 | AY16: (genitive, plural, masculine, feminine, neuter) | BA16: Noun Ending | BF16: 0 | BG16: 13 | BH16: 13 | BI16: 07 | BJ16: -ων | BL16: (genitive, plural, masculine, feminine, neuter) | BN16: Noun Ending | BO16: =IF($AV16,IF(BB16=" ","",BB16&" "),"") ->  | BT16: 0 | BU16: 13 | BV16: 13 | BW16: 07 | BX16: Noun Ending | BY16: -ων | CD16: (genitive, plural, masculine, feminine, neuter) | CE16: -ων | CF16: Chapter 07: Noun Ending | CH16: 0 | CI16: FALSE | CJ16: 5013 | CK16: 15 | CO16: 13 | CT16: FALSE | CU16: 5013 | CV16: 15 | CZ16: 13 | DE16: FALSE | DF16: 5013 | DG16: 138 | DH16: 13 | DL16: ἆρα [really? (introduces question with incredulity) (particle)]
B17: R | C17: Chapter 20 | D17: R | E17: Extra | V17: 20 | W17: TRUE | X17: 20: | Y17: When adding words, update references | AB17: in all yellow cells (and below most of them) | AE17: 14 | AF17: 07 | AG17: -ις, -οις | AI17: (dative, plural, masculine or neuter) | AK17: Noun Ending | AQ17: 0 | AR17: 0.211 | AS17: -ις, -οις | AT17: TRUE | AU17: TRUE | AV17: TRUE | AW17: 07 | AY17: (dative, plural, masculine or neuter) | BA17: Noun Ending | BF17: 0 | BG17: 14 | BH17: 14 | BI17: 07 | BJ17: -ις, -οις | BL17: (dative, plural, masculine or neuter) | BN17: Noun Ending | BT17: 0 | BU17: 14 | BV17: 14 | BW17: 07 | BX17: Noun Ending | BY17: -ις, -οις | CD17: (dative, plural, masculine or neuter) | CE17: -ις, -οις | CF17: Chapter 07: Noun Ending | CH17: 0 | CI17: FALSE | CJ17: 5014 | CK17: 16 | CO17: 14 | CT17: FALSE | CU17: 5014 | CV17: 16 | CZ17: 14 | DE17: FALSE | DF17: 5014 | DG17: 139 | DH17: 14 | DL17: γάρ [for, then (particle)]
B18: R | C18: Chapter 21 | D18: R | E18: Index | V18: 21 | W18: TRUE | X18: 21: | Y18: ="Currently "&BJ2 &" entries." -> Currently 1592 entries. | AA18: (current workbook size is <2000) | AE18: 15 | AF18: 07 | AG18: -ις, -αις | AI18: (dative, plural, feminine) | AK18: Noun Ending | AQ18: 0 | AR18: 0.212 | AS18: -ις, -αις | AT18: TRUE | AU18: TRUE | AV18: TRUE | AW18: 07 | AY18: (dative, plural, feminine) | BA18: Noun Ending | BF18: 0 | BG18: 15 | BH18: 15 | BI18: 07 | BJ18: -ις, -αις | BL18: (dative, plural, feminine) | BN18: Noun Ending | BT18: 0 | BU18: 15 | BV18: 15 | BW18: 07 | BX18: Noun Ending | BY18: -ις, -αις | CD18: (dative, plural, feminine) | CE18: -ις, -αις | CF18: Chapter 07: Noun Ending | CH18: 0 | CI18: FALSE | CJ18: 5015 | CK18: 17 | CO18: 15 | CT18: FALSE | CU18: 5015 | CV18: 17 | CZ18: 15 | DE18: FALSE | DF18: 5015 | DG18: 140 | DH18: 15 | DL18: γε [indeed, at least, even (particle)]
V19: 22 | W19: =IF(D3="R",TRUE,FALSE) -> TRUE | X19: 22: | Y19: Chosen Index? | Z19: =INT(K13*BJ2)+1 -> 97 | AE19: 16 | AF19: 10 | AG19: -σι(ν) | AI19: (dative, plural, masculine/ feminine/neuter, 3ʳᵈ declension) | AK19: Noun Ending | AQ19: 0 | AR19: 0.213 | AS19: -σι(ν) | AT19: TRUE | AU19: TRUE | AV19: TRUE | AW19: 10 | AY19: (dative, plural, masculine/ feminine/neuter, 3ʳᵈ declension) | BA19: Noun Ending | BF19: 0 | BG19: 16 | BH19: 16 | BI19: 10 | BJ19: -σι(ν) | BL19: (dative, plural, masculine/ feminine/neuter, 3ʳᵈ declension) | BN19: Noun Ending | BT19: 0 | BU19: 16 | BV19: 16 | BW19: 10 | BX19: Noun Ending | BY19: -σι(ν) | CD19: (dative, plural, masculine/ feminine/neuter, 3ʳᵈ declension) | CE19: -σι(ν) | CF19: Chapter 10: Noun Ending | CH19: 0 | CI19: FALSE | CJ19: 5016 | CK19: 18 | CO19: 16 | CT19: FALSE | CU19: 5016 | CV19: 18 | CZ19: 16 | DE19: FALSE | DF19: 5016 | DG19: 141 | DH19: 16 | DL19: δεῖ [it is necessary]
N20: © 2025 E. M. Pogozelski pogo@geneseo.edu | V20: 23 | W20: =IF(D4="R",TRUE,FALSE) -> TRUE | X20: 23: | Y20: =CONCATENATE(X3,X4,X5,X6,X7,X8,X9,X10,X11,X12,X13,X14,X15,X16) -> 04:06:07:08:09:10:11:12:13:14:16:17:18:19: | AE20: 17 | AF20: 07 | AG20: -υς, -ους | AI20: (accusative, plural, masculine) | AK20: Noun Ending | AQ20: 0 | AR20: 0.22 | AS20: -υς, -ους | AT20: TRUE | AU20: TRUE | AV20: TRUE | AW20: 07 | AY20: (accusative, plural, masculine) | BA20: Noun Ending | BF20: 0 | BG20: 17 | BH20: 17 | BI20: 07 | BJ20: -υς, -ους | BL20: (accusative, plural, masculine) | BN20: Noun Ending | BT20: 0 | BU20: 17 | BV20: 17 | BW20: 07 | BX20: Noun Ending | BY20: -υς, -ους | CD20: (accusative, plural, masculine) | CE20: -υς, -ους | CF20: Chapter 07: Noun Ending | CH20: 0 | CI20: FALSE | CJ20: 5017 | CK20: 19 | CO20: 17 | CT20: FALSE | CU20: 5017 | CV20: 19 | CZ20: 17 | DE20: FALSE | DF20: 5017 | DG20: 142 | DH20: 17 | DL20: δέω [I bind]
N21: (you can give this away, but you can't change it, or sell it, or use it any way to make money) | V21: 24 | W21: =IF(D5="R",TRUE,FALSE) -> TRUE | X21: 24: | Y21: =CONCATENATE(X17,X18,X19,X20,X21,X22,X23,X24,X25,X26,X27,X28,X29,X30,X31,X32,X33,X34,X35) -> 20:21:22:23:24:25::27:28:29:30:31:32:33:34:35:36:37:38: | AE21: 18 | AF21: 07 | AG21: -ς, -ας | AI21: (accusative, plural, feminine) | AK21: Noun Ending | AQ21: 0 | AR21: 0.23 | AS21: -ς, -ας | AT21: TRUE | AU21: TRUE | AV21: TRUE | AW21: 07 | AY21: (accusative, plural, feminine) | BA21: Noun Ending | BF21: 0 | BG21: 18 | BH21: 18 | BI21: 07 | BJ21: -ς, -ας | BL21: (accusative, plural, feminine) | BN21: Noun Ending | BT21: 0 | BU21: 18 | BV21: 18 | BW21: 07 | BX21: Noun Ending | BY21: -ς, -ας | CD21: (accusative, plural, feminine) | CE21: -ς, -ας | CF21: Chapter 07: Noun Ending | CH21: 0 | CI21: FALSE | CJ21: 5018 | CK21: 20 | CO21: 18 | CT21: FALSE | CU21: 5018 | CV21: 20 | CZ21: 18 | DE21: FALSE | DF21: 5018 | DG21: 143 | DH21: 18 | DL21: δή [now, therefore, indeed (particle)]
V22: 25 | W22: =IF(D6="R",TRUE,FALSE) -> TRUE | X22: 25: | Y22: =CONCATENATE(Y20,Y21) -> 04:06:07:08:09:10:11:12:13:14:16:17:18:19:20:21:22:23:24:25::27:28:29:30:31:32:33:34:35:36:37:38: | AE22: 19 | AF22: 19 | AG22: -εύς | AI22: suffix for a person related to the stem (genitive, singular, masculine) | AJ22: yoose | AK22: Noun Ending | AP22: eus | AQ22: 0 | AR22: 0.28 | AS22: -εύς | AT22: TRUE | AU22: TRUE | AV22: TRUE | AW22: 19 | AY22: suffix for a person related to the stem (genitive, singular, masculine) | AZ22: yoose | BA22: Noun Ending | BF22: 0 | BG22: 19 | BH22: 19 | BI22: 19 | BJ22: -εύς | BL22: suffix for a person related to the stem (genitive, singular, masculine) | BM22: yoose | BN22: Noun Ending | BT22: 0 | BU22: 19 | BV22: 19 | BW22: 19 | BX22: Noun Ending | BY22: -εύς | CC22: yoose | CD22: suffix for a person related to the stem (genitive, singular, masculine) | CE22: -εύς | CF22: Chapter 19: Noun Ending | CH22: 0 | CI22: FALSE | CJ22: 5019 | CK22: 21 | CO22: 19 | CT22: FALSE | CU22: 5019 | CV22: 21 | CZ22: 19 | DE22: FALSE | DF22: 5019 | DG22: 144 | DH22: 19 | DL22: διό [therefore, for this reason]
V23: 26 | W23: FALSE | X23: : | Y23: =CONCATENATE(AA3,AA4,AA5,AA6,AA7,AA8,AA9,AA10,AA11,AA12,AA13,AA14,AA15,) -> Noun :Proper Noun:Pronoun:Noun Ending:Article:Verb :Verb Ending:Preposition:Conjunction:Adjective:Adverb:Idiom:Interjection: | AE23: 20 | AF23: 37 | AG23: -ικός | AI23: converts a noun into an adjective ("king" becomes "royal") | AJ23: ee-KOSS | AK23: Noun Ending | AP23: ikos | AQ23: 0 | AR23: 0.29 | AS23: -ικός | AT23: TRUE | AU23: TRUE | AV23: TRUE | AW23: 37 | AY23: converts a noun into an adjective ("king" becomes "royal") | AZ23: ee-KOSS | BA23: Noun Ending | BF23: 0 | BG23: 20 | BH23: 20 | BI23: 37 | BJ23: -ικός | BL23: converts a noun into an adjective ("king" becomes "royal") | BM23: ee-KOSS | BN23: Noun Ending | BT23: =IF($AV23,BF23," ") -> 0 | BU23: 20 | BV23: 20 | BW23: 37 | BX23: Noun Ending | BY23: -ικός | CC23: ee-KOSS | CD23: converts a noun into an adjective ("king" becomes "royal") | CE23: -ικός | CF23: Extra: Noun Ending | CH23: 0 | CI23: FALSE | CJ23: 5020 | CK23: 22 | CO23: 20 | CT23: FALSE | CU23: 5020 | CV23: 22 | CZ23: 20 | DE23: FALSE | DF23: 5020 | DG23: 145 | DH23: 20 | DL23: δύο [two]
V24: 27 | W24: =IF(D7="R",TRUE,FALSE) -> TRUE | X24: 27: | Y24: Chapter: | Z24: =IF(TRUE,VLOOKUP($Z$19,BU$4:CD$2003,3,0),"") -> 24 | AA24: =TEXT(Z24,"#") -> 24 | AE24: 21 | AF24: 16 | AG24: [active stem] +ω | AI24: I am verbing (it) [present active indicative] | AK24: Verb Ending | AQ24: 0 | AR24: 0.3 | AS24: [active stem] +ω | AT24: TRUE | AU24: TRUE | AV24: TRUE | AW24: 16 | AY24: I am verbing (it) [present active indicative] | BA24: Verb Ending | BF24: 0 | BG24: 21 | BH24: 21 | BI24: =IF(AV24,AW24," ") -> 16 | BJ24: [active stem] +ω | BK24: =IF($AV24,AX24," ") ->  | BL24: =IF($AV24,AY24," ") -> I am verbing (it) [present active indicative] | BM24: =IF($AV24,AZ24," ") ->  | BN24: =IF($AV24,BA24," ") -> Verb Ending | BP24: =IF($AV24,BC24," ") ->  | BQ24: =IF($AV24,BD24," ") ->  | BT24: =IF($AV24,BF24," ") -> 0 | BU24: 21 | BV24: 21 | BW24: 16 | BX24: Verb Ending | BY24: [active stem] +ω | CD24: I am verbing (it) [present active indicative] | CE24: [active stem] +ω | CF24: Chapter 16: Verb Ending | CH24: 0 | CI24: FALSE | CJ24: 5021 | CK24: 23 | CO24: 21 | CT24: FALSE | CU24: 5021 | CV24: 23 | CZ24: 21 | DE24: FALSE | DF24: 5021 | DG24: 146 | DH24: 21 | DL24: ἐάν [if, when]
V25: 28 | W25: =IF(D8="R",TRUE,FALSE) -> TRUE | X25: 28: | Y25: Type: | Z25: =IF(TRUE,VLOOKUP($Z$19,BU$4:CD$2003,4,0),"") -> Verb | AE25: 22 | AF25: 16 | AG25: [active stem] +ες, +εις | AI25: you are verbing (it) [present active indicative] | AK25: Verb Ending | AQ25: 0 | AR25: 0.301 | AS25: [active stem] +ες, +εις | AT25: TRUE | AU25: TRUE | AV25: TRUE | AW25: 16 | AY25: you are verbing (it) [present active indicative] | BA25: Verb Ending | BF25: 0 | BG25: 22 | BH25: 22 | BI25: 16 | BJ25: [active stem] +ες, +εις | BL25: you are verbing (it) [present active indicative] | BN25: Verb Ending | BT25: 0 | BU25: 22 | BV25: 22 | BW25: 16 | BX25: Verb Ending | BY25: [active stem] +ες, +εις | CD25: you are verbing (it) [present active indicative] | CE25: [active stem] +ες, +εις | CF25: Chapter 16: Verb Ending | CH25: 0 | CI25: FALSE | CJ25: 5022 | CK25: 24 | CO25: 22 | CT25: FALSE | CU25: 5022 | CV25: 24 | CZ25: 22 | DE25: FALSE | DF25: 5022 | DG25: 147 | DH25: 22 | DL25: ἐάω [I permit, I allow, I let go]
V26: 29 | W26: TRUE | X26: 29: | Y26: Greek: | Z26: =IF(TRUE,VLOOKUP($Z$19,BU$4:CD$2003,5,0),"") -> ἄγω | AA26: =IF(TRUE,VLOOKUP($Z$19,BU$4:CD$2003,6,0),"") -> ἦγον | AB26: =IF(TRUE,VLOOKUP($Z$19,BU$4:CD$2003,7,0),"") -> ἄξω | AC26: =IF(TRUE,VLOOKUP($Z$19,BU$4:CG$2003,13,0),"") -> ἤγαγον | AE26: 23 | AF26: 16 | AG26: [active stem] +ει | AI26: he/she/it is verbing (it) [present active indicative] | AK26: Verb Ending | AQ26: 0 | AR26: 0.302 | AS26: [active stem] +ει | AT26: TRUE | AU26: TRUE | AV26: TRUE | AW26: 16 | AY26: he/she/it is verbing (it) [present active indicative] | BA26: Verb Ending | BF26: 0 | BG26: 23 | BH26: 23 | BI26: 16 | BJ26: [active stem] +ει | BL26: he/she/it is verbing (it) [present active indicative] | BN26: Verb Ending | BT26: 0 | BU26: 23 | BV26: 23 | BW26: 16 | BX26: Verb Ending | BY26: [active stem] +ει | CD26: he/she/it is verbing (it) [present active indicative] | CE26: [active stem] +ει | CF26: Chapter 16: Verb Ending | CH26: 0 | CI26: FALSE | CJ26: 5023 | CK26: 25 | CO26: 23 | CT26: FALSE | CU26: 5023 | CV26: 25 | CZ26: 23 | DE26: FALSE | DF26: 5023 | DG26: 148 | DH26: 23 | DL26: ἐγώ [I (nominative, singular)]
V27: 30 | W27: TRUE | X27: 30: | Y27: Root: | Z27: =IF(TRUE,VLOOKUP($Z$19,BU$4:CD$2003,8,0),"") -> *ἀγ | AE27: 24 | AF27: 16 | AG27: [active stem] +ομεν | AI27: we are verbing (it) [present active indicative] | AK27: Verb Ending | AQ27: 0 | AR27: 0.303 | AS27: [active stem] +ομεν | AT27: TRUE | AU27: TRUE | AV27: TRUE | AW27: 16 | AY27: we are verbing (it) [present active indicative] | BA27: Verb Ending | BF27: 0 | BG27: 24 | BH27: 24 | BI27: 16 | BJ27: [active stem] +ομεν | BL27: we are verbing (it) [present active indicative] | BN27: Verb Ending | BT27: 0 | BU27: 24 | BV27: 24 | BW27: 16 | BX27: Verb Ending | BY27: [active stem] +ομεν | CD27: we are verbing (it) [present active indicative] | CE27: [active stem] +ομεν | CF27: Chapter 16: Verb Ending | CH27: 0 | CI27: FALSE | CJ27: 5024 | CK27: 26 | CO27: 24 | CT27: FALSE | CU27: 5024 | CV27: 26 | CZ27: 24 | DE27: FALSE | DF27: 5024 | DG27: 149 | DH27: 24 | DL27: μοι [to me (dative singular)]
V28: 31 | W28: TRUE | X28: 31: | Y28: Pronunciation: | Z28: =IF(TRUE,VLOOKUP($Z$19,BU$4:CD$2003,9,0),"") -> AH-goe | AE28: 25 | AF28: 16 | AG28: [active stem] +ετε | AI28: ya'll are verbing (it) [present active indicative] | AK28: Verb Ending | AQ28: 0 | AR28: 0.304 | AS28: [active stem] +ετε | AT28: TRUE | AU28: TRUE | AV28: TRUE | AW28: 16 | AY28: ya'll are verbing (it) [present active indicative] | BA28: Verb Ending | BF28: 0 | BG28: 25 | BH28: 25 | BI28: 16 | BJ28: [active stem] +ετε | BL28: ya'll are verbing (it) [present active indicative] | BN28: Verb Ending | BT28: 0 | BU28: 25 | BV28: 25 | BW28: 16 | BX28: Verb Ending | BY28: [active stem] +ετε | CD28: ya'll are verbing (it) [present active indicative] | CE28: [active stem] +ετε | CF28: Chapter 16: Verb Ending | CH28: 0 | CI28: FALSE | CJ28: 5025 | CK28: 27 | CO28: 25 | CT28: FALSE | CU28: 5025 | CV28: 27 | CZ28: 25 | DE28: FALSE | DF28: 5025 | DG28: 150 | DH28: 25 | DL28: με [me (accusative singular)]
V29: 32 | W29: TRUE | X29: 32: | Y29: Definition: | Z29: =IF(OR(AND(K14,TRUE),AND(TRUE,AC5)),VLOOKUP($Z$19,BU$4:CD$2003,10,0),"") ->  | AE29: 26 | AF29: 16 | AG29: [active stem] +ονσι, +οσιν | AI29: they are verbing (it) [present active indicative] | AK29: Verb Ending | AQ29: 0 | AR29: 0.305 | AS29: [active stem] +ονσι, +οσιν | AT29: TRUE | AU29: TRUE | AV29: TRUE | AW29: 16 | AY29: they are verbing (it) [present active indicative] | BA29: Verb Ending | BF29: 0 | BG29: 26 | BH29: 26 | BI29: 16 | BJ29: [active stem] +ονσι, +οσιν | BL29: they are verbing (it) [present active indicative] | BN29: Verb Ending | BT29: 0 | BU29: 26 | BV29: 26 | BW29: 16 | BX29: Verb Ending | BY29: [active stem] +ονσι, +οσιν | CD29: they are verbing (it) [present active indicative] | CE29: [active stem] +ονσι, +οσιν | CF29: Chapter 16: Verb Ending | CH29: 0 | CI29: FALSE | CJ29: 5026 | CK29: 28 | CO29: 26 | CT29: FALSE | CU29: 5026 | CV29: 28 | CZ29: 26 | DE29: FALSE | DF29: 5026 | DG29: 151 | DH29: 26 | DL29: ἐμέ [me (emphatic accusative singular)]
V30: 33 | W30: TRUE | X30: 33: | Y30: Strong's # | Z30: =IF(TRUE,VLOOKUP($Z$19,BU$4:CH$2003,14,0),"") -> 71 | AE30: 27 | AF30: 18 | AG30: [middle stem] +ομαι, | AI30: I verb, I am verbing [present middle indicative] | AK30: Verb Ending | AQ30: 0 | AR30: 0.31 | AS30: [middle stem] +ομαι, | AT30: TRUE | AU30: TRUE | AV30: TRUE | AW30: 18 | AY30: I verb, I am verbing [present middle indicative] | BA30: Verb Ending | BF30: 0 | BG30: 27 | BH30: 27 | BI30: 18 | BJ30: [middle stem] +ομαι, | BL30: I verb, I am verbing [present middle indicative] | BN30: Verb Ending | BT30: 0 | BU30: 27 | BV30: 27 | BW30: 18 | BX30: Verb Ending | BY30: [middle stem] +ομαι, | CD30: I verb, I am verbing [present middle indicative] | CE30: [middle stem] +ομαι, | CF30: Chapter 18: Verb Ending | CH30: 0 | CI30: FALSE | CJ30: 5027 | CK30: 29 | CO30: 27 | CT30: FALSE | CU30: 5027 | CV30: 29 | CZ30: 27 | DE30: FALSE | DF30: 5027 | DG30: 152 | DH30: 27 | DL30: εἰ [if (note absence of circumflex)]
V31: 34 | W31: TRUE | X31: 34: | Z31: Notes: when entering new data (in light green cells): | AE31: 28 | AF31: 18 | AG31: [middle stem] +εσαι, +ῃ | AI31: you verb, you are verbing [present middle indicative] | AK31: Verb Ending | AQ31: 0 | AR31: 0.311 | AS31: [middle stem] +εσαι, +ῃ | AT31: TRUE | AU31: TRUE | AV31: TRUE | AW31: 18 | AY31: you verb, you are verbing [present middle indicative] | BA31: Verb Ending | BF31: 0 | BG31: 28 | BH31: 28 | BI31: 18 | BJ31: [middle stem] +εσαι, +ῃ | BL31: you verb, you are verbing [present middle indicative] | BN31: Verb Ending | BT31: 0 | BU31: 28 | BV31: 28 | BW31: 18 | BX31: Verb Ending | BY31: [middle stem] +εσαι, +ῃ | CD31: you verb, you are verbing [present middle indicative] | CE31: [middle stem] +εσαι, +ῃ | CF31: Chapter 18: Verb Ending | CH31: 0 | CI31: FALSE | CJ31: 5028 | CK31: 30 | CO31: 28 | CT31: FALSE | CU31: 5028 | CV31: 30 | CZ31: 28 | DE31: FALSE | DF31: 5028 | DG31: 153 | DH31: 28 | DL31: εἶ [you (singular) are (2ⁿᵈ person singular of εἰμί; non-lexical)]
V32: 35 | W32: TRUE | X32: 35: | Z32: 1) "Noun " instead of "Noun" (i.e., with 2 spaces) | AE32: 29 | AF32: 18 | AG32: [middle stem] +εται | AI32: he/she/it verbs, he is verbing [present middle indicative] | AK32: Verb Ending | AQ32: 0 | AR32: 0.312 | AS32: [middle stem] +εται | AT32: TRUE | AU32: TRUE | AV32: TRUE | AW32: 18 | AY32: he/she/it verbs, he is verbing [present middle indicative] | BA32: Verb Ending | BF32: 0 | BG32: 29 | BH32: 29 | BI32: 18 | BJ32: [middle stem] +εται | BL32: he/she/it verbs, he is verbing [present middle indicative] | BN32: Verb Ending | BT32: 0 | BU32: 29 | BV32: 29 | BW32: 18 | BX32: Verb Ending | BY32: [middle stem] +εται | CD32: he/she/it verbs, he is verbing [present middle indicative] | CE32: [middle stem] +εται | CF32: Chapter 18: Verb Ending | CH32: 0 | CI32: FALSE | CJ32: 5029 | CK32: 31 | CO32: 29 | CT32: FALSE | CU32: 5029 | CV32: 31 | CZ32: 29 | DE32: FALSE | DF32: 5029 | DG32: 154 | DH32: 29 | DL32: εἷς [one (nominative, masculine) (is also an adjective)]
V33: 36 | W33: TRUE | X33: 36: | Z33: 2) "Verb " instead of "Verb" (i.e., with 2 spaces) | AE33: 30 | AF33: 18 | AG33: [middle stem] +ομεθα | AI33: we verb, we are verbing [present middle indicative] | AK33: Verb Ending | AQ33: 0 | AR33: 0.313 | AS33: [middle stem] +ομεθα | AT33: TRUE | AU33: TRUE | AV33: TRUE | AW33: 18 | AY33: we verb, we are verbing [present middle indicative] | BA33: Verb Ending | BF33: 0 | BG33: 30 | BH33: 30 | BI33: 18 | BJ33: [middle stem] +ομεθα | BL33: we verb, we are verbing [present middle indicative] | BN33: Verb Ending | BT33: 0 | BU33: 30 | BV33: 30 | BW33: 18 | BX33: Verb Ending | BY33: [middle stem] +ομεθα | CD33: we verb, we are verbing [present middle indicative] | CE33: [middle stem] +ομεθα | CF33: Chapter 18: Verb Ending | CH33: 0 | CI33: FALSE | CJ33: 5030 | CK33: 32 | CO33: 30 | CT33: FALSE | CU33: 5030 | CV33: 32 | CZ33: 30 | DE33: FALSE | DF33: 5030 | DG33: 155 | DH33: 30 | DL33: μία [one (nominative, feminine) (is also an adjective)]
V34: 37 | W34: TRUE | X34: 37: | Z34: 3) No blank cells anywhere… always use 1 blank space instead. | AE34: 31 | AF34: 18 | AG34: [middle stem] +εσθε | AI34: ya'll verb, ya'll are verbing [present middle indicative] | AK34: Verb Ending | AQ34: 0 | AR34: 0.314 | AS34: [middle stem] +εσθε | AT34: TRUE | AU34: TRUE | AV34: TRUE | AW34: 18 | AY34: ya'll verb, ya'll are verbing [present middle indicative] | BA34: Verb Ending | BF34: 0 | BG34: 31 | BH34: 31 | BI34: 18 | BJ34: [middle stem] +εσθε | BL34: ya'll verb, ya'll are verbing [present middle indicative] | BN34: Verb Ending | BT34: 0 | BU34: 31 | BV34: 31 | BW34: 18 | BX34: Verb Ending | BY34: [middle stem] +εσθε | CD34: ya'll verb, ya'll are verbing [present middle indicative] | CE34: [middle stem] +εσθε | CF34: Chapter 18: Verb Ending | CH34: 0 | CI34: FALSE | CJ34: 5031 | CK34: 33 | CO34: 31 | CT34: FALSE | CU34: 5031 | CV34: 33 | CZ34: 31 | DE34: FALSE | DF34: 5031 | DG34: 156 | DH34: 31 | DL34: ἕν [one (nominative or accusative, neuter) (is also an adjective)]
V35: 38 | W35: TRUE | X35: 38: | AE35: 32 | AF35: 18 | AG35: [middle stem] +ονται | AI35: they verb, they are verbing [present middle indicative] | AK35: Verb Ending | AQ35: 0 | AR35: 0.315 | AS35: [middle stem] +ονται | AT35: TRUE | AU35: TRUE | AV35: TRUE | AW35: 18 | AY35: they verb, they are verbing [present middle indicative] | BA35: Verb Ending | BF35: 0 | BG35: 32 | BH35: 32 | BI35: 18 | BJ35: [middle stem] +ονται | BL35: they verb, they are verbing [present middle indicative] | BN35: Verb Ending | BT35: 0 | BU35: 32 | BV35: 32 | BW35: 18 | BX35: Verb Ending | BY35: [middle stem] +ονται | CD35: they verb, they are verbing [present middle indicative] | CE35: [middle stem] +ονται | CF35: Chapter 18: Verb Ending | CH35: 0 | CI35: FALSE | CJ35: 5032 | CK35: 34 | CO35: 32 | CT35: FALSE | CU35: 5032 | CV35: 34 | CZ35: 32 | DE35: FALSE | DF35: 5032 | DG35: 157 | DH35: 32 | DL35: ἑνί [to one (dative, masculine) (is also an adjective)]
Y36: How many boxes are checked? | AE36: 33 | AF36: 18 | AG36: [active stem] +ομαι | AI36: I am being verbed (by it) [present passive indicative] | AK36: Verb Ending | AQ36: 0 | AR36: 0.32 | AS36: [active stem] +ομαι | AT36: TRUE | AU36: TRUE | AV36: TRUE | AW36: 18 | AY36: I am being verbed (by it) [present passive indicative] | BA36: Verb Ending | BF36: 0 | BG36: 33 | BH36: 33 | BI36: 18 | BJ36: [active stem] +ομαι | BL36: I am being verbed (by it) [present passive indicative] | BN36: Verb Ending | BT36: 0 | BU36: 33 | BV36: 33 | BW36: 18 | BX36: Verb Ending | BY36: [active stem] +ομαι | CD36: I am being verbed (by it) [present passive indicative] | CE36: [active stem] +ομαι | CF36: Chapter 18: Verb Ending | CH36: 0 | CI36: FALSE | CJ36: 5033 | CK36: 35 | CO36: 33 | CT36: FALSE | CU36: 5033 | CV36: 35 | CZ36: 33 | DE36: FALSE | DF36: 5033 | DG36: 158 | DH36: 33 | DL36: μιᾷ [to one (dative, feminine) (is also an adjective)]
Y37: =COUNTIF(W3:W35,TRUE)+COUNTIF(Z3:Z15,TRUE)+COUNTIF(AC3:AC12,TRUE) -> 54 | Z37: =Y37/56*100 -> 96.42857143 | AA37: percent | AE37: 34 | AF37: 18 | AG37: [active stem] +εσαι, +ῃ | AI37: you are being verbed (by it) [present passive indicative] | AK37: Verb Ending | AQ37: 0 | AR37: 0.321 | AS37: [active stem] +εσαι, +ῃ | AT37: TRUE | AU37: TRUE | AV37: TRUE | AW37: 18 | AY37: you are being verbed (by it) [present passive indicative] | BA37: Verb Ending | BF37: 0 | BG37: 34 | BH37: 34 | BI37: 18 | BJ37: [active stem] +εσαι, +ῃ | BL37: you are being verbed (by it) [present passive indicative] | BN37: Verb Ending | BT37: 0 | BU37: 34 | BV37: 34 | BW37: 18 | BX37: Verb Ending | BY37: [active stem] +εσαι, +ῃ | CD37: you are being verbed (by it) [present passive indicative] | CE37: [active stem] +εσαι, +ῃ | CF37: Chapter 18: Verb Ending | CH37: 0 | CI37: FALSE | CJ37: 5034 | CK37: 36 | CO37: 34 | CT37: FALSE | CU37: 5034 | CV37: 36 | CZ37: 34 | DE37: FALSE | DF37: 5034 | DG37: 159 | DH37: 34 | DL37: ἕνα [one (accusative, masculine) (is also an adjective)]
Y38: "Chapter 37" is words appearing in the workbook or Strongs | AE38: 35 | AF38: 18 | AG38: [active stem] +εται | AI38: he/she/it is being verbed (by it) [present passive indicative] | AK38: Verb Ending | AQ38: 0 | AR38: 0.322 | AS38: [active stem] +εται | AT38: TRUE | AU38: TRUE | AV38: TRUE | AW38: 18 | AY38: he/she/it is being verbed (by it) [present passive indicative] | BA38: Verb Ending | BF38: 0 | BG38: 35 | BH38: 35 | BI38: 18 | BJ38: [active stem] +εται | BL38: he/she/it is being verbed (by it) [present passive indicative] | BN38: Verb Ending | BT38: 0 | BU38: 35 | BV38: 35 | BW38: 18 | BX38: Verb Ending | BY38: [active stem] +εται | CD38: he/she/it is being verbed (by it) [present passive indicative] | CE38: [active stem] +εται | CF38: Chapter 18: Verb Ending | CH38: 0 | CI38: FALSE | CJ38: 5035 | CK38: 37 | CO38: 35 | CT38: FALSE | CU38: 5035 | CV38: 37 | CZ38: 35 | DE38: FALSE | DF38: 5035 | DG38: 160 | DH38: 35 | DL38: ἐμή [my, mine (feminine)]
Y39: "Chapter 38" is words appearing only in the index | AE39: 36 | AF39: 18 | AG39: [active stem] +ομεθα | AI39: we are being verbed (by it) [present passive indicative] | AK39: Verb Ending | AQ39: 0 | AR39: 0.323 | AS39: [active stem] +ομεθα | AT39: TRUE | AU39: TRUE | AV39: TRUE | AW39: 18 | AY39: we are being verbed (by it) [present passive indicative] | BA39: Verb Ending | BF39: 0 | BG39: 36 | BH39: 36 | BI39: 18 | BJ39: [active stem] +ομεθα | BL39: we are being verbed (by it) [present passive indicative] | BN39: Verb Ending | BT39: 0 | BU39: 36 | BV39: 36 | BW39: 18 | BX39: Verb Ending | BY39: [active stem] +ομεθα | CD39: we are being verbed (by it) [present passive indicative] | CE39: [active stem] +ομεθα | CF39: Chapter 18: Verb Ending | CH39: 0 | CI39: FALSE | CJ39: 5036 | CK39: 38 | CO39: 36 | CT39: FALSE | CU39: 5036 | CV39: 38 | CZ39: 36 | DE39: FALSE | DF39: 5036 | DG39: 161 | DH39: 36 | DL39: ἑνί [to one (dative, masculine or neuter)]
AE40: 37 | AF40: 18 | AG40: [active stem] +εσθε | AI40: ya'll are being verbed (by it) [present passive indicative] | AK40: Verb Ending | AQ40: 0 | AR40: 0.324 | AS40: [active stem] +εσθε | AT40: TRUE | AU40: TRUE | AV40: TRUE | AW40: 18 | AY40: ya'll are being verbed (by it) [present passive indicative] | BA40: Verb Ending | BF40: 0 | BG40: 37 | BH40: 37 | BI40: 18 | BJ40: [active stem] +εσθε | BL40: ya'll are being verbed (by it) [present passive indicative] | BN40: Verb Ending | BT40: 0 | BU40: 37 | BV40: 37 | BW40: 18 | BX40: Verb Ending | BY40: [active stem] +εσθε | CD40: ya'll are being verbed (by it) [present passive indicative] | CE40: [active stem] +εσθε | CF40: Chapter 18: Verb Ending | CH40: 0 | CI40: FALSE | CJ40: 5037 | CK40: 39 | CO40: 37 | CT40: FALSE | CU40: 5037 | CV40: 39 | CZ40: 37 | DE40: FALSE | DF40: 5037 | DG40: 162 | DH40: 37 | DL40: ἕξ [six]
Y41: Word type for chart? | AA41: =IF(Z25="Noun Ending",TRUE,IF(Z25="Article",TRUE,IF(AND(Z25="Pronoun",AC41>0),TRUE,FALSE))) -> FALSE | AB41: Chart Sum: | AC41: =SUM(AA43:AC50) -> 0 | AE41: 38 | AF41: 18 | AG41: [active stem] +ονται | AI41: they are being verbed (by it) [present passive indicative] | AK41: Verb Ending | AQ41: 0 | AR41: 0.325 | AS41: [active stem] +ονται | AT41: TRUE | AU41: TRUE | AV41: TRUE | AW41: 18 | AY41: they are being verbed (by it) [present passive indicative] | BA41: Verb Ending | BF41: 0 | BG41: 38 | BH41: 38 | BI41: 18 | BJ41: [active stem] +ονται | BL41: they are being verbed (by it) [present passive indicative] | BN41: Verb Ending | BT41: 0 | BU41: 38 | BV41: 38 | BW41: 18 | BX41: Verb Ending | BY41: [active stem] +ονται | CD41: they are being verbed (by it) [present passive indicative] | CE41: [active stem] +ονται | CF41: Chapter 18: Verb Ending | CH41: 0 | CI41: FALSE | CJ41: 5038 | CK41: 40 | CO41: 38 | CT41: FALSE | CU41: 5038 | CV41: 40 | CZ41: 38 | DE41: FALSE | DF41: 5038 | DG41: 163 | DH41: 38 | DL41: ἔσῃ [you will be ]
Y42: =Z29 ->  | AA42: masculine | AB42: feminine | AC42: neuter | AE42: 39 | AF42: 19 | AG42: [active stem] +σω | AI42: I will verb (it) [future active indicative] | AK42: Verb Ending | AQ42: 0 | AR42: 0.33 | AS42: [active stem] +σω | AT42: TRUE | AU42: TRUE | AV42: TRUE | AW42: 19 | AY42: I will verb (it) [future active indicative] | BA42: Verb Ending | BF42: 0 | BG42: 39 | BH42: 39 | BI42: 19 | BJ42: [active stem] +σω | BL42: I will verb (it) [future active indicative] | BN42: Verb Ending | BT42: 0 | BU42: 39 | BV42: 39 | BW42: 19 | BX42: Verb Ending | BY42: [active stem] +σω | CD42: I will verb (it) [future active indicative] | CE42: [active stem] +σω | CF42: Chapter 19: Verb Ending | CH42: 0 | CI42: FALSE | CJ42: 5039 | CK42: 41 | CO42: 39 | CT42: FALSE | CU42: 5039 | CV42: 41 | CZ42: 39 | DE42: FALSE | DF42: 5039 | DG42: 164 | DH42: 39 | DL42: ἔτι [still, yet, even]
X43: 1 | Y43: singular | Z43: nominative | AA43: =IF(NOT(OR(ISERR(SEARCH(AA$42,$Y$42,1)),ISERR(SEARCH($Z43,$Y$42,1)),ISERR(SEARCH($Y43,$Y$42,1)))),$X43,0) -> 0 | AB43: =IF(NOT(OR(ISERR(SEARCH(AB$42,$Y$42,1)),ISERR(SEARCH($Z43,$Y$42,1)),ISERR(SEARCH($Y43,$Y$42,1)))),$X43,0) -> 0 | AC43: =IF(NOT(OR(ISERR(SEARCH(AC$42,$Y$42,1)),ISERR(SEARCH($Z43,$Y$42,1)),ISERR(SEARCH($Y43,$Y$42,1)))),$X43,0) -> 0 | AE43: 40 | AF43: 19 | AG43: [active stem] +σες, +σεις | AI43: you will verb (it) [future active indicative] | AK43: Verb Ending | AQ43: 0 | AR43: 0.331 | AS43: [active stem] +σες, +σεις | AT43: TRUE | AU43: TRUE | AV43: TRUE | AW43: 19 | AY43: you will verb (it) [future active indicative] | BA43: Verb Ending | BF43: 0 | BG43: 40 | BH43: 40 | BI43: 19 | BJ43: [active stem] +σες, +σεις | BL43: you will verb (it) [future active indicative] | BN43: Verb Ending | BT43: 0 | BU43: 40 | BV43: 40 | BW43: 19 | BX43: Verb Ending | BY43: [active stem] +σες, +σεις | CD43: you will verb (it) [future active indicative] | CE43: [active stem] +σες, +σεις | CF43: Chapter 19: Verb Ending | CH43: 0 | CI43: FALSE | CJ43: 5040 | CK43: 42 | CO43: 40 | CT43: FALSE | CU43: 5040 | CV43: 42 | CZ43: 40 | DE43: FALSE | DF43: 5040 | DG43: 165 | DH43: 40 | DL43: ἔχω [I have, I hold, I possess]
X44: 2 | Y44: singular | Z44: genitive | AA44: =IF(NOT(OR(ISERR(SEARCH(AA$42,$Y$42,1)),ISERR(SEARCH($Z44,$Y$42,1)),ISERR(SEARCH($Y44,$Y$42,1)))),$X44,0) -> 0 | AB44: 0 | AC44: 0 | AE44: 41 | AF44: 19 | AG44: [active stem] +σει | AI44: he/she/it will verb (it) [future active indicative] | AK44: Verb Ending | AQ44: 0 | AR44: 0.332 | AS44: [active stem] +σει | AT44: TRUE | AU44: TRUE | AV44: TRUE | AW44: 19 | AY44: he/she/it will verb (it) [future active indicative] | BA44: Verb Ending | BF44: 0 | BG44: 41 | BH44: 41 | BI44: 19 | BJ44: [active stem] +σει | BL44: he/she/it will verb (it) [future active indicative] | BN44: Verb Ending | BT44: 0 | BU44: 41 | BV44: 41 | BW44: 19 | BX44: Verb Ending | BY44: [active stem] +σει | CD44: he/she/it will verb (it) [future active indicative] | CE44: [active stem] +σει | CF44: Chapter 19: Verb Ending | CH44: 0 | CI44: FALSE | CJ44: 5041 | CK44: 43 | CO44: 41 | CT44: FALSE | CU44: 5041 | CV44: 43 | CZ44: 41 | DE44: FALSE | DF44: 5041 | DG44: 166 | DH44: 41 | DL44: ζάω [I live]
X45: 3 | Y45: singular | Z45: dative | AA45: 0 | AB45: 0 | AC45: 0 | AE45: 42 | AF45: 19 | AG45: [active stem] +σομεν | AI45: we will verb (it) [future active indicative] | AK45: Verb Ending | AQ45: 0 | AR45: 0.333 | AS45: [active stem] +σομεν | AT45: TRUE | AU45: TRUE | AV45: TRUE | AW45: 19 | AY45: we will verb (it) [future active indicative] | BA45: Verb Ending | BF45: 0 | BG45: 42 | BH45: 42 | BI45: 19 | BJ45: [active stem] +σομεν | BL45: we will verb (it) [future active indicative] | BN45: Verb Ending | BT45: 0 | BU45: 42 | BV45: 42 | BW45: 19 | BX45: Verb Ending | BY45: [active stem] +σομεν | CD45: we will verb (it) [future active indicative] | CE45: [active stem] +σομεν | CF45: Chapter 19: Verb Ending | CH45: 0 | CI45: FALSE | CJ45: 5042 | CK45: 44 | CO45: 42 | CT45: FALSE | CU45: 5042 | CV45: 44 | CZ45: 42 | DE45: FALSE | DF45: 5042 | DG45: 167 | DH45: 42 | DL45: ἡ ζωή [life]
X46: 4 | Y46: singular | Z46: accusative | AA46: 0 | AB46: 0 | AC46: 0 | AE46: 43 | AF46: 19 | AG46: [active stem] +σετε | AI46: ya'll will verb (it) [future active indicative] | AK46: Verb Ending | AQ46: 0 | AR46: 0.334 | AS46: [active stem] +σετε | AT46: TRUE | AU46: TRUE | AV46: TRUE | AW46: 19 | AY46: ya'll will verb (it) [future active indicative] | BA46: Verb Ending | BF46: 0 | BG46: 43 | BH46: 43 | BI46: 19 | BJ46: [active stem] +σετε | BL46: ya'll will verb (it) [future active indicative] | BN46: Verb Ending | BT46: 0 | BU46: 43 | BV46: 43 | BW46: 19 | BX46: Verb Ending | BY46: [active stem] +σετε | CD46: ya'll will verb (it) [future active indicative] | CE46: [active stem] +σετε | CF46: Chapter 19: Verb Ending | CH46: 0 | CI46: FALSE | CJ46: 5043 | CK46: 45 | CO46: 43 | CT46: FALSE | CU46: 5043 | CV46: 45 | CZ46: 43 | DE46: FALSE | DF46: 5043 | DG46: 168 | DH46: 43 | DL46: ἤ [or, than]
X47: 1 | Y47: plural | Z47: nominative | AA47: 0 | AB47: 0 | AC47: 0 | AE47: 44 | AF47: 19 | AG47: [active stem] +σονσι, +σοσιν | AI47: they will verb (it) [future active indicative] | AK47: Verb Ending | AQ47: 0 | AR47: 0.335 | AS47: [active stem] +σονσι, +σοσιν | AT47: TRUE | AU47: TRUE | AV47: TRUE | AW47: 19 | AY47: they will verb (it) [future active indicative] | BA47: Verb Ending | BF47: 0 | BG47: 44 | BH47: 44 | BI47: 19 | BJ47: [active stem] +σονσι, +σοσιν | BL47: they will verb (it) [future active indicative] | BN47: Verb Ending | BT47: 0 | BU47: 44 | BV47: 44 | BW47: 19 | BX47: Verb Ending | BY47: [active stem] +σονσι, +σοσιν | CD47: they will verb (it) [future active indicative] | CE47: [active stem] +σονσι, +σοσιν | CF47: Chapter 19: Verb Ending | CH47: 0 | CI47: FALSE | CJ47: 5044 | CK47: 46 | CO47: 44 | CT47: FALSE | CU47: 5044 | CV47: 46 | CZ47: 44 | DE47: FALSE | DF47: 5044 | DG47: 169 | DH47: 44 | DL47: ἤδη [now, already (particle)]
X48: 2 | Y48: plural | Z48: genitive | AA48: 0 | AB48: 0 | AC48: 0 | AE48: 45 | AF48: 19 | AG48: [middle stem] +σομαι, | AI48: I will verb [future middle indicative] | AK48: Verb Ending | AQ48: 0 | AR48: 0.34 | AS48: [middle stem] +σομαι, | AT48: TRUE | AU48: TRUE | AV48: TRUE | AW48: 19 | AY48: I will verb [future middle indicative] | BA48: Verb Ending | BF48: 0 | BG48: 45 | BH48: 45 | BI48: 19 | BJ48: [middle stem] +σομαι, | BL48: I will verb [future middle indicative] | BN48: Verb Ending | BT48: 0 | BU48: 45 | BV48: 45 | BW48: 19 | BX48: Verb Ending | BY48: [middle stem] +σομαι, | CD48: I will verb [future middle indicative] | CE48: [middle stem] +σομαι, | CF48: Chapter 19: Verb Ending | CH48: 0 | CI48: FALSE | CJ48: 5045 | CK48: 47 | CO48: 45 | CT48: FALSE | CU48: 5045 | CV48: 47 | CZ48: 45 | DE48: FALSE | DF48: 5045 | DG48: 170 | DH48: 45 | DL48: ἥκω [I have come]
X49: 3 | Y49: plural | Z49: dative | AA49: 0 | AB49: 0 | AC49: 0 | AE49: 46 | AF49: 19 | AG49: [middle stem] +σεσαι, +σῃ | AI49: you will verb [future middle indicative] | AK49: Verb Ending | AQ49: 0 | AR49: 0.341 | AS49: [middle stem] +σεσαι, +σῃ | AT49: TRUE | AU49: TRUE | AV49: TRUE | AW49: 19 | AY49: you will verb [future middle indicative] | BA49: Verb Ending | BF49: 0 | BG49: 46 | BH49: 46 | BI49: 19 | BJ49: [middle stem] +σεσαι, +σῃ | BL49: you will verb [future middle indicative] | BN49: Verb Ending | BT49: 0 | BU49: 46 | BV49: 46 | BW49: 19 | BX49: Verb Ending | BY49: [middle stem] +σεσαι, +σῃ | CD49: you will verb [future middle indicative] | CE49: [middle stem] +σεσαι, +σῃ | CF49: Chapter 19: Verb Ending | CH49: 0 | CI49: FALSE | CJ49: 5046 | CK49: 48 | CO49: 46 | CT49: FALSE | CU49: 5046 | CV49: 48 | CZ49: 46 | DE49: FALSE | DF49: 5046 | DG49: 171 | DH49: 46 | DL49: ἦν [he/she/it was (3ʳᵈ person singular imperfect; non lexical)]
X50: 4 | Y50: plural | Z50: accusative | AA50: 0 | AB50: 0 | AC50: 0 | AE50: 47 | AF50: 19 | AG50: [middle stem] +σεται | AI50: he/she/it will verb [future middle indicative] | AK50: Verb Ending | AQ50: 0 | AR50: 0.342 | AS50: [middle stem] +σεται | AT50: TRUE | AU50: TRUE | AV50: TRUE | AW50: 19 | AY50: he/she/it will verb [future middle indicative] | BA50: Verb Ending | BF50: 0 | BG50: 47 | BH50: 47 | BI50: 19 | BJ50: [middle stem] +σεται | BL50: he/she/it will verb [future middle indicative] | BN50: Verb Ending | BT50: 0 | BU50: 47 | BV50: 47 | BW50: 19 | BX50: Verb Ending | BY50: [middle stem] +σεται | CD50: he/she/it will verb [future middle indicative] | CE50: [middle stem] +σεται | CF50: Chapter 19: Verb Ending | CH50: 0 | CI50: FALSE | CJ50: 5047 | CK50: 49 | CO50: 47 | CT50: FALSE | CU50: 5047 | CV50: 49 | CZ50: 47 | DE50: FALSE | DF50: 5047 | DG50: 172 | DH50: 47 | DL50: θύω [I sacrifice, I kill]
AE51: 48 | AF51: 19 | AG51: [middle stem] +σομεθα | AI51: we will verb [future middle indicative] | AK51: Verb Ending | AQ51: 0 | AR51: 0.343 | AS51: [middle stem] +σομεθα | AT51: TRUE | AU51: TRUE | AV51: TRUE | AW51: 19 | AY51: we will verb [future middle indicative] | BA51: Verb Ending | BF51: 0 | BG51: 48 | BH51: 48 | BI51: 19 | BJ51: [middle stem] +σομεθα | BL51: we will verb [future middle indicative] | BN51: Verb Ending | BT51: 0 | BU51: 48 | BV51: 48 | BW51: 19 | BX51: Verb Ending | BY51: [middle stem] +σομεθα | CD51: we will verb [future middle indicative] | CE51: [middle stem] +σομεθα | CF51: Chapter 19: Verb Ending | CH51: 0 | CI51: FALSE | CJ51: 5048 | CK51: 50 | CO51: 48 | CT51: FALSE | CU51: 5048 | CV51: 50 | CZ51: 48 | DE51: FALSE | DF51: 5048 | DG51: 173 | DH51: 48 | DL51: ἴδε [See! Behold!]
AE52: 49 | AF52: 19 | AG52: [middle stem] +σεσθε | AI52: ya'll will verb [future middle indicative] | AK52: Verb Ending | AQ52: 0 | AR52: 0.344 | AS52: [middle stem] +σεσθε | AT52: TRUE | AU52: TRUE | AV52: TRUE | AW52: 19 | AY52: ya'll will verb [future middle indicative] | BA52: Verb Ending | BF52: 0 | BG52: 49 | BH52: 49 | BI52: 19 | BJ52: [middle stem] +σεσθε | BL52: ya'll will verb [future middle indicative] | BN52: Verb Ending | BT52: 0 | BU52: 49 | BV52: 49 | BW52: 19 | BX52: Verb Ending | BY52: [middle stem] +σεσθε | CD52: ya'll will verb [future middle indicative] | CE52: [middle stem] +σεσθε | CF52: Chapter 19: Verb Ending | CH52: 0 | CI52: FALSE | CJ52: 5049 | CK52: 51 | CO52: 49 | CT52: FALSE | CU52: 5049 | CV52: 51 | CZ52: 49 | DE52: FALSE | DF52: 5049 | DG52: 174 | DH52: 49 | DL52: ἵνα [that, in order that, so that]
AE53: 50 | AF53: 19 | AG53: [middle stem] +σονται | AI53: they will verb [future middle indicative] | AK53: Verb Ending | AQ53: 0 | AR53: 0.345 | AS53: [middle stem] +σονται | AT53: TRUE | AU53: TRUE | AV53: TRUE | AW53: 19 | AY53: they will verb [future middle indicative] | BA53: Verb Ending | BF53: 0 | BG53: 50 | BH53: 50 | BI53: 19 | BJ53: [middle stem] +σονται | BL53: they will verb [future middle indicative] | BN53: Verb Ending | BT53: 0 | BU53: 50 | BV53: 50 | BW53: 19 | BX53: Verb Ending | BY53: [middle stem] +σονται | CD53: they will verb [future middle indicative] | CE53: [middle stem] +σονται | CF53: Chapter 19: Verb Ending | CH53: 0 | CI53: FALSE | CJ53: 5050 | CK53: 52 | CO53: 50 | CT53: FALSE | CU53: 5050 | CV53: 52 | CZ53: 50 | DE53: FALSE | DF53: 5050 | DG53: 175 | DH53: 50 | DL53: καί [and, even, also, namely, and yet (particle)]
AE54: 51 | AF54: 21 | AG54: ἐ + [active stem] +ον | AI54: I was/they were verbing (it) [imperfect active indicative] | AK54: Verb Ending | AQ54: 0 | AR54: 0.35 | AS54: ἐ + [active stem] +ον | AT54: TRUE | AU54: TRUE | AV54: TRUE | AW54: 21 | AY54: I was/they were verbing (it) [imperfect active indicative] | BA54: Verb Ending | BF54: 0 | BG54: 51 | BH54: 51 | BI54: 21 | BJ54: ἐ + [active stem] +ον | BL54: I was/they were verbing (it) [imperfect active indicative] | BN54: Verb Ending | BT54: 0 | BU54: 51 | BV54: 51 | BW54: 21 | BX54: Verb Ending | BY54: ἐ + [active stem] +ον | CD54: I was/they were verbing (it) [imperfect active indicative] | CE54: ἐ + [active stem] +ον | CF54: Chapter 21: Verb Ending | CH54: 0 | CI54: FALSE | CJ54: 5051 | CK54: 53 | CO54: 51 | CT54: FALSE | CU54: 5051 | CV54: 53 | CZ54: 51 | DE54: FALSE | DF54: 5051 | DG54: 176 | DH54: 51 | DL54: κἄν [and if, even if (particle)]
AE55: 52 | AF55: 21 | AG55: ἐ + [active stem] +ες, +εις | AI55: you were verbing (it) [imperfect active indicative] | AK55: Verb Ending | AQ55: 0 | AR55: 0.351 | AS55: ἐ + [active stem] +ες, +εις | AT55: TRUE | AU55: TRUE | AV55: TRUE | AW55: 21 | AY55: you were verbing (it) [imperfect active indicative] | BA55: Verb Ending | BF55: 0 | BG55: 52 | BH55: 52 | BI55: 21 | BJ55: ἐ + [active stem] +ες, +εις | BL55: you were verbing (it) [imperfect active indicative] | BN55: Verb Ending | BT55: 0 | BU55: 52 | BV55: 52 | BW55: 21 | BX55: Verb Ending | BY55: ἐ + [active stem] +ες, +εις | CD55: you were verbing (it) [imperfect active indicative] | CE55: ἐ + [active stem] +ες, +εις | CF55: Chapter 21: Verb Ending | CH55: 0 | CI55: FALSE | CJ55: 5052 | CK55: 54 | CO55: 52 | CT55: FALSE | CU55: 5052 | CV55: 54 | CZ55: 52 | DE55: FALSE | DF55: 5052 | DG55: 177 | DH55: 52 | DL55: λύω [I loose, I untie, I destroy, I release]
AE56: 53 | AF56: 21 | AG56: ἐ + [active stem] +ει | AI56: he/she/it was verbing (it) [imperfect active indicative] | AK56: Verb Ending | AQ56: 0 | AR56: 0.352 | AS56: ἐ + [active stem] +ει | AT56: TRUE | AU56: TRUE | AV56: TRUE | AW56: 21 | AY56: he/she/it was verbing (it) [imperfect active indicative] | BA56: Verb Ending | BF56: 0 | BG56: 53 | BH56: 53 | BI56: 21 | BJ56: ἐ + [active stem] +ει | BL56: he/she/it was verbing (it) [imperfect active indicative] | BN56: Verb Ending | BT56: 0 | BU56: 53 | BV56: 53 | BW56: 21 | BX56: Verb Ending | BY56: ἐ + [active stem] +ει | CD56: he/she/it was verbing (it) [imperfect active indicative] | CE56: ἐ + [active stem] +ει | CF56: Chapter 21: Verb Ending | CH56: 0 | CI56: FALSE | CJ56: 5053 | CK56: 55 | CO56: 53 | CT56: FALSE | CU56: 5053 | CV56: 55 | CZ56: 53 | DE56: FALSE | DF56: 5053 | DG56: 178 | DH56: 53 | DL56: μέν [on the one hand, indeed (particle)]
AE57: 54 | AF57: 21 | AG57: ἐ + [active stem] +ομεν | AI57: we were verbing (it) [imperfect active indicative] | AK57: Verb Ending | AQ57: 0 | AR57: 0.353 | AS57: ἐ + [active stem] +ομεν | AT57: TRUE | AU57: TRUE | AV57: TRUE | AW57: 21 | AY57: we were verbing (it) [imperfect active indicative] | BA57: Verb Ending | BF57: 0 | BG57: 54 | BH57: 54 | BI57: 21 | BJ57: ἐ + [active stem] +ομεν | BL57: we were verbing (it) [imperfect active indicative] | BN57: Verb Ending | BT57: 0 | BU57: 54 | BV57: 54 | BW57: 21 | BX57: Verb Ending | BY57: ἐ + [active stem] +ομεν | CD57: we were verbing (it) [imperfect active indicative] | CE57: ἐ + [active stem] +ομεν | CF57: Chapter 21: Verb Ending | CH57: 0 | CI57: FALSE | CJ57: 5054 | CK57: 56 | CO57: 54 | CT57: FALSE | CU57: 5054 | CV57: 56 | CZ57: 54 | DE57: FALSE | DF57: 5054 | DG57: 179 | DH57: 54 | DL57: μή [not, lest (particle; used in non-indicative moods like subjunctive or imperative)]
AE58: 55 | AF58: 21 | AG58: ἐ + [active stem] +ετε | AI58: ya'll were verbing (it) [imperfect active indicative] | AK58: Verb Ending | AQ58: 0 | AR58: 0.354 | AS58: ἐ + [active stem] +ετε | AT58: TRUE | AU58: TRUE | AV58: TRUE | AW58: 21 | AY58: ya'll were verbing (it) [imperfect active indicative] | BA58: Verb Ending | BF58: 0 | BG58: 55 | BH58: 55 | BI58: 21 | BJ58: ἐ + [active stem] +ετε | BL58: ya'll were verbing (it) [imperfect active indicative] | BN58: Verb Ending | BT58: 0 | BU58: 55 | BV58: 55 | BW58: 21 | BX58: Verb Ending | BY58: ἐ + [active stem] +ετε | CD58: ya'll were verbing (it) [imperfect active indicative] | CE58: ἐ + [active stem] +ετε | CF58: Chapter 21: Verb Ending | CH58: 0 | CI58: FALSE | CJ58: 5055 | CK58: 57 | CO58: 55 | CT58: FALSE | CU58: 5055 | CV58: 57 | CZ58: 55 | DE58: FALSE | DF58: 5055 | DG58: 180 | DH58: 55 | DL58: μου [my/of me (genitive singular)]
AE59: 56 | AF59: 21 | AG59: ἐ + [active stem] +ον | AI59: they were verbing (it) [imperfect active indicative] | AK59: Verb Ending | AQ59: 0 | AR59: 0.355 | AS59: ἐ + [active stem] +ον | AT59: TRUE | AU59: TRUE | AV59: TRUE | AW59: 21 | AY59: they were verbing (it) [imperfect active indicative] | BA59: Verb Ending | BF59: 0 | BG59: 56 | BH59: 56 | BI59: 21 | BJ59: ἐ + [active stem] +ον | BL59: they were verbing (it) [imperfect active indicative] | BN59: Verb Ending | BT59: 0 | BU59: 56 | BV59: 56 | BW59: 21 | BX59: Verb Ending | BY59: ἐ + [active stem] +ον | CD59: they were verbing (it) [imperfect active indicative] | CE59: ἐ + [active stem] +ον | CF59: Chapter 21: Verb Ending | CH59: 0 | CI59: FALSE | CJ59: 5056 | CK59: 58 | CO59: 56 | CT59: FALSE | CU59: 5056 | CV59: 58 | CZ59: 56 | DE59: FALSE | DF59: 5056 | DG59: 181 | DH59: 56 | DL59: μου [my]
AE60: 57 | AF60: 21 | AG60: ἐ + [active stem] +ομην | AI60: I was being verbed (by it) [imperfect passive indicative] | AK60: Verb Ending | AQ60: 0 | AR60: 0.36 | AS60: ἐ + [active stem] +ομην | AT60: TRUE | AU60: TRUE | AV60: TRUE | AW60: 21 | AY60: I was being verbed (by it) [imperfect passive indicative] | BA60: Verb Ending | BF60: 0 | BG60: 57 | BH60: 57 | BI60: 21 | BJ60: ἐ + [active stem] +ομην | BL60: I was being verbed (by it) [imperfect passive indicative] | BN60: Verb Ending | BT60: 0 | BU60: 57 | BV60: 57 | BW60: 21 | BX60: Verb Ending | BY60: ἐ + [active stem] +ομην | CD60: I was being verbed (by it) [imperfect passive indicative] | CE60: ἐ + [active stem] +ομην | CF60: Chapter 21: Verb Ending | CH60: 0 | CI60: FALSE | CJ60: 5057 | CK60: 59 | CO60: 57 | CT60: FALSE | CU60: 5057 | CV60: 59 | CZ60: 57 | DE60: FALSE | DF60: 5057 | DG60: 182 | DH60: 57 | DL60: ναί [yes, certainly]
AE61: 58 | AF61: 21 | AG61: ἐ + [active stem] +εσο | AI61: you were being verbed (by it) [imperfect passive indicative] | AK61: Verb Ending | AQ61: 0 | AR61: 0.361 | AS61: ἐ + [active stem] +εσο | AT61: TRUE | AU61: TRUE | AV61: TRUE | AW61: 21 | AY61: you were being verbed (by it) [imperfect passive indicative] | BA61: Verb Ending | BF61: 0 | BG61: 58 | BH61: 58 | BI61: 21 | BJ61: ἐ + [active stem] +εσο | BL61: you were being verbed (by it) [imperfect passive indicative] | BN61: Verb Ending | BT61: 0 | BU61: 58 | BV61: 58 | BW61: 21 | BX61: Verb Ending | BY61: ἐ + [active stem] +εσο | CD61: you were being verbed (by it) [imperfect passive indicative] | CE61: ἐ + [active stem] +εσο | CF61: Chapter 21: Verb Ending | CH61: 0 | CI61: FALSE | CJ61: 5058 | CK61: 60 | CO61: 58 | CT61: FALSE | CU61: 5058 | CV61: 60 | CZ61: 58 | DE61: FALSE | DF61: 5058 | DG61: 183 | DH61: 58 | DL61: νῦν [now (particle)]
AE62: 59 | AF62: 21 | AG62: ἐ + [active stem] +ετο | AI62: he/she/it was being verbed (by it) [imperfect passive indicative] | AK62: Verb Ending | AQ62: 0 | AR62: 0.362 | AS62: ἐ + [active stem] +ετο | AT62: TRUE | AU62: TRUE | AV62: TRUE | AW62: 21 | AY62: he/she/it was being verbed (by it) [imperfect passive indicative] | BA62: Verb Ending | BF62: 0 | BG62: 59 | BH62: 59 | BI62: 21 | BJ62: ἐ + [active stem] +ετο | BL62: he/she/it was being verbed (by it) [imperfect passive indicative] | BN62: Verb Ending | BT62: 0 | BU62: 59 | BV62: 59 | BW62: 21 | BX62: Verb Ending | BY62: ἐ + [active stem] +ετο | CD62: he/she/it was being verbed (by it) [imperfect passive indicative] | CE62: ἐ + [active stem] +ετο | CF62: Chapter 21: Verb Ending | CH62: 0 | CI62: FALSE | CJ62: 5059 | CK62: 61 | CO62: 59 | CT62: FALSE | CU62: 5059 | CV62: 61 | CZ62: 59 | DE62: FALSE | DF62: 5059 | DG62: 184 | DH62: 59 | DL62: ἡ νύξ [night]
AE63: 60 | AF63: 21 | AG63: ἐ + [active stem] +ομεθα | AI63: we were being verbed (by it) [imperfect passive indicative] | AK63: Verb Ending | AQ63: 0 | AR63: 0.363 | AS63: ἐ + [active stem] +ομεθα | AT63: TRUE | AU63: TRUE | AV63: TRUE | AW63: 21 | AY63: we were being verbed (by it) [imperfect passive indicative] | BA63: Verb Ending | BF63: 0 | BG63: 60 | BH63: 60 | BI63: 21 | BJ63: ἐ + [active stem] +ομεθα | BL63: we were being verbed (by it) [imperfect passive indicative] | BN63: Verb Ending | BT63: 0 | BU63: 60 | BV63: 60 | BW63: 21 | BX63: Verb Ending | BY63: ἐ + [active stem] +ομεθα | CD63: we were being verbed (by it) [imperfect passive indicative] | CE63: ἐ + [active stem] +ομεθα | CF63: Chapter 21: Verb Ending | CH63: 0 | CI63: FALSE | CJ63: 5060 | CK63: 62 | CO63: 60 | CT63: FALSE | CU63: 5060 | CV63: 62 | CZ63: 60 | DE63: FALSE | DF63: 5060 | DG63: 185 | DH63: 60 | DL63: ὁ [the (nominative, singular, masculine)]
AE64: 61 | AF64: 21 | AG64: ἐ + [active stem] +εσθε | AI64: ya'll were being verbed (by it) [imperfect passive indicative] | AK64: Verb Ending | AQ64: 0 | AR64: 0.364 | AS64: ἐ + [active stem] +εσθε | AT64: TRUE | AU64: TRUE | AV64: TRUE | AW64: 21 | AY64: ya'll were being verbed (by it) [imperfect passive indicative] | BA64: Verb Ending | BF64: 0 | BG64: 61 | BH64: 61 | BI64: 21 | BJ64: ἐ + [active stem] +εσθε | BL64: ya'll were being verbed (by it) [imperfect passive indicative] | BN64: Verb Ending | BT64: 0 | BU64: 61 | BV64: 61 | BW64: 21 | BX64: Verb Ending | BY64: ἐ + [active stem] +εσθε | CD64: ya'll were being verbed (by it) [imperfect passive indicative] | CE64: ἐ + [active stem] +εσθε | CF64: Chapter 21: Verb Ending | CH64: 0 | CI64: FALSE | CJ64: 5061 | CK64: 63 | CO64: 61 | CT64: FALSE | CU64: 5061 | CV64: 63 | CZ64: 61 | DE64: FALSE | DF64: 5061 | DG64: 186 | DH64: 61 | DL64: ἡ [the (nominative, singular, feminine)]
AE65: 62 | AF65: 21 | AG65: ἐ + [active stem] +οντο | AI65: they were being verbed (by it) [imperfect passive indicative] | AK65: Verb Ending | AQ65: 0 | AR65: 0.365 | AS65: ἐ + [active stem] +οντο | AT65: TRUE | AU65: TRUE | AV65: TRUE | AW65: 21 | AY65: they were being verbed (by it) [imperfect passive indicative] | BA65: Verb Ending | BF65: 0 | BG65: 62 | BH65: 62 | BI65: 21 | BJ65: ἐ + [active stem] +οντο | BL65: they were being verbed (by it) [imperfect passive indicative] | BN65: Verb Ending | BT65: 0 | BU65: 62 | BV65: 62 | BW65: 21 | BX65: Verb Ending | BY65: ἐ + [active stem] +οντο | CD65: they were being verbed (by it) [imperfect passive indicative] | CE65: ἐ + [active stem] +οντο | CF65: Chapter 21: Verb Ending | CH65: 0 | CI65: FALSE | CJ65: 5062 | CK65: 64 | CO65: 62 | CT65: FALSE | CU65: 5062 | CV65: 64 | CZ65: 62 | DE65: FALSE | DF65: 5062 | DG65: 187 | DH65: 62 | DL65: τό [the (nominative or accusative, singular, neuter)]
AE66: 63 | AF66: 21 | AG66: ἐ + [middle stem] +ομην | AI66: I was verbing [imperfect middle indicative] | AK66: Verb Ending | AQ66: 0 | AR66: 0.37 | AS66: ἐ + [middle stem] +ομην | AT66: TRUE | AU66: TRUE | AV66: TRUE | AW66: 21 | AY66: I was verbing [imperfect middle indicative] | BA66: Verb Ending | BF66: 0 | BG66: 63 | BH66: 63 | BI66: 21 | BJ66: ἐ + [middle stem] +ομην | BL66: I was verbing [imperfect middle indicative] | BN66: Verb Ending | BT66: 0 | BU66: 63 | BV66: 63 | BW66: 21 | BX66: Verb Ending | BY66: ἐ + [middle stem] +ομην | CD66: I was verbing [imperfect middle indicative] | CE66: ἐ + [middle stem] +ομην | CF66: Chapter 21: Verb Ending | CH66: 0 | CI66: FALSE | CJ66: 5063 | CK66: 65 | CO66: 63 | CT66: FALSE | CU66: 5063 | CV66: 65 | CZ66: 63 | DE66: FALSE | DF66: 5063 | DG66: 188 | DH66: 63 | DL66: τοῦ [the/of the (genitive, singular, masculine or neuter)]
AB67: ■□Abc | AE67: 64 | AF67: 21 | AG67: ἐ + [middle stem] +εσο | AI67: you were verbing [imperfect middle indicative] | AK67: Verb Ending | AQ67: 0 | AR67: 0.371 | AS67: ἐ + [middle stem] +εσο | AT67: TRUE | AU67: TRUE | AV67: TRUE | AW67: 21 | AY67: you were verbing [imperfect middle indicative] | BA67: Verb Ending | BF67: 0 | BG67: 64 | BH67: 64 | BI67: 21 | BJ67: ἐ + [middle stem] +εσο | BL67: you were verbing [imperfect middle indicative] | BN67: Verb Ending | BT67: 0 | BU67: 64 | BV67: 64 | BW67: 21 | BX67: Verb Ending | BY67: ἐ + [middle stem] +εσο | CD67: you were verbing [imperfect middle indicative] | CE67: ἐ + [middle stem] +εσο | CF67: Chapter 21: Verb Ending | CH67: 0 | CI67: FALSE | CJ67: 5064 | CK67: 66 | CO67: 64 | CT67: FALSE | CU67: 5064 | CV67: 66 | CZ67: 64 | DE67: FALSE | DF67: 5064 | DG67: 189 | DH67: 64 | DL67: τῆς [the/of the (genitive, singular, feminine)]
Y68: M F N | Z68: =IF(AND(AC$11,AA$41,$AD$79>0),Y68&" "&AB68&AC68&AD68,"") ->  | AA68: 1 | AE68: 65 | AF68: 21 | AG68: ἐ + [middle stem] +ετο | AI68: he/she/it was verbing [imperfect middle indicative] | AK68: Verb Ending | AQ68: 0 | AR68: 0.372 | AS68: ἐ + [middle stem] +ετο | AT68: =IF(ISERR(FIND(AF68,$Y$22,1)),FALSE,TRUE) -> TRUE | AU68: TRUE | AV68: TRUE | AW68: 21 | AY68: he/she/it was verbing [imperfect middle indicative] | BA68: Verb Ending | BF68: 0 | BG68: =IF(AV68,AE68,AE68+5000) -> 65 | BH68: =RANK(BG68,BG$4:BG$2003,1) -> 65 | BI68: 21 | BJ68: =IF($AV68,BO68&AG68," ") -> ἐ + [middle stem] +ετο | BL68: he/she/it was verbing [imperfect middle indicative] | BN68: Verb Ending | BT68: 0 | BU68: 65 | BV68: =IF(BU68<=BJ$2,MATCH(BU68,BH$4:BH$2003,0),"") -> 65 | BW68: =VLOOKUP($BU68,BH$4:BQ$2003,2,0) -> 21 | BX68: =VLOOKUP($BU68,BH$4:BQ$2003,7,0) -> Verb Ending | BY68: =VLOOKUP($BU68,BH$4:BQ$2003,3,0) -> ἐ + [middle stem] +ετο | BZ68: =VLOOKUP($BU68,BH$4:BQ$2003,9,0) ->  | CA68: =VLOOKUP($BU68,BH$4:BQ$2003,10,0) ->  | CB68: =VLOOKUP($BU68,BH$4:BQ$2003,4,0) ->  | CC68: =VLOOKUP($BU68,BH$4:BQ$2003,6,0) ->  | CD68: =VLOOKUP($BU68,BH$4:BQ$2003,5,0) -> he/she/it was verbing [imperfect middle indicative] | CE68: =IF(AC$8,BY68,VLOOKUP($BU68,BH$4:BR$2003,11,0)&BY68) -> ἐ + [middle stem] +ετο | CF68: Chapter 21: Verb Ending | CG68: =VLOOKUP($BU68,BH$4:BS$2003,12,0) ->  | CH68: =VLOOKUP($BU68,BH$4:BT$2003,13,0) -> 0 | CI68: FALSE | CJ68: =IF(CI68,AE68,AE68+5000) -> 5065 | CK68: =RANK(CJ68,CJ$4:CJ$2003,1) -> 67 | CL68: =IF($CI68,IF(BB68=" ","",BB68&" ")&AG68," ") ->  | CO68: 65 | CP68: =IF(CO68<=CP$2,MATCH(CO68,CK$4:CK$2003,0),"") ->  | CQ68: =VLOOKUP($CO68,CK$4:CM$2003,2,0) ->  | CR68: =VLOOKUP($CO68,CK$4:CN$2003,3,0)&VLOOKUP($CO68,CK$4:CN$2003,4,0) ->  | CT68: =IF(ISERR(FIND(CW$2,AP68,1)),FALSE, TRUE) -> FALSE | CU68: =IF(CT68,AE68,AE68+5000) -> 5065 | CV68: =RANK(CU68,CU$4:CU$2003,1) -> 67 | CW68: =IF($CT68,IF(AH68=" ",""," ["&AH68&"]")," ") ->  | CX68: =IF($CT68,IF(AK68="Noun ","Noun",IF(AK68="Verb ","Verb",AK68))," ") ->  | CZ68: 65 | DA68: =IF(CZ68<=DA$2,MATCH(CZ68,CV$4:CV$2003,0),"") ->  | DB68: =VLOOKUP($CZ68,CV$4:CY$2003,4,0) ->  | DE68: =IF(AND(LEN(AG68)<=DF$2,AG68<>" "),TRUE,FALSE) -> FALSE | DF68: =IF(DE68,AE68,AE68+5000) -> 5065 | DG68: =RANK(DF68,DF$4:DF$2003,1) -> 190 | DH68: 65 | DI68: =IF(DH68<=DA$2,MATCH(DH68,DG$4:DG$2003,0),"") ->  | DJ68: =IF($DE68,IF(BB68=" ","",BB68&" ")&AG68," ") ->  | DL68: =IF($DH68<=$DI$2,VLOOKUP($DH68,DG$4:DK$2003,4,0)&" [" &VLOOKUP($DH68,DG$4:DK$2003,5,0) &"]"," ") -> τῷ [the/to the (dative, singular, masculine or neuter)]
Y69: Nom Sing | AA69: 2 | AB69: =IF(AND(AA43>0,NOT(AA46>0)),"■","□") -> □ | AC69: =IF(AB43>0,"■","□") -> □ | AD69: □ | AE69: 66 | AF69: 21 | AG69: ἐ + [middle stem] +ομεθα | AI69: we were verbing [imperfect middle indicative] | AK69: Verb Ending | AQ69: 0 | AR69: 0.373 | AS69: =IF(AG69="","",AG69) -> ἐ + [middle stem] +ομεθα | AT69: TRUE | AU69: =IF(ISERR(FIND(AK69,$Y$23,1)),FALSE,TRUE) -> TRUE | AV69: =AND(AT69,AU69) -> TRUE | AW69: =IF(AC$3,AF69," ") -> 21 | AX69: =IF(AC$4,AH69," ") ->  | AY69: =IF(TRUE,AI69," ") -> we were verbing [imperfect middle indicative] | AZ69: =IF(AC$6,AJ69," ") ->  | BA69: =IF(AC$7,AK69," ") -> Verb Ending | BB69: =IF(AC$8,AL69," ") ->  | BC69: =IF(AC$9,AM69," ") ->  | BD69: =IF(AC$10,AN69," ") ->  | BE69: =IF(AC$9,AO69," ") ->  | BF69: =IF(AC$12,AQ69," ") -> 0 | BG69: 66 | BH69: 66 | BI69: 21 | BJ69: ἐ + [middle stem] +ομεθα | BL69: we were verbing [imperfect middle indicative] | BN69: Verb Ending | BR69: =IF($AV69,IF(AL69=" ","",AL69&" "),"") ->  | BS69: =IF($AV69,BE69," ") ->  | BT69: 0 | BU69: 66 | BV69: 66 | BW69: 21 | BX69: Verb Ending | BY69: ἐ + [middle stem] +ομεθα | CD69: we were verbing [imperfect middle indicative] | CE69: ἐ + [middle stem] +ομεθα | CF69: =IF(BV69="","",IF(BW69="37","Extra", IF(BW69=38, "Index of Textbook","Chapter " &BW69))&": "&BX69) -> Chapter 21: Verb Ending | CH69: 0 | CI69: =IF(ISERR(SEARCH(CL$2,AY69,1)),FALSE, TRUE) -> FALSE | CJ69: 5066 | CK69: 68 | CM69: =IF($CI69,AY69," ") ->  | CN69: =IF($CI69,IF(AW69="37"," [Extra]",IF(AW69="38"," [Index]", " [Chap. "&TEXT(VALUE(AW69),"#")&"]"))," ") ->  | CO69: 66 | CT69: FALSE | CU69: 5066 | CV69: 68 | CY69: =IF($CT69,IF(BB69=" ","",BB69&" ")&AG69&CW69&": "&AY69& IF(AF69="37"," (Extra",IF(AF69="38"," (Index"," (Chapter "&TEXT(AF69,"#"))) &", "&CX69& IF(LEN(AM69)>1," ["&AM69&"]","") &IF(LEN(AN69)>1," ["&AN69&"]","") &")"," ") ->  | CZ69: 66 | DE69: FALSE | DF69: 5066 | DG69: 191 | DH69: 66 | DK69: =IF($DE69,AY69," ") ->  | DL69: τῇ [the/ to the (dative, singular, feminine)]
Y70: Gen Sing | AA70: 3 | AB70: =IF(AA44>0,"■","□") -> □ | AC70: □ | AD70: □ | AE70: 67 | AF70: 21 | AG70: ἐ + [middle stem] +εσθε | AI70: ya'll were verbing [imperfect middle indicative] | AK70: Verb Ending | AQ70: 0 | AR70: 0.374 | AS70: ἐ + [middle stem] +εσθε | AT70: TRUE | AU70: TRUE | AV70: TRUE | AW70: 21 | AY70: ya'll were verbing [imperfect middle indicative] | BA70: Verb Ending | BF70: 0 | BG70: 67 | BH70: 67 | BI70: 21 | BJ70: ἐ + [middle stem] +εσθε | BL70: ya'll were verbing [imperfect middle indicative] | BN70: Verb Ending | BT70: 0 | BU70: 67 | BV70: 67 | BW70: 21 | BX70: Verb Ending | BY70: ἐ + [middle stem] +εσθε | CD70: ya'll were verbing [imperfect middle indicative] | CE70: ἐ + [middle stem] +εσθε | CF70: Chapter 21: Verb Ending | CH70: 0 | CI70: FALSE | CJ70: 5067 | CK70: 69 | CO70: 67 | CT70: FALSE | CU70: 5067 | CV70: 69 | CZ70: 67 | DE70: FALSE | DF70: 5067 | DG70: 192 | DH70: 67 | DL70: τόν [the (accusative, singular, masculine)]
Y71: Dat Sing | AA71: 4 | AB71: =IF(AA45>0,"■","□") -> □ | AC71: □ | AD71: □ | AE71: 68 | AF71: 21 | AG71: ἐ + [middle stem] +οντο | AI71: they were verbing [imperfect middle indicative] | AK71: Verb Ending | AQ71: 0 | AR71: 0.375 | AS71: ἐ + [middle stem] +οντο | AT71: TRUE | AU71: TRUE | AV71: TRUE | AW71: 21 | AY71: they were verbing [imperfect middle indicative] | BA71: Verb Ending | BF71: 0 | BG71: 68 | BH71: 68 | BI71: 21 | BJ71: ἐ + [middle stem] +οντο | BL71: they were verbing [imperfect middle indicative] | BN71: Verb Ending | BT71: 0 | BU71: 68 | BV71: 68 | BW71: 21 | BX71: Verb Ending | BY71: ἐ + [middle stem] +οντο | CD71: they were verbing [imperfect middle indicative] | CE71: ἐ + [middle stem] +οντο | CF71: Chapter 21: Verb Ending | CH71: 0 | CI71: FALSE | CJ71: 5068 | CK71: 70 | CO71: 68 | CT71: FALSE | CU71: 5068 | CV71: 70 | CZ71: 68 | DE71: FALSE | DF71: 5068 | DG71: 193 | DH71: 68 | DL71: τήν [the (accusative, singular, feminine)]
Y72: Acc Sing | AA72: 5 | AB72: =IF(AA46>0,"■","□") -> □ | AC72: □ | AD72: □ | AE72: 69 | AF72: 37 | AG72: κατα-, κατε- | AI72: verb prefix adding "thoroughly" to meaning | AK72: Verb Ending | AP72: kata | AQ72: 0 | AR72: 0.99 | AS72: κατα-, κατε- | AT72: TRUE | AU72: TRUE | AV72: TRUE | AW72: 37 | AY72: verb prefix adding "thoroughly" to meaning | BA72: Verb Ending | BF72: 0 | BG72: 69 | BH72: 69 | BI72: 37 | BJ72: κατα-, κατε- | BL72: verb prefix adding "thoroughly" to meaning | BN72: Verb Ending | BT72: 0 | BU72: 69 | BV72: 69 | BW72: 37 | BX72: Verb Ending | BY72: κατα-, κατε- | CD72: verb prefix adding "thoroughly" to meaning | CE72: κατα-, κατε- | CF72: Extra: Verb Ending | CH72: 0 | CI72: FALSE | CJ72: 5069 | CK72: 71 | CO72: 69 | CT72: FALSE | CU72: 5069 | CV72: 71 | CZ72: 69 | DE72: FALSE | DF72: 5069 | DG72: 194 | DH72: 69 | DL72: οἱ [the (nominative, plural, masculine)]
Y73: M F N | AA73: 6 | AE73: 70 | AF73: 04 | AG73: Ἀβραάμ | AH73: *ἀβρααμ | AI73: Abraham | AJ73: ah-brah-AHM | AK73: Proper Noun | AL73: ὁ | AP73: abraam | AQ73: 11 | AR73: 11 | AS73: Ἀβραάμ | AT73: TRUE | AU73: TRUE | AV73: TRUE | AW73: 04 | AX73: *ἀβρααμ | AY73: Abraham | AZ73: ah-brah-AHM | BA73: Proper Noun | BB73: ὁ | BF73: 11 | BG73: 70 | BH73: 70 | BI73: 04 | BJ73: ὁ Ἀβραάμ | BK73: *ἀβρααμ | BL73: Abraham | BM73: ah-brah-AHM | BN73: Proper Noun | BO73: ὁ | BR73: ὁ | BT73: 11 | BU73: 70 | BV73: 70 | BW73: 04 | BX73: Proper Noun | BY73: ὁ Ἀβραάμ | CB73: *ἀβρααμ | CC73: ah-brah-AHM | CD73: Abraham | CE73: ὁ Ἀβραάμ | CF73: Chapter 04: Proper Noun | CH73: 11 | CI73: FALSE | CJ73: 5070 | CK73: 72 | CO73: 70 | CT73: FALSE | CU73: 5070 | CV73: 72 | CZ73: 70 | DE73: FALSE | DF73: 5070 | DG73: 195 | DH73: 70 | DL73: αἱ [the (nominative, plural, feminine)]
Y74: Nom Plur | AA74: 7 | AB74: =IF(AA47>0,"■","□") -> □ | AC74: □ | AD74: □ | AE74: 71 | AF74: 37 | AG74: ἄβυσσος | AI74: (infernal) abyss, bottomless | AJ74: AHB-oose-oss | AK74: Noun | AL74: ἡ | AP74: abussos | AQ74: 12 | AR74: 12 | AS74: ἄβυσσος | AT74: TRUE | AU74: TRUE | AV74: TRUE | AW74: 37 | AY74: (infernal) abyss, bottomless | AZ74: AHB-oose-oss | BA74: Noun | BB74: ἡ | BF74: 12 | BG74: 71 | BH74: 71 | BI74: 37 | BJ74: ἡ ἄβυσσος | BL74: (infernal) abyss, bottomless | BM74: AHB-oose-oss | BN74: Noun | BO74: ἡ | BR74: ἡ | BT74: 12 | BU74: 71 | BV74: 71 | BW74: 37 | BX74: Noun | BY74: ἡ ἄβυσσος | CC74: AHB-oose-oss | CD74: (infernal) abyss, bottomless | CE74: ἡ ἄβυσσος | CF74: Extra: Noun | CH74: 12 | CI74: FALSE | CJ74: 5071 | CK74: 73 | CO74: 71 | CT74: FALSE | CU74: 5071 | CV74: 73 | CZ74: 71 | DE74: FALSE | DF74: 5071 | DG74: 196 | DH74: 71 | DL74: τά [the (nominative or accusative, plural, neuter)]
Y75: Gen Plur | AA75: 8 | AB75: □ | AC75: □ | AD75: □ | AE75: 72 | AF75: 37 | AG75: ἀγαθοποιέω | AI75: I do rightly, I do good | AJ75: ah-gah-thopp-oy-EH-ower | AK75: Verb | AM75: ἠγαθοποιοῦν | AN75: ἀγαθοποιήσω | AO75: ἠγαθοποίησα | AP75: agaqopoiew hgaqopoioun agaqopoihsw hgaqopoihsa | AQ75: 15 | AR75: 15 | AS75: ἀγαθοποιέω | AT75: TRUE | AU75: TRUE | AV75: TRUE | AW75: 37 | AY75: I do rightly, I do good | AZ75: ah-gah-thopp-oy-EH-ower | BA75: Verb | BC75: ἠγαθοποιοῦν | BD75: ἀγαθοποιήσω | BE75: ἠγαθοποίησα | BF75: 15 | BG75: 72 | BH75: 72 | BI75: 37 | BJ75: ἀγαθοποιέω | BL75: I do rightly, I do good | BM75: ah-gah-thopp-oy-EH-ower | BN75: Verb | BP75: ἠγαθοποιοῦν | BQ75: ἀγαθοποιήσω | BS75: ἠγαθοποίησα | BT75: 15 | BU75: 72 | BV75: 72 | BW75: 37 | BX75: Verb | BY75: ἀγαθοποιέω | BZ75: ἠγαθοποιοῦν | CA75: ἀγαθοποιήσω | CC75: ah-gah-thopp-oy-EH-ower | CD75: I do rightly, I do good | CE75: ἀγαθοποιέω | CF75: Extra: Verb | CG75: ἠγαθοποίησα | CH75: 15 | CI75: FALSE | CJ75: 5072 | CK75: 74 | CO75: 72 | CT75: FALSE | CU75: 5072 | CV75: 74 | CZ75: 72 | DE75: FALSE | DF75: 5072 | DG75: 197 | DH75: 72 | DL75: τῶν [the/of the (genitive, plural, masculine, feminine, neuter)]
Y76: Dat Plur | AA76: 9 | AB76: =IF(AA49>0,"■","□") -> □ | AC76: □ | AD76: □ | AE76: 73 | AF76: 09 | AG76: ἀγαθός | AH76: *ἀγαθο | AI76: good, useful | AJ76: ah-gah-THOSS | AK76: Adjective | AP76: agaqos | AQ76: 18 | AR76: 18 | AS76: ἀγαθός | AT76: TRUE | AU76: TRUE | AV76: TRUE | AW76: 09 | AX76: *ἀγαθο | AY76: good, useful | AZ76: ah-gah-THOSS | BA76: Adjective | BF76: 18 | BG76: 73 | BH76: 73 | BI76: 09 | BJ76: ἀγαθός | BK76: *ἀγαθο | BL76: good, useful | BM76: ah-gah-THOSS | BN76: Adjective | BT76: 18 | BU76: 73 | BV76: 73 | BW76: 09 | BX76: Adjective | BY76: ἀγαθός | CB76: *ἀγαθο | CC76: ah-gah-THOSS | CD76: good, useful | CE76: ἀγαθός | CF76: Chapter 09: Adjective | CH76: 18 | CI76: FALSE | CJ76: 5073 | CK76: 75 | CO76: 73 | CT76: FALSE | CU76: 5073 | CV76: 75 | CZ76: 73 | DE76: FALSE | DF76: 5073 | DG76: 198 | DH76: 73 | DL76: τάς [the (accusative, plural, feminine)]
Y77: Acc Plur | AA77: 10 | AB77: □ | AC77: □ | AD77: □ | AE77: 74 | AF77: 38 | AG77: ἀγαλλιάω | AI77: I exult | AJ77: ah-gah-lee-AH-owe | AK77: Verb | AM77: ἠγαλλίαον | AN77: ἀγαλλιάσομαι | AO77: ἠγαλλίασα | AP77: agalliaw hgalliasa hgalliaon agalliasomai | AQ77: 21 | AR77: 21 | AS77: ἀγαλλιάω | AT77: TRUE | AU77: TRUE | AV77: TRUE | AW77: 38 | AY77: I exult | AZ77: ah-gah-lee-AH-owe | BA77: Verb | BC77: ἠγαλλίαον | BD77: ἀγαλλιάσομαι | BE77: ἠγαλλίασα | BF77: 21 | BG77: 74 | BH77: 74 | BI77: 38 | BJ77: ἀγαλλιάω | BL77: I exult | BM77: ah-gah-lee-AH-owe | BN77: Verb | BP77: ἠγαλλίαον | BQ77: ἀγαλλιάσομαι | BS77: ἠγαλλίασα | BT77: 21 | BU77: 74 | BV77: 74 | BW77: 38 | BX77: Verb | BY77: ἀγαλλιάω | BZ77: ἠγαλλίαον | CA77: ἀγαλλιάσομαι | CC77: ah-gah-lee-AH-owe | CD77: I exult | CE77: ἀγαλλιάω | CF77: Index of Textbook: Verb | CG77: ἠγαλλίασα | CH77: 21 | CI77: FALSE | CJ77: 5074 | CK77: 76 | CO77: 74 | CT77: FALSE | CU77: 5074 | CV77: 76 | CZ77: 74 | DE77: FALSE | DF77: 5074 | DG77: 199 | DH77: 74 | DL77: ὅς [who/which/that (nominative, singular, masculine)]
AE78: 75 | AF78: 37 | AG78: ἄγαμος | AI78: unmarried (person) | AJ78: AH-gah-moss | AK78: Noun | AL78: ἡ | AP78: agamos | AQ78: 22 | AR78: 22 | AS78: ἄγαμος | AT78: TRUE | AU78: TRUE | AV78: TRUE | AW78: 37 | AY78: unmarried (person) | AZ78: AH-gah-moss | BA78: Noun | BB78: ἡ | BF78: 22 | BG78: 75 | BH78: 75 | BI78: 37 | BJ78: ἡ ἄγαμος | BL78: unmarried (person) | BM78: AH-gah-moss | BN78: Noun | BO78: ἡ | BR78: ἡ | BT78: 22 | BU78: 75 | BV78: 75 | BW78: 37 | BX78: Noun | BY78: ἡ ἄγαμος | CC78: AH-gah-moss | CD78: unmarried (person) | CE78: ἡ ἄγαμος | CF78: Extra: Noun | CH78: 22 | CI78: FALSE | CJ78: 5075 | CK78: 77 | CO78: 75 | CT78: FALSE | CU78: 5075 | CV78: 77 | CZ78: 75 | DE78: FALSE | DF78: 5075 | DG78: 200 | DH78: 75 | DL78: ἥ [who/which/that (nominative, singular, feminine)]
AB79: Checkbox Count | AD79: =SUM(AB80:AD88) -> 0 | AE79: 76 | AF79: 37 | AG79: ἀγανακτέω | AI79: I am indignant, I am afflicted | AJ79: ah-gahn-ahk-TEH-noe | AK79: Verb | AM79: ἠγανάκτεον | AN79: ἀγανακτήσω | AO79: ἠγανάκτησα | AP79: aganaktew hganakteon aganakthsw hganakthsa | AQ79: 23 | AR79: 23 | AS79: ἀγανακτέω | AT79: TRUE | AU79: TRUE | AV79: TRUE | AW79: 37 | AY79: I am indignant, I am afflicted | AZ79: ah-gahn-ahk-TEH-noe | BA79: Verb | BC79: ἠγανάκτεον | BD79: ἀγανακτήσω | BE79: ἠγανάκτησα | BF79: 23 | BG79: 76 | BH79: 76 | BI79: 37 | BJ79: ἀγανακτέω | BL79: I am indignant, I am afflicted | BM79: ah-gahn-ahk-TEH-noe | BN79: Verb | BP79: ἠγανάκτεον | BQ79: ἀγανακτήσω | BS79: ἠγανάκτησα | BT79: 23 | BU79: 76 | BV79: 76 | BW79: 37 | BX79: Verb | BY79: ἀγανακτέω | BZ79: ἠγανάκτεον | CA79: ἀγανακτήσω | CC79: ah-gahn-ahk-TEH-noe | CD79: I am indignant, I am afflicted | CE79: ἀγανακτέω | CF79: Extra: Verb | CG79: ἠγανάκτησα | CH79: 23 | CI79: FALSE | CJ79: 5076 | CK79: 78 | CO79: 76 | CT79: FALSE | CU79: 5076 | CV79: 78 | CZ79: 76 | DE79: FALSE | DF79: 5076 | DG79: 201 | DH79: 76 | DL79: ὅ [who/whom/which/that (nominative or accusative, singular, neuter)]
AB80: =IF(AB69="■",1,0) -> 0 | AC80: =IF(AC69="■",1,0) -> 0 | AD80: =IF(AD69="■",1,0) -> 0 | AE80: 77 | AF80: 17 | AG80: ἀγαπάω | AH80: *ἀγαπα | AI80: I love, I cherish | AJ80: ah-gah-PAY-owe | AK80: Verb | AM80: ἠγάπων | AN80: ἀγαπήσω | AO80: ἠγάπησα | AP80: agapaw hgapwn agaphsw hgaphsa | AQ80: 25 | AR80: 25 | AS80: ἀγαπάω | AT80: TRUE | AU80: TRUE | AV80: TRUE | AW80: 17 | AX80: *ἀγαπα | AY80: I love, I cherish | AZ80: ah-gah-PAY-owe | BA80: Verb | BC80: ἠγάπων | BD80: ἀγαπήσω | BE80: ἠγάπησα | BF80: 25 | BG80: 77 | BH80: 77 | BI80: 17 | BJ80: ἀγαπάω | BK80: *ἀγαπα | BL80: I love, I cherish | BM80: ah-gah-PAY-owe | BN80: Verb | BO80: =IF($AV80,IF(BB80=" ","",BB80&" "),"") ->  | BP80: ἠγάπων | BQ80: ἀγαπήσω | BS80: ἠγάπησα | BT80: 25 | BU80: 77 | BV80: 77 | BW80: 17 | BX80: Verb | BY80: ἀγαπάω | BZ80: ἠγάπων | CA80: ἀγαπήσω | CB80: *ἀγαπα | CC80: ah-gah-PAY-owe | CD80: I love, I cherish | CE80: ἀγαπάω | CF80: Chapter 17: Verb | CG80: ἠγάπησα | CH80: 25 | CI80: FALSE | CJ80: 5077 | CK80: 79 | CO80: 77 | CT80: FALSE | CU80: 5077 | CV80: 79 | CZ80: 77 | DE80: FALSE | DF80: 5077 | DG80: 202 | DH80: 77 | DL80: οὗ [of whom/of which/of whose (genitive, singular, masculine or neuter)]
AB81: =IF(AB70="■",1,0) -> 0 | AC81: 0 | AD81: 0 | AE81: 78 | AF81: 06 | AG81: ἀγάπη | AH81: *ἀγαπη | AI81: love | AJ81: ah-GAH-pay | AK81: Noun | AL81: ἡ | AP81: agaph | AQ81: 26 | AR81: 26 | AS81: ἀγάπη | AT81: TRUE | AU81: TRUE | AV81: TRUE | AW81: 06 | AX81: *ἀγαπη | AY81: love | AZ81: ah-GAH-pay | BA81: Noun | BB81: ἡ | BF81: 26 | BG81: 78 | BH81: 78 | BI81: 06 | BJ81: ἡ ἀγάπη | BK81: *ἀγαπη | BL81: love | BM81: ah-GAH-pay | BN81: Noun | BO81: ἡ | BR81: ἡ | BT81: 26 | BU81: 78 | BV81: 78 | BW81: 06 | BX81: Noun | BY81: ἡ ἀγάπη | CB81: *ἀγαπη | CC81: ah-GAH-pay | CD81: love | CE81: ἡ ἀγάπη | CF81: Chapter 06: Noun | CH81: 26 | CI81: FALSE | CJ81: 5078 | CK81: 80 | CO81: 78 | CT81: FALSE | CU81: 5078 | CV81: 80 | CZ81: 78 | DE81: FALSE | DF81: 5078 | DG81: 203 | DH81: 78 | DL81: ἧς [of whom/of which/of whose (genitive, singular, feminine)]
AB82: 0 | AC82: 0 | AD82: 0 | AE82: 79 | AF82: 09 | AG82: ἀγαπητός | AH82: *ἀγαπητο | AI82: beloved | AJ82: ah-ga-pay-TOSS | AK82: Adjective | AP82: agaphtos | AQ82: 27 | AR82: 27 | AS82: ἀγαπητός | AT82: TRUE | AU82: TRUE | AV82: TRUE | AW82: 09 | AX82: *ἀγαπητο | AY82: beloved | AZ82: ah-ga-pay-TOSS | BA82: Adjective | BF82: 27 | BG82: 79 | BH82: 79 | BI82: 09 | BJ82: ἀγαπητός | BK82: *ἀγαπητο | BL82: beloved | BM82: ah-ga-pay-TOSS | BN82: Adjective | BT82: 27 | BU82: 79 | BV82: 79 | BW82: 09 | BX82: Adjective | BY82: ἀγαπητός | CB82: *ἀγαπητο | CC82: ah-ga-pay-TOSS | CD82: beloved | CE82: ἀγαπητός | CF82: Chapter 09: Adjective | CH82: 27 | CI82: FALSE | CJ82: 5079 | CK82: 81 | CO82: 79 | CT82: FALSE | CU82: 5079 | CV82: 81 | CZ82: 79 | DE82: FALSE | DF82: 5079 | DG82: 204 | DH82: 79 | DL82: ᾧ [to whom/to which (dative, singular, masculine or neuter)]
AB83: 0 | AC83: 0 | AD83: 0 | AE83: 80 | AF83: 37 | AG83: ἀγγελία | AI83: message | AJ83: ahng-ell-EE-ah | AK83: Noun | AL83: ἡ | AP83: aggelia | AQ83: 31a | AR83: 31.1 | AS83: ἀγγελία | AT83: TRUE | AU83: TRUE | AV83: TRUE | AW83: 37 | AY83: message | AZ83: ahng-ell-EE-ah | BA83: Noun | BB83: ἡ | BF83: 31a | BG83: 80 | BH83: 80 | BI83: 37 | BJ83: ἡ ἀγγελία | BL83: message | BM83: ahng-ell-EE-ah | BN83: Noun | BO83: ἡ | BR83: ἡ | BT83: 31a | BU83: 80 | BV83: 80 | BW83: 37 | BX83: Noun | BY83: ἡ ἀγγελία | CC83: ahng-ell-EE-ah | CD83: message | CE83: ἡ ἀγγελία | CF83: Extra: Noun | CH83: 31a | CI83: FALSE | CJ83: 5080 | CK83: 82 | CO83: 80 | CT83: FALSE | CU83: 5080 | CV83: 82 | CZ83: 80 | DE83: FALSE | DF83: 5080 | DG83: 205 | DH83: 80 | DL83: ᾗ [to whom/to which (dative, singular, feminine)]
AB84: 0 | AC84: 0 | AD84: 0 | AE84: 81 | AF84: 04 | AG84: ἄγγελος | AH84: *ἀγγελο | AI84: angel, messenger | AJ84: AHN-gell-oss | AK84: Noun | AL84: ὁ | AP84: aggelos | AQ84: 32a | AR84: 32.1 | AS84: ἄγγελος | AT84: TRUE | AU84: TRUE | AV84: TRUE | AW84: 04 | AX84: *ἀγγελο | AY84: angel, messenger | AZ84: AHN-gell-oss | BA84: Noun | BB84: ὁ | BF84: 32a | BG84: 81 | BH84: 81 | BI84: 04 | BJ84: ὁ ἄγγελος | BK84: *ἀγγελο | BL84: angel, messenger | BM84: AHN-gell-oss | BN84: Noun | BO84: ὁ | BR84: ὁ | BT84: 32a | BU84: 81 | BV84: 81 | BW84: 04 | BX84: Noun | BY84: ὁ ἄγγελος | CB84: *ἀγγελο | CC84: AHN-gell-oss | CD84: angel, messenger | CE84: ὁ ἄγγελος | CF84: Chapter 04: Noun | CH84: 32a | CI84: FALSE | CJ84: 5081 | CK84: 83 | CO84: 81 | CT84: FALSE | CU84: 5081 | CV84: 83 | CZ84: 81 | DE84: FALSE | DF84: 5081 | DG84: 206 | DH84: 81 | DL84: ὅν [whom/which/that (accusative, singular, masculine)]
AB85: 0 | AC85: 0 | AD85: 0 | AE85: 82 | AF85: 37 | AG85: ἀγέλη | AI85: herd | AJ85: ah-GELL-ay | AK85: Noun | AL85: ἡ | AP85: agelh | AQ85: 34 | AR85: 34 | AS85: ἀγέλη | AT85: TRUE | AU85: TRUE | AV85: TRUE | AW85: 37 | AY85: herd | AZ85: ah-GELL-ay | BA85: Noun | BB85: ἡ | BF85: 34 | BG85: 82 | BH85: 82 | BI85: 37 | BJ85: ἡ ἀγέλη | BL85: herd | BM85: ah-GELL-ay | BN85: Noun | BO85: ἡ | BR85: ἡ | BT85: 34 | BU85: 82 | BV85: 82 | BW85: 37 | BX85: Noun | BY85: ἡ ἀγέλη | CC85: ah-GELL-ay | CD85: herd | CE85: ἡ ἀγέλη | CF85: Extra: Noun | CH85: 34 | CI85: FALSE | CJ85: 5082 | CK85: 84 | CO85: 82 | CT85: FALSE | CU85: 5082 | CV85: 84 | CZ85: 82 | DE85: FALSE | DF85: 5082 | DG85: 207 | DH85: 82 | DL85: ἥν [whom/which/that (accusative, singular, feminine)]
AB86: 0 | AC86: 0 | AD86: 0 | AE86: 83 | AF86: 35 | AG86: ἁγιάζω | AH86: *ἁγιαδ | AI86: I consecrate, I sanctify | AJ86: hah-gi-AH-zoe | AK86: Verb | AM86: ἡγίαζον | AN86: ἁγιάσω | AO86: ἥγιασα | AP86: agiazw hgiasa hgiazon agiasw | AQ86: 37 | AR86: 37 | AS86: ἁγιάζω | AT86: TRUE | AU86: TRUE | AV86: TRUE | AW86: 35 | AX86: *ἁγιαδ | AY86: I consecrate, I sanctify | AZ86: hah-gi-AH-zoe | BA86: Verb | BC86: ἡγίαζον | BD86: ἁγιάσω | BE86: ἥγιασα | BF86: 37 | BG86: 83 | BH86: 83 | BI86: 35 | BJ86: ἁγιάζω | BK86: *ἁγιαδ | BL86: I consecrate, I sanctify | BM86: hah-gi-AH-zoe | BN86: Verb | BP86: ἡγίαζον | BQ86: ἁγιάσω | BS86: ἥγιασα | BT86: 37 | BU86: 83 | BV86: 83 | BW86: 35 | BX86: Verb | BY86: ἁγιάζω | BZ86: ἡγίαζον | CA86: ἁγιάσω | CB86: *ἁγιαδ | CC86: hah-gi-AH-zoe | CD86: I consecrate, I sanctify | CE86: ἁγιάζω | CF86: Chapter 35: Verb | CG86: ἥγιασα | CH86: 37 | CI86: FALSE | CJ86: 5083 | CK86: 85 | CO86: 83 | CT86: FALSE | CU86: 5083 | CV86: 85 | CZ86: 83 | DE86: FALSE | DF86: 5083 | DG86: 208 | DH86: 83 | DL86: οἵ [who/which/that (nominative, plural, masculine)]
AB87: 0 | AC87: 0 | AD87: 0 | AE87: 84 | AF87: 38 | AG87: ἁγιασμός | AH87: *ἁγιο | AI87: holiness, consecration | AJ87: Ha-gee-ahs-MOSS | AK87: Noun | AL87: ὁ | AP87: agiasmos | AQ87: 38 | AR87: 38 | AS87: ἁγιασμός | AT87: TRUE | AU87: TRUE | AV87: TRUE | AW87: 38 | AX87: *ἁγιο | AY87: holiness, consecration | AZ87: Ha-gee-ahs-MOSS | BA87: Noun | BB87: ὁ | BF87: 38 | BG87: 84 | BH87: 84 | BI87: 38 | BJ87: ὁ ἁγιασμός | BK87: *ἁγιο | BL87: holiness, consecration | BM87: Ha-gee-ahs-MOSS | BN87: Noun | BO87: ὁ | BR87: ὁ | BT87: 38 | BU87: 84 | BV87: 84 | BW87: 38 | BX87: Noun | BY87: ὁ ἁγιασμός | CB87: *ἁγιο | CC87: Ha-gee-ahs-MOSS | CD87: holiness, consecration | CE87: ὁ ἁγιασμός | CF87: Chapter 38: Noun | CH87: 38 | CI87: FALSE | CJ87: 5084 | CK87: 86 | CO87: 84 | CT87: FALSE | CU87: 5084 | CV87: 86 | CZ87: 84 | DE87: FALSE | DF87: 5084 | DG87: 209 | DH87: 84 | DL87: αἵ [who/which/that (nominative, plural, feminine)]
AB88: 0 | AC88: 0 | AD88: 0 | AE88: 85 | AF88: 09 | AG88: ἅγιος (noun) | AH88: *ἁγιο | AI88: saint, holy one | AJ88: HA-gi-oss | AK88: Noun | AL88: ὁ | AP88: agios | AQ88: 40 | AR88: 40 | AS88: ἅγιος (noun) | AT88: TRUE | AU88: TRUE | AV88: TRUE | AW88: 09 | AX88: *ἁγιο | AY88: saint, holy one | AZ88: HA-gi-oss | BA88: Noun | BB88: ὁ | BF88: 40 | BG88: 85 | BH88: 85 | BI88: =IF(AV88,AW88," ") -> 09 | BJ88: ὁ ἅγιος (noun) | BK88: =IF($AV88,AX88," ") -> *ἁγιο | BL88: =IF($AV88,AY88," ") -> saint, holy one | BM88: =IF($AV88,AZ88," ") -> HA-gi-oss | BN88: =IF($AV88,BA88," ") -> Noun | BO88: ὁ | BP88: =IF($AV88,BC88," ") ->  | BQ88: =IF($AV88,BD88," ") ->  | BR88: ὁ | BT88: =IF($AV88,BF88," ") -> 40 | BU88: 85 | BV88: 85 | BW88: 09 | BX88: Noun | BY88: ὁ ἅγιος (noun) | CB88: *ἁγιο | CC88: HA-gi-oss | CD88: saint, holy one | CE88: ὁ ἅγιος (noun) | CF88: Chapter 09: Noun | CH88: 40 | CI88: FALSE | CJ88: 5085 | CK88: 87 | CO88: 85 | CT88: FALSE | CU88: 5085 | CV88: 87 | CZ88: 85 | DE88: FALSE | DF88: 5085 | DG88: 210 | DH88: 85 | DL88: ἅ [who/which/that/whom (nominative or accusative, plural, neuter)]
AE89: 86 | AF89: 09 | AG89: ἅγιος (adj) | AH89: *ἁγιο | AI89: holy | AJ89: HA-gi-oss | AK89: Adjective | AP89: agios | AQ89: 40 | AR89: 40.1 | AS89: ἅγιος (adj) | AT89: TRUE | AU89: TRUE | AV89: TRUE | AW89: 09 | AX89: *ἁγιο | AY89: holy | AZ89: HA-gi-oss | BA89: Adjective | BF89: 40 | BG89: 86 | BH89: 86 | BI89: 09 | BJ89: ἅγιος (adj) | BK89: *ἁγιο | BL89: holy | BM89: HA-gi-oss | BN89: Adjective | BT89: 40 | BU89: 86 | BV89: 86 | BW89: 09 | BX89: Adjective | BY89: ἅγιος (adj) | CB89: *ἁγιο | CC89: HA-gi-oss | CD89: holy | CE89: ἅγιος (adj) | CF89: Chapter 09: Adjective | CH89: 40 | CI89: FALSE | CJ89: 5086 | CK89: 88 | CO89: 86 | CT89: FALSE | CU89: 5086 | CV89: 88 | CZ89: 86 | DE89: FALSE | DF89: 5086 | DG89: 211 | DH89: 86 | DL89: ὧν [of whom/of which/of whose (genitive, plural, masculine, feminine, neuter)]
AE90: 87 | AF90: 37 | AG90: ἄγκυρα | AI90: anchor | AJ90: AHNG-koo-rah | AK90: Noun | AL90: ἡ | AP90: agkura | AQ90: 45 | AR90: 45 | AS90: ἄγκυρα | AT90: TRUE | AU90: TRUE | AV90: TRUE | AW90: 37 | AY90: anchor | AZ90: AHNG-koo-rah | BA90: Noun | BB90: ἡ | BF90: 45 | BG90: 87 | BH90: 87 | BI90: 37 | BJ90: ἡ ἄγκυρα | BL90: anchor | BM90: AHNG-koo-rah | BN90: Noun | BO90: ἡ | BR90: ἡ | BT90: 45 | BU90: 87 | BV90: 87 | BW90: 37 | BX90: Noun | BY90: ἡ ἄγκυρα | CC90: AHNG-koo-rah | CD90: anchor | CE90: ἡ ἄγκυρα | CF90: Extra: Noun | CH90: 45 | CI90: FALSE | CJ90: 5087 | CK90: 89 | CO90: 87 | CT90: FALSE | CU90: 5087 | CV90: 89 | CZ90: 87 | DE90: FALSE | DF90: 5087 | DG90: 212 | DH90: 87 | DL90: οἷς [to whom/to which (dative, plural, masculine or neuter)]
AE91: 88 | AF91: 37 | AG91: ἁγνίζω | AI91: I make clean, I sanctify | AJ91: hahg-NEE-zoe | AK91: Verb | AM91: ἡγνίζον | AN91: ἁγνίσω | AO91: ἥγνισα | AP91: agnizw hgnizon agnisw hgnisa | AQ91: 48 | AR91: 48 | AS91: ἁγνίζω | AT91: TRUE | AU91: TRUE | AV91: TRUE | AW91: 37 | AY91: I make clean, I sanctify | AZ91: hahg-NEE-zoe | BA91: Verb | BC91: ἡγνίζον | BD91: ἁγνίσω | BE91: ἥγνισα | BF91: 48 | BG91: 88 | BH91: 88 | BI91: 37 | BJ91: ἁγνίζω | BL91: I make clean, I sanctify | BM91: hahg-NEE-zoe | BN91: Verb | BP91: ἡγνίζον | BQ91: ἁγνίσω | BS91: ἥγνισα | BT91: 48 | BU91: 88 | BV91: 88 | BW91: 37 | BX91: Verb | BY91: ἁγνίζω | BZ91: ἡγνίζον | CA91: ἁγνίσω | CC91: hahg-NEE-zoe | CD91: I make clean, I sanctify | CE91: ἁγνίζω | CF91: Extra: Verb | CG91: ἥγνισα | CH91: 48 | CI91: FALSE | CJ91: 5088 | CK91: 90 | CO91: 88 | CT91: FALSE | CU91: 5088 | CV91: 90 | CZ91: 88 | DE91: FALSE | DF91: 5088 | DG91: 213 | DH91: 88 | DL91: αἷς [to whom/to which (dative, plural, feminine)]
AE92: 89 | AF92: 38 | AG92: ἀγνοέω | AH92: *γνωσι | AI92: I do not know | AJ92: ahg-no-eh-owe | AK92: Verb | AM92: ἠγνόουν | AN92: ἀγνοήσω | AO92: ἠγνόησα | AP92: agnoew hgnooun hgnohsa agnohsw | AQ92: 50 | AR92: 50 | AS92: ἀγνοέω | AT92: TRUE | AU92: TRUE | AV92: TRUE | AW92: 38 | AX92: *γνωσι | AY92: I do not know | AZ92: ahg-no-eh-owe | BA92: Verb | BC92: ἠγνόουν | BD92: ἀγνοήσω | BE92: ἠγνόησα | BF92: 50 | BG92: 89 | BH92: 89 | BI92: 38 | BJ92: ἀγνοέω | BK92: *γνωσι | BL92: I do not know | BM92: ahg-no-eh-owe | BN92: Verb | BP92: ἠγνόουν | BQ92: ἀγνοήσω | BS92: ἠγνόησα | BT92: 50 | BU92: 89 | BV92: 89 | BW92: 38 | BX92: Verb | BY92: ἀγνοέω | BZ92: ἠγνόουν | CA92: ἀγνοήσω | CB92: *γνωσι | CC92: ahg-no-eh-owe | CD92: I do not know | CE92: ἀγνοέω | CF92: Index of Textbook: Verb | CG92: ἠγνόησα | CH92: 50 | CI92: FALSE | CJ92: 5089 | CK92: 91 | CO92: 89 | CT92: FALSE | CU92: 5089 | CV92: 91 | CZ92: 89 | DE92: FALSE | DF92: 5089 | DG92: 214 | DH92: 89 | DL92: οὕς [whom/which (accusative, plural, masculine)]
AE93: 90 | AF93: 37 | AG93: ἁγνός | AI93: innocent, modest, pure, clean | AJ93: hahg-NOSS | AK93: Adjective | AP93: agnos | AQ93: 53 | AR93: 53 | AS93: ἁγνός | AT93: TRUE | AU93: TRUE | AV93: TRUE | AW93: 37 | AY93: innocent, modest, pure, clean | AZ93: hahg-NOSS | BA93: Adjective | BF93: 53 | BG93: 90 | BH93: 90 | BI93: 37 | BJ93: ἁγνός | BL93: innocent, modest, pure, clean | BM93: hahg-NOSS | BN93: Adjective | BT93: 53 | BU93: 90 | BV93: 90 | BW93: 37 | BX93: Adjective | BY93: ἁγνός | CC93: hahg-NOSS | CD93: innocent, modest, pure, clean | CE93: ἁγνός | CF93: Extra: Adjective | CH93: 53 | CI93: FALSE | CJ93: 5090 | CK93: 92 | CO93: 90 | CT93: FALSE | CU93: 5090 | CV93: 92 | CZ93: 90 | DE93: FALSE | DF93: 5090 | DG93: 215 | DH93: 90 | DL93: ἅς [whom/which (accusative, plural, feminine)]
AE94: 91 | AF94: 38 | AG94: ἀγορά | AI94: marketplace | AJ94: ah-gorr-AH | AK94: Noun | AL94: ἡ | AP94: agora | AQ94: 58 | AR94: 58 | AS94: ἀγορά | AT94: TRUE | AU94: TRUE | AV94: TRUE | AW94: 38 | AY94: marketplace | AZ94: ah-gorr-AH | BA94: Noun | BB94: ἡ | BF94: 58 | BG94: 91 | BH94: 91 | BI94: 38 | BJ94: ἡ ἀγορά | BL94: marketplace | BM94: ah-gorr-AH | BN94: Noun | BO94: ἡ | BR94: ἡ | BT94: 58 | BU94: 91 | BV94: 91 | BW94: 38 | BX94: Noun | BY94: ἡ ἀγορά | CC94: ah-gorr-AH | CD94: marketplace | CE94: ἡ ἀγορά | CF94: Chapter 38: Noun | CH94: 58 | CI94: FALSE | CJ94: 5091 | CK94: 93 | CO94: 91 | CT94: FALSE | CU94: 5091 | CV94: 93 | CZ94: 91 | DE94: FALSE | DF94: 5091 | DG94: 216 | DH94: 91 | DL94: ὅτι [whoever, whichever, whatever (neuter) (usually appears as ὅ τι)]
AE95: 92 | AF95: 38 | AG95: ἀγοράζω | AI95: I buy | AJ95: ah-gorr-AH-zoe | AK95: Verb | AM95: ἠγόραζον | AN95: ἀγοράσω | AO95: ἠγόρασα | AP95: agorazw hgorasa agorasw | AQ95: 59 | AR95: 59 | AS95: ἀγοράζω | AT95: TRUE | AU95: TRUE | AV95: TRUE | AW95: 38 | AY95: I buy | AZ95: ah-gorr-AH-zoe | BA95: Verb | BC95: ἠγόραζον | BD95: ἀγοράσω | BE95: ἠγόρασα | BF95: 59 | BG95: 92 | BH95: 92 | BI95: 38 | BJ95: ἀγοράζω | BL95: I buy | BM95: ah-gorr-AH-zoe | BN95: Verb | BP95: ἠγόραζον | BQ95: ἀγοράσω | BS95: ἠγόρασα | BT95: 59 | BU95: 92 | BV95: 92 | BW95: 38 | BX95: Verb | BY95: ἀγοράζω | BZ95: ἠγόραζον | CA95: ἀγοράσω | CC95: ah-gorr-AH-zoe | CD95: I buy | CE95: ἀγοράζω | CF95: Index of Textbook: Verb | CG95: ἠγόρασα | CH95: 59 | CI95: FALSE | CJ95: 5092 | CK95: 94 | CO95: 92 | CT95: FALSE | CU95: 5092 | CV95: 94 | CZ95: 92 | DE95: FALSE | DF95: 5092 | DG95: 217 | DH95: 92 | DL95: ὄτε [when]
AE96: 93 | AF96: 37 | AG96: ἀγριέλαιος | AI96: (wild, uncultivated) olive (tree) | AJ96: ahg-REE-ell-eye-oss | AK96: Noun | AL96: ἡ | AP96: agrielaios | AQ96: 65 | AR96: 65 | AS96: ἀγριέλαιος | AT96: TRUE | AU96: TRUE | AV96: TRUE | AW96: 37 | AY96: (wild, uncultivated) olive (tree) | AZ96: ahg-REE-ell-eye-oss | BA96: Noun | BB96: ἡ | BF96: 65 | BG96: 93 | BH96: 93 | BI96: 37 | BJ96: ἡ ἀγριέλαιος | BL96: (wild, uncultivated) olive (tree) | BM96: ahg-REE-ell-eye-oss | BN96: Noun | BO96: ἡ | BR96: ἡ | BT96: 65 | BU96: 93 | BV96: 93 | BW96: 37 | BX96: Noun | BY96: ἡ ἀγριέλαιος | CC96: ahg-REE-ell-eye-oss | CD96: (wild, uncultivated) olive (tree) | CE96: ἡ ἀγριέλαιος | CF96: Extra: Noun | CH96: 65 | CI96: FALSE | CJ96: 5093 | CK96: 95 | CO96: 93 | CT96: FALSE | CU96: 5093 | CV96: 95 | CZ96: 93 | DE96: FALSE | DF96: 5093 | DG96: 218 | DH96: 93 | DL96: ὅτι [that, since, because, or begin a quotation]
AE97: 94 | AF97: 37 | AG97: ἄγριος | AI97: wild, fierce, natural | AJ97: AH-gree-oss | AK97: Adjective | AP97: agrios | AQ97: 66 | AR97: 66 | AS97: ἄγριος | AT97: TRUE | AU97: TRUE | AV97: TRUE | AW97: 37 | AY97: wild, fierce, natural | AZ97: AH-gree-oss | BA97: Adjective | BF97: 66 | BG97: 94 | BH97: 94 | BI97: 37 | BJ97: ἄγριος | BL97: wild, fierce, natural | BM97: AH-gree-oss | BN97: Adjective | BT97: 66 | BU97: 94 | BV97: 94 | BW97: 37 | BX97: Adjective | BY97: ἄγριος | CC97: AH-gree-oss | CD97: wild, fierce, natural | CE97: ἄγριος | CF97: Extra: Adjective | CH97: 66 | CI97: FALSE | CJ97: 5094 | CK97: 96 | CO97: 94 | CT97: FALSE | CU97: 5094 | CV97: 96 | CZ97: 94 | DE97: FALSE | DF97: 5094 | DG97: 219 | DH97: 94 | DL97: οὗ [where]
AE98: 95 | AF98: 38 | AG98: Ἀγρίππας | AI98: Agrippa | AJ98: Ah-GRIP-ahs | AK98: Proper Noun | AL98: ὁ | AP98: agrippas | AQ98: 67 | AR98: 67 | AS98: Ἀγρίππας | AT98: TRUE | AU98: TRUE | AV98: TRUE | AW98: 38 | AY98: Agrippa | AZ98: Ah-GRIP-ahs | BA98: Proper Noun | BB98: ὁ | BF98: 67 | BG98: 95 | BH98: 95 | BI98: 38 | BJ98: ὁ Ἀγρίππας | BL98: Agrippa | BM98: Ah-GRIP-ahs | BN98: Proper Noun | BO98: ὁ | BR98: ὁ | BT98: 67 | BU98: 95 | BV98: 95 | BW98: 38 | BX98: Proper Noun | BY98: ὁ Ἀγρίππας | CC98: Ah-GRIP-ahs | CD98: Agrippa | CE98: ὁ Ἀγρίππας | CF98: Chapter 38: Proper Noun | CH98: 67 | CI98: FALSE | CJ98: 5095 | CK98: 97 | CO98: 95 | CT98: FALSE | CU98: 5095 | CV98: 97 | CZ98: 95 | DE98: FALSE | DF98: 5095 | DG98: 220 | DH98: 95 | DL98: οὖν [so, therefore, accordingly, then (particle)]
AE99: 96 | AF99: 38 | AG99: ἀγρός | AI99: field, land | AJ99: ah-grahs | AK99: Noun | AL99: ὁ | AP99: agros | AQ99: 68 | AR99: 68 | AS99: ἀγρός | AT99: TRUE | AU99: TRUE | AV99: TRUE | AW99: 38 | AY99: field, land | AZ99: ah-grahs | BA99: Noun | BB99: ὁ | BF99: 68 | BG99: 96 | BH99: 96 | BI99: 38 | BJ99: ὁ ἀγρός | BL99: field, land | BM99: ah-grahs | BN99: Noun | BO99: ὁ | BR99: ὁ | BT99: 68 | BU99: 96 | BV99: 96 | BW99: 38 | BX99: Noun | BY99: ὁ ἀγρός | CC99: ah-grahs | CD99: field, land | CE99: ὁ ἀγρός | CF99: Index of Textbook: Noun | CH99: 68 | CI99: FALSE | CJ99: 5096 | CK99: 98 | CO99: 96 | CT99: FALSE | CU99: 5096 | CV99: 98 | CZ99: 96 | DE99: FALSE | DF99: 5096 | DG99: 221 | DH99: 96 | DL99: πᾶς [each, every, all (masculine)]
AE100: 97 | AF100: 24 | AG100: ἄγω | AH100: *ἀγ | AI100: I lead, I bring, I arrest | AJ100: AH-goe | AK100: Verb | AM100: ἦγον | AN100: ἄξω | AO100: ἤγαγον | AP100: agw hgon axw hgagon | AQ100: 71 | AR100: 71 | AS100: ἄγω | AT100: TRUE | AU100: TRUE | AV100: TRUE | AW100: 24 | AX100: *ἀγ | AY100: I lead, I bring, I arrest | AZ100: AH-goe | BA100: Verb | BC100: ἦγον | BD100: ἄξω | BE100: ἤγαγον | BF100: 71 | BG100: 97 | BH100: 97 | BI100: 24 | BJ100: ἄγω | BK100: *ἀγ | BL100: I lead, I bring, I arrest | BM100: AH-goe | BN100: Verb | BP100: ἦγον | BQ100: ἄξω | BS100: ἤγαγον | BT100: 71 | BU100: 97 | BV100: 97 | BW100: 24 | BX100: Verb | BY100: ἄγω | BZ100: ἦγον | CA100: ἄξω | CB100: *ἀγ | CC100: AH-goe | CD100: I lead, I bring, I arrest | CE100: ἄγω | CF100: Chapter 24: Verb | CG100: ἤγαγον | CH100: 71 | CI100: FALSE | CJ100: 5097 | CK100: 99 | CO100: 97 | CT100: FALSE | CU100: 5097 | CV100: 99 | CZ100: 97 | DE100: TRUE | DF100: 97 | DG100: 2 | DH100: 97 | DJ100: ἄγω | DK100: I lead, I bring, I arrest | DL100: πᾶν [each, every, all (neuter)]
AE101: 98 | AF101: 37 | AG101: ἀγών | AI101: contest, conflict, fight, struggle, effort | AJ101: ah-GONE | AK101: Noun | AL101: ὁ | AP101: agwn | AQ101: 73 | AR101: 73 | AS101: ἀγών | AT101: TRUE | AU101: TRUE | AV101: TRUE | AW101: 37 | AY101: contest, conflict, fight, struggle, effort | AZ101: ah-GONE | BA101: Noun | BB101: ὁ | BF101: 73 | BG101: 98 | BH101: 98 | BI101: 37 | BJ101: ὁ ἀγών | BL101: contest, conflict, fight, struggle, effort | BM101: ah-GONE | BN101: Noun | BO101: ὁ | BR101: ὁ | BT101: 73 | BU101: 98 | BV101: 98 | BW101: 37 | BX101: Noun | BY101: ὁ ἀγών | CC101: ah-GONE | CD101: contest, conflict, fight, struggle, effort | CE101: ὁ ἀγών | CF101: Extra: Noun | CH101: 73 | CI101: FALSE | CJ101: 5098 | CK101: 100 | CO101: 98 | CT101: FALSE | CU101: 5098 | CV101: 100 | CZ101: 98 | DE101: FALSE | DF101: 5098 | DG101: 222 | DH101: 98 | DL101: ποῦ [where? (particle)]
AE102: 99 | AF102: 37 | AG102: ἀγωνίζομαι | AI102: I struggle, I compete, I contend, I strive | AJ102: ahg-noe-IZZ-omm-eye | AK102: Verb | AM102: ἠγωνιζόμην | AN102: ἀγωνίσομαι | AO102: ἠγωνισάμην | AP102: agwnizomai hgwnizomhn agwnisomai hgwnisamhn | AQ102: 75 | AR102: 75 | AS102: ἀγωνίζομαι | AT102: TRUE | AU102: TRUE | AV102: TRUE | AW102: 37 | AY102: I struggle, I compete, I contend, I strive | AZ102: ahg-noe-IZZ-omm-eye | BA102: Verb | BC102: ἠγωνιζόμην | BD102: ἀγωνίσομαι | BE102: ἠγωνισάμην | BF102: 75 | BG102: 99 | BH102: 99 | BI102: 37 | BJ102: ἀγωνίζομαι | BL102: I struggle, I compete, I contend, I strive | BM102: ahg-noe-IZZ-omm-eye | BN102: Verb | BP102: ἠγωνιζόμην | BQ102: ἀγωνίσομαι | BS102: ἠγωνισάμην | BT102: 75 | BU102: 99 | BV102: 99 | BW102: 37 | BX102: Verb | BY102: ἀγωνίζομαι | BZ102: ἠγωνιζόμην | CA102: ἀγωνίσομαι | CC102: ahg-noe-IZZ-omm-eye | CD102: I struggle, I compete, I contend, I strive | CE102: ἀγωνίζομαι | CF102: Extra: Verb | CG102: ἠγωνισάμην | CH102: 75 | CI102: FALSE | CJ102: 5099 | CK102: 101 | CO102: 99 | CT102: FALSE | CU102: 5099 | CV102: 101 | CZ102: 99 | DE102: FALSE | DF102: 5099 | DG102: 223 | DH102: 99 | DL102: πρό [before [genitive]]
AE103: 100 | AF103: 37 | AG103: Ἀδάμ | AI103: Adam | AJ103: ah-DAHM | AK103: Proper Noun | AL103: ὁ | AP103: adam | AQ103: 76 | AR103: 76 | AS103: Ἀδάμ | AT103: TRUE | AU103: TRUE | AV103: TRUE | AW103: 37 | AY103: Adam | AZ103: ah-DAHM | BA103: Proper Noun | BB103: ὁ | BF103: 76 | BG103: 100 | BH103: 100 | BI103: 37 | BJ103: ὁ Ἀδάμ | BL103: Adam | BM103: ah-DAHM | BN103: Proper Noun | BO103: ὁ | BR103: ὁ | BT103: 76 | BU103: 100 | BV103: 100 | BW103: 37 | BX103: Proper Noun | BY103: ὁ Ἀδάμ | CC103: ah-DAHM | CD103: Adam | CE103: ὁ Ἀδάμ | CF103: Extra: Proper Noun | CH103: 76 | CI103: FALSE | CJ103: 5100 | CK103: 102 | CO103: 100 | CT103: FALSE | CU103: 5100 | CV103: 102 | CZ103: 100 | DE103: FALSE | DF103: 5100 | DG103: 224 | DH103: 100 | DL103: τό πῦρ [fire]
AE104: 101 | AF104: 38 | AG104: ἀδελφή | AI104: sister | AJ104: ah-dell-FAY | AK104: Noun | AL104: ἡ | AP104: adelfh | AQ104: 79 | AR104: 79 | AS104: ἀδελφή | AT104: TRUE | AU104: TRUE | AV104: TRUE | AW104: 38 | AY104: sister | AZ104: ah-dell-FAY | BA104: Noun | BB104: ἡ | BF104: 79 | BG104: 101 | BH104: 101 | BI104: 38 | BJ104: ἡ ἀδελφή | BL104: sister | BM104: ah-dell-FAY | BN104: Noun | BO104: ἡ | BR104: ἡ | BT104: 79 | BU104: 101 | BV104: 101 | BW104: 38 | BX104: Noun | BY104: ἡ ἀδελφή | CC104: ah-dell-FAY | CD104: sister | CE104: ἡ ἀδελφή | CF104: Chapter 38: Noun | CH104: 79 | CI104: FALSE | CJ104: 5101 | CK104: 103 | CO104: 101 | CT104: FALSE | CU104: 5101 | CV104: 103 | CZ104: 101 | DE104: FALSE | DF104: 5101 | DG104: 225 | DH104: 101 | DL104: πώς [somehow, perhaps (note the acute mark)]
AE105: 102 | AF105: 11 | AG105: ἀδελφός | AH105: *ἀδελφο | AI105: brother | AJ105: ah-dell-FOSS | AK105: Noun | AL105: ὁ | AP105: adelfos | AQ105: 80 | AR105: 80 | AS105: ἀδελφός | AT105: TRUE | AU105: TRUE | AV105: TRUE | AW105: 11 | AX105: *ἀδελφο | AY105: brother | AZ105: ah-dell-FOSS | BA105: Noun | BB105: ὁ | BF105: 80 | BG105: 102 | BH105: 102 | BI105: 11 | BJ105: ὁ ἀδελφός | BK105: *ἀδελφο | BL105: brother | BM105: ah-dell-FOSS | BN105: Noun | BO105: ὁ | BR105: ὁ | BT105: 80 | BU105: 102 | BV105: 102 | BW105: 11 | BX105: Noun | BY105: ὁ ἀδελφός | CB105: *ἀδελφο | CC105: ah-dell-FOSS | CD105: brother | CE105: ὁ ἀδελφός | CF105: Chapter 11: Noun | CH105: 80 | CI105: FALSE | CJ105: 5102 | CK105: 104 | CO105: 102 | CT105: FALSE | CU105: 5102 | CV105: 104 | CZ105: 102 | DE105: FALSE | DF105: 5102 | DG105: 226 | DH105: 102 | DL105: πῶς [how? (note the circumflex)]
AE106: 103 | AF106: 38 | AG106: ᾁδης | AI106: Hades or hades ("the unseen place"; not a proper noun as used in the New Testament) | AJ106: HAH-dace | AK106: Noun | AL106: ὁ | AP106: adhs | AQ106: 86 | AR106: 86 | AS106: ᾁδης | AT106: TRUE | AU106: TRUE | AV106: TRUE | AW106: 38 | AY106: Hades or hades ("the unseen place"; not a proper noun as used in the New Testament) | AZ106: HAH-dace | BA106: Noun | BB106: ὁ | BF106: 86 | BG106: 103 | BH106: 103 | BI106: 38 | BJ106: ὁ ᾁδης | BL106: Hades or hades ("the unseen place"; not a proper noun as used in the New Testament) | BM106: HAH-dace | BN106: Noun | BO106: ὁ | BR106: ὁ | BT106: 86 | BU106: 103 | BV106: 103 | BW106: 38 | BX106: Noun | BY106: ὁ ᾁδης | CC106: HAH-dace | CD106: Hades or hades ("the unseen place"; not a proper noun as used in the New Testament) | CE106: ὁ ᾁδης | CF106: Chapter 38: Noun | CH106: 86 | CI106: FALSE | CJ106: 5103 | CK106: 105 | CO106: 103 | CT106: FALSE | CU106: 5103 | CV106: 105 | CZ106: 103 | DE106: FALSE | DF106: 5103 | DG106: 227 | DH106: 103 | DL106: σύ [you (singular)]
AE107: 104 | AF107: 38 | AG107: ἀδικέω | AH107: *δικαιο | AI107: I injure, I do wrong | AJ107: ah-dee-KEH-owe | AK107: Verb | AM107: ἠδίκουν | AN107: ἀδικήσω | AO107: ἠδίκησα | AP107: adikew adikhsw hdikhsa hdikoun | AQ107: 91 | AR107: 91 | AS107: ἀδικέω | AT107: TRUE | AU107: TRUE | AV107: TRUE | AW107: 38 | AX107: *δικαιο | AY107: I injure, I do wrong | AZ107: ah-dee-KEH-owe | BA107: Verb | BC107: ἠδίκουν | BD107: ἀδικήσω | BE107: ἠδίκησα | BF107: 91 | BG107: 104 | BH107: 104 | BI107: 38 | BJ107: ἀδικέω | BK107: *δικαιο | BL107: I injure, I do wrong | BM107: ah-dee-KEH-owe | BN107: Verb | BP107: ἠδίκουν | BQ107: ἀδικήσω | BS107: ἠδίκησα | BT107: 91 | BU107: 104 | BV107: 104 | BW107: 38 | BX107: Verb | BY107: ἀδικέω | BZ107: ἠδίκουν | CA107: ἀδικήσω | CB107: *δικαιο | CC107: ah-dee-KEH-owe | CD107: I injure, I do wrong | CE107: ἀδικέω | CF107: Index of Textbook: Verb | CG107: ἠδίκησα | CH107: 91 | CI107: FALSE | CJ107: 5104 | CK107: 106 | CO107: 104 | CT107: FALSE | CU107: 5104 | CV107: 106 | CZ107: 104 | DE107: FALSE | DF107: 5104 | DG107: 228 | DH107: 104 | DL107: σύ [you (nominative singular)]
AE108: 105 | AF108: 38 | AG108: ἀδικία | AH108: *δικαιο | AI108: unrighteousness | AJ108: ah-dik-EE-ah | AK108: Noun | AL108: ἡ | AP108: adikia | AQ108: 93 | AR108: 93 | AS108: ἀδικία | AT108: TRUE | AU108: TRUE | AV108: TRUE | AW108: 38 | AX108: *δικαιο | AY108: unrighteousness | AZ108: ah-dik-EE-ah | BA108: Noun | BB108: ἡ | BF108: 93 | BG108: 105 | BH108: 105 | BI108: 38 | BJ108: ἡ ἀδικία | BK108: *δικαιο | BL108: unrighteousness | BM108: ah-dik-EE-ah | BN108: Noun | BO108: ἡ | BR108: ἡ | BT108: 93 | BU108: 105 | BV108: 105 | BW108: 38 | BX108: Noun | BY108: ἡ ἀδικία | CB108: *δικαιο | CC108: ah-dik-EE-ah | CD108: unrighteousness | CE108: ἡ ἀδικία | CF108: Index of Textbook: Noun | CH108: 93 | CI108: FALSE | CJ108: 5105 | CK108: 107 | CO108: 105 | CT108: FALSE | CU108: 5105 | CV108: 107 | CZ108: 105 | DE108: FALSE | DF108: 5105 | DG108: 229 | DH108: 105 | DL108: σοῦ [your/of you (emphatic genitive singular)]
AE109: 106 | AF109: 38 | AG109: ἂδικος | AH109: *δικαιο | AI109: unjust | AJ109: AH-dee-koss | AK109: Adjective | AP109: adikos | AQ109: 94 | AR109: 94 | AS109: ἂδικος | AT109: TRUE | AU109: TRUE | AV109: TRUE | AW109: 38 | AX109: *δικαιο | AY109: unjust | AZ109: AH-dee-koss | BA109: Adjective | BF109: 94 | BG109: 106 | BH109: 106 | BI109: 38 | BJ109: ἂδικος | BK109: *δικαιο | BL109: unjust | BM109: AH-dee-koss | BN109: Adjective | BT109: 94 | BU109: 106 | BV109: 106 | BW109: 38 | BX109: Adjective | BY109: ἂδικος | CB109: *δικαιο | CC109: AH-dee-koss | CD109: unjust | CE109: ἂδικος | CF109: Chapter 38: Adjective | CH109: 94 | CI109: FALSE | CJ109: 5106 | CK109: 108 | CO109: 106 | CT109: FALSE | CU109: 5106 | CV109: 108 | CZ109: 106 | DE109: FALSE | DF109: 5106 | DG109: 230 | DH109: 106 | DL109: σε [you (accusative singular)]
AE110: 107 | AF110: 37 | AG110: ἀδόκιμος | AI110: rejected, worthless, failing | AJ110: ah-DOKK-ee-moss | AK110: Adjective | AP110: adokimos | AQ110: 96b | AR110: 96.5 | AS110: ἀδόκιμος | AT110: TRUE | AU110: TRUE | AV110: TRUE | AW110: 37 | AY110: rejected, worthless, failing | AZ110: ah-DOKK-ee-moss | BA110: Adjective | BF110: 96b | BG110: 107 | BH110: 107 | BI110: 37 | BJ110: ἀδόκιμος | BL110: rejected, worthless, failing | BM110: ah-DOKK-ee-moss | BN110: Adjective | BT110: 96b | BU110: 107 | BV110: 107 | BW110: 37 | BX110: Adjective | BY110: ἀδόκιμος | CC110: ah-DOKK-ee-moss | CD110: rejected, worthless, failing | CE110: ἀδόκιμος | CF110: Extra: Adjective | CH110: 96b | CI110: FALSE | CJ110: 5107 | CK110: 109 | CO110: 107 | CT110: FALSE | CU110: 5107 | CV110: 109 | CZ110: 107 | DE110: FALSE | DF110: 5107 | DG110: 231 | DH110: 107 | DL110: σέ [you (emphatic accusative singular)]
AE111: 108 | AF111: 38 | AG111: ἀδύνατος | AH111: *δυνα | AI111: impossible | AJ111: Ah-DOON-ah-toss | AK111: Adjective | AP111: adunatos | AQ111: 102 | AR111: 102 | AS111: ἀδύνατος | AT111: TRUE | AU111: TRUE | AV111: TRUE | AW111: 38 | AX111: *δυνα | AY111: impossible | AZ111: Ah-DOON-ah-toss | BA111: Adjective | BF111: 102 | BG111: 108 | BH111: 108 | BI111: 38 | BJ111: ἀδύνατος | BK111: *δυνα | BL111: impossible | BM111: Ah-DOON-ah-toss | BN111: Adjective | BT111: 102 | BU111: 108 | BV111: 108 | BW111: 38 | BX111: Adjective | BY111: ἀδύνατος | CB111: *δυνα | CC111: Ah-DOON-ah-toss | CD111: impossible | CE111: ἀδύνατος | CF111: Chapter 38: Adjective | CH111: 102 | CI111: FALSE | CJ111: 5108 | CK111: 110 | CO111: 108 | CT111: FALSE | CU111: 5108 | CV111: 110 | CZ111: 108 | DE111: FALSE | DF111: 5108 | DG111: 232 | DH111: 108 | DL111: σοί [to you (emphatic dative singular)]
AE112: 109 | AF112: 37 | AG112: ἄδω | AI112: I sing | AJ112: AH-doe | AK112: Verb | AM112: ᾖδον | AN112: ᾄσομαι | AO112: ᾖσα | AP112: adw hdon asomai has | AQ112: 103 | AR112: 103 | AS112: ἄδω | AT112: TRUE | AU112: TRUE | AV112: TRUE | AW112: 37 | AY112: I sing | AZ112: AH-doe | BA112: Verb | BC112: ᾖδον | BD112: ᾄσομαι | BE112: ᾖσα | BF112: 103 | BG112: 109 | BH112: 109 | BI112: 37 | BJ112: ἄδω | BL112: I sing | BM112: AH-doe | BN112: Verb | BP112: ᾖδον | BQ112: ᾄσομαι | BS112: ᾖσα | BT112: 103 | BU112: 109 | BV112: 109 | BW112: 37 | BX112: Verb | BY112: ἄδω | BZ112: ᾖδον | CA112: ᾄσομαι | CC112: AH-doe | CD112: I sing | CE112: ἄδω | CF112: Extra: Verb | CG112: ᾖσα | CH112: 103 | CI112: FALSE | CJ112: 5109 | CK112: 111 | CO112: 109 | CT112: FALSE | CU112: 5109 | CV112: 111 | CZ112: 109 | DE112: TRUE | DF112: 109 | DG112: 3 | DH112: 109 | DJ112: ἄδω | DK112: I sing | DL112: σός [your, of you (masculine)]
AE113: 110 | AF113: 37 | AG113: ἀεί | AI113: always, constantly | AJ113: ah-AY | AK113: Adverb | AP113: aei | AQ113: 104 | AR113: 104 | AS113: ἀεί | AT113: TRUE | AU113: TRUE | AV113: TRUE | AW113: 37 | AY113: always, constantly | AZ113: ah-AY | BA113: Adverb | BF113: 104 | BG113: 110 | BH113: 110 | BI113: 37 | BJ113: ἀεί | BL113: always, constantly | BM113: ah-AY | BN113: Adverb | BT113: 104 | BU113: 110 | BV113: 110 | BW113: 37 | BX113: Adverb | BY113: ἀεί | CC113: ah-AY | CD113: always, constantly | CE113: ἀεί | CF113: Extra: Adverb | CH113: 104 | CI113: FALSE | CJ113: 5110 | CK113: 112 | CO113: 110 | CT113: FALSE | CU113: 5110 | CV113: 112 | CZ113: 110 | DE113: TRUE | DF113: 110 | DG113: 4 | DH113: 110 | DJ113: ἀεί | DK113: always, constantly | DL113: σή [your, of you (feminine)]
AE114: 111 | AF114: 37 | AG114: ἀετός | AI114: eagle, vulture | AJ114: ah-ett-OSS | AK114: Noun | AL114: ὁ | AP114: aetos | AQ114: 105 | AR114: 105 | AS114: ἀετός | AT114: TRUE | AU114: TRUE | AV114: TRUE | AW114: 37 | AY114: eagle, vulture | AZ114: ah-ett-OSS | BA114: Noun | BB114: ὁ | BF114: 105 | BG114: 111 | BH114: 111 | BI114: 37 | BJ114: ὁ ἀετός | BL114: eagle, vulture | BM114: ah-ett-OSS | BN114: Noun | BO114: ὁ | BR114: ὁ | BT114: 105 | BU114: 111 | BV114: 111 | BW114: 37 | BX114: Noun | BY114: ὁ ἀετός | CC114: ah-ett-OSS | CD114: eagle, vulture | CE114: ὁ ἀετός | CF114: Extra: Noun | CH114: 105 | CI114: FALSE | CJ114: 5111 | CK114: 113 | CO114: 111 | CT114: FALSE | CU114: 5111 | CV114: 113 | CZ114: 111 | DE114: FALSE | DF114: 5111 | DG114: 233 | DH114: 111 | DL114: σόν [your, of you (neuter)]
AE115: 112 | AF115: 37 | AG115: ἄζυμος | AI115: unleavened, uncorrupted | AJ115: AH-zoom-oss | AK115: Adjective | AP115: azumos | AQ115: 106 | AR115: 106 | AS115: ἄζυμος | AT115: TRUE | AU115: TRUE | AV115: TRUE | AW115: 37 | AY115: unleavened, uncorrupted | AZ115: AH-zoom-oss | BA115: Adjective | BF115: 106 | BG115: 112 | BH115: 112 | BI115: 37 | BJ115: ἄζυμος | BL115: unleavened, uncorrupted | BM115: AH-zoom-oss | BN115: Adjective | BT115: 106 | BU115: 112 | BV115: 112 | BW115: 37 | BX115: Adjective | BY115: ἄζυμος | CC115: AH-zoom-oss | CD115: unleavened, uncorrupted | CE115: ἄζυμος | CF115: Extra: Adjective | CH115: 106 | CI115: FALSE | CJ115: 5112 | CK115: 114 | CO115: 112 | CT115: FALSE | CU115: 5112 | CV115: 114 | CZ115: 112 | DE115: FALSE | DF115: 5112 | DG115: 234 | DH115: 112 | DL115: σου [your/of you (genitive singular)]
AE116: 113 | AF116: 37 | AG116: ἀήρ | AI116: air | AJ116: ah-AIR | AK116: Noun | AL116: ὁ | AP116: ahr | AQ116: 109 | AR116: 109 | AS116: ἀήρ | AT116: TRUE | AU116: TRUE | AV116: TRUE | AW116: 37 | AY116: air | AZ116: ah-AIR | BA116: Noun | BB116: ὁ | BF116: 109 | BG116: 113 | BH116: 113 | BI116: 37 | BJ116: ὁ ἀήρ | BL116: air | BM116: ah-AIR | BN116: Noun | BO116: ὁ | BR116: ὁ | BT116: 109 | BU116: 113 | BV116: 113 | BW116: 37 | BX116: Noun | BY116: ὁ ἀήρ | CC116: ah-AIR | CD116: air | CE116: ὁ ἀήρ | CF116: Extra: Noun | CH116: 109 | CI116: FALSE | CJ116: 5113 | CK116: 115 | CO116: 113 | CT116: FALSE | CU116: 5113 | CV116: 115 | CZ116: 113 | DE116: TRUE | DF116: 113 | DG116: 5 | DH116: 113 | DJ116: ὁ ἀήρ | DK116: air | DL116: σοι [to you (dative singular)]
AE117: 114 | AF117: 38 | AG117: ἀθετέω | AI117: I nullify, I reject | AJ117: ah-thet-EH-owe | AK117: Verb | AM117: ἠθέτουν | AN117: ἀθετήσω | AO117: ἠθέτησα | AP117: aqetew aqethsw hqethsa hqetoun | AQ117: 114 | AR117: 114 | AS117: ἀθετέω | AT117: TRUE | AU117: TRUE | AV117: TRUE | AW117: 38 | AY117: I nullify, I reject | AZ117: ah-thet-EH-owe | BA117: Verb | BC117: ἠθέτουν | BD117: ἀθετήσω | BE117: ἠθέτησα | BF117: 114 | BG117: 114 | BH117: 114 | BI117: 38 | BJ117: ἀθετέω | BL117: I nullify, I reject | BM117: ah-thet-EH-owe | BN117: Verb | BP117: ἠθέτουν | BQ117: ἀθετήσω | BS117: ἠθέτησα | BT117: 114 | BU117: 114 | BV117: 114 | BW117: 38 | BX117: Verb | BY117: ἀθετέω | BZ117: ἠθέτουν | CA117: ἀθετήσω | CC117: ah-thet-EH-owe | CD117: I nullify, I reject | CE117: ἀθετέω | CF117: Index of Textbook: Verb | CG117: ἠθέτησα | CH117: 114 | CI117: FALSE | CJ117: 5114 | CK117: 116 | CO117: 114 | CT117: FALSE | CU117: 5114 | CV117: 116 | CZ117: 114 | DE117: FALSE | DF117: 5114 | DG117: 235 | DH117: 114 | DL117: τέ [so, and so]
AE118: 115 | AF118: 37 | AG118: Ἀθῆναι | AI118: Athens | AJ118: ah-THAY-nye | AK118: Proper Noun | AL118: ἡ | AP118: aqhnai | AQ118: 116 | AR118: 116 | AS118: Ἀθῆναι | AT118: TRUE | AU118: TRUE | AV118: TRUE | AW118: 37 | AY118: Athens | AZ118: ah-THAY-nye | BA118: Proper Noun | BB118: ἡ | BF118: 116 | BG118: 115 | BH118: 115 | BI118: 37 | BJ118: ἡ Ἀθῆναι | BL118: Athens | BM118: ah-THAY-nye | BN118: Proper Noun | BO118: ἡ | BR118: ἡ | BT118: 116 | BU118: 115 | BV118: 115 | BW118: 37 | BX118: Proper Noun | BY118: ἡ Ἀθῆναι | CC118: ah-THAY-nye | CD118: Athens | CE118: ἡ Ἀθῆναι | CF118: Extra: Proper Noun | CH118: 116 | CI118: FALSE | CJ118: 5115 | CK118: 117 | CO118: 115 | CT118: FALSE | CU118: 5115 | CV118: 117 | CZ118: 115 | DE118: FALSE | DF118: 5115 | DG118: 236 | DH118: 115 | DL118: τις [someone, something, anyone, anything (nominative, singular, masculine or feminine)]
AE119: 116 | AF119: 38 | AG119: Αἴγυπτος | AI119: Egypt | AJ119: EYE-goop-toss | AK119: Proper Noun | AL119: ἡ | AP119: aiguptos | AQ119: 125 | AR119: 125 | AS119: Αἴγυπτος | AT119: TRUE | AU119: TRUE | AV119: TRUE | AW119: 38 | AY119: Egypt | AZ119: EYE-goop-toss | BA119: Proper Noun | BB119: ἡ | BF119: 125 | BG119: 116 | BH119: 116 | BI119: 38 | BJ119: ἡ Αἴγυπτος | BL119: Egypt | BM119: EYE-goop-toss | BN119: Proper Noun | BO119: ἡ | BR119: ἡ | BT119: 125 | BU119: 116 | BV119: 116 | BW119: 38 | BX119: Proper Noun | BY119: ἡ Αἴγυπτος | CC119: EYE-goop-toss | CD119: Egypt | CE119: ἡ Αἴγυπτος | CF119: Chapter 38: Proper Noun | CH119: 125 | CI119: FALSE | CJ119: 5116 | CK119: 118 | CO119: 116 | CT119: FALSE | CU119: 5116 | CV119: 118 | CZ119: 116 | DE119: FALSE | DF119: 5116 | DG119: 237 | DH119: 116 | DL119: τι [someone, something, anyone, anything (nominative or accusative, singular, neuter)]
AE120: 117 | AF120: 24 | AG120: αἷμα | AH120: *αἱματ | AI120: blood | AJ120: HAY-mah | AK120: Noun | AL120: τό | AP120: aima | AQ120: 129 | AR120: 129 | AS120: αἷμα | AT120: TRUE | AU120: TRUE | AV120: TRUE | AW120: 24 | AX120: *αἱματ | AY120: blood | AZ120: HAY-mah | BA120: Noun | BB120: τό | BF120: 129 | BG120: 117 | BH120: 117 | BI120: 24 | BJ120: τό αἷμα | BK120: *αἱματ | BL120: blood | BM120: HAY-mah | BN120: Noun | BO120: τό | BR120: τό | BT120: 129 | BU120: 117 | BV120: 117 | BW120: 24 | BX120: Noun | BY120: τό αἷμα | CB120: *αἱματ | CC120: HAY-mah | CD120: blood | CE120: τό αἷμα | CF120: Chapter 24: Noun | CH120: 129 | CI120: FALSE | CJ120: 5117 | CK120: 119 | CO120: 117 | CT120: FALSE | CU120: 5117 | CV120: 119 | CZ120: 117 | DE120: FALSE | DF120: 5117 | DG120: 238 | DH120: 117 | DL120: τίς [who? what? which? (nominative, singular, masculine or feminine)]
AE121: 118 | AF121: 37 | AG121: αἰνέω | AI121: I praise | AJ121: eye-NEH-owe | AK121: Verb | AM121: ᾔνουν | AN121: αἰνέσω | AO121: ᾔνεσα | AP121: ainew hnoun ainesw hnesa | AQ121: 134 | AR121: 134 | AS121: αἰνέω | AT121: TRUE | AU121: TRUE | AV121: TRUE | AW121: 37 | AY121: I praise | AZ121: eye-NEH-owe | BA121: Verb | BC121: ᾔνουν | BD121: αἰνέσω | BE121: ᾔνεσα | BF121: 134 | BG121: 118 | BH121: 118 | BI121: 37 | BJ121: αἰνέω | BL121: I praise | BM121: eye-NEH-owe | BN121: Verb | BP121: ᾔνουν | BQ121: αἰνέσω | BS121: ᾔνεσα | BT121: 134 | BU121: 118 | BV121: 118 | BW121: 37 | BX121: Verb | BY121: αἰνέω | BZ121: ᾔνουν | CA121: αἰνέσω | CC121: eye-NEH-owe | CD121: I praise | CE121: αἰνέω | CF121: Extra: Verb | CG121: ᾔνεσα | CH121: 134 | CI121: FALSE | CJ121: 5118 | CK121: 120 | CO121: 118 | CT121: FALSE | CU121: 5118 | CV121: 120 | CZ121: 118 | DE121: FALSE | DF121: 5118 | DG121: 239 | DH121: 118 | DL121: τί [why? who? what? which? (nominative or accusative, singular, neuter)]
AE122: 119 | AF122: 37 | AG122: αἱρέω | AI122: I choose, I prefer | AJ122: hye-REH-owe | AK122: Verb | AM122: ᾕρουν | AN122: αἱρήσομαι | AO122: ᾑρέθην | AP122: airew hroun airhsomai hreqhn | AQ122: 138 | AR122: 138 | AS122: αἱρέω | AT122: TRUE | AU122: TRUE | AV122: TRUE | AW122: 37 | AY122: I choose, I prefer | AZ122: hye-REH-owe | BA122: Verb | BC122: ᾕρουν | BD122: αἱρήσομαι | BE122: ᾑρέθην | BF122: 138 | BG122: 119 | BH122: 119 | BI122: 37 | BJ122: αἱρέω | BL122: I choose, I prefer | BM122: hye-REH-owe | BN122: Verb | BP122: ᾕρουν | BQ122: αἱρήσομαι | BS122: ᾑρέθην | BT122: 138 | BU122: 119 | BV122: 119 | BW122: 37 | BX122: Verb | BY122: αἱρέω | BZ122: ᾕρουν | CA122: αἱρήσομαι | CC122: hye-REH-owe | CD122: I choose, I prefer | CE122: αἱρέω | CF122: Extra: Verb | CG122: ᾑρέθην | CH122: 138 | CI122: FALSE | CJ122: 5119 | CK122: 121 | CO122: 119 | CT122: FALSE | CU122: 5119 | CV122: 121 | CZ122: 119 | DE122: FALSE | DF122: 5119 | DG122: 240 | DH122: 119 | DL122: τοι [assuredly, certainly (particle)]
AE123: 120 | AF123: 37 | AG123: αἵρεσις | AI123: preference, sect, choice, faction, (heresy) | AJ123: HYE-ress-iss | AK123: Noun | AL123: ἡ | AP123: airesis | AQ123: 139 | AR123: 139 | AS123: αἵρεσις | AT123: TRUE | AU123: TRUE | AV123: TRUE | AW123: 37 | AY123: preference, sect, choice, faction, (heresy) | AZ123: HYE-ress-iss | BA123: Noun | BB123: ἡ | BF123: 139 | BG123: 120 | BH123: 120 | BI123: 37 | BJ123: ἡ αἵρεσις | BL123: preference, sect, choice, faction, (heresy) | BM123: HYE-ress-iss | BN123: Noun | BO123: ἡ | BR123: ἡ | BT123: 139 | BU123: 120 | BV123: 120 | BW123: 37 | BX123: Noun | BY123: ἡ αἵρεσις | CC123: HYE-ress-iss | CD123: preference, sect, choice, faction, (heresy) | CE123: ἡ αἵρεσις | CF123: Extra: Noun | CH123: 139 | CI123: FALSE | CJ123: 5120 | CK123: 122 | CO123: 120 | CT123: FALSE | CU123: 5120 | CV123: 122 | CZ123: 120 | DE123: FALSE | DF123: 5120 | DG123: 241 | DH123: 120 | DL123: ἔφη [he/she/it said/was saying/was affirming (3rd person singular)]
AE124: 121 | AF124: 20 | AG124: αἴρω | AH124: *ἀρ | AI124: I raise, I take up, I take away | AJ124: EYE-roe | AK124: Verb | AM124: ᾖρον | AN124: ἀρῶ | AO124: ἦρα | AP124: airw arw hra hron | AQ124: 142 | AR124: 142 | AS124: αἴρω | AT124: TRUE | AU124: TRUE | AV124: TRUE | AW124: 20 | AX124: *ἀρ | AY124: I raise, I take up, I take away | AZ124: EYE-roe | BA124: Verb | BC124: ᾖρον | BD124: ἀρῶ | BE124: ἦρα | BF124: 142 | BG124: 121 | BH124: 121 | BI124: 20 | BJ124: αἴρω | BK124: *ἀρ | BL124: I raise, I take up, I take away | BM124: EYE-roe | BN124: Verb | BP124: ᾖρον | BQ124: ἀρῶ | BS124: ἦρα | BT124: 142 | BU124: 121 | BV124: 121 | BW124: 20 | BX124: Verb | BY124: αἴρω | BZ124: ᾖρον | CA124: ἀρῶ | CB124: *ἀρ | CC124: EYE-roe | CD124: I raise, I take up, I take away | CE124: αἴρω | CF124: Chapter 20: Verb | CG124: ἦρα | CH124: 142 | CI124: FALSE | CJ124: 5121 | CK124: 123 | CO124: 121 | CT124: FALSE | CU124: 5121 | CV124: 123 | CZ124: 121 | DE124: FALSE | DF124: 5121 | DG124: 242 | DH124: 121 | DL124: φύω [I sprout, I spring up]
AE125: 122 | AF125: 37 | AG125: αἰσχρός | AI125: filthy, disgraceful, shameful, improper | AJ125: eye-SKROSS | AK125: Adjective | AP125: aiscros | AQ125: 150 | AR125: 150 | AS125: αἰσχρός | AT125: TRUE | AU125: TRUE | AV125: TRUE | AW125: 37 | AY125: filthy, disgraceful, shameful, improper | AZ125: eye-SKROSS | BA125: Adjective | BF125: 150 | BG125: 122 | BH125: 122 | BI125: 37 | BJ125: αἰσχρός | BL125: filthy, disgraceful, shameful, improper | BM125: eye-SKROSS | BN125: Adjective | BT125: 150 | BU125: 122 | BV125: 122 | BW125: 37 | BX125: Adjective | BY125: αἰσχρός | CC125: eye-SKROSS | CD125: filthy, disgraceful, shameful, improper | CE125: αἰσχρός | CF125: Extra: Adjective | CH125: 150 | CI125: FALSE | CJ125: 5122 | CK125: 124 | CO125: 122 | CT125: FALSE | CU125: 5122 | CV125: 124 | CZ125: 122 | DE125: FALSE | DF125: 5122 | DG125: 243 | DH125: 122 | DL125: τό φῶς [light]
AE126: 123 | AF126: 37 | AG126: αἰσχύνη | AI126: shame, disgrace | AJ126: eye-SKROON-ay | AK126: Noun | AL126: ἡ | AP126: aiscunh | AQ126: 152 | AR126: 152 | AS126: αἰσχύνη | AT126: TRUE | AU126: TRUE | AV126: TRUE | AW126: 37 | AY126: shame, disgrace | AZ126: eye-SKROON-ay | BA126: Noun | BB126: ἡ | BF126: 152 | BG126: 123 | BH126: 123 | BI126: 37 | BJ126: ἡ αἰσχύνη | BL126: shame, disgrace | BM126: eye-SKROON-ay | BN126: Noun | BO126: ἡ | BR126: ἡ | BT126: 152 | BU126: 123 | BV126: 123 | BW126: 37 | BX126: Noun | BY126: ἡ αἰσχύνη | CC126: eye-SKROON-ay | CD126: shame, disgrace | CE126: ἡ αἰσχύνη | CF126: Extra: Noun | CH126: 152 | CI126: FALSE | CJ126: 5123 | CK126: 125 | CO126: 123 | CT126: FALSE | CU126: 5123 | CV126: 125 | CZ126: 123 | DE126: FALSE | DF126: 5123 | DG126: 244 | DH126: 123 | DL126: ὦ [oh!]
AE127: 124 | AF127: 37 | AG127: αἰσχύνω | AI127: I shame, I disgrace (active) | AJ127: eye-SKRRON-owe | AK127: Verb | AM127: ᾔσχυνον | AN127: αἰσχυνῶ | AO127: ᾔσχυνα | AP127: aiscunw hscunon aiscunw hscuna | AQ127: 153 | AR127: 153 | AS127: αἰσχύνω | AT127: TRUE | AU127: TRUE | AV127: TRUE | AW127: 37 | AY127: I shame, I disgrace (active) | AZ127: eye-SKRRON-owe | BA127: Verb | BC127: ᾔσχυνον | BD127: αἰσχυνῶ | BE127: ᾔσχυνα | BF127: 153 | BG127: 124 | BH127: 124 | BI127: 37 | BJ127: αἰσχύνω | BL127: I shame, I disgrace (active) | BM127: eye-SKRRON-owe | BN127: Verb | BP127: ᾔσχυνον | BQ127: αἰσχυνῶ | BS127: ᾔσχυνα | BT127: 153 | BU127: 124 | BV127: 124 | BW127: 37 | BX127: Verb | BY127: αἰσχύνω | BZ127: ᾔσχυνον | CA127: αἰσχυνῶ | CC127: eye-SKRRON-owe | CD127: I shame, I disgrace (active) | CE127: αἰσχύνω | CF127: Extra: Verb | CG127: ᾔσχυνα | CH127: 153 | CI127: FALSE | CJ127: 5124 | CK127: 126 | CO127: 124 | CT127: FALSE | CU127: 5124 | CV127: 126 | CZ127: 124 | DE127: FALSE | DF127: 5124 | DG127: 245 | DH127: 124 | DL127: ὧδε [here]
AE128: 125 | AF128: 37 | AG128: αἰσχύνομαι | AI128: I am shamed, I am disgraced (passive) | AJ128: eye-SKRRON-om-eye | AK128: Verb | AM128: ᾐσχυνόμην | AN128: αἰσχυνθήσομαι | AO128: ᾐσχύνθην | AP128: aiscunomai hscunomhn aiscunqhsomai hscunqhn | AQ128: 153 | AR128: 153.5 | AS128: αἰσχύνομαι | AT128: TRUE | AU128: TRUE | AV128: TRUE | AW128: 37 | AY128: I am shamed, I am disgraced (passive) | AZ128: eye-SKRRON-om-eye | BA128: Verb | BC128: ᾐσχυνόμην | BD128: αἰσχυνθήσομαι | BE128: ᾐσχύνθην | BF128: 153 | BG128: 125 | BH128: 125 | BI128: 37 | BJ128: αἰσχύνομαι | BL128: I am shamed, I am disgraced (passive) | BM128: eye-SKRRON-om-eye | BN128: Verb | BP128: ᾐσχυνόμην | BQ128: αἰσχυνθήσομαι | BS128: ᾐσχύνθην | BT128: 153 | BU128: 125 | BV128: 125 | BW128: 37 | BX128: Verb | BY128: αἰσχύνομαι | BZ128: ᾐσχυνόμην | CA128: αἰσχυνθήσομαι | CC128: eye-SKRRON-om-eye | CD128: I am shamed, I am disgraced (passive) | CE128: αἰσχύνομαι | CF128: Extra: Verb | CG128: ᾐσχύνθην | CH128: 153 | CI128: FALSE | CJ128: 5125 | CK128: 127 | CO128: 125 | CT128: FALSE | CU128: 5125 | CV128: 127 | CZ128: 125 | DE128: FALSE | DF128: 5125 | DG128: 246 | DH128: 125 | DL128: ἡ ὥρα [hour, occasion, moment]
AE129: 126 | AF129: 25 | AG129: αἰτέω | AH129: *αἰτε | AI129: I ask, I demand | AJ129: eye-TEH-owe | AK129: Verb | AM129: ᾔτουν | AN129: αἰτήσω | AO129: ᾔατησα | AP129: aitew htoun aithsw hathsa | AQ129: 154 | AR129: 154 | AS129: αἰτέω | AT129: TRUE | AU129: TRUE | AV129: TRUE | AW129: 25 | AX129: *αἰτε | AY129: I ask, I demand | AZ129: eye-TEH-owe | BA129: Verb | BC129: ᾔτουν | BD129: αἰτήσω | BE129: ᾔατησα | BF129: 154 | BG129: 126 | BH129: 126 | BI129: 25 | BJ129: αἰτέω | BK129: *αἰτε | BL129: I ask, I demand | BM129: eye-TEH-owe | BN129: Verb | BP129: ᾔτουν | BQ129: αἰτήσω | BS129: ᾔατησα | BT129: 154 | BU129: 126 | BV129: 126 | BW129: 25 | BX129: Verb | BY129: αἰτέω | BZ129: ᾔτουν | CA129: αἰτήσω | CB129: *αἰτε | CC129: eye-TEH-owe | CD129: I ask, I demand | CE129: αἰτέω | CF129: Chapter 25: Verb | CG129: ᾔατησα | CH129: 154 | CI129: FALSE | CJ129: 5126 | CK129: 128 | CO129: 126 | CT129: FALSE | CU129: 5126 | CV129: 128 | CZ129: 126 | DE129: FALSE | DF129: 5126 | DG129: 247 | DH129: 126 | DL129: ὡς [as, like, that, when, after, approximately]
AE130: 127 | AF130: 38 | AG130: αἰτία | AI130: cause, guilt, charge, accusation | AJ130: ay-TEE-ah | AK130: Noun | AL130: ἡ | AP130: aitia | AQ130: 156 | AR130: 156 | AS130: αἰτία | AT130: TRUE | AU130: TRUE | AV130: TRUE | AW130: 38 | AY130: cause, guilt, charge, accusation | AZ130: ay-TEE-ah | BA130: Noun | BB130: ἡ | BF130: 156 | BG130: 127 | BH130: 127 | BI130: 38 | BJ130: ἡ αἰτία | BL130: cause, guilt, charge, accusation | BM130: ay-TEE-ah | BN130: Noun | BO130: ἡ | BR130: ἡ | BT130: 156 | BU130: 127 | BV130: 127 | BW130: 38 | BX130: Noun | BY130: ἡ αἰτία | CC130: ay-TEE-ah | CD130: cause, guilt, charge, accusation | CE130: ἡ αἰτία | CF130: Chapter 38: Noun | CH130: 156 | CI130: FALSE | CJ130: 5127 | CK130: 129 | CO130: 127 | CT130: FALSE | CU130: 5127 | CV130: 129 | CZ130: 127 | DE130: FALSE | DF130: 5127 | DG130: 248 | DH130: 127
AE131: 128 | AF131: 37 | AG131: αἰχμαλωσία | AI131: captivity | AJ131: ike-mahl-ose-EE-ah | AK131: Noun | AL131: ἡ | AP131: aicmalwsia | AQ131: 161 | AR131: 161 | AS131: αἰχμαλωσία | AT131: TRUE | AU131: TRUE | AV131: TRUE | AW131: 37 | AY131: captivity | AZ131: ike-mahl-ose-EE-ah | BA131: Noun | BB131: ἡ | BF131: 161 | BG131: 128 | BH131: 128 | BI131: 37 | BJ131: ἡ αἰχμαλωσία | BL131: captivity | BM131: ike-mahl-ose-EE-ah | BN131: Noun | BO131: ἡ | BR131: ἡ | BT131: 161 | BU131: 128 | BV131: 128 | BW131: 37 | BX131: Noun | BY131: ἡ αἰχμαλωσία | CC131: ike-mahl-ose-EE-ah | CD131: captivity | CE131: ἡ αἰχμαλωσία | CF131: Extra: Noun | CH131: 161 | CI131: FALSE | CJ131: 5128 | CK131: 130 | CO131: 128 | CT131: FALSE | CU131: 5128 | CV131: 130 | CZ131: 128 | DE131: FALSE | DF131: 5128 | DG131: 249 | DH131: 128
AE132: 129 | AF132: 37 | AG132: αἰχμαλωτίζω | AI132: I capture, I take capture | AJ132: ike-mahl-owe-TIZZ-owe | AK132: Verb | AM132: ᾐχμαλώτιζον | AN132: αἰχμαλωτισθήσομαι | AO132: ᾐχμαλώτισα | AP132: aicmalwtizw hcmalwtizon aicmalwtisqhsomai hcmalwtisa | AQ132: 163 | AR132: 163 | AS132: αἰχμαλωτίζω | AT132: =IF(ISERR(FIND(AF132,$Y$22,1)),FALSE,TRUE) -> TRUE | AU132: TRUE | AV132: TRUE | AW132: 37 | AY132: I capture, I take capture | AZ132: ike-mahl-owe-TIZZ-owe | BA132: Verb | BC132: ᾐχμαλώτιζον | BD132: αἰχμαλωτισθήσομαι | BE132: ᾐχμαλώτισα | BF132: 163 | BG132: =IF(AV132,AE132,AE132+5000) -> 129 | BH132: =RANK(BG132,BG$4:BG$2003,1) -> 129 | BI132: 37 | BJ132: =IF($AV132,BO132&AG132," ") -> αἰχμαλωτίζω | BL132: I capture, I take capture | BM132: ike-mahl-owe-TIZZ-owe | BN132: Verb | BP132: ᾐχμαλώτιζον | BQ132: αἰχμαλωτισθήσομαι | BS132: ᾐχμαλώτισα | BT132: 163 | BU132: 129 | BV132: =IF(BU132<=BJ$2,MATCH(BU132,BH$4:BH$2003,0),"") -> 129 | BW132: =VLOOKUP($BU132,BH$4:BQ$2003,2,0) -> 37 | BX132: =VLOOKUP($BU132,BH$4:BQ$2003,7,0) -> Verb | BY132: =VLOOKUP($BU132,BH$4:BQ$2003,3,0) -> αἰχμαλωτίζω | BZ132: =VLOOKUP($BU132,BH$4:BQ$2003,9,0) -> ᾐχμαλώτιζον | CA132: =VLOOKUP($BU132,BH$4:BQ$2003,10,0) -> αἰχμαλωτισθήσομαι | CB132: =VLOOKUP($BU132,BH$4:BQ$2003,4,0) ->  | CC132: =VLOOKUP($BU132,BH$4:BQ$2003,6,0) -> ike-mahl-owe-TIZZ-owe | CD132: =VLOOKUP($BU132,BH$4:BQ$2003,5,0) -> I capture, I take capture | CE132: =IF(AC$8,BY132,VLOOKUP($BU132,BH$4:BR$2003,11,0)&BY132) -> αἰχμαλωτίζω | CF132: Extra: Verb | CG132: =VLOOKUP($BU132,BH$4:BS$2003,12,0) -> ᾐχμαλώτισα | CH132: =VLOOKUP($BU132,BH$4:BT$2003,13,0) -> 163 | CI132: FALSE | CJ132: =IF(CI132,AE132,AE132+5000) -> 5129 | CK132: =RANK(CJ132,CJ$4:CJ$2003,1) -> 131 | CL132: =IF($CI132,IF(BB132=" ","",BB132&" ")&AG132," ") ->  | CO132: 129 | CP132: =IF(CO132<=CP$2,MATCH(CO132,CK$4:CK$2003,0),"") ->  | CQ132: =VLOOKUP($CO132,CK$4:CM$2003,2,0) ->  | CR132: =VLOOKUP($CO132,CK$4:CN$2003,3,0)&VLOOKUP($CO132,CK$4:CN$2003,4,0) ->  | CT132: =IF(ISERR(FIND(CW$2,AP132,1)),FALSE, TRUE) -> FALSE | CU132: =IF(CT132,AE132,AE132+5000) -> 5129 | CV132: =RANK(CU132,CU$4:CU$2003,1) -> 131 | CW132: =IF($CT132,IF(AH132=" ",""," ["&AH132&"]")," ") ->  | CX132: =IF($CT132,IF(AK132="Noun ","Noun",IF(AK132="Verb ","Verb",AK132))," ") ->  | CZ132: 129 | DA132: =IF(CZ132<=DA$2,MATCH(CZ132,CV$4:CV$2003,0),"") ->  | DB132: =VLOOKUP($CZ132,CV$4:CY$2003,4,0) ->  | DE132: =IF(AND(LEN(AG132)<=DF$2,AG132<>" "),TRUE,FALSE) -> FALSE | DF132: =IF(DE132,AE132,AE132+5000) -> 5129 | DG132: =RANK(DF132,DF$4:DF$2003,1) -> 250 | DH132: 129 | DI132: =IF(DH132<=DA$2,MATCH(DH132,DG$4:DG$2003,0),"") ->  | DJ132: =IF($DE132,IF(BB132=" ","",BB132&" ")&AG132," ") ->  | DL132: =IF($DH132<=$DI$2,VLOOKUP($DH132,DG$4:DK$2003,4,0)&" [" &VLOOKUP($DH132,DG$4:DK$2003,5,0) &"]"," ") -> 
AE133: 130 | AF133: 12 | AG133: αἰών | AH133: *αἰων | AI133: age, eternity | AJ133: eye-OWN | AK133: Noun | AL133: ὁ | AP133: aiwn | AQ133: 165 | AR133: 165 | AS133: =IF(AG133="","",AG133) -> αἰών | AT133: TRUE | AU133: =IF(ISERR(FIND(AK133,$Y$23,1)),FALSE,TRUE) -> TRUE | AV133: =AND(AT133,AU133) -> TRUE | AW133: =IF(AC$3,AF133," ") -> 12 | AX133: =IF(AC$4,AH133," ") -> *αἰων | AY133: =IF(TRUE,AI133," ") -> age, eternity | AZ133: =IF(AC$6,AJ133," ") -> eye-OWN | BA133: =IF(AC$7,AK133," ") -> Noun | BB133: =IF(AC$8,AL133," ") -> ὁ | BC133: =IF(AC$9,AM133," ") ->  | BD133: =IF(AC$10,AN133," ") ->  | BE133: =IF(AC$9,AO133," ") ->  | BF133: =IF(AC$12,AQ133," ") -> 165 | BG133: 130 | BH133: 130 | BI133: 12 | BJ133: ὁ αἰών | BK133: *αἰων | BL133: age, eternity | BM133: eye-OWN | BN133: Noun | BO133: ὁ | BR133: =IF($AV133,IF(AL133=" ","",AL133&" "),"") -> ὁ | BS133: =IF($AV133,BE133," ") ->  | BT133: 165 | BU133: 130 | BV133: 130 | BW133: 12 | BX133: Noun | BY133: ὁ αἰών | CB133: *αἰων | CC133: eye-OWN | CD133: age, eternity | CE133: ὁ αἰών | CF133: =IF(BV133="","",IF(BW133="37","Extra", IF(BW133=38, "Index of Textbook","Chapter " &BW133))&": "&BX133) -> Chapter 12: Noun | CH133: 165 | CI133: =IF(ISERR(SEARCH(CL$2,AY133,1)),FALSE, TRUE) -> FALSE | CJ133: 5130 | CK133: 132 | CM133: =IF($CI133,AY133," ") ->  | CN133: =IF($CI133,IF(AW133="37"," [Extra]",IF(AW133="38"," [Index]", " [Chap. "&TEXT(VALUE(AW133),"#")&"]"))," ") ->  | CO133: 130 | CT133: FALSE | CU133: 5130 | CV133: 132 | CY133: =IF($CT133,IF(BB133=" ","",BB133&" ")&AG133&CW133&": "&AY133& IF(AF133="37"," (Extra",IF(AF133="38"," (Index"," (Chapter "&TEXT(AF133,"#"))) &", "&CX133& IF(LEN(AM133)>1," ["&AM133&"]","") &IF(LEN(AN133)>1," ["&AN133&"]","") &")"," ") ->  | CZ133: 130 | DE133: FALSE | DF133: 5130 | DG133: 251 | DH133: 130 | DK133: =IF($DE133,AY133," ") -> 
AE134: 131 | AF134: 12 | AG134: εἰς τὸν αἰῶνα | AH134: *αἰων | AI134: forever | AJ134: ace TAHN eye-OWN-ah | AK134: Idiom | AP134: eis ton aiwna | AQ134: 1519, 165 | AR134: 165.2 | AS134: εἰς τὸν αἰῶνα | AT134: TRUE | AU134: TRUE | AV134: TRUE | AW134: 12 | AX134: *αἰων | AY134: forever | AZ134: ace TAHN eye-OWN-ah | BA134: Idiom | BF134: 1519, 165 | BG134: 131 | BH134: 131 | BI134: 12 | BJ134: εἰς τὸν αἰῶνα | BK134: *αἰων | BL134: forever | BM134: ace TAHN eye-OWN-ah | BN134: Idiom | BT134: 1519, 165 | BU134: 131 | BV134: 131 | BW134: 12 | BX134: Idiom | BY134: εἰς τὸν αἰῶνα | CB134: *αἰων | CC134: ace TAHN eye-OWN-ah | CD134: forever | CE134: εἰς τὸν αἰῶνα | CF134: Chapter 12: Idiom | CH134: 1519, 165 | CI134: FALSE | CJ134: 5131 | CK134: 133 | CO134: 131 | CT134: FALSE | CU134: 5131 | CV134: 133 | CZ134: 131 | DE134: FALSE | DF134: 5131 | DG134: 252 | DH134: 131
AE135: 132 | AF135: 12 | AG135: εἰς τοὺς αἰώνας | AH135: *αἰων | AI135: forever | AJ135: ace TOOS eye-OWE-nahs | AK135: Idiom | AP135: eis tous aiwnas | AQ135: 1519, 165 | AR135: 165.3 | AS135: εἰς τοὺς αἰώνας | AT135: TRUE | AU135: TRUE | AV135: TRUE | AW135: 12 | AX135: *αἰων | AY135: forever | AZ135: ace TOOS eye-OWE-nahs | BA135: Idiom | BF135: 1519, 165 | BG135: 132 | BH135: 132 | BI135: 12 | BJ135: εἰς τοὺς αἰώνας | BK135: *αἰων | BL135: forever | BM135: ace TOOS eye-OWE-nahs | BN135: Idiom | BT135: 1519, 165 | BU135: 132 | BV135: 132 | BW135: 12 | BX135: Idiom | BY135: εἰς τοὺς αἰώνας | CB135: *αἰων | CC135: ace TOOS eye-OWE-nahs | CD135: forever | CE135: εἰς τοὺς αἰώνας | CF135: Chapter 12: Idiom | CH135: 1519, 165 | CI135: FALSE | CJ135: 5132 | CK135: 134 | CO135: 132 | CT135: FALSE | CU135: 5132 | CV135: 134 | CZ135: 132 | DE135: FALSE | DF135: 5132 | DG135: 253 | DH135: 132
AE136: 133 | AF136: 09 | AG136: αἰώνιος | AH136: *αἰωνιο | AI136: eternal | AJ136: eye-OWE-nee-oss | AK136: Adjective | AP136: aiwnios | AQ136: 166 | AR136: 166 | AS136: αἰώνιος | AT136: TRUE | AU136: TRUE | AV136: TRUE | AW136: 09 | AX136: *αἰωνιο | AY136: eternal | AZ136: eye-OWE-nee-oss | BA136: Adjective | BF136: 166 | BG136: 133 | BH136: 133 | BI136: 09 | BJ136: αἰώνιος | BK136: *αἰωνιο | BL136: eternal | BM136: eye-OWE-nee-oss | BN136: Adjective | BT136: 166 | BU136: 133 | BV136: 133 | BW136: 09 | BX136: Adjective | BY136: αἰώνιος | CB136: *αἰωνιο | CC136: eye-OWE-nee-oss | CD136: eternal | CE136: αἰώνιος | CF136: Chapter 09: Adjective | CH136: 166 | CI136: FALSE | CJ136: 5133 | CK136: 135 | CO136: 133 | CT136: FALSE | CU136: 5133 | CV136: 135 | CZ136: 133 | DE136: FALSE | DF136: 5133 | DG136: 254 | DH136: 133
AE137: 134 | AF137: 38 | AG137: ἀκαθαρσία | AH137: *καθαρ | AI137: immorality, uncleanness | AJ137: Ah-kath- | AK137: Noun | AL137: ἡ | AP137: akaqarsia | AQ137: 167 | AR137: 167 | AS137: ἀκαθαρσία | AT137: TRUE | AU137: TRUE | AV137: TRUE | AW137: 38 | AX137: *καθαρ | AY137: immorality, uncleanness | AZ137: Ah-kath- | BA137: Noun | BB137: ἡ | BF137: 167 | BG137: 134 | BH137: 134 | BI137: 38 | BJ137: ἡ ἀκαθαρσία | BK137: *καθαρ | BL137: immorality, uncleanness | BM137: Ah-kath- | BN137: Noun | BO137: ἡ | BR137: ἡ | BT137: 167 | BU137: 134 | BV137: 134 | BW137: 38 | BX137: Noun | BY137: ἡ ἀκαθαρσία | CB137: *καθαρ | CC137: Ah-kath- | CD137: immorality, uncleanness | CE137: ἡ ἀκαθαρσία | CF137: Chapter 38: Noun | CH137: 167 | CI137: FALSE | CJ137: 5134 | CK137: 136 | CO137: 134 | CT137: FALSE | CU137: 5134 | CV137: 136 | CZ137: 134 | DE137: FALSE | DF137: 5134 | DG137: 255 | DH137: 134
AE138: 135 | AF138: 38 | AG138: ἀκαθαρτος | AH138: *καθαρ | AI138: unclean, impure | AJ138: ah-kah-thar-toss | AK138: Adjective | AP138: akaqartos | AQ138: 169 | AR138: 169 | AS138: ἀκαθαρτος | AT138: TRUE | AU138: TRUE | AV138: TRUE | AW138: 38 | AX138: *καθαρ | AY138: unclean, impure | AZ138: ah-kah-thar-toss | BA138: Adjective | BF138: 169 | BG138: 135 | BH138: 135 | BI138: 38 | BJ138: ἀκαθαρτος | BK138: *καθαρ | BL138: unclean, impure | BM138: ah-kah-thar-toss | BN138: Adjective | BT138: 169 | BU138: 135 | BV138: 135 | BW138: 38 | BX138: Adjective | BY138: ἀκαθαρτος | CB138: *καθαρ | CC138: ah-kah-thar-toss | CD138: unclean, impure | CE138: ἀκαθαρτος | CF138: Index of Textbook: Adjective | CH138: 169 | CI138: FALSE | CJ138: 5135 | CK138: 137 | CO138: 135 | CT138: FALSE | CU138: 5135 | CV138: 137 | CZ138: 135 | DE138: FALSE | DF138: 5135 | DG138: 256 | DH138: 135
AE139: 136 | AF139: 38 | AG139: ἄκανθα | AI139: thorn, thorny plant | AJ139: AH-kahn-thah | AK139: Noun | AL139: ἡ | AP139: akanqa | AQ139: 173 | AR139: 173 | AS139: ἄκανθα | AT139: TRUE | AU139: TRUE | AV139: TRUE | AW139: 38 | AY139: thorn, thorny plant | AZ139: AH-kahn-thah | BA139: Noun | BB139: ἡ | BF139: 173 | BG139: 136 | BH139: 136 | BI139: 38 | BJ139: ἡ ἄκανθα | BL139: thorn, thorny plant | BM139: AH-kahn-thah | BN139: Noun | BO139: ἡ | BR139: ἡ | BT139: 173 | BU139: 136 | BV139: 136 | BW139: 38 | BX139: Noun | BY139: ἡ ἄκανθα | CC139: AH-kahn-thah | CD139: thorn, thorny plant | CE139: ἡ ἄκανθα | CF139: Chapter 38: Noun | CH139: 173 | CI139: FALSE | CJ139: 5136 | CK139: 138 | CO139: 136 | CT139: FALSE | CU139: 5136 | CV139: 138 | CZ139: 136 | DE139: FALSE | DF139: 5136 | DG139: 257 | DH139: 136
AE140: 137 | AF140: 37 | AG140: ἀκαταστασία | AI140: confusion, disorder, tumult | AJ140: ah-kaht-ahs-tahs-EE-ah | AK140: Noun | AL140: ἡ | AP140: akatastasia | AQ140: 181 | AR140: 181 | AS140: ἀκαταστασία | AT140: TRUE | AU140: TRUE | AV140: TRUE | AW140: 37 | AY140: confusion, disorder, tumult | AZ140: ah-kaht-ahs-tahs-EE-ah | BA140: Noun | BB140: ἡ | BF140: 181 | BG140: 137 | BH140: 137 | BI140: 37 | BJ140: ἡ ἀκαταστασία | BL140: confusion, disorder, tumult | BM140: ah-kaht-ahs-tahs-EE-ah | BN140: Noun | BO140: ἡ | BR140: ἡ | BT140: 181 | BU140: 137 | BV140: 137 | BW140: 37 | BX140: Noun | BY140: ἡ ἀκαταστασία | CC140: ah-kaht-ahs-tahs-EE-ah | CD140: confusion, disorder, tumult | CE140: ἡ ἀκαταστασία | CF140: Extra: Noun | CH140: 181 | CI140: FALSE | CJ140: 5137 | CK140: 139 | CO140: 137 | CT140: FALSE | CU140: 5137 | CV140: 139 | CZ140: 137 | DE140: FALSE | DF140: 5137 | DG140: 258 | DH140: 137
AE141: 138 | AF141: 38 | AG141: ἀκοή | AI141: hearing, report | AJ141: ah-ko-ay | AK141: Noun | AL141: ἡ | AP141: akoh | AQ141: 189 | AR141: 189 | AS141: ἀκοή | AT141: TRUE | AU141: TRUE | AV141: TRUE | AW141: 38 | AY141: hearing, report | AZ141: ah-ko-ay | BA141: Noun | BB141: ἡ | BF141: 189 | BG141: 138 | BH141: 138 | BI141: 38 | BJ141: ἡ ἀκοή | BL141: hearing, report | BM141: ah-ko-ay | BN141: Noun | BO141: ἡ | BR141: ἡ | BT141: 189 | BU141: 138 | BV141: 138 | BW141: 38 | BX141: Noun | BY141: ἡ ἀκοή | CC141: ah-ko-ay | CD141: hearing, report | CE141: ἡ ἀκοή | CF141: Index of Textbook: Noun | CH141: 189 | CI141: FALSE | CJ141: 5138 | CK141: 140 | CO141: 138 | CT141: FALSE | CU141: 5138 | CV141: 140 | CZ141: 138 | DE141: FALSE | DF141: 5138 | DG141: 259 | DH141: 138
AE142: 139 | AF142: 21 | AG142: ἀκολουθέω | AH142: *ἀκολουθε | AI142: I follow, I accompany | AJ142: ah-koll-oo-THEH-owe | AK142: Verb | AM142: ἠκολούθουν | AN142: ἀκολουθήσω | AO142: ἠκολούθησα | AP142: akolouqew hkolouqoun akolouqhsw hkolouqhsa | AQ142: 190 | AR142: 190 | AS142: ἀκολουθέω | AT142: TRUE | AU142: TRUE | AV142: TRUE | AW142: 21 | AX142: *ἀκολουθε | AY142: I follow, I accompany | AZ142: ah-koll-oo-THEH-owe | BA142: Verb | BC142: ἠκολούθουν | BD142: ἀκολουθήσω | BE142: ἠκολούθησα | BF142: 190 | BG142: 139 | BH142: 139 | BI142: 21 | BJ142: ἀκολουθέω | BK142: *ἀκολουθε | BL142: I follow, I accompany | BM142: ah-koll-oo-THEH-owe | BN142: Verb | BP142: ἠκολούθουν | BQ142: ἀκολουθήσω | BS142: ἠκολούθησα | BT142: 190 | BU142: 139 | BV142: 139 | BW142: 21 | BX142: Verb | BY142: ἀκολουθέω | BZ142: ἠκολούθουν | CA142: ἀκολουθήσω | CB142: *ἀκολουθε | CC142: ah-koll-oo-THEH-owe | CD142: I follow, I accompany | CE142: ἀκολουθέω | CF142: Chapter 21: Verb | CG142: ἠκολούθησα | CH142: 190 | CI142: FALSE | CJ142: 5139 | CK142: 141 | CO142: 139 | CT142: FALSE | CU142: 5139 | CV142: 141 | CZ142: 139 | DE142: FALSE | DF142: 5139 | DG142: 260 | DH142: 139
AE143: 140 | AF143: 16 | AG143: ἀκούω | AH143: *ἀκου | AI143: I hear, I learn, I obey, I understand | AJ143: ah-KOO-owe | AK143: Verb | AM143: ἤκουον | AN143: ἀκούσω | AO143: ἤκουσα | AP143: akouw hkouov akousw hkousa | AQ143: 191 | AR143: 191 | AS143: ἀκούω | AT143: TRUE | AU143: TRUE | AV143: TRUE | AW143: 16 | AX143: *ἀκου | AY143: I hear, I learn, I obey, I understand | AZ143: ah-KOO-owe | BA143: Verb | BC143: ἤκουον | BD143: ἀκούσω | BE143: ἤκουσα | BF143: 191 | BG143: 140 | BH143: 140 | BI143: 16 | BJ143: ἀκούω | BK143: *ἀκου | BL143: I hear, I learn, I obey, I understand | BM143: ah-KOO-owe | BN143: Verb | BP143: ἤκουον | BQ143: ἀκούσω | BS143: ἤκουσα | BT143: 191 | BU143: 140 | BV143: 140 | BW143: 16 | BX143: Verb | BY143: ἀκούω | BZ143: ἤκουον | CA143: ἀκούσω | CB143: *ἀκου | CC143: ah-KOO-owe | CD143: I hear, I learn, I obey, I understand | CE143: ἀκούω | CF143: Chapter 16: Verb | CG143: ἤκουσα | CH143: 191 | CI143: FALSE | CJ143: 5140 | CK143: 142 | CO143: 140 | CT143: FALSE | CU143: 5140 | CV143: 142 | CZ143: 140 | DE143: FALSE | DF143: 5140 | DG143: 261 | DH143: 140
AE144: 141 | AF144: 37 | AG144: ἀκριβῶς | AI144: accurately, diligently, carefully, thoroughly | AJ144: ah-krib-OSE | AK144: Adverb | AP144: akribws | AQ144: 199 | AR144: 199 | AS144: ἀκριβῶς | AT144: TRUE | AU144: TRUE | AV144: TRUE | AW144: 37 | AY144: accurately, diligently, carefully, thoroughly | AZ144: ah-krib-OSE | BA144: Adverb | BF144: 199 | BG144: 141 | BH144: 141 | BI144: 37 | BJ144: ἀκριβῶς | BL144: accurately, diligently, carefully, thoroughly | BM144: ah-krib-OSE | BN144: Adverb | BO144: =IF($AV144,IF(BB144=" ","",BB144&" "),"") ->  | BT144: 199 | BU144: 141 | BV144: 141 | BW144: 37 | BX144: Adverb | BY144: ἀκριβῶς | CC144: ah-krib-OSE | CD144: accurately, diligently, carefully, thoroughly | CE144: ἀκριβῶς | CF144: Extra: Adverb | CH144: 199 | CI144: FALSE | CJ144: 5141 | CK144: 143 | CO144: 141 | CT144: FALSE | CU144: 5141 | CV144: 143 | CZ144: 141 | DE144: FALSE | DF144: 5141 | DG144: 262 | DH144: 141
AE145: 142 | AF145: 38 | AG145: ἀκροβυστία | AI145: uncircumcision | AJ145: ahk-row-boost-EE-ah | AK145: Noun | AL145: ἡ | AP145: akrobustia | AQ145: 203 | AR145: 203 | AS145: ἀκροβυστία | AT145: TRUE | AU145: TRUE | AV145: TRUE | AW145: 38 | AY145: uncircumcision | AZ145: ahk-row-boost-EE-ah | BA145: Noun | BB145: ἡ | BF145: 203 | BG145: 142 | BH145: 142 | BI145: 38 | BJ145: ἡ ἀκροβυστία | BL145: uncircumcision | BM145: ahk-row-boost-EE-ah | BN145: Noun | BO145: ἡ | BR145: ἡ | BT145: 203 | BU145: 142 | BV145: 142 | BW145: 38 | BX145: Noun | BY145: ἡ ἀκροβυστία | CC145: ahk-row-boost-EE-ah | CD145: uncircumcision | CE145: ἡ ἀκροβυστία | CF145: Index of Textbook: Noun | CH145: 203 | CI145: FALSE | CJ145: 5142 | CK145: 144 | CO145: 142 | CT145: FALSE | CU145: 5142 | CV145: 144 | CZ145: 142 | DE145: FALSE | DF145: 5142 | DG145: 263 | DH145: 142
AE146: 143 | AF146: 37 | AG146: ἄκρον | AI146: top, end, uttermost | AJ146: AH-kronn | AK146: Noun | AL146: τό | AP146: akron | AQ146: 206 | AR146: 206 | AS146: ἄκρον | AT146: TRUE | AU146: TRUE | AV146: TRUE | AW146: 37 | AY146: top, end, uttermost | AZ146: AH-kronn | BA146: Noun | BB146: τό | BF146: 206 | BG146: 143 | BH146: 143 | BI146: 37 | BJ146: τό ἄκρον | BL146: top, end, uttermost | BM146: AH-kronn | BN146: Noun | BO146: τό | BR146: τό | BT146: 206 | BU146: 143 | BV146: 143 | BW146: 37 | BX146: Noun | BY146: τό ἄκρον | CC146: AH-kronn | CD146: top, end, uttermost | CE146: τό ἄκρον | CF146: Extra: Noun | CH146: 206 | CI146: FALSE | CJ146: 5143 | CK146: 145 | CO146: 143 | CT146: FALSE | CU146: 5143 | CV146: 145 | CZ146: 143 | DE146: FALSE | DF146: 5143 | DG146: 264 | DH146: 143
AE147: 144 | AF147: 37 | AG147: ἀλείφω | AI147: I anoint | AJ147: ah-LAY-foe | AK147: Verb | AM147: ἤλειφον | AN147: ἀλείψω | AO147: ἤλειψα | AP147: aleifw hleifon aleiyw hleiya | AQ147: 218b | AR147: 218.5 | AS147: ἀλείφω | AT147: TRUE | AU147: TRUE | AV147: TRUE | AW147: 37 | AY147: I anoint | AZ147: ah-LAY-foe | BA147: Verb | BC147: ἤλειφον | BD147: ἀλείψω | BE147: ἤλειψα | BF147: 218b | BG147: 144 | BH147: 144 | BI147: 37 | BJ147: ἀλείφω | BL147: I anoint | BM147: ah-LAY-foe | BN147: Verb | BP147: ἤλειφον | BQ147: ἀλείψω | BS147: ἤλειψα | BT147: 218b | BU147: 144 | BV147: 144 | BW147: 37 | BX147: Verb | BY147: ἀλείφω | BZ147: ἤλειφον | CA147: ἀλείψω | CC147: ah-LAY-foe | CD147: I anoint | CE147: ἀλείφω | CF147: Extra: Verb | CG147: ἤλειψα | CH147: 218b | CI147: FALSE | CJ147: 5144 | CK147: 146 | CO147: 144 | CT147: FALSE | CU147: 5144 | CV147: 146 | CZ147: 144 | DE147: FALSE | DF147: 5144 | DG147: 265 | DH147: 144
AE148: 145 | AF148: 38 | AG148: ἀλέκτωρ | AI148: rooster | AJ148: ah-LEK-torr | AK148: Noun | AL148: ἡ | AP148: alektwr | AQ148: 220 | AR148: 220 | AS148: ἀλέκτωρ | AT148: TRUE | AU148: TRUE | AV148: TRUE | AW148: 38 | AY148: rooster | AZ148: ah-LEK-torr | BA148: Noun | BB148: ἡ | BF148: 220 | BG148: 145 | BH148: 145 | BI148: 38 | BJ148: ἡ ἀλέκτωρ | BL148: rooster | BM148: ah-LEK-torr | BN148: Noun | BO148: ἡ | BR148: ἡ | BT148: 220 | BU148: 145 | BV148: 145 | BW148: 38 | BX148: Noun | BY148: ἡ ἀλέκτωρ | CC148: ah-LEK-torr | CD148: rooster | CE148: ἡ ἀλέκτωρ | CF148: Index of Textbook: Noun | CH148: 220 | CI148: FALSE | CJ148: 5145 | CK148: 147 | CO148: 145 | CT148: FALSE | CU148: 5145 | CV148: 147 | CZ148: 145 | DE148: FALSE | DF148: 5145 | DG148: 266 | DH148: 145
AE149: 146 | AF149: 37 | AG149: Ἀλέξανδρος | AI149: Alexander | AJ149: ah-LEX-ahn-dross | AK149: Proper Noun | AL149: ὁ | AP149: alexandros | AQ149: 223 | AR149: 223 | AS149: Ἀλέξανδρος | AT149: TRUE | AU149: TRUE | AV149: TRUE | AW149: 37 | AY149: Alexander | AZ149: ah-LEX-ahn-dross | BA149: Proper Noun | BB149: ὁ | BF149: 223 | BG149: 146 | BH149: 146 | BI149: 37 | BJ149: ὁ Ἀλέξανδρος | BL149: Alexander | BM149: ah-LEX-ahn-dross | BN149: Proper Noun | BO149: ὁ | BR149: ὁ | BT149: 223 | BU149: 146 | BV149: 146 | BW149: 37 | BX149: Proper Noun | BY149: ὁ Ἀλέξανδρος | CC149: ah-LEX-ahn-dross | CD149: Alexander | CE149: ὁ Ἀλέξανδρος | CF149: Extra: Proper Noun | CH149: 223 | CI149: FALSE | CJ149: 5146 | CK149: 148 | CO149: 146 | CT149: FALSE | CU149: 5146 | CV149: 148 | CZ149: 146 | DE149: FALSE | DF149: 5146 | DG149: 267 | DH149: 146
AE150: 147 | AF150: 14 | AG150: ἀλήθεια | AH150: *αληθεια | AI150: truth | AJ150: ah-LAY-thee-ah | AK150: Noun | AL150: ἡ | AP150: alhqeia | AQ150: 225 | AR150: 225 | AS150: ἀλήθεια | AT150: TRUE | AU150: TRUE | AV150: TRUE | AW150: 14 | AX150: *αληθεια | AY150: truth | AZ150: ah-LAY-thee-ah | BA150: Noun | BB150: ἡ | BF150: 225 | BG150: 147 | BH150: 147 | BI150: 14 | BJ150: ἡ ἀλήθεια | BK150: *αληθεια | BL150: truth | BM150: ah-LAY-thee-ah | BN150: Noun | BO150: ἡ | BR150: ἡ | BT150: 225 | BU150: 147 | BV150: 147 | BW150: 14 | BX150: Noun | BY150: ἡ ἀλήθεια | CB150: *αληθεια | CC150: ah-LAY-thee-ah | CD150: truth | CE150: ἡ ἀλήθεια | CF150: Chapter 14: Noun | CH150: 225 | CI150: FALSE | CJ150: 5147 | CK150: 149 | CO150: 147 | CT150: FALSE | CU150: 5147 | CV150: 149 | CZ150: 147 | DE150: FALSE | DF150: 5147 | DG150: 268 | DH150: 147
AE151: 148 | AF151: 38 | AG151: ἀληθής | AH151: *ἀληθεια | AI151: true, truthful | AJ151: ah-lay-THACE | AK151: Adjective | AP151: alhqhs | AQ151: 227 | AR151: 227 | AS151: ἀληθής | AT151: TRUE | AU151: TRUE | AV151: TRUE | AW151: 38 | AX151: *ἀληθεια | AY151: true, truthful | AZ151: ah-lay-THACE | BA151: Adjective | BF151: 227 | BG151: 148 | BH151: 148 | BI151: 38 | BJ151: ἀληθής | BK151: *ἀληθεια | BL151: true, truthful | BM151: ah-lay-THACE | BN151: Adjective | BT151: 227 | BU151: 148 | BV151: 148 | BW151: 38 | BX151: Adjective | BY151: ἀληθής | CB151: *ἀληθεια | CC151: ah-lay-THACE | CD151: true, truthful | CE151: ἀληθής | CF151: Index of Textbook: Adjective | CH151: 227 | CI151: FALSE | CJ151: 5148 | CK151: 150 | CO151: 148 | CT151: FALSE | CU151: 5148 | CV151: 150 | CZ151: 148 | DE151: FALSE | DF151: 5148 | DG151: 269 | DH151: 148
AE152: 149 | AF152: 38 | AG152: ἀληθινός | AH152: *ἀληθεια | AI152: true, genuine | AJ152: ah-lay-thin-OSS | AK152: Adjective | AP152: alhqinos | AQ152: 228 | AR152: 228 | AS152: ἀληθινός | AT152: TRUE | AU152: TRUE | AV152: TRUE | AW152: 38 | AX152: *ἀληθεια | AY152: true, genuine | AZ152: ah-lay-thin-OSS | BA152: Adjective | BF152: 228 | BG152: 149 | BH152: 149 | BI152: =IF(AV152,AW152," ") -> 38 | BJ152: ἀληθινός | BK152: =IF($AV152,AX152," ") -> *ἀληθεια | BL152: =IF($AV152,AY152," ") -> true, genuine | BM152: =IF($AV152,AZ152," ") -> ah-lay-thin-OSS | BN152: =IF($AV152,BA152," ") -> Adjective | BP152: =IF($AV152,BC152," ") ->  | BQ152: =IF($AV152,BD152," ") ->  | BT152: =IF($AV152,BF152," ") -> 228 | BU152: 149 | BV152: 149 | BW152: 38 | BX152: Adjective | BY152: ἀληθινός | CB152: *ἀληθεια | CC152: ah-lay-thin-OSS | CD152: true, genuine | CE152: ἀληθινός | CF152: Index of Textbook: Adjective | CH152: 228 | CI152: FALSE | CJ152: 5149 | CK152: 151 | CO152: 149 | CT152: FALSE | CU152: 5149 | CV152: 151 | CZ152: 149 | DE152: FALSE | DF152: 5149 | DG152: 270 | DH152: 149
AE153: 150 | AF153: 38 | AG153: ἀληθῶς | AH153: *ἀληθεια | AI153: truly | AJ153: ah-lay-THOCE | AK153: Adverb | AP153: alhqws | AQ153: 230 | AR153: 230 | AS153: ἀληθῶς | AT153: TRUE | AU153: TRUE | AV153: TRUE | AW153: 38 | AX153: *ἀληθεια | AY153: truly | AZ153: ah-lay-THOCE | BA153: Adverb | BF153: 230 | BG153: 150 | BH153: 150 | BI153: 38 | BJ153: ἀληθῶς | BK153: *ἀληθεια | BL153: truly | BM153: ah-lay-THOCE | BN153: Adverb | BT153: 230 | BU153: 150 | BV153: 150 | BW153: 38 | BX153: Adverb | BY153: ἀληθῶς | CB153: *ἀληθεια | CC153: ah-lay-THOCE | CD153: truly | CE153: ἀληθῶς | CF153: Index of Textbook: Adverb | CH153: 230 | CI153: FALSE | CJ153: 5150 | CK153: 152 | CO153: 150 | CT153: FALSE | CU153: 5150 | CV153: 152 | CZ153: 150 | DE153: FALSE | DF153: 5150 | DG153: 271 | DH153: 150
AE154: 151 | AF154: 37 | AG154: ἁλιεύς | AI154: sailor, fisherman | AJ154: hah-lee-OOSE | AK154: Noun | AL154: ὁ | AP154: alieus | AQ154: 231 | AR154: 231 | AS154: ἁλιεύς | AT154: TRUE | AU154: TRUE | AV154: TRUE | AW154: 37 | AY154: sailor, fisherman | AZ154: hah-lee-OOSE | BA154: Noun | BB154: ὁ | BF154: 231 | BG154: 151 | BH154: 151 | BI154: 37 | BJ154: ὁ ἁλιεύς | BL154: sailor, fisherman | BM154: hah-lee-OOSE | BN154: Noun | BO154: ὁ | BR154: ὁ | BT154: 231 | BU154: 151 | BV154: 151 | BW154: 37 | BX154: Noun | BY154: ὁ ἁλιεύς | CC154: hah-lee-OOSE | CD154: sailor, fisherman | CE154: ὁ ἁλιεύς | CF154: Extra: Noun | CH154: 231 | CI154: FALSE | CJ154: 5151 | CK154: 153 | CO154: 151 | CT154: FALSE | CU154: 5151 | CV154: 153 | CZ154: 151 | DE154: FALSE | DF154: 5151 | DG154: 272 | DH154: 151
AE155: 152 | AF155: 08 | AG155: ἀλλά | AI155: but, yet, rather (particle) | AJ155: ahl-LAH | AK155: Conjunction | AP155: alla | AQ155: 235 | AR155: 235 | AS155: ἀλλά | AT155: TRUE | AU155: TRUE | AV155: TRUE | AW155: 08 | AY155: but, yet, rather (particle) | AZ155: ahl-LAH | BA155: Conjunction | BF155: 235 | BG155: 152 | BH155: 152 | BI155: 08 | BJ155: ἀλλά | BL155: but, yet, rather (particle) | BM155: ahl-LAH | BN155: Conjunction | BT155: 235 | BU155: 152 | BV155: 152 | BW155: 08 | BX155: Conjunction | BY155: ἀλλά | CC155: ahl-LAH | CD155: but, yet, rather (particle) | CE155: ἀλλά | CF155: Chapter 08: Conjunction | CH155: 235 | CI155: FALSE | CJ155: 5152 | CK155: 154 | CO155: 152 | CT155: FALSE | CU155: 5152 | CV155: 154 | CZ155: 152 | DE155: FALSE | DF155: 5152 | DG155: 273 | DH155: 152
AE156: 153 | AF156: 37 | AG156: ἀλλάσσω | AI156: I change, I alter | AJ156: ah-LAHS-owe | AK156: Verb | AM156: ἤλλασσον | AN156: ἀλλάξω | AO156: ἤλλαξα | AP156: allassw hllasson allaxw hllaxa | AQ156: 236 | AR156: 236 | AS156: ἀλλάσσω | AT156: TRUE | AU156: TRUE | AV156: TRUE | AW156: 37 | AY156: I change, I alter | AZ156: ah-LAHS-owe | BA156: Verb | BC156: ἤλλασσον | BD156: ἀλλάξω | BE156: ἤλλαξα | BF156: 236 | BG156: 153 | BH156: 153 | BI156: 37 | BJ156: ἀλλάσσω | BL156: I change, I alter | BM156: ah-LAHS-owe | BN156: Verb | BP156: ἤλλασσον | BQ156: ἀλλάξω | BS156: ἤλλαξα | BT156: 236 | BU156: 153 | BV156: 153 | BW156: 37 | BX156: Verb | BY156: ἀλλάσσω | BZ156: ἤλλασσον | CA156: ἀλλάξω | CC156: ah-LAHS-owe | CD156: I change, I alter | CE156: ἀλλάσσω | CF156: Extra: Verb | CG156: ἤλλαξα | CH156: 236 | CI156: FALSE | CJ156: 5153 | CK156: 155 | CO156: 153 | CT156: FALSE | CU156: 5153 | CV156: 155 | CZ156: 153 | DE156: FALSE | DF156: 5153 | DG156: 274 | DH156: 153
AE157: 154 | AF157: 09 | AG157: ἀλλήλωη | AH157: *ἀλληλο | AI157: one another [genitive plural…] | AJ157: ahl-LAY-low-ay | AK157: Noun | AL157: ἡ | AP157: allhlwn | AQ157: 240 | AR157: 240 | AS157: ἀλλήλωη | AT157: TRUE | AU157: TRUE | AV157: TRUE | AW157: 09 | AX157: *ἀλληλο | AY157: one another [genitive plural…] | AZ157: ahl-LAY-low-ay | BA157: Noun | BB157: ἡ | BF157: 240 | BG157: 154 | BH157: 154 | BI157: 09 | BJ157: ἡ ἀλλήλωη | BK157: *ἀλληλο | BL157: one another [genitive plural…] | BM157: ahl-LAY-low-ay | BN157: Noun | BO157: ἡ | BR157: ἡ | BT157: 240 | BU157: 154 | BV157: 154 | BW157: 09 | BX157: Noun | BY157: ἡ ἀλλήλωη | CB157: *ἀλληλο | CC157: ahl-LAY-low-ay | CD157: one another [genitive plural…] | CE157: ἡ ἀλλήλωη | CF157: Chapter 09: Noun | CH157: 240 | CI157: FALSE | CJ157: 5154 | CK157: 156 | CO157: 154 | CT157: FALSE | CU157: 5154 | CV157: 156 | CZ157: 154 | DE157: FALSE | DF157: 5154 | DG157: 275 | DH157: 154
AE158: 155 | AF158: 37 | AG158: ἅλλομαι | AI158: I jump, I leap, I spring (up) | AJ158: HAHL-om-eye | AK158: Verb | AM158: ἡλλόμην | AN158: ἁλοῦμαι | AO158: ἡλάμην | AP158: allomai hllomhn aloumai hlamhn | AQ158: 242 | AR158: 242 | AS158: ἅλλομαι | AT158: TRUE | AU158: TRUE | AV158: TRUE | AW158: 37 | AY158: I jump, I leap, I spring (up) | AZ158: HAHL-om-eye | BA158: Verb | BC158: ἡλλόμην | BD158: ἁλοῦμαι | BE158: ἡλάμην | BF158: 242 | BG158: 155 | BH158: 155 | BI158: 37 | BJ158: ἅλλομαι | BL158: I jump, I leap, I spring (up) | BM158: HAHL-om-eye | BN158: Verb | BP158: ἡλλόμην | BQ158: ἁλοῦμαι | BS158: ἡλάμην | BT158: 242 | BU158: 155 | BV158: 155 | BW158: 37 | BX158: Verb | BY158: ἅλλομαι | BZ158: ἡλλόμην | CA158: ἁλοῦμαι | CC158: HAHL-om-eye | CD158: I jump, I leap, I spring (up) | CE158: ἅλλομαι | CF158: Extra: Verb | CG158: ἡλάμην | CH158: 242 | CI158: FALSE | CJ158: 5155 | CK158: 157 | CO158: 155 | CT158: FALSE | CU158: 5155 | CV158: 157 | CZ158: 155 | DE158: FALSE | DF158: 5155 | DG158: 276 | DH158: 155
AE159: 156 | AF159: 06 | AG159: ἄλλος | AH159: *ἀλλο | AI159: other, another | AJ159: ALL-oss | AK159: Pronoun | AP159: allos | AQ159: 243 | AR159: 243 | AS159: ἄλλος | AT159: TRUE | AU159: TRUE | AV159: TRUE | AW159: 06 | AX159: *ἀλλο | AY159: other, another | AZ159: ALL-oss | BA159: Pronoun | BF159: 243 | BG159: 156 | BH159: 156 | BI159: 06 | BJ159: ἄλλος | BK159: *ἀλλο | BL159: other, another | BM159: ALL-oss | BN159: Pronoun | BT159: 243 | BU159: 156 | BV159: 156 | BW159: 06 | BX159: Pronoun | BY159: ἄλλος | CB159: *ἀλλο | CC159: ALL-oss | CD159: other, another | CE159: ἄλλος | CF159: Chapter 06: Pronoun | CH159: 243 | CI159: FALSE | CJ159: 5156 | CK159: 158 | CO159: 156 | CT159: FALSE | CU159: 5156 | CV159: 158 | CZ159: 156 | DE159: FALSE | DF159: 5156 | DG159: 277 | DH159: 156
AE160: 157 | AF160: 38 | AG160: ἀλλότριος | AH160: *ἀλλο | AI160: strange, not one's own | AJ160: ahl-LOT-ree-oss | AK160: Adjective | AP160: allotrios | AQ160: 245 | AR160: 245 | AS160: ἀλλότριος | AT160: TRUE | AU160: TRUE | AV160: TRUE | AW160: 38 | AX160: *ἀλλο | AY160: strange, not one's own | AZ160: ahl-LOT-ree-oss | BA160: Adjective | BF160: 245 | BG160: 157 | BH160: 157 | BI160: 38 | BJ160: ἀλλότριος | BK160: *ἀλλο | BL160: strange, not one's own | BM160: ahl-LOT-ree-oss | BN160: Adjective | BT160: 245 | BU160: 157 | BV160: 157 | BW160: 38 | BX160: Adjective | BY160: ἀλλότριος | CB160: *ἀλλο | CC160: ahl-LOT-ree-oss | CD160: strange, not one's own | CE160: ἀλλότριος | CF160: Chapter 38: Adjective | CH160: 245 | CI160: FALSE | CJ160: 5157 | CK160: 159 | CO160: 157 | CT160: FALSE | CU160: 5157 | CV160: 159 | CZ160: 157 | DE160: FALSE | DF160: 5157 | DG160: 278 | DH160: 157
AE161: 158 | AF161: 37 | AG161: ἄλογος | AI161: irrational, unreasonable, absurd | AJ161: AHL-ogg-oss | AK161: Adjective | AP161: alogos | AQ161: 249 | AR161: 249 | AS161: ἄλογος | AT161: TRUE | AU161: TRUE | AV161: TRUE | AW161: 37 | AY161: irrational, unreasonable, absurd | AZ161: AHL-ogg-oss | BA161: Adjective | BF161: 249 | BG161: 158 | BH161: 158 | BI161: 37 | BJ161: ἄλογος | BL161: irrational, unreasonable, absurd | BM161: AHL-ogg-oss | BN161: Adjective | BT161: 249 | BU161: 158 | BV161: 158 | BW161: 37 | BX161: Adjective | BY161: ἄλογος | CC161: AHL-ogg-oss | CD161: irrational, unreasonable, absurd | CE161: ἄλογος | CF161: Extra: Adjective | CH161: 249 | CI161: FALSE | CJ161: 5158 | CK161: 160 | CO161: 158 | CT161: FALSE | CU161: 5158 | CV161: 160 | CZ161: 158 | DE161: FALSE | DF161: 5158 | DG161: 279 | DH161: 158
AE162: 159 | AF162: 38 | AG162: ἅλυσις | AI162: chain | AJ162: HAH-loo-sis | AK162: Noun | AL162: ἡ | AP162: alusis | AQ162: 254 | AR162: 254 | AS162: ἅλυσις | AT162: TRUE | AU162: TRUE | AV162: TRUE | AW162: 38 | AY162: chain | AZ162: HAH-loo-sis | BA162: Noun | BB162: ἡ | BF162: 254 | BG162: 159 | BH162: 159 | BI162: 38 | BJ162: ἡ ἅλυσις | BL162: chain | BM162: HAH-loo-sis | BN162: Noun | BO162: ἡ | BR162: ἡ | BT162: 254 | BU162: 159 | BV162: 159 | BW162: 38 | BX162: Noun | BY162: ἡ ἅλυσις | CC162: HAH-loo-sis | CD162: chain | CE162: ἡ ἅλυσις | CF162: Chapter 38: Noun | CH162: 254 | CI162: FALSE | CJ162: 5159 | CK162: 161 | CO162: 159 | CT162: FALSE | CU162: 5159 | CV162: 161 | CZ162: 159 | DE162: FALSE | DF162: 5159 | DG162: 280 | DH162: 159
AE163: 160 | AF163: 37 | AG163: ἀλώπηξ | AI163: fox (i.e., the animal) | AJ163: ahl-OPE-ayks | AK163: Noun | AL163: ἡ | AP163: alwphx | AQ163: 258 | AR163: 258 | AS163: ἀλώπηξ | AT163: TRUE | AU163: TRUE | AV163: TRUE | AW163: 37 | AY163: fox (i.e., the animal) | AZ163: ahl-OPE-ayks | BA163: Noun | BB163: ἡ | BF163: 258 | BG163: 160 | BH163: 160 | BI163: 37 | BJ163: ἡ ἀλώπηξ | BL163: fox (i.e., the animal) | BM163: ahl-OPE-ayks | BN163: Noun | BO163: ἡ | BR163: ἡ | BT163: 258 | BU163: 160 | BV163: 160 | BW163: 37 | BX163: Noun | BY163: ἡ ἀλώπηξ | CC163: ahl-OPE-ayks | CD163: fox (i.e., the animal) | CE163: ἡ ἀλώπηξ | CF163: Extra: Noun | CH163: 258 | CI163: FALSE | CJ163: 5160 | CK163: 162 | CO163: 160 | CT163: FALSE | CU163: 5160 | CV163: 162 | CZ163: 160 | DE163: FALSE | DF163: 5160 | DG163: 281 | DH163: 160
AE164: 161 | AF164: 38 | AG164: ἅμα | AI164: together with [dative] | AJ164: HA-mah | AK164: Preposition | AP164: ama | AQ164: 260 | AR164: 260 | AS164: ἅμα | AT164: TRUE | AU164: TRUE | AV164: TRUE | AW164: 38 | AY164: together with [dative] | AZ164: HA-mah | BA164: Preposition | BF164: 260 | BG164: 161 | BH164: 161 | BI164: 38 | BJ164: ἅμα | BL164: together with [dative] | BM164: HA-mah | BN164: Preposition | BT164: 260 | BU164: 161 | BV164: 161 | BW164: 38 | BX164: Preposition | BY164: ἅμα | CC164: HA-mah | CD164: together with [dative] | CE164: ἅμα | CF164: Index of Textbook: Preposition | CH164: 260 | CI164: FALSE | CJ164: 5161 | CK164: 163 | CO164: 161 | CT164: FALSE | CU164: 5161 | CV164: 163 | CZ164: 161 | DE164: TRUE | DF164: 161 | DG164: 6 | DH164: 161 | DJ164: ἅμα | DK164: together with [dative]
AE165: 162 | AF165: 38 | AG165: ἅμα | AI165: at the same time | AJ165: HA-mah | AK165: Adverb | AP165: ama | AQ165: 260 | AR165: 260.1 | AS165: ἅμα | AT165: TRUE | AU165: TRUE | AV165: TRUE | AW165: 38 | AY165: at the same time | AZ165: HA-mah | BA165: Adverb | BF165: 260 | BG165: 162 | BH165: 162 | BI165: 38 | BJ165: ἅμα | BL165: at the same time | BM165: HA-mah | BN165: Adverb | BT165: 260 | BU165: 162 | BV165: 162 | BW165: 38 | BX165: Adverb | BY165: ἅμα | CC165: HA-mah | CD165: at the same time | CE165: ἅμα | CF165: Index of Textbook: Adverb | CH165: 260 | CI165: FALSE | CJ165: 5162 | CK165: 164 | CO165: 162 | CT165: FALSE | CU165: 5162 | CV165: 164 | CZ165: 162 | DE165: TRUE | DF165: 162 | DG165: 7 | DH165: 162 | DJ165: ἅμα | DK165: at the same time
AE166: 163 | AF166: 35 | AG166: ἁμαρτάνω | AH166: *ἁμαρτ | AI166: I sin | AJ166: ham-art-AH-noe | AK166: Verb | AM166: ἡμάρτανον | AN166: ἁμαρτήσω | AO166: ἡμάρτησα | AP166: amartanw amarthsw hmarthsa hmartanon | AQ166: 264 | AR166: 264 | AS166: ἁμαρτάνω | AT166: TRUE | AU166: TRUE | AV166: TRUE | AW166: 35 | AX166: *ἁμαρτ | AY166: I sin | AZ166: ham-art-AH-noe | BA166: Verb | BC166: ἡμάρτανον | BD166: ἁμαρτήσω | BE166: ἡμάρτησα | BF166: 264 | BG166: 163 | BH166: 163 | BI166: 35 | BJ166: ἁμαρτάνω | BK166: *ἁμαρτ | BL166: I sin | BM166: ham-art-AH-noe | BN166: Verb | BP166: ἡμάρτανον | BQ166: ἁμαρτήσω | BS166: ἡμάρτησα | BT166: 264 | BU166: 163 | BV166: 163 | BW166: 35 | BX166: Verb | BY166: ἁμαρτάνω | BZ166: ἡμάρτανον | CA166: ἁμαρτήσω | CB166: *ἁμαρτ | CC166: ham-art-AH-noe | CD166: I sin | CE166: ἁμαρτάνω | CF166: Chapter 35: Verb | CG166: ἡμάρτησα | CH166: 264 | CI166: FALSE | CJ166: 5163 | CK166: 165 | CO166: 163 | CT166: FALSE | CU166: 5163 | CV166: 165 | CZ166: 163 | DE166: FALSE | DF166: 5163 | DG166: 282 | DH166: 163
AE167: 164 | AF167: 07 | AG167: ἁμαρτία | AH167: *ἁμαρτια | AI167: sin | AJ167: ha-mar-TEE-ah | AK167: Noun | AL167: ἡ | AP167: amartia | AQ167: 266 | AR167: 266 | AS167: ἁμαρτία | AT167: TRUE | AU167: TRUE | AV167: TRUE | AW167: 07 | AX167: *ἁμαρτια | AY167: sin | AZ167: ha-mar-TEE-ah | BA167: Noun | BB167: ἡ | BF167: 266 | BG167: 164 | BH167: 164 | BI167: 07 | BJ167: ἡ ἁμαρτία | BK167: *ἁμαρτια | BL167: sin | BM167: ha-mar-TEE-ah | BN167: Noun | BO167: ἡ | BR167: ἡ | BT167: 266 | BU167: 164 | BV167: 164 | BW167: 07 | BX167: Noun | BY167: ἡ ἁμαρτία | CB167: *ἁμαρτια | CC167: ha-mar-TEE-ah | CD167: sin | CE167: ἡ ἁμαρτία | CF167: Chapter 07: Noun | CH167: 266 | CI167: FALSE | CJ167: 5164 | CK167: 166 | CO167: 164 | CT167: FALSE | CU167: 5164 | CV167: 166 | CZ167: 164 | DE167: FALSE | DF167: 5164 | DG167: 283 | DH167: 164
AE168: 165 | AF168: 35 | AG168: ἁμαρτωλός [noun] | AH168: *ἁμαρτωλο | AI168: sinner | AJ168: ham-arr-toe-LOSS | AK168: Noun | AL168: ὁ | AP168: amartwlos | AQ168: 268 | AR168: 268 | AS168: ἁμαρτωλός [noun] | AT168: TRUE | AU168: TRUE | AV168: TRUE | AW168: 35 | AX168: *ἁμαρτωλο | AY168: sinner | AZ168: ham-arr-toe-LOSS | BA168: Noun | BB168: ὁ | BF168: 268 | BG168: 165 | BH168: 165 | BI168: 35 | BJ168: ὁ ἁμαρτωλός [noun] | BK168: *ἁμαρτωλο | BL168: sinner | BM168: ham-arr-toe-LOSS | BN168: Noun | BO168: ὁ | BR168: ὁ | BT168: 268 | BU168: 165 | BV168: 165 | BW168: 35 | BX168: Noun | BY168: ὁ ἁμαρτωλός [noun] | CB168: *ἁμαρτωλο | CC168: ham-arr-toe-LOSS | CD168: sinner | CE168: ὁ ἁμαρτωλός [noun] | CF168: Chapter 35: Noun | CH168: 268 | CI168: FALSE | CJ168: 5165 | CK168: 167 | CO168: 165 | CT168: FALSE | CU168: 5165 | CV168: 167 | CZ168: 165 | DE168: FALSE | DF168: 5165 | DG168: 284 | DH168: 165
AE169: 166 | AF169: 35 | AG169: ἁμαρτωλός [adjective] | AH169: *ἁμαρτωλο | AI169: sinful | AJ169: ham-arr-toe-LOSS | AK169: Adjective | AP169: amartwlos | AQ169: 268 | AR169: 268.1 | AS169: ἁμαρτωλός [adjective] | AT169: TRUE | AU169: TRUE | AV169: TRUE | AW169: 35 | AX169: *ἁμαρτωλο | AY169: sinful | AZ169: ham-arr-toe-LOSS | BA169: Adjective | BF169: 268 | BG169: 166 | BH169: 166 | BI169: 35 | BJ169: ἁμαρτωλός [adjective] | BK169: *ἁμαρτωλο | BL169: sinful | BM169: ham-arr-toe-LOSS | BN169: Adjective | BT169: 268 | BU169: 166 | BV169: 166 | BW169: 35 | BX169: Adjective | BY169: ἁμαρτωλός [adjective] | CB169: *ἁμαρτωλο | CC169: ham-arr-toe-LOSS | CD169: sinful | CE169: ἁμαρτωλός [adjective] | CF169: Chapter 35: Adjective | CH169: 268 | CI169: FALSE | CJ169: 5166 | CK169: 168 | CO169: 166 | CT169: FALSE | CU169: 5166 | CV169: 168 | CZ169: 166 | DE169: FALSE | DF169: 5166 | DG169: 285 | DH169: 166
AE170: 167 | AF170: 37 | AG170: ἀμελέω | AI170: I neglect, I am careless | AJ170: ah-mell-OWE | AK170: Verb | AM170: ἠμέλεον | AN170: ἀμελήσω | AO170: ἠμέλησα | AP170: amelew hmeleon amelhsw hmelhsa | AQ170: 272 | AR170: 272 | AS170: ἀμελέω | AT170: TRUE | AU170: TRUE | AV170: TRUE | AW170: 37 | AY170: I neglect, I am careless | AZ170: ah-mell-OWE | BA170: Verb | BC170: ἠμέλεον | BD170: ἀμελήσω | BE170: ἠμέλησα | BF170: 272 | BG170: 167 | BH170: 167 | BI170: 37 | BJ170: ἀμελέω | BL170: I neglect, I am careless | BM170: ah-mell-OWE | BN170: Verb | BP170: ἠμέλεον | BQ170: ἀμελήσω | BS170: ἠμέλησα | BT170: 272 | BU170: 167 | BV170: 167 | BW170: 37 | BX170: Verb | BY170: ἀμελέω | BZ170: ἠμέλεον | CA170: ἀμελήσω | CC170: ah-mell-OWE | CD170: I neglect, I am careless | CE170: ἀμελέω | CF170: Extra: Verb | CG170: ἠμέλησα | CH170: 272 | CI170: FALSE | CJ170: 5167 | CK170: 169 | CO170: 167 | CT170: FALSE | CU170: 5167 | CV170: 169 | CZ170: 167 | DE170: FALSE | DF170: 5167 | DG170: 286 | DH170: 167
AE171: 168 | AF171: 37 | AG171: ἄμεμπτος | AI171: blameless, faultless | AJ171: AH-memp-toss | AK171: Adjective | AP171: amemptos | AQ171: 273 | AR171: 273 | AS171: ἄμεμπτος | AT171: TRUE | AU171: TRUE | AV171: TRUE | AW171: 37 | AY171: blameless, faultless | AZ171: AH-memp-toss | BA171: Adjective | BF171: 273 | BG171: 168 | BH171: 168 | BI171: 37 | BJ171: ἄμεμπτος | BL171: blameless, faultless | BM171: AH-memp-toss | BN171: Adjective | BT171: 273 | BU171: 168 | BV171: 168 | BW171: 37 | BX171: Adjective | BY171: ἄμεμπτος | CC171: AH-memp-toss | CD171: blameless, faultless | CE171: ἄμεμπτος | CF171: Extra: Adjective | CH171: 273 | CI171: FALSE | CJ171: 5168 | CK171: 170 | CO171: 168 | CT171: FALSE | CU171: 5168 | CV171: 170 | CZ171: 168 | DE171: FALSE | DF171: 5168 | DG171: 287 | DH171: 168
AE172: 169 | AF172: 04 | AG172: ἀμῄν | AI172: truly, amen, let it be so | AJ172: ah-MANE | AK172: Adverb | AP172: amhn | AQ172: 281 | AR172: 281 | AS172: ἀμῄν | AT172: TRUE | AU172: TRUE | AV172: TRUE | AW172: 04 | AY172: truly, amen, let it be so | AZ172: ah-MANE | BA172: Adverb | BF172: 281 | BG172: 169 | BH172: 169 | BI172: 04 | BJ172: ἀμῄν | BL172: truly, amen, let it be so | BM172: ah-MANE | BN172: Adverb | BT172: 281 | BU172: 169 | BV172: 169 | BW172: 04 | BX172: Adverb | BY172: ἀμῄν | CC172: ah-MANE | CD172: truly, amen, let it be so | CE172: ἀμῄν | CF172: Chapter 04: Adverb | CH172: 281 | CI172: FALSE | CJ172: 5169 | CK172: 171 | CO172: 169 | CT172: FALSE | CU172: 5169 | CV172: 171 | CZ172: 169 | DE172: FALSE | DF172: 5169 | DG172: 288 | DH172: 169
AE173: 170 | AF173: 37 | AG173: ἀμίαντος | AI173: undefiled, pure, unsoiled | AJ173: ah-MEE-ahn-toss | AK173: Adjective | AP173: amiantos | AQ173: 283 | AR173: 283 | AS173: ἀμίαντος | AT173: TRUE | AU173: TRUE | AV173: TRUE | AW173: 37 | AY173: undefiled, pure, unsoiled | AZ173: ah-MEE-ahn-toss | BA173: Adjective | BF173: 283 | BG173: 170 | BH173: 170 | BI173: 37 | BJ173: ἀμίαντος | BL173: undefiled, pure, unsoiled | BM173: ah-MEE-ahn-toss | BN173: Adjective | BT173: 283 | BU173: 170 | BV173: 170 | BW173: 37 | BX173: Adjective | BY173: ἀμίαντος | CC173: ah-MEE-ahn-toss | CD173: undefiled, pure, unsoiled | CE173: ἀμίαντος | CF173: Extra: Adjective | CH173: 283 | CI173: FALSE | CJ173: 5170 | CK173: 172 | CO173: 170 | CT173: FALSE | CU173: 5170 | CV173: 172 | CZ173: 170 | DE173: FALSE | DF173: 5170 | DG173: 289 | DH173: 170
AE174: 171 | AF174: 37 | AG174: ἄμμος | AI174: sand, sand pile | AJ174: AHM-oss | AK174: Noun | AL174: ἡ | AP174: ammos | AQ174: 285 | AR174: 285 | AS174: ἄμμος | AT174: TRUE | AU174: TRUE | AV174: TRUE | AW174: 37 | AY174: sand, sand pile | AZ174: AHM-oss | BA174: Noun | BB174: ἡ | BF174: 285 | BG174: 171 | BH174: 171 | BI174: 37 | BJ174: ἡ ἄμμος | BL174: sand, sand pile | BM174: AHM-oss | BN174: Noun | BO174: ἡ | BR174: ἡ | BT174: 285 | BU174: 171 | BV174: 171 | BW174: 37 | BX174: Noun | BY174: ἡ ἄμμος | CC174: AHM-oss | CD174: sand, sand pile | CE174: ἡ ἄμμος | CF174: Extra: Noun | CH174: 285 | CI174: FALSE | CJ174: 5171 | CK174: 173 | CO174: 171 | CT174: FALSE | CU174: 5171 | CV174: 173 | CZ174: 171 | DE174: FALSE | DF174: 5171 | DG174: 290 | DH174: 171
AE175: 172 | AF175: 37 | AG175: ἀμνός | AI175: lamb | AJ175: ahm-NOSS | AK175: Noun | AL175: ὁ | AP175: amnos | AQ175: 286 | AR175: 286 | AS175: ἀμνός | AT175: TRUE | AU175: TRUE | AV175: TRUE | AW175: 37 | AY175: lamb | AZ175: ahm-NOSS | BA175: Noun | BB175: ὁ | BF175: 286 | BG175: 172 | BH175: 172 | BI175: 37 | BJ175: ὁ ἀμνός | BL175: lamb | BM175: ahm-NOSS | BN175: Noun | BO175: ὁ | BR175: ὁ | BT175: 286 | BU175: 172 | BV175: 172 | BW175: 37 | BX175: Noun | BY175: ὁ ἀμνός | CC175: ahm-NOSS | CD175: lamb | CE175: ὁ ἀμνός | CF175: Extra: Noun | CH175: 286 | CI175: FALSE | CJ175: 5172 | CK175: 174 | CO175: 172 | CT175: FALSE | CU175: 5172 | CV175: 174 | CZ175: 172 | DE175: FALSE | DF175: 5172 | DG175: 291 | DH175: 172
AE176: 173 | AF176: 37 | AG176: ἄμπελος | AI176: vine | AJ176: AHM-pell-oss | AK176: Noun | AL176: ἡ | AP176: ampelos | AQ176: 288 | AR176: 288 | AS176: ἄμπελος | AT176: TRUE | AU176: TRUE | AV176: TRUE | AW176: 37 | AY176: vine | AZ176: AHM-pell-oss | BA176: Noun | BB176: ἡ | BF176: 288 | BG176: 173 | BH176: 173 | BI176: 37 | BJ176: ἡ ἄμπελος | BL176: vine | BM176: AHM-pell-oss | BN176: Noun | BO176: ἡ | BR176: ἡ | BT176: 288 | BU176: 173 | BV176: 173 | BW176: 37 | BX176: Noun | BY176: ἡ ἄμπελος | CC176: AHM-pell-oss | CD176: vine | CE176: ἡ ἄμπελος | CF176: Extra: Noun | CH176: 288 | CI176: FALSE | CJ176: 5173 | CK176: 175 | CO176: 173 | CT176: FALSE | CU176: 5173 | CV176: 175 | CZ176: 173 | DE176: FALSE | DF176: 5173 | DG176: 292 | DH176: 173
AE177: 174 | AF177: 38 | AG177: ἀμπελών | AI177: vineyard | AJ177: ahm-pell-OWN | AK177: Noun | AL177: ὁ | AP177: ampelwn | AQ177: 290 | AR177: 290 | AS177: ἀμπελών | AT177: TRUE | AU177: TRUE | AV177: TRUE | AW177: 38 | AY177: vineyard | AZ177: ahm-pell-OWN | BA177: Noun | BB177: ὁ | BF177: 290 | BG177: 174 | BH177: 174 | BI177: 38 | BJ177: ὁ ἀμπελών | BL177: vineyard | BM177: ahm-pell-OWN | BN177: Noun | BO177: ὁ | BR177: ὁ | BT177: 290 | BU177: 174 | BV177: 174 | BW177: 38 | BX177: Noun | BY177: ὁ ἀμπελών | CC177: ahm-pell-OWN | CD177: vineyard | CE177: ὁ ἀμπελών | CF177: Index of Textbook: Noun | CH177: 290 | CI177: FALSE | CJ177: 5174 | CK177: 176 | CO177: 174 | CT177: FALSE | CU177: 5174 | CV177: 176 | CZ177: 174 | DE177: FALSE | DF177: 5174 | DG177: 293 | DH177: 174
AE178: 175 | AF178: 37 | AG178: ἀμφιέννυμι | AI178: I clothe, I am clothed | AJ178: ahm-fee-ENN-oo-mee | AK178: Verb | AM178: ἠμφίεννυν | AN178: ἀμφιέσω | AO178: ἠμφίεσα | AP178: amfiennumi hmfiennun amfiesw hmfiesa | AQ178: 294 | AR178: 294 | AS178: ἀμφιέννυμι | AT178: TRUE | AU178: TRUE | AV178: TRUE | AW178: 37 | AY178: I clothe, I am clothed | AZ178: ahm-fee-ENN-oo-mee | BA178: Verb | BC178: ἠμφίεννυν | BD178: ἀμφιέσω | BE178: ἠμφίεσα | BF178: 294 | BG178: 175 | BH178: 175 | BI178: 37 | BJ178: ἀμφιέννυμι | BL178: I clothe, I am clothed | BM178: ahm-fee-ENN-oo-mee | BN178: Verb | BP178: ἠμφίεννυν | BQ178: ἀμφιέσω | BS178: ἠμφίεσα | BT178: 294 | BU178: 175 | BV178: 175 | BW178: 37 | BX178: Verb | BY178: ἀμφιέννυμι | BZ178: ἠμφίεννυν | CA178: ἀμφιέσω | CC178: ahm-fee-ENN-oo-mee | CD178: I clothe, I am clothed | CE178: ἀμφιέννυμι | CF178: Extra: Verb | CG178: ἠμφίεσα | CH178: 294 | CI178: FALSE | CJ178: 5175 | CK178: 177 | CO178: 175 | CT178: FALSE | CU178: 5175 | CV178: 177 | CZ178: 175 | DE178: FALSE | DF178: 5175 | DG178: 294 | DH178: 175
AE179: 176 | AF179: 38 | AG179: ἀμφότεροι | AI179: both | AJ179: ahm-FOT-er-oy | AK179: Adjective | AP179: amfoteroi | AQ179: 297 | AR179: 297 | AS179: ἀμφότεροι | AT179: TRUE | AU179: TRUE | AV179: TRUE | AW179: 38 | AY179: both | AZ179: ahm-FOT-er-oy | BA179: Adjective | BF179: 297 | BG179: 176 | BH179: 176 | BI179: 38 | BJ179: ἀμφότεροι | BL179: both | BM179: ahm-FOT-er-oy | BN179: Adjective | BT179: 297 | BU179: 176 | BV179: 176 | BW179: 38 | BX179: Adjective | BY179: ἀμφότεροι | CC179: ahm-FOT-er-oy | CD179: both | CE179: ἀμφότεροι | CF179: Index of Textbook: Adjective | CH179: 297 | CI179: FALSE | CJ179: 5176 | CK179: 178 | CO179: 176 | CT179: FALSE | CU179: 5176 | CV179: 178 | CZ179: 176 | DE179: FALSE | DF179: 5176 | DG179: 295 | DH179: 176
AE180: 177 | AF180: 37 | AG180: ἄμωμος | AI180: blameless, unblemished, faultless | AJ180: AH-moe-moss | AK180: Adjective | AP180: amwmos | AQ180: 299b | AR180: 299.5 | AS180: ἄμωμος | AT180: TRUE | AU180: TRUE | AV180: TRUE | AW180: 37 | AY180: blameless, unblemished, faultless | AZ180: AH-moe-moss | BA180: Adjective | BF180: 299b | BG180: 177 | BH180: 177 | BI180: 37 | BJ180: ἄμωμος | BL180: blameless, unblemished, faultless | BM180: AH-moe-moss | BN180: Adjective | BT180: 299b | BU180: 177 | BV180: 177 | BW180: 37 | BX180: Adjective | BY180: ἄμωμος | CC180: AH-moe-moss | CD180: blameless, unblemished, faultless | CE180: ἄμωμος | CF180: Extra: Adjective | CH180: 299b | CI180: FALSE | CJ180: 5177 | CK180: 179 | CO180: 177 | CT180: FALSE | CU180: 5177 | CV180: 179 | CZ180: 177 | DE180: FALSE | DF180: 5177 | DG180: 296 | DH180: 177
AE181: 178 | AF181: 14 | AG181: ἄν | AI181: modifies relative pronoun ("who" becomes "whoever") (particle) | AJ181: AHN | AK181: Pronoun | AP181: an | AQ181: 302 | AR181: 302 | AS181: ἄν | AT181: TRUE | AU181: TRUE | AV181: TRUE | AW181: 14 | AY181: modifies relative pronoun ("who" becomes "whoever") (particle) | AZ181: AHN | BA181: Pronoun | BF181: 302 | BG181: 178 | BH181: 178 | BI181: 14 | BJ181: ἄν | BL181: modifies relative pronoun ("who" becomes "whoever") (particle) | BM181: AHN | BN181: Pronoun | BT181: 302 | BU181: 178 | BV181: 178 | BW181: 14 | BX181: Pronoun | BY181: ἄν | CC181: AHN | CD181: modifies relative pronoun ("who" becomes "whoever") (particle) | CE181: ἄν | CF181: Chapter 14: Pronoun | CH181: 302 | CI181: FALSE | CJ181: 5178 | CK181: 180 | CO181: 178 | CT181: FALSE | CU181: 5178 | CV181: 180 | CZ181: 178 | DE181: TRUE | DF181: 178 | DG181: 8 | DH181: 178 | DJ181: ἄν | DK181: modifies relative pronoun ("who" becomes "whoever") (particle)
AE182: 179 | AF182: 11 | AG182: -ἄν | AI182: ending that changes "what" to "whatever" | AJ182: AHN | AK182: Noun Ending | AP182: an | AQ182: 302 | AR182: 302.1 | AS182: -ἄν | AT182: TRUE | AU182: TRUE | AV182: TRUE | AW182: 11 | AY182: ending that changes "what" to "whatever" | AZ182: AHN | BA182: Noun Ending | BF182: 302 | BG182: 179 | BH182: 179 | BI182: 11 | BJ182: -ἄν | BL182: ending that changes "what" to "whatever" | BM182: AHN | BN182: Noun Ending | BT182: 302 | BU182: 179 | BV182: 179 | BW182: 11 | BX182: Noun Ending | BY182: -ἄν | CC182: AHN | CD182: ending that changes "what" to "whatever" | CE182: -ἄν | CF182: Chapter 11: Noun Ending | CH182: 302 | CI182: FALSE | CJ182: 5179 | CK182: 181 | CO182: 179 | CT182: FALSE | CU182: 5179 | CV182: 181 | CZ182: 179 | DE182: TRUE | DF182: 179 | DG182: 9 | DH182: 179 | DJ182: -ἄν | DK182: ending that changes "what" to "whatever"
AE183: 180 | AF183: 38 | AG183: ἀνά | AI183: among, between, each | AJ183: ah-NA | AK183: Preposition | AP183: ana | AQ183: 303 | AR183: 303 | AS183: ἀνά | AT183: TRUE | AU183: TRUE | AV183: TRUE | AW183: 38 | AY183: among, between, each | AZ183: ah-NA | BA183: Preposition | BF183: 303 | BG183: 180 | BH183: 180 | BI183: 38 | BJ183: ἀνά | BL183: among, between, each | BM183: ah-NA | BN183: Preposition | BT183: 303 | BU183: 180 | BV183: 180 | BW183: 38 | BX183: Preposition | BY183: ἀνά | CC183: ah-NA | CD183: among, between, each | CE183: ἀνά | CF183: Index of Textbook: Preposition | CH183: 303 | CI183: FALSE | CJ183: 5180 | CK183: 182 | CO183: 180 | CT183: FALSE | CU183: 5180 | CV183: 182 | CZ183: 180 | DE183: TRUE | DF183: 180 | DG183: 10 | DH183: 180 | DJ183: ἀνά | DK183: among, between, each
AE184: 181 | AF184: 27 | AG184: ἀναβαίνω | AH184: *ἀνα + *βα | AI184: I go up | AJ184: ah-nah-BYE-noe | AK184: Verb | AM184: ἀνέβαινον | AN184: ἀναβήσομαι | AO184: ἀνέβην | AP184: anabainw anebainon anabhsomai anebhn | AQ184: 305 | AR184: 305 | AS184: ἀναβαίνω | AT184: TRUE | AU184: TRUE | AV184: TRUE | AW184: 27 | AX184: *ἀνα + *βα | AY184: I go up | AZ184: ah-nah-BYE-noe | BA184: Verb | BC184: ἀνέβαινον | BD184: ἀναβήσομαι | BE184: ἀνέβην | BF184: 305 | BG184: 181 | BH184: 181 | BI184: 27 | BJ184: ἀναβαίνω | BK184: *ἀνα + *βα | BL184: I go up | BM184: ah-nah-BYE-noe | BN184: Verb | BP184: ἀνέβαινον | BQ184: ἀναβήσομαι | BS184: ἀνέβην | BT184: 305 | BU184: 181 | BV184: 181 | BW184: 27 | BX184: Verb | BY184: ἀναβαίνω | BZ184: ἀνέβαινον | CA184: ἀναβήσομαι | CB184: *ἀνα + *βα | CC184: ah-nah-BYE-noe | CD184: I go up | CE184: ἀναβαίνω | CF184: Chapter 27: Verb | CG184: ἀνέβην | CH184: 305 | CI184: FALSE | CJ184: 5181 | CK184: 183 | CO184: 181 | CT184: FALSE | CU184: 5181 | CV184: 183 | CZ184: 181 | DE184: FALSE | DF184: 5181 | DG184: 297 | DH184: 181
AE185: 182 | AF185: 38 | AG185: ἀναβλέπω | AH185: *βλεπ | AI185: I look up, I receive sight | AJ185: ah-NA-BLEPP-owe | AK185: Verb | AM185: ἀνέβλεπον | AN185: ἀναβλέψω | AO185: ἀνέβλεψα | AP185: anablepw anebleya aneblepon anableyw | AQ185: 308 | AR185: 308 | AS185: ἀναβλέπω | AT185: TRUE | AU185: TRUE | AV185: TRUE | AW185: 38 | AX185: *βλεπ | AY185: I look up, I receive sight | AZ185: ah-NA-BLEPP-owe | BA185: Verb | BC185: ἀνέβλεπον | BD185: ἀναβλέψω | BE185: ἀνέβλεψα | BF185: 308 | BG185: 182 | BH185: 182 | BI185: 38 | BJ185: ἀναβλέπω | BK185: *βλεπ | BL185: I look up, I receive sight | BM185: ah-NA-BLEPP-owe | BN185: Verb | BP185: ἀνέβλεπον | BQ185: ἀναβλέψω | BS185: ἀνέβλεψα | BT185: 308 | BU185: 182 | BV185: 182 | BW185: 38 | BX185: Verb | BY185: ἀναβλέπω | BZ185: ἀνέβλεπον | CA185: ἀναβλέψω | CB185: *βλεπ | CC185: ah-NA-BLEPP-owe | CD185: I look up, I receive sight | CE185: ἀναβλέπω | CF185: Index of Textbook: Verb | CG185: ἀνέβλεψα | CH185: 308 | CI185: FALSE | CJ185: 5182 | CK185: 184 | CO185: 182 | CT185: FALSE | CU185: 5182 | CV185: 184 | CZ185: 182 | DE185: FALSE | DF185: 5182 | DG185: 298 | DH185: 182
AE186: 183 | AF186: 38 | AG186: ἀναγγέλλω | AI186: I proclaim, I announce, I report | AJ186: ah-nang-ELL-owe | AK186: Verb | AM186: ἀνήγγελλον | AN186: ἀναγγελῶ | AO186: ἀνήγγειλα | AP186: Anaggellw anhggellon anaggelw anhggeila | AQ186: 312 | AR186: 312 | AS186: ἀναγγέλλω | AT186: TRUE | AU186: TRUE | AV186: TRUE | AW186: 38 | AY186: I proclaim, I announce, I report | AZ186: ah-nang-ELL-owe | BA186: Verb | BC186: ἀνήγγελλον | BD186: ἀναγγελῶ | BE186: ἀνήγγειλα | BF186: 312 | BG186: 183 | BH186: 183 | BI186: 38 | BJ186: ἀναγγέλλω | BL186: I proclaim, I announce, I report | BM186: ah-nang-ELL-owe | BN186: Verb | BP186: ἀνήγγελλον | BQ186: ἀναγγελῶ | BS186: ἀνήγγειλα | BT186: 312 | BU186: 183 | BV186: 183 | BW186: 38 | BX186: Verb | BY186: ἀναγγέλλω | BZ186: ἀνήγγελλον | CA186: ἀναγγελῶ | CC186: ah-nang-ELL-owe | CD186: I proclaim, I announce, I report | CE186: ἀναγγέλλω | CF186: Chapter 38: Verb | CG186: ἀνήγγειλα | CH186: 312 | CI186: FALSE | CJ186: 5183 | CK186: 185 | CO186: 183 | CT186: FALSE | CU186: 5183 | CV186: 185 | CZ186: 183 | DE186: FALSE | DF186: 5183 | DG186: 299 | DH186: 183
AE187: 184 | AF187: 38 | AG187: ἀναγινώσκω | AH187: *γνω | AI187: I read | AJ187: ah-nah-giin-OSE-koe | AK187: Verb | AM187: ἀνεγίνωσκον | AN187: ἀναγνώσομαι | AO187: ἀνέγνων | AP187: anaginwskw aneginwskon anegnwn anagnwsomai | AQ187: 314 | AR187: 314 | AS187: ἀναγινώσκω | AT187: TRUE | AU187: TRUE | AV187: TRUE | AW187: 38 | AX187: *γνω | AY187: I read | AZ187: ah-nah-giin-OSE-koe | BA187: Verb | BC187: ἀνεγίνωσκον | BD187: ἀναγνώσομαι | BE187: ἀνέγνων | BF187: 314 | BG187: 184 | BH187: 184 | BI187: 38 | BJ187: ἀναγινώσκω | BK187: *γνω | BL187: I read | BM187: ah-nah-giin-OSE-koe | BN187: Verb | BP187: ἀνεγίνωσκον | BQ187: ἀναγνώσομαι | BS187: ἀνέγνων | BT187: 314 | BU187: 184 | BV187: 184 | BW187: 38 | BX187: Verb | BY187: ἀναγινώσκω | BZ187: ἀνεγίνωσκον | CA187: ἀναγνώσομαι | CB187: *γνω | CC187: ah-nah-giin-OSE-koe | CD187: I read | CE187: ἀναγινώσκω | CF187: Index of Textbook: Verb | CG187: ἀνέγνων | CH187: 314 | CI187: FALSE | CJ187: 5184 | CK187: 186 | CO187: 184 | CT187: FALSE | CU187: 5184 | CV187: 186 | CZ187: 184 | DE187: FALSE | DF187: 5184 | DG187: 300 | DH187: 184
AE188: 185 | AF188: 37 | AG188: ἀναγκάζω | AI188: I compel, I force, I constrain | AJ188: ah-nang-KAH-zoe | AK188: Verb | AM188: ἠνάγκαζον | AN188: ἀναγκάσω | AO188: ἠνάγκασα | AP188: anagkazw hnagkazon anagkasw hnagkasa | AQ188: 315 | AR188: 315 | AS188: ἀναγκάζω | AT188: TRUE | AU188: TRUE | AV188: TRUE | AW188: 37 | AY188: I compel, I force, I constrain | AZ188: ah-nang-KAH-zoe | BA188: Verb | BC188: ἠνάγκαζον | BD188: ἀναγκάσω | BE188: ἠνάγκασα | BF188: 315 | BG188: 185 | BH188: 185 | BI188: 37 | BJ188: ἀναγκάζω | BL188: I compel, I force, I constrain | BM188: ah-nang-KAH-zoe | BN188: Verb | BP188: ἠνάγκαζον | BQ188: ἀναγκάσω | BS188: ἠνάγκασα | BT188: 315 | BU188: 185 | BV188: 185 | BW188: 37 | BX188: Verb | BY188: ἀναγκάζω | BZ188: ἠνάγκαζον | CA188: ἀναγκάσω | CC188: ah-nang-KAH-zoe | CD188: I compel, I force, I constrain | CE188: ἀναγκάζω | CF188: Extra: Verb | CG188: ἠνάγκασα | CH188: 315 | CI188: FALSE | CJ188: 5185 | CK188: 187 | CO188: 185 | CT188: FALSE | CU188: 5185 | CV188: 187 | CZ188: 185 | DE188: FALSE | DF188: 5185 | DG188: 301 | DH188: 185
AE189: 186 | AF189: 37 | AG189: ἀναγκαῖος | AI189: necessary, urgent, close (as a relative) | AJ189: ahn-ang-KYE-oss | AK189: Adjective | AP189: anagkaios | AQ189: 316 | AR189: 316 | AS189: ἀναγκαῖος | AT189: TRUE | AU189: TRUE | AV189: TRUE | AW189: 37 | AY189: necessary, urgent, close (as a relative) | AZ189: ahn-ang-KYE-oss | BA189: Adjective | BF189: 316 | BG189: 186 | BH189: 186 | BI189: 37 | BJ189: ἀναγκαῖος | BL189: necessary, urgent, close (as a relative) | BM189: ahn-ang-KYE-oss | BN189: Adjective | BT189: 316 | BU189: 186 | BV189: 186 | BW189: 37 | BX189: Adjective | BY189: ἀναγκαῖος | CC189: ahn-ang-KYE-oss | CD189: necessary, urgent, close (as a relative) | CE189: ἀναγκαῖος | CF189: Extra: Adjective | CH189: 316 | CI189: FALSE | CJ189: 5186 | CK189: 188 | CO189: 186 | CT189: FALSE | CU189: 5186 | CV189: 188 | CZ189: 186 | DE189: FALSE | DF189: 5186 | DG189: 302 | DH189: 186
AE190: 187 | AF190: 38 | AG190: ἀνάγκη | AI190: necessity, pressure, distress | AJ190: ah-NANG-kay | AK190: Noun | AL190: ἡ | AP190: anagkh | AQ190: 318 | AR190: 318 | AS190: ἀνάγκη | AT190: TRUE | AU190: TRUE | AV190: TRUE | AW190: 38 | AY190: necessity, pressure, distress | AZ190: ah-NANG-kay | BA190: Noun | BB190: ἡ | BF190: 318 | BG190: 187 | BH190: 187 | BI190: 38 | BJ190: ἡ ἀνάγκη | BL190: necessity, pressure, distress | BM190: ah-NANG-kay | BN190: Noun | BO190: ἡ | BR190: ἡ | BT190: 318 | BU190: 187 | BV190: 187 | BW190: 38 | BX190: Noun | BY190: ἡ ἀνάγκη | CC190: ah-NANG-kay | CD190: necessity, pressure, distress | CE190: ἡ ἀνάγκη | CF190: Index of Textbook: Noun | CH190: 318 | CI190: FALSE | CJ190: 5187 | CK190: 189 | CO190: 187 | CT190: FALSE | CU190: 5187 | CV190: 189 | CZ190: 187 | DE190: FALSE | DF190: 5187 | DG190: 303 | DH190: 187
AE191: 188 | AF191: 38 | AG191: ἀνάγω | AI191: I lead up; (middle) I put out to sea | AJ191: Ah-NAH-go | AK191: Verb | AM191: ἀνῆγον | AN191: ἀνάξω | AO191: ἀνήγαγον | AP191: anagw anhgagon anhgon anaxw | AQ191: 321 | AR191: 321 | AS191: ἀνάγω | AT191: TRUE | AU191: TRUE | AV191: TRUE | AW191: 38 | AY191: I lead up; (middle) I put out to sea | AZ191: Ah-NAH-go | BA191: Verb | BC191: ἀνῆγον | BD191: ἀνάξω | BE191: ἀνήγαγον | BF191: 321 | BG191: 188 | BH191: 188 | BI191: 38 | BJ191: ἀνάγω | BL191: I lead up; (middle) I put out to sea | BM191: Ah-NAH-go | BN191: Verb | BP191: ἀνῆγον | BQ191: ἀνάξω | BS191: ἀνήγαγον | BT191: 321 | BU191: 188 | BV191: 188 | BW191: 38 | BX191: Verb | BY191: ἀνάγω | BZ191: ἀνῆγον | CA191: ἀνάξω | CC191: Ah-NAH-go | CD191: I lead up; (middle) I put out to sea | CE191: ἀνάγω | CF191: Index of Textbook: Verb | CG191: ἀνήγαγον | CH191: 321 | CI191: FALSE | CJ191: 5188 | CK191: 190 | CO191: 188 | CT191: FALSE | CU191: 5188 | CV191: 190 | CZ191: 188 | DE191: FALSE | DF191: 5188 | DG191: 304 | DH191: 188
AE192: 189 | AF192: 38 | AG192: ἀναιρέω | AI192: I destroy, I slay, I make an end | AJ192: ahn-eye-REH-owe | AK192: Verb | AM192: ἀνῄρουν | AN192: ἀνελω | AO192: ἀνεῖλα | AP192: anairew anelw aneila anhroun | AQ192: 337 | AR192: 337 | AS192: ἀναιρέω | AT192: TRUE | AU192: TRUE | AV192: TRUE | AW192: 38 | AY192: I destroy, I slay, I make an end | AZ192: ahn-eye-REH-owe | BA192: Verb | BC192: ἀνῄρουν | BD192: ἀνελω | BE192: ἀνεῖλα | BF192: 337 | BG192: 189 | BH192: 189 | BI192: 38 | BJ192: ἀναιρέω | BL192: I destroy, I slay, I make an end | BM192: ahn-eye-REH-owe | BN192: Verb | BP192: ἀνῄρουν | BQ192: ἀνελω | BS192: ἀνεῖλα | BT192: 337 | BU192: 189 | BV192: 189 | BW192: 38 | BX192: Verb | BY192: ἀναιρέω | BZ192: ἀνῄρουν | CA192: ἀνελω | CC192: ahn-eye-REH-owe | CD192: I destroy, I slay, I make an end | CE192: ἀναιρέω | CF192: Index of Textbook: Verb | CG192: ἀνεῖλα | CH192: 337 | CI192: FALSE | CJ192: 5189 | CK192: 191 | CO192: 189 | CT192: FALSE | CU192: 5189 | CV192: 191 | CZ192: 189 | DE192: FALSE | DF192: 5189 | DG192: 305 | DH192: 189
AE193: 190 | AF193: 38 | AG193: ἀνάκειμαι | AI193: I recline | AJ193: ah-NAH-kay-my | AK193: Verb | AM193: ἀνεκειμην | AN193: ἀνακείσομαι | AO193: ἀνακείμην | AP193: anakeimai anekeimhn anakeisomai anakeimhn | AQ193: 345 | AR193: 345 | AS193: ἀνάκειμαι | AT193: TRUE | AU193: TRUE | AV193: TRUE | AW193: 38 | AY193: I recline | AZ193: ah-NAH-kay-my | BA193: Verb | BC193: ἀνεκειμην | BD193: ἀνακείσομαι | BE193: ἀνακείμην | BF193: 345 | BG193: 190 | BH193: 190 | BI193: 38 | BJ193: ἀνάκειμαι | BL193: I recline | BM193: ah-NAH-kay-my | BN193: Verb | BP193: ἀνεκειμην | BQ193: ἀνακείσομαι | BS193: ἀνακείμην | BT193: 345 | BU193: 190 | BV193: 190 | BW193: 38 | BX193: Verb | BY193: ἀνάκειμαι | BZ193: ἀνεκειμην | CA193: ἀνακείσομαι | CC193: ah-NAH-kay-my | CD193: I recline | CE193: ἀνάκειμαι | CF193: Index of Textbook: Verb | CG193: ἀνακείμην | CH193: 345 | CI193: FALSE | CJ193: 5190 | CK193: 192 | CO193: 190 | CT193: FALSE | CU193: 5190 | CV193: 192 | CZ193: 190 | DE193: FALSE | DF193: 5190 | DG193: 306 | DH193: 190
AE194: 191 | AF194: 38 | AG194: ἀνακρίνω | AI194: I question, I examine | AJ194: ah-nah-KREE-no | AK194: Verb | AM194: ἀνέκρινον | AN194: ἀνακρινῶ | AO194: ἀνεκρινα | AP194: anakrinw anekrina anekrinon anakrinw | AQ194: 350 | AR194: 350 | AS194: ἀνακρίνω | AT194: TRUE | AU194: TRUE | AV194: TRUE | AW194: 38 | AY194: I question, I examine | AZ194: ah-nah-KREE-no | BA194: Verb | BC194: ἀνέκρινον | BD194: ἀνακρινῶ | BE194: ἀνεκρινα | BF194: 350 | BG194: 191 | BH194: 191 | BI194: 38 | BJ194: ἀνακρίνω | BL194: I question, I examine | BM194: ah-nah-KREE-no | BN194: Verb | BP194: ἀνέκρινον | BQ194: ἀνακρινῶ | BS194: ἀνεκρινα | BT194: 350 | BU194: 191 | BV194: 191 | BW194: 38 | BX194: Verb | BY194: ἀνακρίνω | BZ194: ἀνέκρινον | CA194: ἀνακρινῶ | CC194: ah-nah-KREE-no | CD194: I question, I examine | CE194: ἀνακρίνω | CF194: Index of Textbook: Verb | CG194: ἀνεκρινα | CH194: 350 | CI194: FALSE | CJ194: 5191 | CK194: 193 | CO194: 191 | CT194: FALSE | CU194: 5191 | CV194: 193 | CZ194: 191 | DE194: FALSE | DF194: 5191 | DG194: 307 | DH194: 191
AE195: 192 | AF195: 38 | AG195: ἀναλαμβάνω | AI195: I take up | AJ195: ahn-ah-lahm-BAHN-owe | AK195: Verb | AM195: ἀνελάμβανον | AN195: ἀναλήψομαι | AO195: ἀνέλαβον | AP195: analambanw anelabon anelambanon analhyomai | AQ195: 353 | AR195: 353 | AS195: ἀναλαμβάνω | AT195: TRUE | AU195: TRUE | AV195: TRUE | AW195: 38 | AY195: I take up | AZ195: ahn-ah-lahm-BAHN-owe | BA195: Verb | BC195: ἀνελάμβανον | BD195: ἀναλήψομαι | BE195: ἀνέλαβον | BF195: 353 | BG195: 192 | BH195: 192 | BI195: 38 | BJ195: ἀναλαμβάνω | BL195: I take up | BM195: ahn-ah-lahm-BAHN-owe | BN195: Verb | BP195: ἀνελάμβανον | BQ195: ἀναλήψομαι | BS195: ἀνέλαβον | BT195: 353 | BU195: 192 | BV195: 192 | BW195: 38 | BX195: Verb | BY195: ἀναλαμβάνω | BZ195: ἀνελάμβανον | CA195: ἀναλήψομαι | CC195: ahn-ah-lahm-BAHN-owe | CD195: I take up | CE195: ἀναλαμβάνω | CF195: Chapter 38: Verb | CG195: ἀνέλαβον | CH195: 353 | CI195: FALSE | CJ195: 5192 | CK195: 194 | CO195: 192 | CT195: FALSE | CU195: 5192 | CV195: 194 | CZ195: 192 | DE195: FALSE | DF195: 5192 | DG195: 308 | DH195: 192
AE196: 193 | AF196: 38 | AG196: Ἁνανίας | AI196: Ananias | AJ196: hah-nah-NEE-ahss | AK196: Proper Noun | AL196: ὁ | AP196: ananias | AQ196: 367 | AR196: 367 | AS196: Ἁνανίας | AT196: =IF(ISERR(FIND(AF196,$Y$22,1)),FALSE,TRUE) -> TRUE | AU196: TRUE | AV196: TRUE | AW196: 38 | AY196: Ananias | AZ196: hah-nah-NEE-ahss | BA196: Proper Noun | BB196: ὁ | BF196: 367 | BG196: =IF(AV196,AE196,AE196+5000) -> 193 | BH196: =RANK(BG196,BG$4:BG$2003,1) -> 193 | BI196: 38 | BJ196: =IF($AV196,BO196&AG196," ") -> ὁ Ἁνανίας | BL196: Ananias | BM196: hah-nah-NEE-ahss | BN196: Proper Noun | BO196: ὁ | BR196: ὁ | BT196: 367 | BU196: 193 | BV196: =IF(BU196<=BJ$2,MATCH(BU196,BH$4:BH$2003,0),"") -> 193 | BW196: =VLOOKUP($BU196,BH$4:BQ$2003,2,0) -> 38 | BX196: =VLOOKUP($BU196,BH$4:BQ$2003,7,0) -> Proper Noun | BY196: =VLOOKUP($BU196,BH$4:BQ$2003,3,0) -> ὁ Ἁνανίας | BZ196: =VLOOKUP($BU196,BH$4:BQ$2003,9,0) ->  | CA196: =VLOOKUP($BU196,BH$4:BQ$2003,10,0) ->  | CB196: =VLOOKUP($BU196,BH$4:BQ$2003,4,0) ->  | CC196: =VLOOKUP($BU196,BH$4:BQ$2003,6,0) -> hah-nah-NEE-ahss | CD196: =VLOOKUP($BU196,BH$4:BQ$2003,5,0) -> Ananias | CE196: =IF(AC$8,BY196,VLOOKUP($BU196,BH$4:BR$2003,11,0)&BY196) -> ὁ Ἁνανίας | CF196: Chapter 38: Proper Noun | CG196: =VLOOKUP($BU196,BH$4:BS$2003,12,0) ->  | CH196: =VLOOKUP($BU196,BH$4:BT$2003,13,0) -> 367 | CI196: FALSE | CJ196: =IF(CI196,AE196,AE196+5000) -> 5193 | CK196: =RANK(CJ196,CJ$4:CJ$2003,1) -> 195 | CL196: =IF($CI196,IF(BB196=" ","",BB196&" ")&AG196," ") ->  | CO196: 193 | CP196: =IF(CO196<=CP$2,MATCH(CO196,CK$4:CK$2003,0),"") ->  | CQ196: =VLOOKUP($CO196,CK$4:CM$2003,2,0) ->  | CR196: =VLOOKUP($CO196,CK$4:CN$2003,3,0)&VLOOKUP($CO196,CK$4:CN$2003,4,0) ->  | CT196: =IF(ISERR(FIND(CW$2,AP196,1)),FALSE, TRUE) -> FALSE | CU196: =IF(CT196,AE196,AE196+5000) -> 5193 | CV196: =RANK(CU196,CU$4:CU$2003,1) -> 195 | CW196: =IF($CT196,IF(AH196=" ",""," ["&AH196&"]")," ") ->  | CX196: =IF($CT196,IF(AK196="Noun ","Noun",IF(AK196="Verb ","Verb",AK196))," ") ->  | CZ196: 193 | DA196: =IF(CZ196<=DA$2,MATCH(CZ196,CV$4:CV$2003,0),"") ->  | DB196: =VLOOKUP($CZ196,CV$4:CY$2003,4,0) ->  | DE196: =IF(AND(LEN(AG196)<=DF$2,AG196<>" "),TRUE,FALSE) -> FALSE | DF196: =IF(DE196,AE196,AE196+5000) -> 5193 | DG196: =RANK(DF196,DF$4:DF$2003,1) -> 309 | DH196: 193 | DI196: =IF(DH196<=DA$2,MATCH(DH196,DG$4:DG$2003,0),"") ->  | DJ196: =IF($DE196,IF(BB196=" ","",BB196&" ")&AG196," ") ->  | DL196: =IF($DH196<=$DI$2,VLOOKUP($DH196,DG$4:DK$2003,4,0)&" [" &VLOOKUP($DH196,DG$4:DK$2003,5,0) &"]"," ") -> 
AE197: 194 | AF197: 38 | AG197: ἀναπαύω | AI197: I give rest, I refresh, I take a rest | AJ197: ah-nah-POW-owe | AK197: Verb | AM197: ἀνεπαύον | AN197: ἀναπαύσω | AO197: ἀνέπαυσα | AP197: anapauw anapausw anepausa anepauon | AQ197: 373 | AR197: 373 | AS197: =IF(AG197="","",AG197) -> ἀναπαύω | AT197: TRUE | AU197: =IF(ISERR(FIND(AK197,$Y$23,1)),FALSE,TRUE) -> TRUE | AV197: =AND(AT197,AU197) -> TRUE | AW197: =IF(AC$3,AF197," ") -> 38 | AX197: =IF(AC$4,AH197," ") ->  | AY197: =IF(TRUE,AI197," ") -> I give rest, I refresh, I take a rest | AZ197: =IF(AC$6,AJ197," ") -> ah-nah-POW-owe | BA197: =IF(AC$7,AK197," ") -> Verb | BB197: =IF(AC$8,AL197," ") ->  | BC197: =IF(AC$9,AM197," ") -> ἀνεπαύον | BD197: =IF(AC$10,AN197," ") -> ἀναπαύσω | BE197: =IF(AC$9,AO197," ") -> ἀνέπαυσα | BF197: =IF(AC$12,AQ197," ") -> 373 | BG197: 194 | BH197: 194 | BI197: 38 | BJ197: ἀναπαύω | BL197: I give rest, I refresh, I take a rest | BM197: ah-nah-POW-owe | BN197: Verb | BP197: ἀνεπαύον | BQ197: ἀναπαύσω | BR197: =IF($AV197,IF(AL197=" ","",AL197&" "),"") ->  | BS197: =IF($AV197,BE197," ") -> ἀνέπαυσα | BT197: 373 | BU197: 194 | BV197: 194 | BW197: 38 | BX197: Verb | BY197: ἀναπαύω | BZ197: ἀνεπαύον | CA197: ἀναπαύσω | CC197: ah-nah-POW-owe | CD197: I give rest, I refresh, I take a rest | CE197: ἀναπαύω | CF197: =IF(BV197="","",IF(BW197="37","Extra", IF(BW197=38, "Index of Textbook","Chapter " &BW197))&": "&BX197) -> Chapter 38: Verb | CG197: ἀνέπαυσα | CH197: 373 | CI197: =IF(ISERR(SEARCH(CL$2,AY197,1)),FALSE, TRUE) -> FALSE | CJ197: 5194 | CK197: 196 | CM197: =IF($CI197,AY197," ") ->  | CN197: =IF($CI197,IF(AW197="37"," [Extra]",IF(AW197="38"," [Index]", " [Chap. "&TEXT(VALUE(AW197),"#")&"]"))," ") ->  | CO197: 194 | CT197: FALSE | CU197: 5194 | CV197: 196 | CY197: =IF($CT197,IF(BB197=" ","",BB197&" ")&AG197&CW197&": "&AY197& IF(AF197="37"," (Extra",IF(AF197="38"," (Index"," (Chapter "&TEXT(AF197,"#"))) &", "&CX197& IF(LEN(AM197)>1," ["&AM197&"]","") &IF(LEN(AN197)>1," ["&AN197&"]","") &")"," ") ->  | CZ197: 194 | DE197: FALSE | DF197: 5194 | DG197: 310 | DH197: 194 | DK197: =IF($DE197,AY197," ") -> 
AE198: 195 | AF198: 38 | AG198: ἀναπίπτω | AI198: I lie down, I recline | AJ198: ah-nah-PIP-toe | AK198: Verb | AM198: ἀνέπιπτον | AN198: πεσοῦμαι | AO198: ἀνέπεσα | AP198: anapiptw anepesa anepipton pesoumai | AQ198: 377 | AR198: 377 | AS198: ἀναπίπτω | AT198: TRUE | AU198: TRUE | AV198: TRUE | AW198: 38 | AY198: I lie down, I recline | AZ198: ah-nah-PIP-toe | BA198: Verb | BC198: ἀνέπιπτον | BD198: πεσοῦμαι | BE198: ἀνέπεσα | BF198: 377 | BG198: 195 | BH198: 195 | BI198: 38 | BJ198: ἀναπίπτω | BL198: I lie down, I recline | BM198: ah-nah-PIP-toe | BN198: Verb | BP198: ἀνέπιπτον | BQ198: πεσοῦμαι | BS198: ἀνέπεσα | BT198: 377 | BU198: 195 | BV198: 195 | BW198: 38 | BX198: Verb | BY198: ἀναπίπτω | BZ198: ἀνέπιπτον | CA198: πεσοῦμαι | CC198: ah-nah-PIP-toe | CD198: I lie down, I recline | CE198: ἀναπίπτω | CF198: Chapter 38: Verb | CG198: ἀνέπεσα | CH198: 377 | CI198: FALSE | CJ198: 5195 | CK198: 197 | CO198: 195 | CT198: FALSE | CU198: 5195 | CV198: 197 | CZ198: 195 | DE198: FALSE | DF198: 5195 | DG198: 311 | DH198: 195
AE199: 196 | AF199: 35 | AG199: ἀνάστασις | AH199: *ἀναστασι | AI199: resurrection | AJ199: ahn-AH-stahss-iss | AK199: Noun | AL199: ἡ | AP199: anastasis | AQ199: 386 | AR199: 386 | AS199: ἀνάστασις | AT199: TRUE | AU199: TRUE | AV199: TRUE | AW199: 35 | AX199: *ἀναστασι | AY199: resurrection | AZ199: ahn-AH-stahss-iss | BA199: Noun | BB199: ἡ | BF199: 386 | BG199: 196 | BH199: 196 | BI199: 35 | BJ199: ἡ ἀνάστασις | BK199: *ἀναστασι | BL199: resurrection | BM199: ahn-AH-stahss-iss | BN199: Noun | BO199: ἡ | BR199: ἡ | BT199: 386 | BU199: 196 | BV199: 196 | BW199: 35 | BX199: Noun | BY199: ἡ ἀνάστασις | CB199: *ἀναστασι | CC199: ahn-AH-stahss-iss | CD199: resurrection | CE199: ἡ ἀνάστασις | CF199: Chapter 35: Noun | CH199: 386 | CI199: FALSE | CJ199: 5196 | CK199: 198 | CO199: 196 | CT199: FALSE | CU199: 5196 | CV199: 198 | CZ199: 196 | DE199: FALSE | DF199: 5196 | DG199: 312 | DH199: 196
AE200: 197 | AF200: 38 | AG200: ἀναστροφή | AI200: way of life, conduct, behavior | AJ200: ah-nah-stroff-AY | AK200: Noun | AL200: ἡ | AP200: anastrofh | AQ200: 391 | AR200: 391 | AS200: ἀναστροφή | AT200: TRUE | AU200: TRUE | AV200: TRUE | AW200: 38 | AY200: way of life, conduct, behavior | AZ200: ah-nah-stroff-AY | BA200: Noun | BB200: ἡ | BF200: 391 | BG200: 197 | BH200: 197 | BI200: 38 | BJ200: ἡ ἀναστροφή | BL200: way of life, conduct, behavior | BM200: ah-nah-stroff-AY | BN200: Noun | BO200: ἡ | BR200: ἡ | BT200: 391 | BU200: 197 | BV200: 197 | BW200: 38 | BX200: Noun | BY200: ἡ ἀναστροφή | CC200: ah-nah-stroff-AY | CD200: way of life, conduct, behavior | CE200: ἡ ἀναστροφή | CF200: Chapter 38: Noun | CH200: 391 | CI200: FALSE | CJ200: 5197 | CK200: 199 | CO200: 197 | CT200: FALSE | CU200: 5197 | CV200: 199 | CZ200: 197 | DE200: FALSE | DF200: 5197 | DG200: 313 | DH200: 197
AE201: 198 | AF201: 38 | AG201: ἀνατολή | AI201: east | AJ201: ah-nah-toll-AY | AK201: Noun | AL201: ἡ | AP201: anatolh | AQ201: 395 | AR201: 395 | AS201: ἀνατολή | AT201: TRUE | AU201: =IF(ISERR(FIND(AK201,$Y$23,1)),FALSE,TRUE) -> TRUE | AV201: TRUE | AW201: 38 | AY201: east | AZ201: ah-nah-toll-AY | BA201: Noun | BB201: ἡ | BF201: 395 | BG201: 198 | BH201: 198 | BI201: 38 | BJ201: ἡ ἀνατολή | BL201: east | BM201: ah-nah-toll-AY | BN201: Noun | BO201: ἡ | BR201: ἡ | BT201: 395 | BU201: 198 | BV201: 198 | BW201: 38 | BX201: Noun | BY201: ἡ ἀνατολή | CC201: ah-nah-toll-AY | CD201: east | CE201: ἡ ἀνατολή | CF201: Chapter 38: Noun | CH201: 395 | CI201: FALSE | CJ201: 5198 | CK201: 200 | CO201: 198 | CT201: FALSE | CU201: 5198 | CV201: 200 | CZ201: 198 | DE201: FALSE | DF201: 5198 | DG201: 314 | DH201: 198
... 361 more rows

Sheet Selected List
A1: ="The selected list has " &FlashCards!P3&"." -> The selected list has 1592 words available.
A2: Greek Word | C2: English Definition
A3: =FlashCards!BY4 -> -ς, -ος | C3: =FlashCards!CD4 -> (nominative, singular, masculine)
A4: =FlashCards!BY5 -> -, -η, -α | C4: =FlashCards!CD5 -> (nominative, singular, feminine)
A5: =FlashCards!BY6 -> -ν, -ον | C5: =FlashCards!CD6 -> (nominative, singular, neuter; accusative, singular, masculine or neuter)
A6: =FlashCards!BY7 -> -υ, -ου | C6: =FlashCards!CD7 -> (genitive, singular, masculine or neuter)
A7: =FlashCards!BY8 -> -ς, -ης, -ας | C7: =FlashCards!CD8 -> (genitive, singular, feminine)
A8: =FlashCards!BY9 -> -ι, -ῳ | C8: =FlashCards!CD9 -> (dative, singular, masculine; dative, singular, neuter)
A9: =FlashCards!BY10 -> -ι, -ῃ, -ᾳ | C9: =FlashCards!CD10 -> (dative, singular, feminine)
A10: =FlashCards!BY11 -> -ν, -ην, -αν | C10: =FlashCards!CD11 -> (accusative, singular, feminine)
A11: =FlashCards!BY12 -> -ι, -οι | C11: =FlashCards!CD12 -> (nominative, plural, masculine)
A12: =FlashCards!BY13 -> -ες | C12: =FlashCards!CD13 -> (nominative, plural, masculine or feminine, 3ʳᵈ declension)
A13: =FlashCards!BY14 -> -ι, -αι | C13: =FlashCards!CD14 -> (nominative, plural, feminine)
A14: =FlashCards!BY15 -> -α | C14: =FlashCards!CD15 -> (nominative or accusative, plural, neuter)
A15: =FlashCards!BY16 -> -ων | C15: =FlashCards!CD16 -> (genitive, plural, masculine, feminine, neuter)
A16: =FlashCards!BY17 -> -ις, -οις | C16: =FlashCards!CD17 -> (dative, plural, masculine or neuter)
A17: =FlashCards!BY18 -> -ις, -αις | C17: =FlashCards!CD18 -> (dative, plural, feminine)
A18: =FlashCards!BY19 -> -σι(ν) | C18: =FlashCards!CD19 -> (dative, plural, masculine/ feminine/neuter, 3ʳᵈ declension)
A19: =FlashCards!BY20 -> -υς, -ους | C19: =FlashCards!CD20 -> (accusative, plural, masculine)
A20: =FlashCards!BY21 -> -ς, -ας | C20: =FlashCards!CD21 -> (accusative, plural, feminine)
A21: =FlashCards!BY22 -> -εύς | C21: =FlashCards!CD22 -> suffix for a person related to the stem (genitive, singular, masculine)
A22: =FlashCards!BY23 -> -ικός | C22: =FlashCards!CD23 -> converts a noun into an adjective ("king" becomes "royal")
A23: =FlashCards!BY24 -> [active stem] +ω | C23: =FlashCards!CD24 -> I am verbing (it) [present active indicative]
A24: =FlashCards!BY25 -> [active stem] +ες, +εις | C24: =FlashCards!CD25 -> you are verbing (it) [present active indicative]
A25: =FlashCards!BY26 -> [active stem] +ει | C25: =FlashCards!CD26 -> he/she/it is verbing (it) [present active indicative]
A26: =FlashCards!BY27 -> [active stem] +ομεν | C26: =FlashCards!CD27 -> we are verbing (it) [present active indicative]
A27: =FlashCards!BY28 -> [active stem] +ετε | C27: =FlashCards!CD28 -> ya'll are verbing (it) [present active indicative]
A28: =FlashCards!BY29 -> [active stem] +ονσι, +οσιν | C28: =FlashCards!CD29 -> they are verbing (it) [present active indicative]
A29: =FlashCards!BY30 -> [middle stem] +ομαι, | C29: =FlashCards!CD30 -> I verb, I am verbing [present middle indicative]
A30: =FlashCards!BY31 -> [middle stem] +εσαι, +ῃ | C30: =FlashCards!CD31 -> you verb, you are verbing [present middle indicative]
A31: =FlashCards!BY32 -> [middle stem] +εται | C31: =FlashCards!CD32 -> he/she/it verbs, he is verbing [present middle indicative]
A32: =FlashCards!BY33 -> [middle stem] +ομεθα | C32: =FlashCards!CD33 -> we verb, we are verbing [present middle indicative]
A33: =FlashCards!BY34 -> [middle stem] +εσθε | C33: =FlashCards!CD34 -> ya'll verb, ya'll are verbing [present middle indicative]
A34: =FlashCards!BY35 -> [middle stem] +ονται | C34: =FlashCards!CD35 -> they verb, they are verbing [present middle indicative]
A35: =FlashCards!BY36 -> [active stem] +ομαι | C35: =FlashCards!CD36 -> I am being verbed (by it) [present passive indicative]
A36: =FlashCards!BY37 -> [active stem] +εσαι, +ῃ | C36: =FlashCards!CD37 -> you are being verbed (by it) [present passive indicative]
A37: =FlashCards!BY38 -> [active stem] +εται | C37: =FlashCards!CD38 -> he/she/it is being verbed (by it) [present passive indicative]
A38: =FlashCards!BY39 -> [active stem] +ομεθα | C38: =FlashCards!CD39 -> we are being verbed (by it) [present passive indicative]
A39: =FlashCards!BY40 -> [active stem] +εσθε | C39: =FlashCards!CD40 -> ya'll are being verbed (by it) [present passive indicative]
A40: =FlashCards!BY41 -> [active stem] +ονται | C40: =FlashCards!CD41 -> they are being verbed (by it) [present passive indicative]
A41: =FlashCards!BY42 -> [active stem] +σω | C41: =FlashCards!CD42 -> I will verb (it) [future active indicative]
A42: =FlashCards!BY43 -> [active stem] +σες, +σεις | C42: =FlashCards!CD43 -> you will verb (it) [future active indicative]
A43: =FlashCards!BY44 -> [active stem] +σει | C43: =FlashCards!CD44 -> he/she/it will verb (it) [future active indicative]
A44: =FlashCards!BY45 -> [active stem] +σομεν | C44: =FlashCards!CD45 -> we will verb (it) [future active indicative]
A45: =FlashCards!BY46 -> [active stem] +σετε | C45: =FlashCards!CD46 -> ya'll will verb (it) [future active indicative]
A46: =FlashCards!BY47 -> [active stem] +σονσι, +σοσιν | C46: =FlashCards!CD47 -> they will verb (it) [future active indicative]
A47: =FlashCards!BY48 -> [middle stem] +σομαι, | C47: =FlashCards!CD48 -> I will verb [future middle indicative]
A48: =FlashCards!BY49 -> [middle stem] +σεσαι, +σῃ | C48: =FlashCards!CD49 -> you will verb [future middle indicative]
A49: =FlashCards!BY50 -> [middle stem] +σεται | C49: =FlashCards!CD50 -> he/she/it will verb [future middle indicative]
A50: =FlashCards!BY51 -> [middle stem] +σομεθα | C50: =FlashCards!CD51 -> we will verb [future middle indicative]
A51: =FlashCards!BY52 -> [middle stem] +σεσθε | C51: =FlashCards!CD52 -> ya'll will verb [future middle indicative]
A52: =FlashCards!BY53 -> [middle stem] +σονται | C52: =FlashCards!CD53 -> they will verb [future middle indicative]
A53: =FlashCards!BY54 -> ἐ + [active stem] +ον | C53: =FlashCards!CD54 -> I was/they were verbing (it) [imperfect active indicative]
A54: =FlashCards!BY55 -> ἐ + [active stem] +ες, +εις | C54: =FlashCards!CD55 -> you were verbing (it) [imperfect active indicative]
A55: =FlashCards!BY56 -> ἐ + [active stem] +ει | C55: =FlashCards!CD56 -> he/she/it was verbing (it) [imperfect active indicative]
A56: =FlashCards!BY57 -> ἐ + [active stem] +ομεν | C56: =FlashCards!CD57 -> we were verbing (it) [imperfect active indicative]
A57: =FlashCards!BY58 -> ἐ + [active stem] +ετε | C57: =FlashCards!CD58 -> ya'll were verbing (it) [imperfect active indicative]
A58: =FlashCards!BY59 -> ἐ + [active stem] +ον | C58: =FlashCards!CD59 -> they were verbing (it) [imperfect active indicative]
A59: =FlashCards!BY60 -> ἐ + [active stem] +ομην | C59: =FlashCards!CD60 -> I was being verbed (by it) [imperfect passive indicative]
A60: =FlashCards!BY61 -> ἐ + [active stem] +εσο | C60: =FlashCards!CD61 -> you were being verbed (by it) [imperfect passive indicative]
A61: =FlashCards!BY62 -> ἐ + [active stem] +ετο | C61: =FlashCards!CD62 -> he/she/it was being verbed (by it) [imperfect passive indicative]
A62: =FlashCards!BY63 -> ἐ + [active stem] +ομεθα | C62: =FlashCards!CD63 -> we were being verbed (by it) [imperfect passive indicative]
A63: =FlashCards!BY64 -> ἐ + [active stem] +εσθε | C63: =FlashCards!CD64 -> ya'll were being verbed (by it) [imperfect passive indicative]
A64: =FlashCards!BY65 -> ἐ + [active stem] +οντο | C64: =FlashCards!CD65 -> they were being verbed (by it) [imperfect passive indicative]
A65: =FlashCards!BY66 -> ἐ + [middle stem] +ομην | C65: =FlashCards!CD66 -> I was verbing [imperfect middle indicative]
A66: =FlashCards!BY67 -> ἐ + [middle stem] +εσο | C66: =FlashCards!CD67 -> you were verbing [imperfect middle indicative]
A67: =FlashCards!BY68 -> ἐ + [middle stem] +ετο | C67: =FlashCards!CD68 -> he/she/it was verbing [imperfect middle indicative]
A68: =FlashCards!BY69 -> ἐ + [middle stem] +ομεθα | C68: =FlashCards!CD69 -> we were verbing [imperfect middle indicative]
A69: =FlashCards!BY70 -> ἐ + [middle stem] +εσθε | C69: =FlashCards!CD70 -> ya'll were verbing [imperfect middle indicative]
A70: =FlashCards!BY71 -> ἐ + [middle stem] +οντο | C70: =FlashCards!CD71 -> they were verbing [imperfect middle indicative]
A71: =FlashCards!BY72 -> κατα-, κατε- | C71: =FlashCards!CD72 -> verb prefix adding "thoroughly" to meaning
A72: =FlashCards!BY73 -> ὁ Ἀβραάμ | C72: =FlashCards!CD73 -> Abraham
A73: =FlashCards!BY74 -> ἡ ἄβυσσος | C73: =FlashCards!CD74 -> (infernal) abyss, bottomless
A74: =FlashCards!BY75 -> ἀγαθοποιέω | C74: =FlashCards!CD75 -> I do rightly, I do good
A75: =FlashCards!BY76 -> ἀγαθός | C75: =FlashCards!CD76 -> good, useful
A76: =FlashCards!BY77 -> ἀγαλλιάω | C76: =FlashCards!CD77 -> I exult
A77: =FlashCards!BY78 -> ἡ ἄγαμος | C77: =FlashCards!CD78 -> unmarried (person)
A78: =FlashCards!BY79 -> ἀγανακτέω | C78: =FlashCards!CD79 -> I am indignant, I am afflicted
A79: =FlashCards!BY80 -> ἀγαπάω | C79: =FlashCards!CD80 -> I love, I cherish
A80: =FlashCards!BY81 -> ἡ ἀγάπη | C80: =FlashCards!CD81 -> love
A81: =FlashCards!BY82 -> ἀγαπητός | C81: =FlashCards!CD82 -> beloved
A82: =FlashCards!BY83 -> ἡ ἀγγελία | C82: =FlashCards!CD83 -> message
A83: =FlashCards!BY84 -> ὁ ἄγγελος | C83: =FlashCards!CD84 -> angel, messenger
A84: =FlashCards!BY85 -> ἡ ἀγέλη | C84: =FlashCards!CD85 -> herd
A85: =FlashCards!BY86 -> ἁγιάζω | C85: =FlashCards!CD86 -> I consecrate, I sanctify
A86: =FlashCards!BY87 -> ὁ ἁγιασμός | C86: =FlashCards!CD87 -> holiness, consecration
A87: =FlashCards!BY88 -> ὁ ἅγιος (noun) | C87: =FlashCards!CD88 -> saint, holy one
A88: =FlashCards!BY89 -> ἅγιος (adj) | C88: =FlashCards!CD89 -> holy
A89: =FlashCards!BY90 -> ἡ ἄγκυρα | C89: =FlashCards!CD90 -> anchor
A90: =FlashCards!BY91 -> ἁγνίζω | C90: =FlashCards!CD91 -> I make clean, I sanctify
A91: =FlashCards!BY92 -> ἀγνοέω | C91: =FlashCards!CD92 -> I do not know
A92: =FlashCards!BY93 -> ἁγνός | C92: =FlashCards!CD93 -> innocent, modest, pure, clean
A93: =FlashCards!BY94 -> ἡ ἀγορά | C93: =FlashCards!CD94 -> marketplace
A94: =FlashCards!BY95 -> ἀγοράζω | C94: =FlashCards!CD95 -> I buy
A95: =FlashCards!BY96 -> ἡ ἀγριέλαιος | C95: =FlashCards!CD96 -> (wild, uncultivated) olive (tree)
A96: =FlashCards!BY97 -> ἄγριος | C96: =FlashCards!CD97 -> wild, fierce, natural
A97: =FlashCards!BY98 -> ὁ Ἀγρίππας | C97: =FlashCards!CD98 -> Agrippa
A98: =FlashCards!BY99 -> ὁ ἀγρός | C98: =FlashCards!CD99 -> field, land
A99: =FlashCards!BY100 -> ἄγω | C99: =FlashCards!CD100 -> I lead, I bring, I arrest
A100: =FlashCards!BY101 -> ὁ ἀγών | C100: =FlashCards!CD101 -> contest, conflict, fight, struggle, effort
A101: =FlashCards!BY102 -> ἀγωνίζομαι | C101: =FlashCards!CD102 -> I struggle, I compete, I contend, I strive
A102: =FlashCards!BY103 -> ὁ Ἀδάμ | C102: =FlashCards!CD103 -> Adam
A103: =FlashCards!BY104 -> ἡ ἀδελφή | C103: =FlashCards!CD104 -> sister
A104: =FlashCards!BY105 -> ὁ ἀδελφός | C104: =FlashCards!CD105 -> brother
A105: =FlashCards!BY106 -> ὁ ᾁδης | C105: =FlashCards!CD106 -> Hades or hades ("the unseen place"; not a proper noun as used in the New Testament)
A106: =FlashCards!BY107 -> ἀδικέω | C106: =FlashCards!CD107 -> I injure, I do wrong
A107: =FlashCards!BY108 -> ἡ ἀδικία | C107: =FlashCards!CD108 -> unrighteousness
A108: =FlashCards!BY109 -> ἂδικος | C108: =FlashCards!CD109 -> unjust
A109: =FlashCards!BY110 -> ἀδόκιμος | C109: =FlashCards!CD110 -> rejected, worthless, failing
A110: =FlashCards!BY111 -> ἀδύνατος | C110: =FlashCards!CD111 -> impossible
A111: =FlashCards!BY112 -> ἄδω | C111: =FlashCards!CD112 -> I sing
A112: =FlashCards!BY113 -> ἀεί | C112: =FlashCards!CD113 -> always, constantly
A113: =FlashCards!BY114 -> ὁ ἀετός | C113: =FlashCards!CD114 -> eagle, vulture
A114: =FlashCards!BY115 -> ἄζυμος | C114: =FlashCards!CD115 -> unleavened, uncorrupted
A115: =FlashCards!BY116 -> ὁ ἀήρ | C115: =FlashCards!CD116 -> air
A116: =FlashCards!BY117 -> ἀθετέω | C116: =FlashCards!CD117 -> I nullify, I reject
A117: =FlashCards!BY118 -> ἡ Ἀθῆναι | C117: =FlashCards!CD118 -> Athens
A118: =FlashCards!BY119 -> ἡ Αἴγυπτος | C118: =FlashCards!CD119 -> Egypt
A119: =FlashCards!BY120 -> τό αἷμα | C119: =FlashCards!CD120 -> blood
A120: =FlashCards!BY121 -> αἰνέω | C120: =FlashCards!CD121 -> I praise
A121: =FlashCards!BY122 -> αἱρέω | C121: =FlashCards!CD122 -> I choose, I prefer
A122: =FlashCards!BY123 -> ἡ αἵρεσις | C122: =FlashCards!CD123 -> preference, sect, choice, faction, (heresy)
A123: =FlashCards!BY124 -> αἴρω | C123: =FlashCards!CD124 -> I raise, I take up, I take away
A124: =FlashCards!BY125 -> αἰσχρός | C124: =FlashCards!CD125 -> filthy, disgraceful, shameful, improper
A125: =FlashCards!BY126 -> ἡ αἰσχύνη | C125: =FlashCards!CD126 -> shame, disgrace
A126: =FlashCards!BY127 -> αἰσχύνω | C126: =FlashCards!CD127 -> I shame, I disgrace (active)
A127: =FlashCards!BY128 -> αἰσχύνομαι | C127: =FlashCards!CD128 -> I am shamed, I am disgraced (passive)
A128: =FlashCards!BY129 -> αἰτέω | C128: =FlashCards!CD129 -> I ask, I demand
A129: =FlashCards!BY130 -> ἡ αἰτία | C129: =FlashCards!CD130 -> cause, guilt, charge, accusation
A130: =FlashCards!BY131 -> ἡ αἰχμαλωσία | C130: =FlashCards!CD131 -> captivity
A131: =FlashCards!BY132 -> αἰχμαλωτίζω | C131: =FlashCards!CD132 -> I capture, I take capture
A132: =FlashCards!BY133 -> ὁ αἰών | C132: =FlashCards!CD133 -> age, eternity
A133: =FlashCards!BY134 -> εἰς τὸν αἰῶνα | C133: =FlashCards!CD134 -> forever
A134: =FlashCards!BY135 -> εἰς τοὺς αἰώνας | C134: =FlashCards!CD135 -> forever
A135: =FlashCards!BY136 -> αἰώνιος | C135: =FlashCards!CD136 -> eternal
A136: =FlashCards!BY137 -> ἡ ἀκαθαρσία | C136: =FlashCards!CD137 -> immorality, uncleanness
A137: =FlashCards!BY138 -> ἀκαθαρτος | C137: =FlashCards!CD138 -> unclean, impure
A138: =FlashCards!BY139 -> ἡ ἄκανθα | C138: =FlashCards!CD139 -> thorn, thorny plant
A139: =FlashCards!BY140 -> ἡ ἀκαταστασία | C139: =FlashCards!CD140 -> confusion, disorder, tumult
A140: =FlashCards!BY141 -> ἡ ἀκοή | C140: =FlashCards!CD141 -> hearing, report
A141: =FlashCards!BY142 -> ἀκολουθέω | C141: =FlashCards!CD142 -> I follow, I accompany
A142: =FlashCards!BY143 -> ἀκούω | C142: =FlashCards!CD143 -> I hear, I learn, I obey, I understand
A143: =FlashCards!BY144 -> ἀκριβῶς | C143: =FlashCards!CD144 -> accurately, diligently, carefully, thoroughly
A144: =FlashCards!BY145 -> ἡ ἀκροβυστία | C144: =FlashCards!CD145 -> uncircumcision
A145: =FlashCards!BY146 -> τό ἄκρον | C145: =FlashCards!CD146 -> top, end, uttermost
A146: =FlashCards!BY147 -> ἀλείφω | C146: =FlashCards!CD147 -> I anoint
A147: =FlashCards!BY148 -> ἡ ἀλέκτωρ | C147: =FlashCards!CD148 -> rooster
A148: =FlashCards!BY149 -> ὁ Ἀλέξανδρος | C148: =FlashCards!CD149 -> Alexander
A149: =FlashCards!BY150 -> ἡ ἀλήθεια | C149: =FlashCards!CD150 -> truth
A150: =FlashCards!BY151 -> ἀληθής | C150: =FlashCards!CD151 -> true, truthful
A151: =FlashCards!BY152 -> ἀληθινός | C151: =FlashCards!CD152 -> true, genuine
A152: =FlashCards!BY153 -> ἀληθῶς | C152: =FlashCards!CD153 -> truly
A153: =FlashCards!BY154 -> ὁ ἁλιεύς | C153: =FlashCards!CD154 -> sailor, fisherman
A154: =FlashCards!BY155 -> ἀλλά | C154: =FlashCards!CD155 -> but, yet, rather (particle)
A155: =FlashCards!BY156 -> ἀλλάσσω | C155: =FlashCards!CD156 -> I change, I alter
A156: =FlashCards!BY157 -> ἡ ἀλλήλωη | C156: =FlashCards!CD157 -> one another [genitive plural…]
A157: =FlashCards!BY158 -> ἅλλομαι | C157: =FlashCards!CD158 -> I jump, I leap, I spring (up)
A158: =FlashCards!BY159 -> ἄλλος | C158: =FlashCards!CD159 -> other, another
A159: =FlashCards!BY160 -> ἀλλότριος | C159: =FlashCards!CD160 -> strange, not one's own
A160: =FlashCards!BY161 -> ἄλογος | C160: =FlashCards!CD161 -> irrational, unreasonable, absurd
A161: =FlashCards!BY162 -> ἡ ἅλυσις | C161: =FlashCards!CD162 -> chain
A162: =FlashCards!BY163 -> ἡ ἀλώπηξ | C162: =FlashCards!CD163 -> fox (i.e., the animal)
A163: =FlashCards!BY164 -> ἅμα | C163: =FlashCards!CD164 -> together with [dative]
A164: =FlashCards!BY165 -> ἅμα | C164: =FlashCards!CD165 -> at the same time
A165: =FlashCards!BY166 -> ἁμαρτάνω | C165: =FlashCards!CD166 -> I sin
A166: =FlashCards!BY167 -> ἡ ἁμαρτία | C166: =FlashCards!CD167 -> sin
A167: =FlashCards!BY168 -> ὁ ἁμαρτωλός [noun] | C167: =FlashCards!CD168 -> sinner
A168: =FlashCards!BY169 -> ἁμαρτωλός [adjective] | C168: =FlashCards!CD169 -> sinful
A169: =FlashCards!BY170 -> ἀμελέω | C169: =FlashCards!CD170 -> I neglect, I am careless
A170: =FlashCards!BY171 -> ἄμεμπτος | C170: =FlashCards!CD171 -> blameless, faultless
A171: =FlashCards!BY172 -> ἀμῄν | C171: =FlashCards!CD172 -> truly, amen, let it be so
A172: =FlashCards!BY173 -> ἀμίαντος | C172: =FlashCards!CD173 -> undefiled, pure, unsoiled
A173: =FlashCards!BY174 -> ἡ ἄμμος | C173: =FlashCards!CD174 -> sand, sand pile
A174: =FlashCards!BY175 -> ὁ ἀμνός | C174: =FlashCards!CD175 -> lamb
A175: =FlashCards!BY176 -> ἡ ἄμπελος | C175: =FlashCards!CD176 -> vine
A176: =FlashCards!BY177 -> ὁ ἀμπελών | C176: =FlashCards!CD177 -> vineyard
A177: =FlashCards!BY178 -> ἀμφιέννυμι | C177: =FlashCards!CD178 -> I clothe, I am clothed
A178: =FlashCards!BY179 -> ἀμφότεροι | C178: =FlashCards!CD179 -> both
A179: =FlashCards!BY180 -> ἄμωμος | C179: =FlashCards!CD180 -> blameless, unblemished, faultless
A180: =FlashCards!BY181 -> ἄν | C180: =FlashCards!CD181 -> modifies relative pronoun ("who" becomes "whoever") (particle)
A181: =FlashCards!BY182 -> -ἄν | C181: =FlashCards!CD182 -> ending that changes "what" to "whatever"
A182: =FlashCards!BY183 -> ἀνά | C182: =FlashCards!CD183 -> among, between, each
A183: =FlashCards!BY184 -> ἀναβαίνω | C183: =FlashCards!CD184 -> I go up
A184: =FlashCards!BY185 -> ἀναβλέπω | C184: =FlashCards!CD185 -> I look up, I receive sight
A185: =FlashCards!BY186 -> ἀναγγέλλω | C185: =FlashCards!CD186 -> I proclaim, I announce, I report
A186: =FlashCards!BY187 -> ἀναγινώσκω | C186: =FlashCards!CD187 -> I read
A187: =FlashCards!BY188 -> ἀναγκάζω | C187: =FlashCards!CD188 -> I compel, I force, I constrain
A188: =FlashCards!BY189 -> ἀναγκαῖος | C188: =FlashCards!CD189 -> necessary, urgent, close (as a relative)
A189: =FlashCards!BY190 -> ἡ ἀνάγκη | C189: =FlashCards!CD190 -> necessity, pressure, distress
A190: =FlashCards!BY191 -> ἀνάγω | C190: =FlashCards!CD191 -> I lead up; (middle) I put out to sea
A191: =FlashCards!BY192 -> ἀναιρέω | C191: =FlashCards!CD192 -> I destroy, I slay, I make an end
A192: =FlashCards!BY193 -> ἀνάκειμαι | C192: =FlashCards!CD193 -> I recline
A193: =FlashCards!BY194 -> ἀνακρίνω | C193: =FlashCards!CD194 -> I question, I examine
A194: =FlashCards!BY195 -> ἀναλαμβάνω | C194: =FlashCards!CD195 -> I take up
A195: =FlashCards!BY196 -> ὁ Ἁνανίας | C195: =FlashCards!CD196 -> Ananias
A196: =FlashCards!BY197 -> ἀναπαύω | C196: =FlashCards!CD197 -> I give rest, I refresh, I take a rest
A197: =FlashCards!BY198 -> ἀναπίπτω | C197: =FlashCards!CD198 -> I lie down, I recline
A198: =FlashCards!BY199 -> ἡ ἀνάστασις | C198: =FlashCards!CD199 -> resurrection
A199: =FlashCards!BY200 -> ἡ ἀναστροφή | C199: =FlashCards!CD200 -> way of life, conduct, behavior
A200: =FlashCards!BY201 -> ἡ ἀνατολή | C200: =FlashCards!CD201 -> east
... 1802 more rows

Sheet Printables
B3: =INDIRECT( "FlashCards!"&IF(MOD(INT((ROW(B4)-4)/50),2)=0,"CF"&TEXT((ROW(B4)/6)+10/3-INT((ROW(B4)-4)/50)/3,"#"),"CF"&TEXT((ROW(B4)/6)+10/3-INT((ROW(B4)-4)/50)/3,"#"))) -> Chapter 07: Noun Ending | E3: =INDIRECT( "FlashCards!"&IF(MOD(INT((ROW(B4)-4)/50),2)=0,"CF"&TEXT((ROW(B4)/6)+10/3-INT((ROW(B4)-4)/50)/3+8,"#"),"CF"&TEXT((ROW(B4)/6)+10/3-INT((ROW(B4)-4)/50)/3+8,"#"))) -> Chapter 07: Noun Ending
B4: =INDIRECT( "FlashCards!"&IF(MOD(INT((ROW(B4)-4)/50),2)=0,"CE"&TEXT((ROW(B4)/6)+10/3-INT((ROW(B4)-4)/50)/3,"#"),"CD"&TEXT((ROW(B4)/6)+10/3-INT((ROW(B4)-4)/50)/3,"#"))) -> -ς, -ος | E4: =INDIRECT( "FlashCards!"&IF(MOD(INT((ROW(B4)-4)/50),2)=0,"CE"&TEXT((ROW(B4)/6)+10/3-INT((ROW(B4)-4)/50)/3+8,"#"),"CD"&TEXT((ROW(B4)/6)+10/3-INT((ROW(B4)-4)/50)/3+8,"#"))) -> -ι, -οι
B6: =INDIRECT( "FlashCards!"&IF(MOD(INT((ROW(B4)-4)/50),2)=0,"CC"&TEXT((ROW(B4)/6)+10/3-INT((ROW(B4)-4)/50)/3,"#"),"")) ->  | E6: =INDIRECT( "FlashCards!"&IF(MOD(INT((ROW(B4)-4)/50),2)=0,"CC"&TEXT((ROW(B4)/6)+10/3-INT((ROW(B4)-4)/50)/3+8,"#"),"CC"&TEXT((ROW(B4)/6)+10/3-INT((ROW(B4)-4)/50)/3+8,"#"))) -> 
B9: =INDIRECT( "FlashCards!"&IF(MOD(INT((ROW(B10)-4)/50),2)=0,"CF"&TEXT((ROW(B10)/6)+10/3-INT((ROW(B10)-4)/50)/3,"#"),"CF"&TEXT((ROW(B10)/6)+10/3-INT((ROW(B10)-4)/50)/3,"#"))) -> Chapter 07: Noun Ending | E9: =INDIRECT( "FlashCards!"&IF(MOD(INT((ROW(B10)-4)/50),2)=0,"CF"&TEXT((ROW(B10)/6)+10/3-INT((ROW(B10)-4)/50)/3+8,"#"),"CF"&TEXT((ROW(B10)/6)+10/3-INT((ROW(B10)-4)/50)/3+8,"#"))) -> Chapter 10: Noun Ending
B10: =INDIRECT( "FlashCards!"&IF(MOD(INT((ROW(B10)-4)/50),2)=0,"CE"&TEXT((ROW(B10)/6)+10/3-INT((ROW(B10)-4)/50)/3,"#"),"CD"&TEXT((ROW(B10)/6)+10/3-INT((ROW(B10)-4)/50)/3,"#"))) -> -, -η, -α | E10: =INDIRECT( "FlashCards!"&IF(MOD(INT((ROW(B10)-4)/50),2)=0,"CE"&TEXT((ROW(B10)/6)+10/3-INT((ROW(B10)-4)/50)/3+8,"#"),"CD"&TEXT((ROW(B10)/6)+10/3-INT((ROW(B10)-4)/50)/3+8,"#"))) -> -ες
B12: =INDIRECT( "FlashCards!"&IF(MOD(INT((ROW(B10)-4)/50),2)=0,"CC"&TEXT((ROW(B10)/6)+10/3-INT((ROW(B10)-4)/50)/3,"#"),"")) ->  | E12: =INDIRECT( "FlashCards!"&IF(MOD(INT((ROW(B10)-4)/50),2)=0,"CC"&TEXT((ROW(B10)/6)+10/3-INT((ROW(B10)-4)/50)/3+8,"#"),"CC"&TEXT((ROW(B10)/6)+10/3-INT((ROW(B10)-4)/50)/3+8,"#"))) -> 
B15: =INDIRECT( "FlashCards!"&IF(MOD(INT((ROW(B16)-4)/50),2)=0,"CF"&TEXT((ROW(B16)/6)+10/3-INT((ROW(B16)-4)/50)/3,"#"),"CF"&TEXT((ROW(B16)/6)+10/3-INT((ROW(B16)-4)/50)/3,"#"))) -> Chapter 07: Noun Ending | E15: =INDIRECT( "FlashCards!"&IF(MOD(INT((ROW(B16)-4)/50),2)=0,"CF"&TEXT((ROW(B16)/6)+10/3-INT((ROW(B16)-4)/50)/3+8,"#"),"CF"&TEXT((ROW(B16)/6)+10/3-INT((ROW(B16)-4)/50)/3+8,"#"))) -> Chapter 07: Noun Ending
B16: =INDIRECT( "FlashCards!"&IF(MOD(INT((ROW(B16)-4)/50),2)=0,"CE"&TEXT((ROW(B16)/6)+10/3-INT((ROW(B16)-4)/50)/3,"#"),"CD"&TEXT((ROW(B16)/6)+10/3-INT((ROW(B16)-4)/50)/3,"#"))) -> -ν, -ον | E16: =INDIRECT( "FlashCards!"&IF(MOD(INT((ROW(B16)-4)/50),2)=0,"CE"&TEXT((ROW(B16)/6)+10/3-INT((ROW(B16)-4)/50)/3+8,"#"),"CD"&TEXT((ROW(B16)/6)+10/3-INT((ROW(B16)-4)/50)/3+8,"#"))) -> -ι, -αι
B18: =INDIRECT( "FlashCards!"&IF(MOD(INT((ROW(B16)-4)/50),2)=0,"CC"&TEXT((ROW(B16)/6)+10/3-INT((ROW(B16)-4)/50)/3,"#"),"")) ->  | E18: =INDIRECT( "FlashCards!"&IF(MOD(INT((ROW(B16)-4)/50),2)=0,"CC"&TEXT((ROW(B16)/6)+10/3-INT((ROW(B16)-4)/50)/3+8,"#"),"CC"&TEXT((ROW(B16)/6)+10/3-INT((ROW(B16)-4)/50)/3+8,"#"))) -> 
B21: =INDIRECT( "FlashCards!"&IF(MOD(INT((ROW(B22)-4)/50),2)=0,"CF"&TEXT((ROW(B22)/6)+10/3-INT((ROW(B22)-4)/50)/3,"#"),"CF"&TEXT((ROW(B22)/6)+10/3-INT((ROW(B22)-4)/50)/3,"#"))) -> Chapter 07: Noun Ending | E21: =INDIRECT( "FlashCards!"&IF(MOD(INT((ROW(B22)-4)/50),2)=0,"CF"&TEXT((ROW(B22)/6)+10/3-INT((ROW(B22)-4)/50)/3+8,"#"),"CF"&TEXT((ROW(B22)/6)+10/3-INT((ROW(B22)-4)/50)/3+8,"#"))) -> Chapter 07: Noun Ending
B22: =INDIRECT( "FlashCards!"&IF(MOD(INT((ROW(B22)-4)/50),2)=0,"CE"&TEXT((ROW(B22)/6)+10/3-INT((ROW(B22)-4)/50)/3,"#"),"CD"&TEXT((ROW(B22)/6)+10/3-INT((ROW(B22)-4)/50)/3,"#"))) -> -υ, -ου | E22: =INDIRECT( "FlashCards!"&IF(MOD(INT((ROW(B22)-4)/50),2)=0,"CE"&TEXT((ROW(B22)/6)+10/3-INT((ROW(B22)-4)/50)/3+8,"#"),"CD"&TEXT((ROW(B22)/6)+10/3-INT((ROW(B22)-4)/50)/3+8,"#"))) -> -α
B24: =INDIRECT( "FlashCards!"&IF(MOD(INT((ROW(B22)-4)/50),2)=0,"CC"&TEXT((ROW(B22)/6)+10/3-INT((ROW(B22)-4)/50)/3,"#"),"")) ->  | E24: =INDIRECT( "FlashCards!"&IF(MOD(INT((ROW(B22)-4)/50),2)=0,"CC"&TEXT((ROW(B22)/6)+10/3-INT((ROW(B22)-4)/50)/3+8,"#"),"CC"&TEXT((ROW(B22)/6)+10/3-INT((ROW(B22)-4)/50)/3+8,"#"))) -> 
B27: =INDIRECT( "FlashCards!"&IF(MOD(INT((ROW(B28)-4)/50),2)=0,"CF"&TEXT((ROW(B28)/6)+10/3-INT((ROW(B28)-4)/50)/3,"#"),"CF"&TEXT((ROW(B28)/6)+10/3-INT((ROW(B28)-4)/50)/3,"#"))) -> Chapter 07: Noun Ending | E27: =INDIRECT( "FlashCards!"&IF(MOD(INT((ROW(B28)-4)/50),2)=0,"CF"&TEXT((ROW(B28)/6)+10/3-INT((ROW(B28)-4)/50)/3+8,"#"),"CF"&TEXT((ROW(B28)/6)+10/3-INT((ROW(B28)-4)/50)/3+8,"#"))) -> Chapter 07: Noun Ending
B28: =INDIRECT( "FlashCards!"&IF(MOD(INT((ROW(B28)-4)/50),2)=0,"CE"&TEXT((ROW(B28)/6)+10/3-INT((ROW(B28)-4)/50)/3,"#"),"CD"&TEXT((ROW(B28)/6)+10/3-INT((ROW(B28)-4)/50)/3,"#"))) -> -ς, -ης, -ας | E28: =INDIRECT( "FlashCards!"&IF(MOD(INT((ROW(B28)-4)/50),2)=0,"CE"&TEXT((ROW(B28)/6)+10/3-INT((ROW(B28)-4)/50)/3+8,"#"),"CD"&TEXT((ROW(B28)/6)+10/3-INT((ROW(B28)-4)/50)/3+8,"#"))) -> -ων
B30: =INDIRECT( "FlashCards!"&IF(MOD(INT((ROW(B28)-4)/50),2)=0,"CC"&TEXT((ROW(B28)/6)+10/3-INT((ROW(B28)-4)/50)/3,"#"),"")) ->  | E30: =INDIRECT( "FlashCards!"&IF(MOD(INT((ROW(B28)-4)/50),2)=0,"CC"&TEXT((ROW(B28)/6)+10/3-INT((ROW(B28)-4)/50)/3+8,"#"),"CC"&TEXT((ROW(B28)/6)+10/3-INT((ROW(B28)-4)/50)/3+8,"#"))) -> 
B33: =INDIRECT( "FlashCards!"&IF(MOD(INT((ROW(B34)-4)/50),2)=0,"CF"&TEXT((ROW(B34)/6)+10/3-INT((ROW(B34)-4)/50)/3,"#"),"CF"&TEXT((ROW(B34)/6)+10/3-INT((ROW(B34)-4)/50)/3,"#"))) -> Chapter 07: Noun Ending | E33: =INDIRECT( "FlashCards!"&IF(MOD(INT((ROW(B34)-4)/50),2)=0,"CF"&TEXT((ROW(B34)/6)+10/3-INT((ROW(B34)-4)/50)/3+8,"#"),"CF"&TEXT((ROW(B34)/6)+10/3-INT((ROW(B34)-4)/50)/3+8,"#"))) -> Chapter 07: Noun Ending
B34: =INDIRECT( "FlashCards!"&IF(MOD(INT((ROW(B34)-4)/50),2)=0,"CE"&TEXT((ROW(B34)/6)+10/3-INT((ROW(B34)-4)/50)/3,"#"),"CD"&TEXT((ROW(B34)/6)+10/3-INT((ROW(B34)-4)/50)/3,"#"))) -> -ι, -ῳ | E34: =INDIRECT( "FlashCards!"&IF(MOD(INT((ROW(B34)-4)/50),2)=0,"CE"&TEXT((ROW(B34)/6)+10/3-INT((ROW(B34)-4)/50)/3+8,"#"),"CD"&TEXT((ROW(B34)/6)+10/3-INT((ROW(B34)-4)/50)/3+8,"#"))) -> -ις, -οις
B36: =INDIRECT( "FlashCards!"&IF(MOD(INT((ROW(B34)-4)/50),2)=0,"CC"&TEXT((ROW(B34)/6)+10/3-INT((ROW(B34)-4)/50)/3,"#"),"")) ->  | E36: =INDIRECT( "FlashCards!"&IF(MOD(INT((ROW(B34)-4)/50),2)=0,"CC"&TEXT((ROW(B34)/6)+10/3-INT((ROW(B34)-4)/50)/3+8,"#"),"CC"&TEXT((ROW(B34)/6)+10/3-INT((ROW(B34)-4)/50)/3+8,"#"))) -> 
B39: =INDIRECT( "FlashCards!"&IF(MOD(INT((ROW(B40)-4)/50),2)=0,"CF"&TEXT((ROW(B40)/6)+10/3-INT((ROW(B40)-4)/50)/3,"#"),"CF"&TEXT((ROW(B40)/6)+10/3-INT((ROW(B40)-4)/50)/3,"#"))) -> Chapter 07: Noun Ending | E39: =INDIRECT( "FlashCards!"&IF(MOD(INT((ROW(B40)-4)/50),2)=0,"CF"&TEXT((ROW(B40)/6)+10/3-INT((ROW(B40)-4)/50)/3+8,"#"),"CF"&TEXT((ROW(B40)/6)+10/3-INT((ROW(B40)-4)/50)/3+8,"#"))) -> Chapter 07: Noun Ending
B40: =INDIRECT( "FlashCards!"&IF(MOD(INT((ROW(B40)-4)/50),2)=0,"CE"&TEXT((ROW(B40)/6)+10/3-INT((ROW(B40)-4)/50)/3,"#"),"CD"&TEXT((ROW(B40)/6)+10/3-INT((ROW(B40)-4)/50)/3,"#"))) -> -ι, -ῃ, -ᾳ | E40: =INDIRECT( "FlashCards!"&IF(MOD(INT((ROW(B40)-4)/50),2)=0,"CE"&TEXT((ROW(B40)/6)+10/3-INT((ROW(B40)-4)/50)/3+8,"#"),"CD"&TEXT((ROW(B40)/6)+10/3-INT((ROW(B40)-4)/50)/3+8,"#"))) -> -ις, -αις
B42: =INDIRECT( "FlashCards!"&IF(MOD(INT((ROW(B40)-4)/50),2)=0,"CC"&TEXT((ROW(B40)/6)+10/3-INT((ROW(B40)-4)/50)/3,"#"),"")) ->  | E42: =INDIRECT( "FlashCards!"&IF(MOD(INT((ROW(B40)-4)/50),2)=0,"CC"&TEXT((ROW(B40)/6)+10/3-INT((ROW(B40)-4)/50)/3+8,"#"),"CC"&TEXT((ROW(B40)/6)+10/3-INT((ROW(B40)-4)/50)/3+8,"#"))) -> 
B45: =INDIRECT( "FlashCards!"&IF(MOD(INT((ROW(B46)-4)/50),2)=0,"CF"&TEXT((ROW(B46)/6)+10/3-INT((ROW(B46)-4)/50)/3,"#"),"CF"&TEXT((ROW(B46)/6)+10/3-INT((ROW(B46)-4)/50)/3,"#"))) -> Chapter 07: Noun Ending | E45: =INDIRECT( "FlashCards!"&IF(MOD(INT((ROW(B46)-4)/50),2)=0,"CF"&TEXT((ROW(B46)/6)+10/3-INT((ROW(B46)-4)/50)/3+8,"#"),"CF"&TEXT((ROW(B46)/6)+10/3-INT((ROW(B46)-4)/50)/3+8,"#"))) -> Chapter 10: Noun Ending
B46: =INDIRECT( "FlashCards!"&IF(MOD(INT((ROW(B46)-4)/50),2)=0,"CE"&TEXT((ROW(B46)/6)+10/3-INT((ROW(B46)-4)/50)/3,"#"),"CD"&TEXT((ROW(B46)/6)+10/3-INT((ROW(B46)-4)/50)/3,"#"))) -> -ν, -ην, -αν | E46: =INDIRECT( "FlashCards!"&IF(MOD(INT((ROW(B46)-4)/50),2)=0,"CE"&TEXT((ROW(B46)/6)+10/3-INT((ROW(B46)-4)/50)/3+8,"#"),"CD"&TEXT((ROW(B46)/6)+10/3-INT((ROW(B46)-4)/50)/3+8,"#"))) -> -σι(ν)
B48: =INDIRECT( "FlashCards!"&IF(MOD(INT((ROW(B46)-4)/50),2)=0,"CC"&TEXT((ROW(B46)/6)+10/3-INT((ROW(B46)-4)/50)/3,"#"),"")) ->  | E48: =INDIRECT( "FlashCards!"&IF(MOD(INT((ROW(B46)-4)/50),2)=0,"CC"&TEXT((ROW(B46)/6)+10/3-INT((ROW(B46)-4)/50)/3+8,"#"),"CC"&TEXT((ROW(B46)/6)+10/3-INT((ROW(B46)-4)/50)/3+8,"#"))) -> 
B53: =E3 -> Chapter 07: Noun Ending | E53: =B3 -> Chapter 07: Noun Ending
B54: =INDIRECT( "FlashCards!"&IF(MOD(INT((ROW(B54)-4)/50),2)=0,"CE"&TEXT((ROW(B54)/6)+10/3-INT((ROW(B54)-4)/50)/3,"#"),"CD"&TEXT((ROW(B54)/6)+10/3-INT((ROW(B54)-4)/50)/3,"#"))) -> (nominative, plural, masculine) | E54: =INDIRECT( "FlashCards!"&IF(MOD(INT((ROW(B54)-4)/50),2)=0,"CE"&TEXT((ROW(B54)/6)+10/3-INT((ROW(B54)-4)/50)/3-8,"#"),"CD"&TEXT((ROW(B54)/6)+10/3-INT((ROW(B54)-4)/50)/3-8,"#"))) -> (nominative, singular, masculine)
B59: =E9 -> Chapter 10: Noun Ending | E59: =B9 -> Chapter 07: Noun Ending
B60: =INDIRECT( "FlashCards!"&IF(MOD(INT((ROW(B60)-4)/50),2)=0,"CE"&TEXT((ROW(B60)/6)+10/3-INT((ROW(B60)-4)/50)/3,"#"),"CD"&TEXT((ROW(B60)/6)+10/3-INT((ROW(B60)-4)/50)/3,"#"))) -> (nominative, plural, masculine or feminine, 3ʳᵈ declension) | E60: =INDIRECT( "FlashCards!"&IF(MOD(INT((ROW(B60)-4)/50),2)=0,"CE"&TEXT((ROW(B60)/6)+10/3-INT((ROW(B60)-4)/50)/3-8,"#"),"CD"&TEXT((ROW(B60)/6)+10/3-INT((ROW(B60)-4)/50)/3-8,"#"))) -> (nominative, singular, feminine)
B65: =E15 -> Chapter 07: Noun Ending | E65: =B15 -> Chapter 07: Noun Ending
B66: =INDIRECT( "FlashCards!"&IF(MOD(INT((ROW(B66)-4)/50),2)=0,"CE"&TEXT((ROW(B66)/6)+10/3-INT((ROW(B66)-4)/50)/3,"#"),"CD"&TEXT((ROW(B66)/6)+10/3-INT((ROW(B66)-4)/50)/3,"#"))) -> (nominative, plural, feminine) | E66: =INDIRECT( "FlashCards!"&IF(MOD(INT((ROW(B66)-4)/50),2)=0,"CE"&TEXT((ROW(B66)/6)+10/3-INT((ROW(B66)-4)/50)/3-8,"#"),"CD"&TEXT((ROW(B66)/6)+10/3-INT((ROW(B66)-4)/50)/3-8,"#"))) -> (nominative, singular, neuter; accusative, singular, masculine or neuter)
B71: =E21 -> Chapter 07: Noun Ending | E71: =B21 -> Chapter 07: Noun Ending
B72: =INDIRECT( "FlashCards!"&IF(MOD(INT((ROW(B72)-4)/50),2)=0,"CE"&TEXT((ROW(B72)/6)+10/3-INT((ROW(B72)-4)/50)/3,"#"),"CD"&TEXT((ROW(B72)/6)+10/3-INT((ROW(B72)-4)/50)/3,"#"))) -> (nominative or accusative, plural, neuter) | E72: =INDIRECT( "FlashCards!"&IF(MOD(INT((ROW(B72)-4)/50),2)=0,"CE"&TEXT((ROW(B72)/6)+10/3-INT((ROW(B72)-4)/50)/3-8,"#"),"CD"&TEXT((ROW(B72)/6)+10/3-INT((ROW(B72)-4)/50)/3-8,"#"))) -> (genitive, singular, masculine or neuter)
B77: =E27 -> Chapter 07: Noun Ending | E77: =B27 -> Chapter 07: Noun Ending
B78: =INDIRECT( "FlashCards!"&IF(MOD(INT((ROW(B78)-4)/50),2)=0,"CE"&TEXT((ROW(B78)/6)+10/3-INT((ROW(B78)-4)/50)/3,"#"),"CD"&TEXT((ROW(B78)/6)+10/3-INT((ROW(B78)-4)/50)/3,"#"))) -> (genitive, plural, masculine, feminine, neuter) | E78: =INDIRECT( "FlashCards!"&IF(MOD(INT((ROW(B78)-4)/50),2)=0,"CE"&TEXT((ROW(B78)/6)+10/3-INT((ROW(B78)-4)/50)/3-8,"#"),"CD"&TEXT((ROW(B78)/6)+10/3-INT((ROW(B78)-4)/50)/3-8,"#"))) -> (genitive, singular, feminine)
B83: =E33 -> Chapter 07: Noun Ending | E83: =B33 -> Chapter 07: Noun Ending
B84: =INDIRECT( "FlashCards!"&IF(MOD(INT((ROW(B84)-4)/50),2)=0,"CE"&TEXT((ROW(B84)/6)+10/3-INT((ROW(B84)-4)/50)/3,"#"),"CD"&TEXT((ROW(B84)/6)+10/3-INT((ROW(B84)-4)/50)/3,"#"))) -> (dative, plural, masculine or neuter) | E84: =INDIRECT( "FlashCards!"&IF(MOD(INT((ROW(B84)-4)/50),2)=0,"CE"&TEXT((ROW(B84)/6)+10/3-INT((ROW(B84)-4)/50)/3-8,"#"),"CD"&TEXT((ROW(B84)/6)+10/3-INT((ROW(B84)-4)/50)/3-8,"#"))) -> (dative, singular, masculine; dative, singular, neuter)
B89: =E39 -> Chapter 07: Noun Ending | E89: =B39 -> Chapter 07: Noun Ending
B90: =INDIRECT( "FlashCards!"&IF(MOD(INT((ROW(B90)-4)/50),2)=0,"CE"&TEXT((ROW(B90)/6)+10/3-INT((ROW(B90)-4)/50)/3,"#"),"CD"&TEXT((ROW(B90)/6)+10/3-INT((ROW(B90)-4)/50)/3,"#"))) -> (dative, plural, feminine) | E90: =INDIRECT( "FlashCards!"&IF(MOD(INT((ROW(B90)-4)/50),2)=0,"CE"&TEXT((ROW(B90)/6)+10/3-INT((ROW(B90)-4)/50)/3-8,"#"),"CD"&TEXT((ROW(B90)/6)+10/3-INT((ROW(B90)-4)/50)/3-8,"#"))) -> (dative, singular, feminine)
B95: =E45 -> Chapter 10: Noun Ending | E95: =B45 -> Chapter 07: Noun Ending
B96: =INDIRECT( "FlashCards!"&IF(MOD(INT((ROW(B96)-4)/50),2)=0,"CE"&TEXT((ROW(B96)/6)+10/3-INT((ROW(B96)-4)/50)/3,"#"),"CD"&TEXT((ROW(B96)/6)+10/3-INT((ROW(B96)-4)/50)/3,"#"))) -> (dative, plural, masculine/ feminine/neuter, 3ʳᵈ declension) | E96: =INDIRECT( "FlashCards!"&IF(MOD(INT((ROW(B96)-4)/50),2)=0,"CE"&TEXT((ROW(B96)/6)+10/3-INT((ROW(B96)-4)/50)/3-8,"#"),"CD"&TEXT((ROW(B96)/6)+10/3-INT((ROW(B96)-4)/50)/3-8,"#"))) -> (accusative, singular, feminine)
B103: =INDIRECT( "FlashCards!"&IF(MOD(INT((ROW(B104)-4)/50),2)=0,"CF"&TEXT((ROW(B104)/6)+10/3-INT((ROW(B104)-4)/50)/3,"#"),"CF"&TEXT((ROW(B104)/6)+10/3-INT((ROW(B104)-4)/50)/3,"#"))) -> Chapter 07: Noun Ending | E103: =INDIRECT( "FlashCards!"&IF(MOD(INT((ROW(B104)-4)/50),2)=0,"CF"&TEXT((ROW(B104)/6)+10/3-INT((ROW(B104)-4)/50)/3+8,"#"),"CF"&TEXT((ROW(B104)/6)+10/3-INT((ROW(B104)-4)/50)/3+8,"#"))) -> Chapter 16: Verb Ending
B104: =INDIRECT( "FlashCards!"&IF(MOD(INT((ROW(B104)-4)/50),2)=0,"CE"&TEXT((ROW(B104)/6)+10/3-INT((ROW(B104)-4)/50)/3,"#"),"CD"&TEXT((ROW(B104)/6)+10/3-INT((ROW(B104)-4)/50)/3,"#"))) -> -υς, -ους | E104: =INDIRECT( "FlashCards!"&IF(MOD(INT((ROW(B104)-4)/50),2)=0,"CE"&TEXT((ROW(B104)/6)+10/3-INT((ROW(B104)-4)/50)/3+8,"#"),"CD"&TEXT((ROW(B104)/6)+10/3-INT((ROW(B104)-4)/50)/3+8,"#"))) -> [active stem] +ετε
B106: =INDIRECT( "FlashCards!"&IF(MOD(INT((ROW(B104)-4)/50),2)=0,"CC"&TEXT((ROW(B104)/6)+10/3-INT((ROW(B104)-4)/50)/3,"#"),"")) ->  | E106: =INDIRECT( "FlashCards!"&IF(MOD(INT((ROW(B104)-4)/50),2)=0,"CC"&TEXT((ROW(B104)/6)+10/3-INT((ROW(B104)-4)/50)/3+8,"#"),"CC"&TEXT((ROW(B104)/6)+10/3-INT((ROW(B104)-4)/50)/3+8,"#"))) -> 
B109: =INDIRECT( "FlashCards!"&IF(MOD(INT((ROW(B110)-4)/50),2)=0,"CF"&TEXT((ROW(B110)/6)+10/3-INT((ROW(B110)-4)/50)/3,"#"),"CF"&TEXT((ROW(B110)/6)+10/3-INT((ROW(B110)-4)/50)/3,"#"))) -> Chapter 07: Noun Ending | E109: =INDIRECT( "FlashCards!"&IF(MOD(INT((ROW(B110)-4)/50),2)=0,"CF"&TEXT((ROW(B110)/6)+10/3-INT((ROW(B110)-4)/50)/3+8,"#"),"CF"&TEXT((ROW(B110)/6)+10/3-INT((ROW(B110)-4)/50)/3+8,"#"))) -> Chapter 16: Verb Ending
B110: =INDIRECT( "FlashCards!"&IF(MOD(INT((ROW(B110)-4)/50),2)=0,"CE"&TEXT((ROW(B110)/6)+10/3-INT((ROW(B110)-4)/50)/3,"#"),"CD"&TEXT((ROW(B110)/6)+10/3-INT((ROW(B110)-4)/50)/3,"#"))) -> -ς, -ας | E110: =INDIRECT( "FlashCards!"&IF(MOD(INT((ROW(B110)-4)/50),2)=0,"CE"&TEXT((ROW(B110)/6)+10/3-INT((ROW(B110)-4)/50)/3+8,"#"),"CD"&TEXT((ROW(B110)/6)+10/3-INT((ROW(B110)-4)/50)/3+8,"#"))) -> [active stem] +ονσι, +οσιν
B112: =INDIRECT( "FlashCards!"&IF(MOD(INT((ROW(B110)-4)/50),2)=0,"CC"&TEXT((ROW(B110)/6)+10/3-INT((ROW(B110)-4)/50)/3,"#"),"")) ->  | E112: =INDIRECT( "FlashCards!"&IF(MOD(INT((ROW(B110)-4)/50),2)=0,"CC"&TEXT((ROW(B110)/6)+10/3-INT((ROW(B110)-4)/50)/3+8,"#"),"CC"&TEXT((ROW(B110)/6)+10/3-INT((ROW(B110)-4)/50)/3+8,"#"))) -> 
B115: =INDIRECT( "FlashCards!"&IF(MOD(INT((ROW(B116)-4)/50),2)=0,"CF"&TEXT((ROW(B116)/6)+10/3-INT((ROW(B116)-4)/50)/3,"#"),"CF"&TEXT((ROW(B116)/6)+10/3-INT((ROW(B116)-4)/50)/3,"#"))) -> Chapter 19: Noun Ending | E115: =INDIRECT( "FlashCards!"&IF(MOD(INT((ROW(B116)-4)/50),2)=0,"CF"&TEXT((ROW(B116)/6)+10/3-INT((ROW(B116)-4)/50)/3+8,"#"),"CF"&TEXT((ROW(B116)/6)+10/3-INT((ROW(B116)-4)/50)/3+8,"#"))) -> Chapter 18: Verb Ending
B116: =INDIRECT( "FlashCards!"&IF(MOD(INT((ROW(B116)-4)/50),2)=0,"CE"&TEXT((ROW(B116)/6)+10/3-INT((ROW(B116)-4)/50)/3,"#"),"CD"&TEXT((ROW(B116)/6)+10/3-INT((ROW(B116)-4)/50)/3,"#"))) -> -εύς | E116: =INDIRECT( "FlashCards!"&IF(MOD(INT((ROW(B116)-4)/50),2)=0,"CE"&TEXT((ROW(B116)/6)+10/3-INT((ROW(B116)-4)/50)/3+8,"#"),"CD"&TEXT((ROW(B116)/6)+10/3-INT((ROW(B116)-4)/50)/3+8,"#"))) -> [middle stem] +ομαι,
B118: =INDIRECT( "FlashCards!"&IF(MOD(INT((ROW(B116)-4)/50),2)=0,"CC"&TEXT((ROW(B116)/6)+10/3-INT((ROW(B116)-4)/50)/3,"#"),"")) -> yoose | E118: =INDIRECT( "FlashCards!"&IF(MOD(INT((ROW(B116)-4)/50),2)=0,"CC"&TEXT((ROW(B116)/6)+10/3-INT((ROW(B116)-4)/50)/3+8,"#"),"CC"&TEXT((ROW(B116)/6)+10/3-INT((ROW(B116)-4)/50)/3+8,"#"))) -> 
B121: =INDIRECT( "FlashCards!"&IF(MOD(INT((ROW(B122)-4)/50),2)=0,"CF"&TEXT((ROW(B122)/6)+10/3-INT((ROW(B122)-4)/50)/3,"#"),"CF"&TEXT((ROW(B122)/6)+10/3-INT((ROW(B122)-4)/50)/3,"#"))) -> Extra: Noun Ending | E121: =INDIRECT( "FlashCards!"&IF(MOD(INT((ROW(B122)-4)/50),2)=0,"CF"&TEXT((ROW(B122)/6)+10/3-INT((ROW(B122)-4)/50)/3+8,"#"),"CF"&TEXT((ROW(B122)/6)+10/3-INT((ROW(B122)-4)/50)/3+8,"#"))) -> Chapter 18: Verb Ending
B122: =INDIRECT( "FlashCards!"&IF(MOD(INT((ROW(B122)-4)/50),2)=0,"CE"&TEXT((ROW(B122)/6)+10/3-INT((ROW(B122)-4)/50)/3,"#"),"CD"&TEXT((ROW(B122)/6)+10/3-INT((ROW(B122)-4)/50)/3,"#"))) -> -ικός | E122: =INDIRECT( "FlashCards!"&IF(MOD(INT((ROW(B122)-4)/50),2)=0,"CE"&TEXT((ROW(B122)/6)+10/3-INT((ROW(B122)-4)/50)/3+8,"#"),"CD"&TEXT((ROW(B122)/6)+10/3-INT((ROW(B122)-4)/50)/3+8,"#"))) -> [middle stem] +εσαι, +ῃ
B124: =INDIRECT( "FlashCards!"&IF(MOD(INT((ROW(B122)-4)/50),2)=0,"CC"&TEXT((ROW(B122)/6)+10/3-INT((ROW(B122)-4)/50)/3,"#"),"")) -> ee-KOSS | E124: =INDIRECT( "FlashCards!"&IF(MOD(INT((ROW(B122)-4)/50),2)=0,"CC"&TEXT((ROW(B122)/6)+10/3-INT((ROW(B122)-4)/50)/3+8,"#"),"CC"&TEXT((ROW(B122)/6)+10/3-INT((ROW(B122)-4)/50)/3+8,"#"))) -> 
B127: =INDIRECT( "FlashCards!"&IF(MOD(INT((ROW(B128)-4)/50),2)=0,"CF"&TEXT((ROW(B128)/6)+10/3-INT((ROW(B128)-4)/50)/3,"#"),"CF"&TEXT((ROW(B128)/6)+10/3-INT((ROW(B128)-4)/50)/3,"#"))) -> Chapter 16: Verb Ending | E127: =INDIRECT( "FlashCards!"&IF(MOD(INT((ROW(B128)-4)/50),2)=0,"CF"&TEXT((ROW(B128)/6)+10/3-INT((ROW(B128)-4)/50)/3+8,"#"),"CF"&TEXT((ROW(B128)/6)+10/3-INT((ROW(B128)-4)/50)/3+8,"#"))) -> Chapter 18: Verb Ending
B128: =INDIRECT( "FlashCards!"&IF(MOD(INT((ROW(B128)-4)/50),2)=0,"CE"&TEXT((ROW(B128)/6)+10/3-INT((ROW(B128)-4)/50)/3,"#"),"CD"&TEXT((ROW(B128)/6)+10/3-INT((ROW(B128)-4)/50)/3,"#"))) -> [active stem] +ω | E128: =INDIRECT( "FlashCards!"&IF(MOD(INT((ROW(B128)-4)/50),2)=0,"CE"&TEXT((ROW(B128)/6)+10/3-INT((ROW(B128)-4)/50)/3+8,"#"),"CD"&TEXT((ROW(B128)/6)+10/3-INT((ROW(B128)-4)/50)/3+8,"#"))) -> [middle stem] +εται
B130: =INDIRECT( "FlashCards!"&IF(MOD(INT((ROW(B128)-4)/50),2)=0,"CC"&TEXT((ROW(B128)/6)+10/3-INT((ROW(B128)-4)/50)/3,"#"),"")) ->  | E130: =INDIRECT( "FlashCards!"&IF(MOD(INT((ROW(B128)-4)/50),2)=0,"CC"&TEXT((ROW(B128)/6)+10/3-INT((ROW(B128)-4)/50)/3+8,"#"),"CC"&TEXT((ROW(B128)/6)+10/3-INT((ROW(B128)-4)/50)/3+8,"#"))) -> 
B133: =INDIRECT( "FlashCards!"&IF(MOD(INT((ROW(B134)-4)/50),2)=0,"CF"&TEXT((ROW(B134)/6)+10/3-INT((ROW(B134)-4)/50)/3,"#"),"CF"&TEXT((ROW(B134)/6)+10/3-INT((ROW(B134)-4)/50)/3,"#"))) -> Chapter 16: Verb Ending | E133: =INDIRECT( "FlashCards!"&IF(MOD(INT((ROW(B134)-4)/50),2)=0,"CF"&TEXT((ROW(B134)/6)+10/3-INT((ROW(B134)-4)/50)/3+8,"#"),"CF"&TEXT((ROW(B134)/6)+10/3-INT((ROW(B134)-4)/50)/3+8,"#"))) -> Chapter 18: Verb Ending
B134: =INDIRECT( "FlashCards!"&IF(MOD(INT((ROW(B134)-4)/50),2)=0,"CE"&TEXT((ROW(B134)/6)+10/3-INT((ROW(B134)-4)/50)/3,"#"),"CD"&TEXT((ROW(B134)/6)+10/3-INT((ROW(B134)-4)/50)/3,"#"))) -> [active stem] +ες, +εις | E134: =INDIRECT( "FlashCards!"&IF(MOD(INT((ROW(B134)-4)/50),2)=0,"CE"&TEXT((ROW(B134)/6)+10/3-INT((ROW(B134)-4)/50)/3+8,"#"),"CD"&TEXT((ROW(B134)/6)+10/3-INT((ROW(B134)-4)/50)/3+8,"#"))) -> [middle stem] +ομεθα
B136: =INDIRECT( "FlashCards!"&IF(MOD(INT((ROW(B134)-4)/50),2)=0,"CC"&TEXT((ROW(B134)/6)+10/3-INT((ROW(B134)-4)/50)/3,"#"),"")) ->  | E136: =INDIRECT( "FlashCards!"&IF(MOD(INT((ROW(B134)-4)/50),2)=0,"CC"&TEXT((ROW(B134)/6)+10/3-INT((ROW(B134)-4)/50)/3+8,"#"),"CC"&TEXT((ROW(B134)/6)+10/3-INT((ROW(B134)-4)/50)/3+8,"#"))) -> 
B139: =INDIRECT( "FlashCards!"&IF(MOD(INT((ROW(B140)-4)/50),2)=0,"CF"&TEXT((ROW(B140)/6)+10/3-INT((ROW(B140)-4)/50)/3,"#"),"CF"&TEXT((ROW(B140)/6)+10/3-INT((ROW(B140)-4)/50)/3,"#"))) -> Chapter 16: Verb Ending | E139: =INDIRECT( "FlashCards!"&IF(MOD(INT((ROW(B140)-4)/50),2)=0,"CF"&TEXT((ROW(B140)/6)+10/3-INT((ROW(B140)-4)/50)/3+8,"#"),"CF"&TEXT((ROW(B140)/6)+10/3-INT((ROW(B140)-4)/50)/3+8,"#"))) -> Chapter 18: Verb Ending
B140: =INDIRECT( "FlashCards!"&IF(MOD(INT((ROW(B140)-4)/50),2)=0,"CE"&TEXT((ROW(B140)/6)+10/3-INT((ROW(B140)-4)/50)/3,"#"),"CD"&TEXT((ROW(B140)/6)+10/3-INT((ROW(B140)-4)/50)/3,"#"))) -> [active stem] +ει | E140: =INDIRECT( "FlashCards!"&IF(MOD(INT((ROW(B140)-4)/50),2)=0,"CE"&TEXT((ROW(B140)/6)+10/3-INT((ROW(B140)-4)/50)/3+8,"#"),"CD"&TEXT((ROW(B140)/6)+10/3-INT((ROW(B140)-4)/50)/3+8,"#"))) -> [middle stem] +εσθε
B142: =INDIRECT( "FlashCards!"&IF(MOD(INT((ROW(B140)-4)/50),2)=0,"CC"&TEXT((ROW(B140)/6)+10/3-INT((ROW(B140)-4)/50)/3,"#"),"")) ->  | E142: =INDIRECT( "FlashCards!"&IF(MOD(INT((ROW(B140)-4)/50),2)=0,"CC"&TEXT((ROW(B140)/6)+10/3-INT((ROW(B140)-4)/50)/3+8,"#"),"CC"&TEXT((ROW(B140)/6)+10/3-INT((ROW(B140)-4)/50)/3+8,"#"))) -> 
B145: =INDIRECT( "FlashCards!"&IF(MOD(INT((ROW(B146)-4)/50),2)=0,"CF"&TEXT((ROW(B146)/6)+10/3-INT((ROW(B146)-4)/50)/3,"#"),"CF"&TEXT((ROW(B146)/6)+10/3-INT((ROW(B146)-4)/50)/3,"#"))) -> Chapter 16: Verb Ending | E145: =INDIRECT( "FlashCards!"&IF(MOD(INT((ROW(B146)-4)/50),2)=0,"CF"&TEXT((ROW(B146)/6)+10/3-INT((ROW(B146)-4)/50)/3+8,"#"),"CF"&TEXT((ROW(B146)/6)+10/3-INT((ROW(B146)-4)/50)/3+8,"#"))) -> Chapter 18: Verb Ending
B146: =INDIRECT( "FlashCards!"&IF(MOD(INT((ROW(B146)-4)/50),2)=0,"CE"&TEXT((ROW(B146)/6)+10/3-INT((ROW(B146)-4)/50)/3,"#"),"CD"&TEXT((ROW(B146)/6)+10/3-INT((ROW(B146)-4)/50)/3,"#"))) -> [active stem] +ομεν | E146: =INDIRECT( "FlashCards!"&IF(MOD(INT((ROW(B146)-4)/50),2)=0,"CE"&TEXT((ROW(B146)/6)+10/3-INT((ROW(B146)-4)/50)/3+8,"#"),"CD"&TEXT((ROW(B146)/6)+10/3-INT((ROW(B146)-4)/50)/3+8,"#"))) -> [middle stem] +ονται
B148: =INDIRECT( "FlashCards!"&IF(MOD(INT((ROW(B146)-4)/50),2)=0,"CC"&TEXT((ROW(B146)/6)+10/3-INT((ROW(B146)-4)/50)/3,"#"),"")) ->  | E148: =INDIRECT( "FlashCards!"&IF(MOD(INT((ROW(B146)-4)/50),2)=0,"CC"&TEXT((ROW(B146)/6)+10/3-INT((ROW(B146)-4)/50)/3+8,"#"),"CC"&TEXT((ROW(B146)/6)+10/3-INT((ROW(B146)-4)/50)/3+8,"#"))) -> 
B153: =E103 -> Chapter 16: Verb Ending | E153: =B103 -> Chapter 07: Noun Ending
B154: =INDIRECT( "FlashCards!"&IF(MOD(INT((ROW(B154)-4)/50),2)=0,"CE"&TEXT((ROW(B154)/6)+10/3-INT((ROW(B154)-4)/50)/3,"#"),"CD"&TEXT((ROW(B154)/6)+10/3-INT((ROW(B154)-4)/50)/3,"#"))) -> ya'll are verbing (it) [present active indicative] | E154: =INDIRECT( "FlashCards!"&IF(MOD(INT((ROW(B154)-4)/50),2)=0,"CE"&TEXT((ROW(B154)/6)+10/3-INT((ROW(B154)-4)/50)/3-8,"#"),"CD"&TEXT((ROW(B154)/6)+10/3-INT((ROW(B154)-4)/50)/3-8,"#"))) -> (accusative, plural, masculine)
B159: =E109 -> Chapter 16: Verb Ending | E159: =B109 -> Chapter 07: Noun Ending
B160: =INDIRECT( "FlashCards!"&IF(MOD(INT((ROW(B160)-4)/50),2)=0,"CE"&TEXT((ROW(B160)/6)+10/3-INT((ROW(B160)-4)/50)/3,"#"),"CD"&TEXT((ROW(B160)/6)+10/3-INT((ROW(B160)-4)/50)/3,"#"))) -> they are verbing (it) [present active indicative] | E160: =INDIRECT( "FlashCards!"&IF(MOD(INT((ROW(B160)-4)/50),2)=0,"CE"&TEXT((ROW(B160)/6)+10/3-INT((ROW(B160)-4)/50)/3-8,"#"),"CD"&TEXT((ROW(B160)/6)+10/3-INT((ROW(B160)-4)/50)/3-8,"#"))) -> (accusative, plural, feminine)
B165: =E115 -> Chapter 18: Verb Ending | E165: =B115 -> Chapter 19: Noun Ending
B166: =INDIRECT( "FlashCards!"&IF(MOD(INT((ROW(B166)-4)/50),2)=0,"CE"&TEXT((ROW(B166)/6)+10/3-INT((ROW(B166)-4)/50)/3,"#"),"CD"&TEXT((ROW(B166)/6)+10/3-INT((ROW(B166)-4)/50)/3,"#"))) -> I verb, I am verbing [present middle indicative] | E166: =INDIRECT( "FlashCards!"&IF(MOD(INT((ROW(B166)-4)/50),2)=0,"CE"&TEXT((ROW(B166)/6)+10/3-INT((ROW(B166)-4)/50)/3-8,"#"),"CD"&TEXT((ROW(B166)/6)+10/3-INT((ROW(B166)-4)/50)/3-8,"#"))) -> suffix for a person related to the stem (genitive, singular, masculine)
B171: =E121 -> Chapter 18: Verb Ending | E171: =B121 -> Extra: Noun Ending
B172: =INDIRECT( "FlashCards!"&IF(MOD(INT((ROW(B172)-4)/50),2)=0,"CE"&TEXT((ROW(B172)/6)+10/3-INT((ROW(B172)-4)/50)/3,"#"),"CD"&TEXT((ROW(B172)/6)+10/3-INT((ROW(B172)-4)/50)/3,"#"))) -> you verb, you are verbing [present middle indicative] | E172: =INDIRECT( "FlashCards!"&IF(MOD(INT((ROW(B172)-4)/50),2)=0,"CE"&TEXT((ROW(B172)/6)+10/3-INT((ROW(B172)-4)/50)/3-8,"#"),"CD"&TEXT((ROW(B172)/6)+10/3-INT((ROW(B172)-4)/50)/3-8,"#"))) -> converts a noun into an adjective ("king" becomes "royal")
B177: =E127 -> Chapter 18: Verb Ending | E177: =B127 -> Chapter 16: Verb Ending
B178: =INDIRECT( "FlashCards!"&IF(MOD(INT((ROW(B178)-4)/50),2)=0,"CE"&TEXT((ROW(B178)/6)+10/3-INT((ROW(B178)-4)/50)/3,"#"),"CD"&TEXT((ROW(B178)/6)+10/3-INT((ROW(B178)-4)/50)/3,"#"))) -> he/she/it verbs, he is verbing [present middle indicative] | E178: =INDIRECT( "FlashCards!"&IF(MOD(INT((ROW(B178)-4)/50),2)=0,"CE"&TEXT((ROW(B178)/6)+10/3-INT((ROW(B178)-4)/50)/3-8,"#"),"CD"&TEXT((ROW(B178)/6)+10/3-INT((ROW(B178)-4)/50)/3-8,"#"))) -> I am verbing (it) [present active indicative]
B183: =E133 -> Chapter 18: Verb Ending | E183: =B133 -> Chapter 16: Verb Ending
B184: =INDIRECT( "FlashCards!"&IF(MOD(INT((ROW(B184)-4)/50),2)=0,"CE"&TEXT((ROW(B184)/6)+10/3-INT((ROW(B184)-4)/50)/3,"#"),"CD"&TEXT((ROW(B184)/6)+10/3-INT((ROW(B184)-4)/50)/3,"#"))) -> we verb, we are verbing [present middle indicative] | E184: =INDIRECT( "FlashCards!"&IF(MOD(INT((ROW(B184)-4)/50),2)=0,"CE"&TEXT((ROW(B184)/6)+10/3-INT((ROW(B184)-4)/50)/3-8,"#"),"CD"&TEXT((ROW(B184)/6)+10/3-INT((ROW(B184)-4)/50)/3-8,"#"))) -> you are verbing (it) [present active indicative]
B189: =E139 -> Chapter 18: Verb Ending | E189: =B139 -> Chapter 16: Verb Ending
B190: =INDIRECT( "FlashCards!"&IF(MOD(INT((ROW(B190)-4)/50),2)=0,"CE"&TEXT((ROW(B190)/6)+10/3-INT((ROW(B190)-4)/50)/3,"#"),"CD"&TEXT((ROW(B190)/6)+10/3-INT((ROW(B190)-4)/50)/3,"#"))) -> ya'll verb, ya'll are verbing [present middle indicative] | E190: =INDIRECT( "FlashCards!"&IF(MOD(INT((ROW(B190)-4)/50),2)=0,"CE"&TEXT((ROW(B190)/6)+10/3-INT((ROW(B190)-4)/50)/3-8,"#"),"CD"&TEXT((ROW(B190)/6)+10/3-INT((ROW(B190)-4)/50)/3-8,"#"))) -> he/she/it is verbing (it) [present active indicative]
B195: =E145 -> Chapter 18: Verb Ending | E195: =B145 -> Chapter 16: Verb Ending
B196: =INDIRECT( "FlashCards!"&IF(MOD(INT((ROW(B196)-4)/50),2)=0,"CE"&TEXT((ROW(B196)/6)+10/3-INT((ROW(B196)-4)/50)/3,"#"),"CD"&TEXT((ROW(B196)/6)+10/3-INT((ROW(B196)-4)/50)/3,"#"))) -> they verb, they are verbing [present middle indicative] | E196: =INDIRECT( "FlashCards!"&IF(MOD(INT((ROW(B196)-4)/50),2)=0,"CE"&TEXT((ROW(B196)/6)+10/3-INT((ROW(B196)-4)/50)/3-8,"#"),"CD"&TEXT((ROW(B196)/6)+10/3-INT((ROW(B196)-4)/50)/3-8,"#"))) -> we are verbing (it) [present active indicative]
B203: =INDIRECT( "FlashCards!"&IF(MOD(INT((ROW(B204)-4)/50),2)=0,"CF"&TEXT((ROW(B204)/6)+10/3-INT((ROW(B204)-4)/50)/3,"#"),"CF"&TEXT((ROW(B204)/6)+10/3-INT((ROW(B204)-4)/50)/3,"#"))) -> Chapter 18: Verb Ending | E203: =INDIRECT( "FlashCards!"&IF(MOD(INT((ROW(B204)-4)/50),2)=0,"CF"&TEXT((ROW(B204)/6)+10/3-INT((ROW(B204)-4)/50)/3+8,"#"),"CF"&TEXT((ROW(B204)/6)+10/3-INT((ROW(B204)-4)/50)/3+8,"#"))) -> Chapter 19: Verb Ending
B204: =INDIRECT( "FlashCards!"&IF(MOD(INT((ROW(B204)-4)/50),2)=0,"CE"&TEXT((ROW(B204)/6)+10/3-INT((ROW(B204)-4)/50)/3,"#"),"CD"&TEXT((ROW(B204)/6)+10/3-INT((ROW(B204)-4)/50)/3,"#"))) -> [active stem] +ομαι | E204: =INDIRECT( "FlashCards!"&IF(MOD(INT((ROW(B204)-4)/50),2)=0,"CE"&TEXT((ROW(B204)/6)+10/3-INT((ROW(B204)-4)/50)/3+8,"#"),"CD"&TEXT((ROW(B204)/6)+10/3-INT((ROW(B204)-4)/50)/3+8,"#"))) -> [active stem] +σει
B206: =INDIRECT( "FlashCards!"&IF(MOD(INT((ROW(B204)-4)/50),2)=0,"CC"&TEXT((ROW(B204)/6)+10/3-INT((ROW(B204)-4)/50)/3,"#"),"")) ->  | E206: =INDIRECT( "FlashCards!"&IF(MOD(INT((ROW(B204)-4)/50),2)=0,"CC"&TEXT((ROW(B204)/6)+10/3-INT((ROW(B204)-4)/50)/3+8,"#"),"CC"&TEXT((ROW(B204)/6)+10/3-INT((ROW(B204)-4)/50)/3+8,"#"))) -> 
B209: =INDIRECT( "FlashCards!"&IF(MOD(INT((ROW(B210)-4)/50),2)=0,"CF"&TEXT((ROW(B210)/6)+10/3-INT((ROW(B210)-4)/50)/3,"#"),"CF"&TEXT((ROW(B210)/6)+10/3-INT((ROW(B210)-4)/50)/3,"#"))) -> Chapter 18: Verb Ending | E209: =INDIRECT( "FlashCards!"&IF(MOD(INT((ROW(B210)-4)/50),2)=0,"CF"&TEXT((ROW(B210)/6)+10/3-INT((ROW(B210)-4)/50)/3+8,"#"),"CF"&TEXT((ROW(B210)/6)+10/3-INT((ROW(B210)-4)/50)/3+8,"#"))) -> Chapter 19: Verb Ending
B210: =INDIRECT( "FlashCards!"&IF(MOD(INT((ROW(B210)-4)/50),2)=0,"CE"&TEXT((ROW(B210)/6)+10/3-INT((ROW(B210)-4)/50)/3,"#"),"CD"&TEXT((ROW(B210)/6)+10/3-INT((ROW(B210)-4)/50)/3,"#"))) -> [active stem] +εσαι, +ῃ | E210: =INDIRECT( "FlashCards!"&IF(MOD(INT((ROW(B210)-4)/50),2)=0,"CE"&TEXT((ROW(B210)/6)+10/3-INT((ROW(B210)-4)/50)/3+8,"#"),"CD"&TEXT((ROW(B210)/6)+10/3-INT((ROW(B210)-4)/50)/3+8,"#"))) -> [active stem] +σομεν
B212: =INDIRECT( "FlashCards!"&IF(MOD(INT((ROW(B210)-4)/50),2)=0,"CC"&TEXT((ROW(B210)/6)+10/3-INT((ROW(B210)-4)/50)/3,"#"),"")) ->  | E212: =INDIRECT( "FlashCards!"&IF(MOD(INT((ROW(B210)-4)/50),2)=0,"CC"&TEXT((ROW(B210)/6)+10/3-INT((ROW(B210)-4)/50)/3+8,"#"),"CC"&TEXT((ROW(B210)/6)+10/3-INT((ROW(B210)-4)/50)/3+8,"#"))) -> 
B215: =INDIRECT( "FlashCards!"&IF(MOD(INT((ROW(B216)-4)/50),2)=0,"CF"&TEXT((ROW(B216)/6)+10/3-INT((ROW(B216)-4)/50)/3,"#"),"CF"&TEXT((ROW(B216)/6)+10/3-INT((ROW(B216)-4)/50)/3,"#"))) -> Chapter 18: Verb Ending | E215: =INDIRECT( "FlashCards!"&IF(MOD(INT((ROW(B216)-4)/50),2)=0,"CF"&TEXT((ROW(B216)/6)+10/3-INT((ROW(B216)-4)/50)/3+8,"#"),"CF"&TEXT((ROW(B216)/6)+10/3-INT((ROW(B216)-4)/50)/3+8,"#"))) -> Chapter 19: Verb Ending
B216: =INDIRECT( "FlashCards!"&IF(MOD(INT((ROW(B216)-4)/50),2)=0,"CE"&TEXT((ROW(B216)/6)+10/3-INT((ROW(B216)-4)/50)/3,"#"),"CD"&TEXT((ROW(B216)/6)+10/3-INT((ROW(B216)-4)/50)/3,"#"))) -> [active stem] +εται | E216: =INDIRECT( "FlashCards!"&IF(MOD(INT((ROW(B216)-4)/50),2)=0,"CE"&TEXT((ROW(B216)/6)+10/3-INT((ROW(B216)-4)/50)/3+8,"#"),"CD"&TEXT((ROW(B216)/6)+10/3-INT((ROW(B216)-4)/50)/3+8,"#"))) -> [active stem] +σετε
B218: =INDIRECT( "FlashCards!"&IF(MOD(INT((ROW(B216)-4)/50),2)=0,"CC"&TEXT((ROW(B216)/6)+10/3-INT((ROW(B216)-4)/50)/3,"#"),"")) ->  | E218: =INDIRECT( "FlashCards!"&IF(MOD(INT((ROW(B216)-4)/50),2)=0,"CC"&TEXT((ROW(B216)/6)+10/3-INT((ROW(B216)-4)/50)/3+8,"#"),"CC"&TEXT((ROW(B216)/6)+10/3-INT((ROW(B216)-4)/50)/3+8,"#"))) -> 
B221: =INDIRECT( "FlashCards!"&IF(MOD(INT((ROW(B222)-4)/50),2)=0,"CF"&TEXT((ROW(B222)/6)+10/3-INT((ROW(B222)-4)/50)/3,"#"),"CF"&TEXT((ROW(B222)/6)+10/3-INT((ROW(B222)-4)/50)/3,"#"))) -> Chapter 18: Verb Ending | E221: =INDIRECT( "FlashCards!"&IF(MOD(INT((ROW(B222)-4)/50),2)=0,"CF"&TEXT((ROW(B222)/6)+10/3-INT((ROW(B222)-4)/50)/3+8,"#"),"CF"&TEXT((ROW(B222)/6)+10/3-INT((ROW(B222)-4)/50)/3+8,"#"))) -> Chapter 19: Verb Ending
B222: =INDIRECT( "FlashCards!"&IF(MOD(INT((ROW(B222)-4)/50),2)=0,"CE"&TEXT((ROW(B222)/6)+10/3-INT((ROW(B222)-4)/50)/3,"#"),"CD"&TEXT((ROW(B222)/6)+10/3-INT((ROW(B222)-4)/50)/3,"#"))) -> [active stem] +ομεθα | E222: =INDIRECT( "FlashCards!"&IF(MOD(INT((ROW(B222)-4)/50),2)=0,"CE"&TEXT((ROW(B222)/6)+10/3-INT((ROW(B222)-4)/50)/3+8,"#"),"CD"&TEXT((ROW(B222)/6)+10/3-INT((ROW(B222)-4)/50)/3+8,"#"))) -> [active stem] +σονσι, +σοσιν
B224: =INDIRECT( "FlashCards!"&IF(MOD(INT((ROW(B222)-4)/50),2)=0,"CC"&TEXT((ROW(B222)/6)+10/3-INT((ROW(B222)-4)/50)/3,"#"),"")) ->  | E224: =INDIRECT( "FlashCards!"&IF(MOD(INT((ROW(B222)-4)/50),2)=0,"CC"&TEXT((ROW(B222)/6)+10/3-INT((ROW(B222)-4)/50)/3+8,"#"),"CC"&TEXT((ROW(B222)/6)+10/3-INT((ROW(B222)-4)/50)/3+8,"#"))) -> 
B227: =INDIRECT( "FlashCards!"&IF(MOD(INT((ROW(B228)-4)/50),2)=0,"CF"&TEXT((ROW(B228)/6)+10/3-INT((ROW(B228)-4)/50)/3,"#"),"CF"&TEXT((ROW(B228)/6)+10/3-INT((ROW(B228)-4)/50)/3,"#"))) -> Chapter 18: Verb Ending | E227: =INDIRECT( "FlashCards!"&IF(MOD(INT((ROW(B228)-4)/50),2)=0,"CF"&TEXT((ROW(B228)/6)+10/3-INT((ROW(B228)-4)/50)/3+8,"#"),"CF"&TEXT((ROW(B228)/6)+10/3-INT((ROW(B228)-4)/50)/3+8,"#"))) -> Chapter 19: Verb Ending
B228: =INDIRECT( "FlashCards!"&IF(MOD(INT((ROW(B228)-4)/50),2)=0,"CE"&TEXT((ROW(B228)/6)+10/3-INT((ROW(B228)-4)/50)/3,"#"),"CD"&TEXT((ROW(B228)/6)+10/3-INT((ROW(B228)-4)/50)/3,"#"))) -> [active stem] +εσθε | E228: =INDIRECT( "FlashCards!"&IF(MOD(INT((ROW(B228)-4)/50),2)=0,"CE"&TEXT((ROW(B228)/6)+10/3-INT((ROW(B228)-4)/50)/3+8,"#"),"CD"&TEXT((ROW(B228)/6)+10/3-INT((ROW(B228)-4)/50)/3+8,"#"))) -> [middle stem] +σομαι,
B230: =INDIRECT( "FlashCards!"&IF(MOD(INT((ROW(B228)-4)/50),2)=0,"CC"&TEXT((ROW(B228)/6)+10/3-INT((ROW(B228)-4)/50)/3,"#"),"")) ->  | E230: =INDIRECT( "FlashCards!"&IF(MOD(INT((ROW(B228)-4)/50),2)=0,"CC"&TEXT((ROW(B228)/6)+10/3-INT((ROW(B228)-4)/50)/3+8,"#"),"CC"&TEXT((ROW(B228)/6)+10/3-INT((ROW(B228)-4)/50)/3+8,"#"))) -> 
B233: =INDIRECT( "FlashCards!"&IF(MOD(INT((ROW(B234)-4)/50),2)=0,"CF"&TEXT((ROW(B234)/6)+10/3-INT((ROW(B234)-4)/50)/3,"#"),"CF"&TEXT((ROW(B234)/6)+10/3-INT((ROW(B234)-4)/50)/3,"#"))) -> Chapter 18: Verb Ending | E233: =INDIRECT( "FlashCards!"&IF(MOD(INT((ROW(B234)-4)/50),2)=0,"CF"&TEXT((ROW(B234)/6)+10/3-INT((ROW(B234)-4)/50)/3+8,"#"),"CF"&TEXT((ROW(B234)/6)+10/3-INT((ROW(B234)-4)/50)/3+8,"#"))) -> Chapter 19: Verb Ending
B234: =INDIRECT( "FlashCards!"&IF(MOD(INT((ROW(B234)-4)/50),2)=0,"CE"&TEXT((ROW(B234)/6)+10/3-INT((ROW(B234)-4)/50)/3,"#"),"CD"&TEXT((ROW(B234)/6)+10/3-INT((ROW(B234)-4)/50)/3,"#"))) -> [active stem] +ονται | E234: =INDIRECT( "FlashCards!"&IF(MOD(INT((ROW(B234)-4)/50),2)=0,"CE"&TEXT((ROW(B234)/6)+10/3-INT((ROW(B234)-4)/50)/3+8,"#"),"CD"&TEXT((ROW(B234)/6)+10/3-INT((ROW(B234)-4)/50)/3+8,"#"))) -> [middle stem] +σεσαι, +σῃ
B236: =INDIRECT( "FlashCards!"&IF(MOD(INT((ROW(B234)-4)/50),2)=0,"CC"&TEXT((ROW(B234)/6)+10/3-INT((ROW(B234)-4)/50)/3,"#"),"")) ->  | E236: =INDIRECT( "FlashCards!"&IF(MOD(INT((ROW(B234)-4)/50),2)=0,"CC"&TEXT((ROW(B234)/6)+10/3-INT((ROW(B234)-4)/50)/3+8,"#"),"CC"&TEXT((ROW(B234)/6)+10/3-INT((ROW(B234)-4)/50)/3+8,"#"))) -> 
B239: =INDIRECT( "FlashCards!"&IF(MOD(INT((ROW(B240)-4)/50),2)=0,"CF"&TEXT((ROW(B240)/6)+10/3-INT((ROW(B240)-4)/50)/3,"#"),"CF"&TEXT((ROW(B240)/6)+10/3-INT((ROW(B240)-4)/50)/3,"#"))) -> Chapter 19: Verb Ending | E239: =INDIRECT( "FlashCards!"&IF(MOD(INT((ROW(B240)-4)/50),2)=0,"CF"&TEXT((ROW(B240)/6)+10/3-INT((ROW(B240)-4)/50)/3+8,"#"),"CF"&TEXT((ROW(B240)/6)+10/3-INT((ROW(B240)-4)/50)/3+8,"#"))) -> Chapter 19: Verb Ending
B240: =INDIRECT( "FlashCards!"&IF(MOD(INT((ROW(B240)-4)/50),2)=0,"CE"&TEXT((ROW(B240)/6)+10/3-INT((ROW(B240)-4)/50)/3,"#"),"CD"&TEXT((ROW(B240)/6)+10/3-INT((ROW(B240)-4)/50)/3,"#"))) -> [active stem] +σω | E240: =INDIRECT( "FlashCards!"&IF(MOD(INT((ROW(B240)-4)/50),2)=0,"CE"&TEXT((ROW(B240)/6)+10/3-INT((ROW(B240)-4)/50)/3+8,"#"),"CD"&TEXT((ROW(B240)/6)+10/3-INT((ROW(B240)-4)/50)/3+8,"#"))) -> [middle stem] +σεται
B242: =INDIRECT( "FlashCards!"&IF(MOD(INT((ROW(B240)-4)/50),2)=0,"CC"&TEXT((ROW(B240)/6)+10/3-INT((ROW(B240)-4)/50)/3,"#"),"")) ->  | E242: =INDIRECT( "FlashCards!"&IF(MOD(INT((ROW(B240)-4)/50),2)=0,"CC"&TEXT((ROW(B240)/6)+10/3-INT((ROW(B240)-4)/50)/3+8,"#"),"CC"&TEXT((ROW(B240)/6)+10/3-INT((ROW(B240)-4)/50)/3+8,"#"))) -> 
B245: =INDIRECT( "FlashCards!"&IF(MOD(INT((ROW(B246)-4)/50),2)=0,"CF"&TEXT((ROW(B246)/6)+10/3-INT((ROW(B246)-4)/50)/3,"#"),"CF"&TEXT((ROW(B246)/6)+10/3-INT((ROW(B246)-4)/50)/3,"#"))) -> Chapter 19: Verb Ending | E245: =INDIRECT( "FlashCards!"&IF(MOD(INT((ROW(B246)-4)/50),2)=0,"CF"&TEXT((ROW(B246)/6)+10/3-INT((ROW(B246)-4)/50)/3+8,"#"),"CF"&TEXT((ROW(B246)/6)+10/3-INT((ROW(B246)-4)/50)/3+8,"#"))) -> Chapter 19: Verb Ending
B246: =INDIRECT( "FlashCards!"&IF(MOD(INT((ROW(B246)-4)/50),2)=0,"CE"&TEXT((ROW(B246)/6)+10/3-INT((ROW(B246)-4)/50)/3,"#"),"CD"&TEXT((ROW(B246)/6)+10/3-INT((ROW(B246)-4)/50)/3,"#"))) -> [active stem] +σες, +σεις | E246: =INDIRECT( "FlashCards!"&IF(MOD(INT((ROW(B246)-4)/50),2)=0,"CE"&TEXT((ROW(B246)/6)+10/3-INT((ROW(B246)-4)/50)/3+8,"#"),"CD"&TEXT((ROW(B246)/6)+10/3-INT((ROW(B246)-4)/50)/3+8,"#"))) -> [middle stem] +σομεθα
B248: =INDIRECT( "FlashCards!"&IF(MOD(INT((ROW(B246)-4)/50),2)=0,"CC"&TEXT((ROW(B246)/6)+10/3-INT((ROW(B246)-4)/50)/3,"#"),"")) ->  | E248: =INDIRECT( "FlashCards!"&IF(MOD(INT((ROW(B246)-4)/50),2)=0,"CC"&TEXT((ROW(B246)/6)+10/3-INT((ROW(B246)-4)/50)/3+8,"#"),"CC"&TEXT((ROW(B246)/6)+10/3-INT((ROW(B246)-4)/50)/3+8,"#"))) -> 
B253: =E203 -> Chapter 19: Verb Ending | E253: =B203 -> Chapter 18: Verb Ending
B254: =INDIRECT( "FlashCards!"&IF(MOD(INT((ROW(B254)-4)/50),2)=0,"CE"&TEXT((ROW(B254)/6)+10/3-INT((ROW(B254)-4)/50)/3,"#"),"CD"&TEXT((ROW(B254)/6)+10/3-INT((ROW(B254)-4)/50)/3,"#"))) -> he/she/it will verb (it) [future active indicative] | E254: =INDIRECT( "FlashCards!"&IF(MOD(INT((ROW(B254)-4)/50),2)=0,"CE"&TEXT((ROW(B254)/6)+10/3-INT((ROW(B254)-4)/50)/3-8,"#"),"CD"&TEXT((ROW(B254)/6)+10/3-INT((ROW(B254)-4)/50)/3-8,"#"))) -> I am being verbed (by it) [present passive indicative]
B259: =E209 -> Chapter 19: Verb Ending | E259: =B209 -> Chapter 18: Verb Ending
B260: =INDIRECT( "FlashCards!"&IF(MOD(INT((ROW(B260)-4)/50),2)=0,"CE"&TEXT((ROW(B260)/6)+10/3-INT((ROW(B260)-4)/50)/3,"#"),"CD"&TEXT((ROW(B260)/6)+10/3-INT((ROW(B260)-4)/50)/3,"#"))) -> we will verb (it) [future active indicative] | E260: =INDIRECT( "FlashCards!"&IF(MOD(INT((ROW(B260)-4)/50),2)=0,"CE"&TEXT((ROW(B260)/6)+10/3-INT((ROW(B260)-4)/50)/3-8,"#"),"CD"&TEXT((ROW(B260)/6)+10/3-INT((ROW(B260)-4)/50)/3-8,"#"))) -> you are being verbed (by it) [present passive indicative]
B265: =E215 -> Chapter 19: Verb Ending | E265: =B215 -> Chapter 18: Verb Ending
B266: =INDIRECT( "FlashCards!"&IF(MOD(INT((ROW(B266)-4)/50),2)=0,"CE"&TEXT((ROW(B266)/6)+10/3-INT((ROW(B266)-4)/50)/3,"#"),"CD"&TEXT((ROW(B266)/6)+10/3-INT((ROW(B266)-4)/50)/3,"#"))) -> ya'll will verb (it) [future active indicative] | E266: =INDIRECT( "FlashCards!"&IF(MOD(INT((ROW(B266)-4)/50),2)=0,"CE"&TEXT((ROW(B266)/6)+10/3-INT((ROW(B266)-4)/50)/3-8,"#"),"CD"&TEXT((ROW(B266)/6)+10/3-INT((ROW(B266)-4)/50)/3-8,"#"))) -> he/she/it is being verbed (by it) [present passive indicative]
B271: =E221 -> Chapter 19: Verb Ending | E271: =B221 -> Chapter 18: Verb Ending
B272: =INDIRECT( "FlashCards!"&IF(MOD(INT((ROW(B272)-4)/50),2)=0,"CE"&TEXT((ROW(B272)/6)+10/3-INT((ROW(B272)-4)/50)/3,"#"),"CD"&TEXT((ROW(B272)/6)+10/3-INT((ROW(B272)-4)/50)/3,"#"))) -> they will verb (it) [future active indicative] | E272: =INDIRECT( "FlashCards!"&IF(MOD(INT((ROW(B272)-4)/50),2)=0,"CE"&TEXT((ROW(B272)/6)+10/3-INT((ROW(B272)-4)/50)/3-8,"#"),"CD"&TEXT((ROW(B272)/6)+10/3-INT((ROW(B272)-4)/50)/3-8,"#"))) -> we are being verbed (by it) [present passive indicative]
B277: =E227 -> Chapter 19: Verb Ending | E277: =B227 -> Chapter 18: Verb Ending
B278: =INDIRECT( "FlashCards!"&IF(MOD(INT((ROW(B278)-4)/50),2)=0,"CE"&TEXT((ROW(B278)/6)+10/3-INT((ROW(B278)-4)/50)/3,"#"),"CD"&TEXT((ROW(B278)/6)+10/3-INT((ROW(B278)-4)/50)/3,"#"))) -> I will verb [future middle indicative] | E278: =INDIRECT( "FlashCards!"&IF(MOD(INT((ROW(B278)-4)/50),2)=0,"CE"&TEXT((ROW(B278)/6)+10/3-INT((ROW(B278)-4)/50)/3-8,"#"),"CD"&TEXT((ROW(B278)/6)+10/3-INT((ROW(B278)-4)/50)/3-8,"#"))) -> ya'll are being verbed (by it) [present passive indicative]
B283: =E233 -> Chapter 19: Verb Ending | E283: =B233 -> Chapter 18: Verb Ending
B284: =INDIRECT( "FlashCards!"&IF(MOD(INT((ROW(B284)-4)/50),2)=0,"CE"&TEXT((ROW(B284)/6)+10/3-INT((ROW(B284)-4)/50)/3,"#"),"CD"&TEXT((ROW(B284)/6)+10/3-INT((ROW(B284)-4)/50)/3,"#"))) -> you will verb [future middle indicative] | E284: =INDIRECT( "FlashCards!"&IF(MOD(INT((ROW(B284)-4)/50),2)=0,"CE"&TEXT((ROW(B284)/6)+10/3-INT((ROW(B284)-4)/50)/3-8,"#"),"CD"&TEXT((ROW(B284)/6)+10/3-INT((ROW(B284)-4)/50)/3-8,"#"))) -> they are being verbed (by it) [present passive indicative]
B289: =E239 -> Chapter 19: Verb Ending | E289: =B239 -> Chapter 19: Verb Ending
B290: =INDIRECT( "FlashCards!"&IF(MOD(INT((ROW(B290)-4)/50),2)=0,"CE"&TEXT((ROW(B290)/6)+10/3-INT((ROW(B290)-4)/50)/3,"#"),"CD"&TEXT((ROW(B290)/6)+10/3-INT((ROW(B290)-4)/50)/3,"#"))) -> he/she/it will verb [future middle indicative] | E290: =INDIRECT( "FlashCards!"&IF(MOD(INT((ROW(B290)-4)/50),2)=0,"CE"&TEXT((ROW(B290)/6)+10/3-INT((ROW(B290)-4)/50)/3-8,"#"),"CD"&TEXT((ROW(B290)/6)+10/3-INT((ROW(B290)-4)/50)/3-8,"#"))) -> I will verb (it) [future active indicative]
B295: =E245 -> Chapter 19: Verb Ending | E295: =B245 -> Chapter 19: Verb Ending
B296: =INDIRECT( "FlashCards!"&IF(MOD(INT((ROW(B296)-4)/50),2)=0,"CE"&TEXT((ROW(B296)/6)+10/3-INT((ROW(B296)-4)/50)/3,"#"),"CD"&TEXT((ROW(B296)/6)+10/3-INT((ROW(B296)-4)/50)/3,"#"))) -> we will verb [future middle indicative] | E296: =INDIRECT( "FlashCards!"&IF(MOD(INT((ROW(B296)-4)/50),2)=0,"CE"&TEXT((ROW(B296)/6)+10/3-INT((ROW(B296)-4)/50)/3-8,"#"),"CD"&TEXT((ROW(B296)/6)+10/3-INT((ROW(B296)-4)/50)/3-8,"#"))) -> you will verb (it) [future active indicative]
B303: =INDIRECT( "FlashCards!"&IF(MOD(INT((ROW(B304)-4)/50),2)=0,"CF"&TEXT((ROW(B304)/6)+10/3-INT((ROW(B304)-4)/50)/3,"#"),"CF"&TEXT((ROW(B304)/6)+10/3-INT((ROW(B304)-4)/50)/3,"#"))) -> Chapter 19: Verb Ending | E303: =INDIRECT( "FlashCards!"&IF(MOD(INT((ROW(B304)-4)/50),2)=0,"CF"&TEXT((ROW(B304)/6)+10/3-INT((ROW(B304)-4)/50)/3+8,"#"),"CF"&TEXT((ROW(B304)/6)+10/3-INT((ROW(B304)-4)/50)/3+8,"#"))) -> Chapter 21: Verb Ending
B304: =INDIRECT( "FlashCards!"&IF(MOD(INT((ROW(B304)-4)/50),2)=0,"CE"&TEXT((ROW(B304)/6)+10/3-INT((ROW(B304)-4)/50)/3,"#"),"CD"&TEXT((ROW(B304)/6)+10/3-INT((ROW(B304)-4)/50)/3,"#"))) -> [middle stem] +σεσθε | E304: =INDIRECT( "FlashCards!"&IF(MOD(INT((ROW(B304)-4)/50),2)=0,"CE"&TEXT((ROW(B304)/6)+10/3-INT((ROW(B304)-4)/50)/3+8,"#"),"CD"&TEXT((ROW(B304)/6)+10/3-INT((ROW(B304)-4)/50)/3+8,"#"))) -> ἐ + [active stem] +ομην
B306: =INDIRECT( "FlashCards!"&IF(MOD(INT((ROW(B304)-4)/50),2)=0,"CC"&TEXT((ROW(B304)/6)+10/3-INT((ROW(B304)-4)/50)/3,"#"),"")) ->  | E306: =INDIRECT( "FlashCards!"&IF(MOD(INT((ROW(B304)-4)/50),2)=0,"CC"&TEXT((ROW(B304)/6)+10/3-INT((ROW(B304)-4)/50)/3+8,"#"),"CC"&TEXT((ROW(B304)/6)+10/3-INT((ROW(B304)-4)/50)/3+8,"#"))) -> 
B309: =INDIRECT( "FlashCards!"&IF(MOD(INT((ROW(B310)-4)/50),2)=0,"CF"&TEXT((ROW(B310)/6)+10/3-INT((ROW(B310)-4)/50)/3,"#"),"CF"&TEXT((ROW(B310)/6)+10/3-INT((ROW(B310)-4)/50)/3,"#"))) -> Chapter 19: Verb Ending | E309: =INDIRECT( "FlashCards!"&IF(MOD(INT((ROW(B310)-4)/50),2)=0,"CF"&TEXT((ROW(B310)/6)+10/3-INT((ROW(B310)-4)/50)/3+8,"#"),"CF"&TEXT((ROW(B310)/6)+10/3-INT((ROW(B310)-4)/50)/3+8,"#"))) -> Chapter 21: Verb Ending
B310: =INDIRECT( "FlashCards!"&IF(MOD(INT((ROW(B310)-4)/50),2)=0,"CE"&TEXT((ROW(B310)/6)+10/3-INT((ROW(B310)-4)/50)/3,"#"),"CD"&TEXT((ROW(B310)/6)+10/3-INT((ROW(B310)-4)/50)/3,"#"))) -> [middle stem] +σονται | E310: =INDIRECT( "FlashCards!"&IF(MOD(INT((ROW(B310)-4)/50),2)=0,"CE"&TEXT((ROW(B310)/6)+10/3-INT((ROW(B310)-4)/50)/3+8,"#"),"CD"&TEXT((ROW(B310)/6)+10/3-INT((ROW(B310)-4)/50)/3+8,"#"))) -> ἐ + [active stem] +εσο
B312: =INDIRECT( "FlashCards!"&IF(MOD(INT((ROW(B310)-4)/50),2)=0,"CC"&TEXT((ROW(B310)/6)+10/3-INT((ROW(B310)-4)/50)/3,"#"),"")) ->  | E312: =INDIRECT( "FlashCards!"&IF(MOD(INT((ROW(B310)-4)/50),2)=0,"CC"&TEXT((ROW(B310)/6)+10/3-INT((ROW(B310)-4)/50)/3+8,"#"),"CC"&TEXT((ROW(B310)/6)+10/3-INT((ROW(B310)-4)/50)/3+8,"#"))) -> 
B315: =INDIRECT( "FlashCards!"&IF(MOD(INT((ROW(B316)-4)/50),2)=0,"CF"&TEXT((ROW(B316)/6)+10/3-INT((ROW(B316)-4)/50)/3,"#"),"CF"&TEXT((ROW(B316)/6)+10/3-INT((ROW(B316)-4)/50)/3,"#"))) -> Chapter 21: Verb Ending | E315: =INDIRECT( "FlashCards!"&IF(MOD(INT((ROW(B316)-4)/50),2)=0,"CF"&TEXT((ROW(B316)/6)+10/3-INT((ROW(B316)-4)/50)/3+8,"#"),"CF"&TEXT((ROW(B316)/6)+10/3-INT((ROW(B316)-4)/50)/3+8,"#"))) -> Chapter 21: Verb Ending
B316: =INDIRECT( "FlashCards!"&IF(MOD(INT((ROW(B316)-4)/50),2)=0,"CE"&TEXT((ROW(B316)/6)+10/3-INT((ROW(B316)-4)/50)/3,"#"),"CD"&TEXT((ROW(B316)/6)+10/3-INT((ROW(B316)-4)/50)/3,"#"))) -> ἐ + [active stem] +ον | E316: =INDIRECT( "FlashCards!"&IF(MOD(INT((ROW(B316)-4)/50),2)=0,"CE"&TEXT((ROW(B316)/6)+10/3-INT((ROW(B316)-4)/50)/3+8,"#"),"CD"&TEXT((ROW(B316)/6)+10/3-INT((ROW(B316)-4)/50)/3+8,"#"))) -> ἐ + [active stem] +ετο
B318: =INDIRECT( "FlashCards!"&IF(MOD(INT((ROW(B316)-4)/50),2)=0,"CC"&TEXT((ROW(B316)/6)+10/3-INT((ROW(B316)-4)/50)/3,"#"),"")) ->  | E318: =INDIRECT( "FlashCards!"&IF(MOD(INT((ROW(B316)-4)/50),2)=0,"CC"&TEXT((ROW(B316)/6)+10/3-INT((ROW(B316)-4)/50)/3+8,"#"),"CC"&TEXT((ROW(B316)/6)+10/3-INT((ROW(B316)-4)/50)/3+8,"#"))) -> 
B321: =INDIRECT( "FlashCards!"&IF(MOD(INT((ROW(B322)-4)/50),2)=0,"CF"&TEXT((ROW(B322)/6)+10/3-INT((ROW(B322)-4)/50)/3,"#"),"CF"&TEXT((ROW(B322)/6)+10/3-INT((ROW(B322)-4)/50)/3,"#"))) -> Chapter 21: Verb Ending | E321: =INDIRECT( "FlashCards!"&IF(MOD(INT((ROW(B322)-4)/50),2)=0,"CF"&TEXT((ROW(B322)/6)+10/3-INT((ROW(B322)-4)/50)/3+8,"#"),"CF"&TEXT((ROW(B322)/6)+10/3-INT((ROW(B322)-4)/50)/3+8,"#"))) -> Chapter 21: Verb Ending
B322: =INDIRECT( "FlashCards!"&IF(MOD(INT((ROW(B322)-4)/50),2)=0,"CE"&TEXT((ROW(B322)/6)+10/3-INT((ROW(B322)-4)/50)/3,"#"),"CD"&TEXT((ROW(B322)/6)+10/3-INT((ROW(B322)-4)/50)/3,"#"))) -> ἐ + [active stem] +ες, +εις | E322: =INDIRECT( "FlashCards!"&IF(MOD(INT((ROW(B322)-4)/50),2)=0,"CE"&TEXT((ROW(B322)/6)+10/3-INT((ROW(B322)-4)/50)/3+8,"#"),"CD"&TEXT((ROW(B322)/6)+10/3-INT((ROW(B322)-4)/50)/3+8,"#"))) -> ἐ + [active stem] +ομεθα
B324: =INDIRECT( "FlashCards!"&IF(MOD(INT((ROW(B322)-4)/50),2)=0,"CC"&TEXT((ROW(B322)/6)+10/3-INT((ROW(B322)-4)/50)/3,"#"),"")) ->  | E324: =INDIRECT( "FlashCards!"&IF(MOD(INT((ROW(B322)-4)/50),2)=0,"CC"&TEXT((ROW(B322)/6)+10/3-INT((ROW(B322)-4)/50)/3+8,"#"),"CC"&TEXT((ROW(B322)/6)+10/3-INT((ROW(B322)-4)/50)/3+8,"#"))) -> 
B327: =INDIRECT( "FlashCards!"&IF(MOD(INT((ROW(B328)-4)/50),2)=0,"CF"&TEXT((ROW(B328)/6)+10/3-INT((ROW(B328)-4)/50)/3,"#"),"CF"&TEXT((ROW(B328)/6)+10/3-INT((ROW(B328)-4)/50)/3,"#"))) -> Chapter 21: Verb Ending | E327: =INDIRECT( "FlashCards!"&IF(MOD(INT((ROW(B328)-4)/50),2)=0,"CF"&TEXT((ROW(B328)/6)+10/3-INT((ROW(B328)-4)/50)/3+8,"#"),"CF"&TEXT((ROW(B328)/6)+10/3-INT((ROW(B328)-4)/50)/3+8,"#"))) -> Chapter 21: Verb Ending
B328: =INDIRECT( "FlashCards!"&IF(MOD(INT((ROW(B328)-4)/50),2)=0,"CE"&TEXT((ROW(B328)/6)+10/3-INT((ROW(B328)-4)/50)/3,"#"),"CD"&TEXT((ROW(B328)/6)+10/3-INT((ROW(B328)-4)/50)/3,"#"))) -> ἐ + [active stem] +ει | E328: =INDIRECT( "FlashCards!"&IF(MOD(INT((ROW(B328)-4)/50),2)=0,"CE"&TEXT((ROW(B328)/6)+10/3-INT((ROW(B328)-4)/50)/3+8,"#"),"CD"&TEXT((ROW(B328)/6)+10/3-INT((ROW(B328)-4)/50)/3+8,"#"))) -> ἐ + [active stem] +εσθε
B330: =INDIRECT( "FlashCards!"&IF(MOD(INT((ROW(B328)-4)/50),2)=0,"CC"&TEXT((ROW(B328)/6)+10/3-INT((ROW(B328)-4)/50)/3,"#"),"")) ->  | E330: =INDIRECT( "FlashCards!"&IF(MOD(INT((ROW(B328)-4)/50),2)=0,"CC"&TEXT((ROW(B328)/6)+10/3-INT((ROW(B328)-4)/50)/3+8,"#"),"CC"&TEXT((ROW(B328)/6)+10/3-INT((ROW(B328)-4)/50)/3+8,"#"))) -> 
B333: =INDIRECT( "FlashCards!"&IF(MOD(INT((ROW(B334)-4)/50),2)=0,"CF"&TEXT((ROW(B334)/6)+10/3-INT((ROW(B334)-4)/50)/3,"#"),"CF"&TEXT((ROW(B334)/6)+10/3-INT((ROW(B334)-4)/50)/3,"#"))) -> Chapter 21: Verb Ending | E333: =INDIRECT( "FlashCards!"&IF(MOD(INT((ROW(B334)-4)/50),2)=0,"CF"&TEXT((ROW(B334)/6)+10/3-INT((ROW(B334)-4)/50)/3+8,"#"),"CF"&TEXT((ROW(B334)/6)+10/3-INT((ROW(B334)-4)/50)/3+8,"#"))) -> Chapter 21: Verb Ending
B334: =INDIRECT( "FlashCards!"&IF(MOD(INT((ROW(B334)-4)/50),2)=0,"CE"&TEXT((ROW(B334)/6)+10/3-INT((ROW(B334)-4)/50)/3,"#"),"CD"&TEXT((ROW(B334)/6)+10/3-INT((ROW(B334)-4)/50)/3,"#"))) -> ἐ + [active stem] +ομεν | E334: =INDIRECT( "FlashCards!"&IF(MOD(INT((ROW(B334)-4)/50),2)=0,"CE"&TEXT((ROW(B334)/6)+10/3-INT((ROW(B334)-4)/50)/3+8,"#"),"CD"&TEXT((ROW(B334)/6)+10/3-INT((ROW(B334)-4)/50)/3+8,"#"))) -> ἐ + [active stem] +οντο
B336: =INDIRECT( "FlashCards!"&IF(MOD(INT((ROW(B334)-4)/50),2)=0,"CC"&TEXT((ROW(B334)/6)+10/3-INT((ROW(B334)-4)/50)/3,"#"),"")) ->  | E336: =INDIRECT( "FlashCards!"&IF(MOD(INT((ROW(B334)-4)/50),2)=0,"CC"&TEXT((ROW(B334)/6)+10/3-INT((ROW(B334)-4)/50)/3+8,"#"),"CC"&TEXT((ROW(B334)/6)+10/3-INT((ROW(B334)-4)/50)/3+8,"#"))) -> 
B339: =INDIRECT( "FlashCards!"&IF(MOD(INT((ROW(B340)-4)/50),2)=0,"CF"&TEXT((ROW(B340)/6)+10/3-INT((ROW(B340)-4)/50)/3,"#"),"CF"&TEXT((ROW(B340)/6)+10/3-INT((ROW(B340)-4)/50)/3,"#"))) -> Chapter 21: Verb Ending | E339: =INDIRECT( "FlashCards!"&IF(MOD(INT((ROW(B340)-4)/50),2)=0,"CF"&TEXT((ROW(B340)/6)+10/3-INT((ROW(B340)-4)/50)/3+8,"#"),"CF"&TEXT((ROW(B340)/6)+10/3-INT((ROW(B340)-4)/50)/3+8,"#"))) -> Chapter 21: Verb Ending
B340: =INDIRECT( "FlashCards!"&IF(MOD(INT((ROW(B340)-4)/50),2)=0,"CE"&TEXT((ROW(B340)/6)+10/3-INT((ROW(B340)-4)/50)/3,"#"),"CD"&TEXT((ROW(B340)/6)+10/3-INT((ROW(B340)-4)/50)/3,"#"))) -> ἐ + [active stem] +ετε | E340: =INDIRECT( "FlashCards!"&IF(MOD(INT((ROW(B340)-4)/50),2)=0,"CE"&TEXT((ROW(B340)/6)+10/3-INT((ROW(B340)-4)/50)/3+8,"#"),"CD"&TEXT((ROW(B340)/6)+10/3-INT((ROW(B340)-4)/50)/3+8,"#"))) -> ἐ + [middle stem] +ομην
B342: =INDIRECT( "FlashCards!"&IF(MOD(INT((ROW(B340)-4)/50),2)=0,"CC"&TEXT((ROW(B340)/6)+10/3-INT((ROW(B340)-4)/50)/3,"#"),"")) ->  | E342: =INDIRECT( "FlashCards!"&IF(MOD(INT((ROW(B340)-4)/50),2)=0,"CC"&TEXT((ROW(B340)/6)+10/3-INT((ROW(B340)-4)/50)/3+8,"#"),"CC"&TEXT((ROW(B340)/6)+10/3-INT((ROW(B340)-4)/50)/3+8,"#"))) -> 
B345: =INDIRECT( "FlashCards!"&IF(MOD(INT((ROW(B346)-4)/50),2)=0,"CF"&TEXT((ROW(B346)/6)+10/3-INT((ROW(B346)-4)/50)/3,"#"),"CF"&TEXT((ROW(B346)/6)+10/3-INT((ROW(B346)-4)/50)/3,"#"))) -> Chapter 21: Verb Ending | E345: =INDIRECT( "FlashCards!"&IF(MOD(INT((ROW(B346)-4)/50),2)=0,"CF"&TEXT((ROW(B346)/6)+10/3-INT((ROW(B346)-4)/50)/3+8,"#"),"CF"&TEXT((ROW(B346)/6)+10/3-INT((ROW(B346)-4)/50)/3+8,"#"))) -> Chapter 21: Verb Ending
B346: =INDIRECT( "FlashCards!"&IF(MOD(INT((ROW(B346)-4)/50),2)=0,"CE"&TEXT((ROW(B346)/6)+10/3-INT((ROW(B346)-4)/50)/3,"#"),"CD"&TEXT((ROW(B346)/6)+10/3-INT((ROW(B346)-4)/50)/3,"#"))) -> ἐ + [active stem] +ον | E346: =INDIRECT( "FlashCards!"&IF(MOD(INT((ROW(B346)-4)/50),2)=0,"CE"&TEXT((ROW(B346)/6)+10/3-INT((ROW(B346)-4)/50)/3+8,"#"),"CD"&TEXT((ROW(B346)/6)+10/3-INT((ROW(B346)-4)/50)/3+8,"#"))) -> ἐ + [middle stem] +εσο
B348: =INDIRECT( "FlashCards!"&IF(MOD(INT((ROW(B346)-4)/50),2)=0,"CC"&TEXT((ROW(B346)/6)+10/3-INT((ROW(B346)-4)/50)/3,"#"),"")) ->  | E348: =INDIRECT( "FlashCards!"&IF(MOD(INT((ROW(B346)-4)/50),2)=0,"CC"&TEXT((ROW(B346)/6)+10/3-INT((ROW(B346)-4)/50)/3+8,"#"),"CC"&TEXT((ROW(B346)/6)+10/3-INT((ROW(B346)-4)/50)/3+8,"#"))) -> 
B353: =E303 -> Chapter 21: Verb Ending | E353: =B303 -> Chapter 19: Verb Ending
B354: =INDIRECT( "FlashCards!"&IF(MOD(INT((ROW(B354)-4)/50),2)=0,"CE"&TEXT((ROW(B354)/6)+10/3-INT((ROW(B354)-4)/50)/3,"#"),"CD"&TEXT((ROW(B354)/6)+10/3-INT((ROW(B354)-4)/50)/3,"#"))) -> I was being verbed (by it) [imperfect passive indicative] | E354: =INDIRECT( "FlashCards!"&IF(MOD(INT((ROW(B354)-4)/50),2)=0,"CE"&TEXT((ROW(B354)/6)+10/3-INT((ROW(B354)-4)/50)/3-8,"#"),"CD"&TEXT((ROW(B354)/6)+10/3-INT((ROW(B354)-4)/50)/3-8,"#"))) -> ya'll will verb [future middle indicative]
B359: =E309 -> Chapter 21: Verb Ending | E359: =B309 -> Chapter 19: Verb Ending
B360: =INDIRECT( "FlashCards!"&IF(MOD(INT((ROW(B360)-4)/50),2)=0,"CE"&TEXT((ROW(B360)/6)+10/3-INT((ROW(B360)-4)/50)/3,"#"),"CD"&TEXT((ROW(B360)/6)+10/3-INT((ROW(B360)-4)/50)/3,"#"))) -> you were being verbed (by it) [imperfect passive indicative] | E360: =INDIRECT( "FlashCards!"&IF(MOD(INT((ROW(B360)-4)/50),2)=0,"CE"&TEXT((ROW(B360)/6)+10/3-INT((ROW(B360)-4)/50)/3-8,"#"),"CD"&TEXT((ROW(B360)/6)+10/3-INT((ROW(B360)-4)/50)/3-8,"#"))) -> they will verb [future middle indicative]
B365: =E315 -> Chapter 21: Verb Ending | E365: =B315 -> Chapter 21: Verb Ending
B366: =INDIRECT( "FlashCards!"&IF(MOD(INT((ROW(B366)-4)/50),2)=0,"CE"&TEXT((ROW(B366)/6)+10/3-INT((ROW(B366)-4)/50)/3,"#"),"CD"&TEXT((ROW(B366)/6)+10/3-INT((ROW(B366)-4)/50)/3,"#"))) -> he/she/it was being verbed (by it) [imperfect passive indicative] | E366: =INDIRECT( "FlashCards!"&IF(MOD(INT((ROW(B366)-4)/50),2)=0,"CE"&TEXT((ROW(B366)/6)+10/3-INT((ROW(B366)-4)/50)/3-8,"#"),"CD"&TEXT((ROW(B366)/6)+10/3-INT((ROW(B366)-4)/50)/3-8,"#"))) -> I was/they were verbing (it) [imperfect active indicative]
B371: =E321 -> Chapter 21: Verb Ending | E371: =B321 -> Chapter 21: Verb Ending
B372: =INDIRECT( "FlashCards!"&IF(MOD(INT((ROW(B372)-4)/50),2)=0,"CE"&TEXT((ROW(B372)/6)+10/3-INT((ROW(B372)-4)/50)/3,"#"),"CD"&TEXT((ROW(B372)/6)+10/3-INT((ROW(B372)-4)/50)/3,"#"))) -> we were being verbed (by it) [imperfect passive indicative] | E372: =INDIRECT( "FlashCards!"&IF(MOD(INT((ROW(B372)-4)/50),2)=0,"CE"&TEXT((ROW(B372)/6)+10/3-INT((ROW(B372)-4)/50)/3-8,"#"),"CD"&TEXT((ROW(B372)/6)+10/3-INT((ROW(B372)-4)/50)/3-8,"#"))) -> you were verbing (it) [imperfect active indicative]
B377: =E327 -> Chapter 21: Verb Ending | E377: =B327 -> Chapter 21: Verb Ending
B378: =INDIRECT( "FlashCards!"&IF(MOD(INT((ROW(B378)-4)/50),2)=0,"CE"&TEXT((ROW(B378)/6)+10/3-INT((ROW(B378)-4)/50)/3,"#"),"CD"&TEXT((ROW(B378)/6)+10/3-INT((ROW(B378)-4)/50)/3,"#"))) -> ya'll were being verbed (by it) [imperfect passive indicative] | E378: =INDIRECT( "FlashCards!"&IF(MOD(INT((ROW(B378)-4)/50),2)=0,"CE"&TEXT((ROW(B378)/6)+10/3-INT((ROW(B378)-4)/50)/3-8,"#"),"CD"&TEXT((ROW(B378)/6)+10/3-INT((ROW(B378)-4)/50)/3-8,"#"))) -> he/she/it was verbing (it) [imperfect active indicative]
B383: =E333 -> Chapter 21: Verb Ending | E383: =B333 -> Chapter 21: Verb Ending
B384: =INDIRECT( "FlashCards!"&IF(MOD(INT((ROW(B384)-4)/50),2)=0,"CE"&TEXT((ROW(B384)/6)+10/3-INT((ROW(B384)-4)/50)/3,"#"),"CD"&TEXT((ROW(B384)/6)+10/3-INT((ROW(B384)-4)/50)/3,"#"))) -> they were being verbed (by it) [imperfect passive indicative] | E384: =INDIRECT( "FlashCards!"&IF(MOD(INT((ROW(B384)-4)/50),2)=0,"CE"&TEXT((ROW(B384)/6)+10/3-INT((ROW(B384)-4)/50)/3-8,"#"),"CD"&TEXT((ROW(B384)/6)+10/3-INT((ROW(B384)-4)/50)/3-8,"#"))) -> we were verbing (it) [imperfect active indicative]
B389: =E339 -> Chapter 21: Verb Ending | E389: =B339 -> Chapter 21: Verb Ending
B390: =INDIRECT( "FlashCards!"&IF(MOD(INT((ROW(B390)-4)/50),2)=0,"CE"&TEXT((ROW(B390)/6)+10/3-INT((ROW(B390)-4)/50)/3,"#"),"CD"&TEXT((ROW(B390)/6)+10/3-INT((ROW(B390)-4)/50)/3,"#"))) -> I was verbing [imperfect middle indicative] | E390: =INDIRECT( "FlashCards!"&IF(MOD(INT((ROW(B390)-4)/50),2)=0,"CE"&TEXT((ROW(B390)/6)+10/3-INT((ROW(B390)-4)/50)/3-8,"#"),"CD"&TEXT((ROW(B390)/6)+10/3-INT((ROW(B390)-4)/50)/3-8,"#"))) -> ya'll were verbing (it) [imperfect active indicative]
B395: =E345 -> Chapter 21: Verb Ending | E395: =B345 -> Chapter 21: Verb Ending
B396: =INDIRECT( "FlashCards!"&IF(MOD(INT((ROW(B396)-4)/50),2)=0,"CE"&TEXT((ROW(B396)/6)+10/3-INT((ROW(B396)-4)/50)/3,"#"),"CD"&TEXT((ROW(B396)/6)+10/3-INT((ROW(B396)-4)/50)/3,"#"))) -> you were verbing [imperfect middle indicative] | E396: =INDIRECT( "FlashCards!"&IF(MOD(INT((ROW(B396)-4)/50),2)=0,"CE"&TEXT((ROW(B396)/6)+10/3-INT((ROW(B396)-4)/50)/3-8,"#"),"CD"&TEXT((ROW(B396)/6)+10/3-INT((ROW(B396)-4)/50)/3-8,"#"))) -> they were verbing (it) [imperfect active indicative]
B403: =INDIRECT( "FlashCards!"&IF(MOD(INT((ROW(B404)-4)/50),2)=0,"CF"&TEXT((ROW(B404)/6)+10/3-INT((ROW(B404)-4)/50)/3,"#"),"CF"&TEXT((ROW(B404)/6)+10/3-INT((ROW(B404)-4)/50)/3,"#"))) -> Chapter 21: Verb Ending | E403: =INDIRECT( "FlashCards!"&IF(MOD(INT((ROW(B404)-4)/50),2)=0,"CF"&TEXT((ROW(B404)/6)+10/3-INT((ROW(B404)-4)/50)/3+8,"#"),"CF"&TEXT((ROW(B404)/6)+10/3-INT((ROW(B404)-4)/50)/3+8,"#"))) -> Chapter 09: Adjective
B404: =INDIRECT( "FlashCards!"&IF(MOD(INT((ROW(B404)-4)/50),2)=0,"CE"&TEXT((ROW(B404)/6)+10/3-INT((ROW(B404)-4)/50)/3,"#"),"CD"&TEXT((ROW(B404)/6)+10/3-INT((ROW(B404)-4)/50)/3,"#"))) -> ἐ + [middle stem] +ετο | E404: =INDIRECT( "FlashCards!"&IF(MOD(INT((ROW(B404)-4)/50),2)=0,"CE"&TEXT((ROW(B404)/6)+10/3-INT((ROW(B404)-4)/50)/3+8,"#"),"CD"&TEXT((ROW(B404)/6)+10/3-INT((ROW(B404)-4)/50)/3+8,"#"))) -> ἀγαθός
B406: =INDIRECT( "FlashCards!"&IF(MOD(INT((ROW(B404)-4)/50),2)=0,"CC"&TEXT((ROW(B404)/6)+10/3-INT((ROW(B404)-4)/50)/3,"#"),"")) ->  | E406: =INDIRECT( "FlashCards!"&IF(MOD(INT((ROW(B404)-4)/50),2)=0,"CC"&TEXT((ROW(B404)/6)+10/3-INT((ROW(B404)-4)/50)/3+8,"#"),"CC"&TEXT((ROW(B404)/6)+10/3-INT((ROW(B404)-4)/50)/3+8,"#"))) -> ah-gah-THOSS
B409: =INDIRECT( "FlashCards!"&IF(MOD(INT((ROW(B410)-4)/50),2)=0,"CF"&TEXT((ROW(B410)/6)+10/3-INT((ROW(B410)-4)/50)/3,"#"),"CF"&TEXT((ROW(B410)/6)+10/3-INT((ROW(B410)-4)/50)/3,"#"))) -> Chapter 21: Verb Ending | E409: =INDIRECT( "FlashCards!"&IF(MOD(INT((ROW(B410)-4)/50),2)=0,"CF"&TEXT((ROW(B410)/6)+10/3-INT((ROW(B410)-4)/50)/3+8,"#"),"CF"&TEXT((ROW(B410)/6)+10/3-INT((ROW(B410)-4)/50)/3+8,"#"))) -> Index of Textbook: Verb
B410: =INDIRECT( "FlashCards!"&IF(MOD(INT((ROW(B410)-4)/50),2)=0,"CE"&TEXT((ROW(B410)/6)+10/3-INT((ROW(B410)-4)/50)/3,"#"),"CD"&TEXT((ROW(B410)/6)+10/3-INT((ROW(B410)-4)/50)/3,"#"))) -> ἐ + [middle stem] +ομεθα | E410: =INDIRECT( "FlashCards!"&IF(MOD(INT((ROW(B410)-4)/50),2)=0,"CE"&TEXT((ROW(B410)/6)+10/3-INT((ROW(B410)-4)/50)/3+8,"#"),"CD"&TEXT((ROW(B410)/6)+10/3-INT((ROW(B410)-4)/50)/3+8,"#"))) -> ἀγαλλιάω
B412: =INDIRECT( "FlashCards!"&IF(MOD(INT((ROW(B410)-4)/50),2)=0,"CC"&TEXT((ROW(B410)/6)+10/3-INT((ROW(B410)-4)/50)/3,"#"),"")) ->  | E412: =INDIRECT( "FlashCards!"&IF(MOD(INT((ROW(B410)-4)/50),2)=0,"CC"&TEXT((ROW(B410)/6)+10/3-INT((ROW(B410)-4)/50)/3+8,"#"),"CC"&TEXT((ROW(B410)/6)+10/3-INT((ROW(B410)-4)/50)/3+8,"#"))) -> ah-gah-lee-AH-owe
B415: =INDIRECT( "FlashCards!"&IF(MOD(INT((ROW(B416)-4)/50),2)=0,"CF"&TEXT((ROW(B416)/6)+10/3-INT((ROW(B416)-4)/50)/3,"#"),"CF"&TEXT((ROW(B416)/6)+10/3-INT((ROW(B416)-4)/50)/3,"#"))) -> Chapter 21: Verb Ending | E415: =INDIRECT( "FlashCards!"&IF(MOD(INT((ROW(B416)-4)/50),2)=0,"CF"&TEXT((ROW(B416)/6)+10/3-INT((ROW(B416)-4)/50)/3+8,"#"),"CF"&TEXT((ROW(B416)/6)+10/3-INT((ROW(B416)-4)/50)/3+8,"#"))) -> Extra: Noun
B416: =INDIRECT( "FlashCards!"&IF(MOD(INT((ROW(B416)-4)/50),2)=0,"CE"&TEXT((ROW(B416)/6)+10/3-INT((ROW(B416)-4)/50)/3,"#"),"CD"&TEXT((ROW(B416)/6)+10/3-INT((ROW(B416)-4)/50)/3,"#"))) -> ἐ + [middle stem] +εσθε | E416: =INDIRECT( "FlashCards!"&IF(MOD(INT((ROW(B416)-4)/50),2)=0,"CE"&TEXT((ROW(B416)/6)+10/3-INT((ROW(B416)-4)/50)/3+8,"#"),"CD"&TEXT((ROW(B416)/6)+10/3-INT((ROW(B416)-4)/50)/3+8,"#"))) -> ἡ ἄγαμος
B418: =INDIRECT( "FlashCards!"&IF(MOD(INT((ROW(B416)-4)/50),2)=0,"CC"&TEXT((ROW(B416)/6)+10/3-INT((ROW(B416)-4)/50)/3,"#"),"")) ->  | E418: =INDIRECT( "FlashCards!"&IF(MOD(INT((ROW(B416)-4)/50),2)=0,"CC"&TEXT((ROW(B416)/6)+10/3-INT((ROW(B416)-4)/50)/3+8,"#"),"CC"&TEXT((ROW(B416)/6)+10/3-INT((ROW(B416)-4)/50)/3+8,"#"))) -> AH-gah-moss
B421: =INDIRECT( "FlashCards!"&IF(MOD(INT((ROW(B422)-4)/50),2)=0,"CF"&TEXT((ROW(B422)/6)+10/3-INT((ROW(B422)-4)/50)/3,"#"),"CF"&TEXT((ROW(B422)/6)+10/3-INT((ROW(B422)-4)/50)/3,"#"))) -> Chapter 21: Verb Ending | E421: =INDIRECT( "FlashCards!"&IF(MOD(INT((ROW(B422)-4)/50),2)=0,"CF"&TEXT((ROW(B422)/6)+10/3-INT((ROW(B422)-4)/50)/3+8,"#"),"CF"&TEXT((ROW(B422)/6)+10/3-INT((ROW(B422)-4)/50)/3+8,"#"))) -> Extra: Verb
B422: =INDIRECT( "FlashCards!"&IF(MOD(INT((ROW(B422)-4)/50),2)=0,"CE"&TEXT((ROW(B422)/6)+10/3-INT((ROW(B422)-4)/50)/3,"#"),"CD"&TEXT((ROW(B422)/6)+10/3-INT((ROW(B422)-4)/50)/3,"#"))) -> ἐ + [middle stem] +οντο | E422: =INDIRECT( "FlashCards!"&IF(MOD(INT((ROW(B422)-4)/50),2)=0,"CE"&TEXT((ROW(B422)/6)+10/3-INT((ROW(B422)-4)/50)/3+8,"#"),"CD"&TEXT((ROW(B422)/6)+10/3-INT((ROW(B422)-4)/50)/3+8,"#"))) -> ἀγανακτέω
B424: =INDIRECT( "FlashCards!"&IF(MOD(INT((ROW(B422)-4)/50),2)=0,"CC"&TEXT((ROW(B422)/6)+10/3-INT((ROW(B422)-4)/50)/3,"#"),"")) ->  | E424: =INDIRECT( "FlashCards!"&IF(MOD(INT((ROW(B422)-4)/50),2)=0,"CC"&TEXT((ROW(B422)/6)+10/3-INT((ROW(B422)-4)/50)/3+8,"#"),"CC"&TEXT((ROW(B422)/6)+10/3-INT((ROW(B422)-4)/50)/3+8,"#"))) -> ah-gahn-ahk-TEH-noe
B427: =INDIRECT( "FlashCards!"&IF(MOD(INT((ROW(B428)-4)/50),2)=0,"CF"&TEXT((ROW(B428)/6)+10/3-INT((ROW(B428)-4)/50)/3,"#"),"CF"&TEXT((ROW(B428)/6)+10/3-INT((ROW(B428)-4)/50)/3,"#"))) -> Extra: Verb Ending | E427: =INDIRECT( "FlashCards!"&IF(MOD(INT((ROW(B428)-4)/50),2)=0,"CF"&TEXT((ROW(B428)/6)+10/3-INT((ROW(B428)-4)/50)/3+8,"#"),"CF"&TEXT((ROW(B428)/6)+10/3-INT((ROW(B428)-4)/50)/3+8,"#"))) -> Chapter 17: Verb
B428: =INDIRECT( "FlashCards!"&IF(MOD(INT((ROW(B428)-4)/50),2)=0,"CE"&TEXT((ROW(B428)/6)+10/3-INT((ROW(B428)-4)/50)/3,"#"),"CD"&TEXT((ROW(B428)/6)+10/3-INT((ROW(B428)-4)/50)/3,"#"))) -> κατα-, κατε- | E428: =INDIRECT( "FlashCards!"&IF(MOD(INT((ROW(B428)-4)/50),2)=0,"CE"&TEXT((ROW(B428)/6)+10/3-INT((ROW(B428)-4)/50)/3+8,"#"),"CD"&TEXT((ROW(B428)/6)+10/3-INT((ROW(B428)-4)/50)/3+8,"#"))) -> ἀγαπάω
B430: =INDIRECT( "FlashCards!"&IF(MOD(INT((ROW(B428)-4)/50),2)=0,"CC"&TEXT((ROW(B428)/6)+10/3-INT((ROW(B428)-4)/50)/3,"#"),"")) ->  | E430: =INDIRECT( "FlashCards!"&IF(MOD(INT((ROW(B428)-4)/50),2)=0,"CC"&TEXT((ROW(B428)/6)+10/3-INT((ROW(B428)-4)/50)/3+8,"#"),"CC"&TEXT((ROW(B428)/6)+10/3-INT((ROW(B428)-4)/50)/3+8,"#"))) -> ah-gah-PAY-owe
B433: =INDIRECT( "FlashCards!"&IF(MOD(INT((ROW(B434)-4)/50),2)=0,"CF"&TEXT((ROW(B434)/6)+10/3-INT((ROW(B434)-4)/50)/3,"#"),"CF"&TEXT((ROW(B434)/6)+10/3-INT((ROW(B434)-4)/50)/3,"#"))) -> Chapter 04: Proper Noun | E433: =INDIRECT( "FlashCards!"&IF(MOD(INT((ROW(B434)-4)/50),2)=0,"CF"&TEXT((ROW(B434)/6)+10/3-INT((ROW(B434)-4)/50)/3+8,"#"),"CF"&TEXT((ROW(B434)/6)+10/3-INT((ROW(B434)-4)/50)/3+8,"#"))) -> Chapter 06: Noun
B434: =INDIRECT( "FlashCards!"&IF(MOD(INT((ROW(B434)-4)/50),2)=0,"CE"&TEXT((ROW(B434)/6)+10/3-INT((ROW(B434)-4)/50)/3,"#"),"CD"&TEXT((ROW(B434)/6)+10/3-INT((ROW(B434)-4)/50)/3,"#"))) -> ὁ Ἀβραάμ | E434: =INDIRECT( "FlashCards!"&IF(MOD(INT((ROW(B434)-4)/50),2)=0,"CE"&TEXT((ROW(B434)/6)+10/3-INT((ROW(B434)-4)/50)/3+8,"#"),"CD"&TEXT((ROW(B434)/6)+10/3-INT((ROW(B434)-4)/50)/3+8,"#"))) -> ἡ ἀγάπη
B436: =INDIRECT( "FlashCards!"&IF(MOD(INT((ROW(B434)-4)/50),2)=0,"CC"&TEXT((ROW(B434)/6)+10/3-INT((ROW(B434)-4)/50)/3,"#"),"")) -> ah-brah-AHM | E436: =INDIRECT( "FlashCards!"&IF(MOD(INT((ROW(B434)-4)/50),2)=0,"CC"&TEXT((ROW(B434)/6)+10/3-INT((ROW(B434)-4)/50)/3+8,"#"),"CC"&TEXT((ROW(B434)/6)+10/3-INT((ROW(B434)-4)/50)/3+8,"#"))) -> ah-GAH-pay
B439: =INDIRECT( "FlashCards!"&IF(MOD(INT((ROW(B440)-4)/50),2)=0,"CF"&TEXT((ROW(B440)/6)+10/3-INT((ROW(B440)-4)/50)/3,"#"),"CF"&TEXT((ROW(B440)/6)+10/3-INT((ROW(B440)-4)/50)/3,"#"))) -> Extra: Noun | E439: =INDIRECT( "FlashCards!"&IF(MOD(INT((ROW(B440)-4)/50),2)=0,"CF"&TEXT((ROW(B440)/6)+10/3-INT((ROW(B440)-4)/50)/3+8,"#"),"CF"&TEXT((ROW(B440)/6)+10/3-INT((ROW(B440)-4)/50)/3+8,"#"))) -> Chapter 09: Adjective
B440: =INDIRECT( "FlashCards!"&IF(MOD(INT((ROW(B440)-4)/50),2)=0,"CE"&TEXT((ROW(B440)/6)+10/3-INT((ROW(B440)-4)/50)/3,"#"),"CD"&TEXT((ROW(B440)/6)+10/3-INT((ROW(B440)-4)/50)/3,"#"))) -> ἡ ἄβυσσος | E440: =INDIRECT( "FlashCards!"&IF(MOD(INT((ROW(B440)-4)/50),2)=0,"CE"&TEXT((ROW(B440)/6)+10/3-INT((ROW(B440)-4)/50)/3+8,"#"),"CD"&TEXT((ROW(B440)/6)+10/3-INT((ROW(B440)-4)/50)/3+8,"#"))) -> ἀγαπητός
B442: =INDIRECT( "FlashCards!"&IF(MOD(INT((ROW(B440)-4)/50),2)=0,"CC"&TEXT((ROW(B440)/6)+10/3-INT((ROW(B440)-4)/50)/3,"#"),"")) -> AHB-oose-oss | E442: =INDIRECT( "FlashCards!"&IF(MOD(INT((ROW(B440)-4)/50),2)=0,"CC"&TEXT((ROW(B440)/6)+10/3-INT((ROW(B440)-4)/50)/3+8,"#"),"CC"&TEXT((ROW(B440)/6)+10/3-INT((ROW(B440)-4)/50)/3+8,"#"))) -> ah-ga-pay-TOSS
B445: =INDIRECT( "FlashCards!"&IF(MOD(INT((ROW(B446)-4)/50),2)=0,"CF"&TEXT((ROW(B446)/6)+10/3-INT((ROW(B446)-4)/50)/3,"#"),"CF"&TEXT((ROW(B446)/6)+10/3-INT((ROW(B446)-4)/50)/3,"#"))) -> Extra: Verb | E445: =INDIRECT( "FlashCards!"&IF(MOD(INT((ROW(B446)-4)/50),2)=0,"CF"&TEXT((ROW(B446)/6)+10/3-INT((ROW(B446)-4)/50)/3+8,"#"),"CF"&TEXT((ROW(B446)/6)+10/3-INT((ROW(B446)-4)/50)/3+8,"#"))) -> Extra: Noun
B446: =INDIRECT( "FlashCards!"&IF(MOD(INT((ROW(B446)-4)/50),2)=0,"CE"&TEXT((ROW(B446)/6)+10/3-INT((ROW(B446)-4)/50)/3,"#"),"CD"&TEXT((ROW(B446)/6)+10/3-INT((ROW(B446)-4)/50)/3,"#"))) -> ἀγαθοποιέω | E446: =INDIRECT( "FlashCards!"&IF(MOD(INT((ROW(B446)-4)/50),2)=0,"CE"&TEXT((ROW(B446)/6)+10/3-INT((ROW(B446)-4)/50)/3+8,"#"),"CD"&TEXT((ROW(B446)/6)+10/3-INT((ROW(B446)-4)/50)/3+8,"#"))) -> ἡ ἀγγελία
B448: =INDIRECT( "FlashCards!"&IF(MOD(INT((ROW(B446)-4)/50),2)=0,"CC"&TEXT((ROW(B446)/6)+10/3-INT((ROW(B446)-4)/50)/3,"#"),"")) -> ah-gah-thopp-oy-EH-ower | E448: =INDIRECT( "FlashCards!"&IF(MOD(INT((ROW(B446)-4)/50),2)=0,"CC"&TEXT((ROW(B446)/6)+10/3-INT((ROW(B446)-4)/50)/3+8,"#"),"CC"&TEXT((ROW(B446)/6)+10/3-INT((ROW(B446)-4)/50)/3+8,"#"))) -> ahng-ell-EE-ah
B453: =E403 -> Chapter 09: Adjective | E453: =B403 -> Chapter 21: Verb Ending
B454: =INDIRECT( "FlashCards!"&IF(MOD(INT((ROW(B454)-4)/50),2)=0,"CE"&TEXT((ROW(B454)/6)+10/3-INT((ROW(B454)-4)/50)/3,"#"),"CD"&TEXT((ROW(B454)/6)+10/3-INT((ROW(B454)-4)/50)/3,"#"))) -> good, useful | E454: =INDIRECT( "FlashCards!"&IF(MOD(INT((ROW(B454)-4)/50),2)=0,"CE"&TEXT((ROW(B454)/6)+10/3-INT((ROW(B454)-4)/50)/3-8,"#"),"CD"&TEXT((ROW(B454)/6)+10/3-INT((ROW(B454)-4)/50)/3-8,"#"))) -> he/she/it was verbing [imperfect middle indicative]
B459: =E409 -> Index of Textbook: Verb | E459: =B409 -> Chapter 21: Verb Ending
B460: =INDIRECT( "FlashCards!"&IF(MOD(INT((ROW(B460)-4)/50),2)=0,"CE"&TEXT((ROW(B460)/6)+10/3-INT((ROW(B460)-4)/50)/3,"#"),"CD"&TEXT((ROW(B460)/6)+10/3-INT((ROW(B460)-4)/50)/3,"#"))) -> I exult | E460: =INDIRECT( "FlashCards!"&IF(MOD(INT((ROW(B460)-4)/50),2)=0,"CE"&TEXT((ROW(B460)/6)+10/3-INT((ROW(B460)-4)/50)/3-8,"#"),"CD"&TEXT((ROW(B460)/6)+10/3-INT((ROW(B460)-4)/50)/3-8,"#"))) -> we were verbing [imperfect middle indicative]
B465: =E415 -> Extra: Noun | E465: =B415 -> Chapter 21: Verb Ending
B466: =INDIRECT( "FlashCards!"&IF(MOD(INT((ROW(B466)-4)/50),2)=0,"CE"&TEXT((ROW(B466)/6)+10/3-INT((ROW(B466)-4)/50)/3,"#"),"CD"&TEXT((ROW(B466)/6)+10/3-INT((ROW(B466)-4)/50)/3,"#"))) -> unmarried (person) | E466: =INDIRECT( "FlashCards!"&IF(MOD(INT((ROW(B466)-4)/50),2)=0,"CE"&TEXT((ROW(B466)/6)+10/3-INT((ROW(B466)-4)/50)/3-8,"#"),"CD"&TEXT((ROW(B466)/6)+10/3-INT((ROW(B466)-4)/50)/3-8,"#"))) -> ya'll were verbing [imperfect middle indicative]
B471: =E421 -> Extra: Verb | E471: =B421 -> Chapter 21: Verb Ending
B472: =INDIRECT( "FlashCards!"&IF(MOD(INT((ROW(B472)-4)/50),2)=0,"CE"&TEXT((ROW(B472)/6)+10/3-INT((ROW(B472)-4)/50)/3,"#"),"CD"&TEXT((ROW(B472)/6)+10/3-INT((ROW(B472)-4)/50)/3,"#"))) -> I am indignant, I am afflicted | E472: =INDIRECT( "FlashCards!"&IF(MOD(INT((ROW(B472)-4)/50),2)=0,"CE"&TEXT((ROW(B472)/6)+10/3-INT((ROW(B472)-4)/50)/3-8,"#"),"CD"&TEXT((ROW(B472)/6)+10/3-INT((ROW(B472)-4)/50)/3-8,"#"))) -> they were verbing [imperfect middle indicative]
B477: =E427 -> Chapter 17: Verb | E477: =B427 -> Extra: Verb Ending
B478: =INDIRECT( "FlashCards!"&IF(MOD(INT((ROW(B478)-4)/50),2)=0,"CE"&TEXT((ROW(B478)/6)+10/3-INT((ROW(B478)-4)/50)/3,"#"),"CD"&TEXT((ROW(B478)/6)+10/3-INT((ROW(B478)-4)/50)/3,"#"))) -> I love, I cherish | E478: =INDIRECT( "FlashCards!"&IF(MOD(INT((ROW(B478)-4)/50),2)=0,"CE"&TEXT((ROW(B478)/6)+10/3-INT((ROW(B478)-4)/50)/3-8,"#"),"CD"&TEXT((ROW(B478)/6)+10/3-INT((ROW(B478)-4)/50)/3-8,"#"))) -> verb prefix adding "thoroughly" to meaning
B483: =E433 -> Chapter 06: Noun | E483: =B433 -> Chapter 04: Proper Noun
B484: =INDIRECT( "FlashCards!"&IF(MOD(INT((ROW(B484)-4)/50),2)=0,"CE"&TEXT((ROW(B484)/6)+10/3-INT((ROW(B484)-4)/50)/3,"#"),"CD"&TEXT((ROW(B484)/6)+10/3-INT((ROW(B484)-4)/50)/3,"#"))) -> love | E484: =INDIRECT( "FlashCards!"&IF(MOD(INT((ROW(B484)-4)/50),2)=0,"CE"&TEXT((ROW(B484)/6)+10/3-INT((ROW(B484)-4)/50)/3-8,"#"),"CD"&TEXT((ROW(B484)/6)+10/3-INT((ROW(B484)-4)/50)/3-8,"#"))) -> Abraham
B489: =E439 -> Chapter 09: Adjective | E489: =B439 -> Extra: Noun
B490: =INDIRECT( "FlashCards!"&IF(MOD(INT((ROW(B490)-4)/50),2)=0,"CE"&TEXT((ROW(B490)/6)+10/3-INT((ROW(B490)-4)/50)/3,"#"),"CD"&TEXT((ROW(B490)/6)+10/3-INT((ROW(B490)-4)/50)/3,"#"))) -> beloved | E490: =INDIRECT( "FlashCards!"&IF(MOD(INT((ROW(B490)-4)/50),2)=0,"CE"&TEXT((ROW(B490)/6)+10/3-INT((ROW(B490)-4)/50)/3-8,"#"),"CD"&TEXT((ROW(B490)/6)+10/3-INT((ROW(B490)-4)/50)/3-8,"#"))) -> (infernal) abyss, bottomless
B495: =E445 -> Extra: Noun | E495: =B445 -> Extra: Verb
B496: =INDIRECT( "FlashCards!"&IF(MOD(INT((ROW(B496)-4)/50),2)=0,"CE"&TEXT((ROW(B496)/6)+10/3-INT((ROW(B496)-4)/50)/3,"#"),"CD"&TEXT((ROW(B496)/6)+10/3-INT((ROW(B496)-4)/50)/3,"#"))) -> message | E496: =INDIRECT( "FlashCards!"&IF(MOD(INT((ROW(B496)-4)/50),2)=0,"CE"&TEXT((ROW(B496)/6)+10/3-INT((ROW(B496)-4)/50)/3-8,"#"),"CD"&TEXT((ROW(B496)/6)+10/3-INT((ROW(B496)-4)/50)/3-8,"#"))) -> I do rightly, I do good
... 200 more rows

Sheet Index
C2: Lexical | D2: English Definition | E2: Strongs | S2: tot | T2: offset | U2: =B14 -> 1592 | V2: max? | W2: min? | X2: all strong | Y2: number | Z2: Plus? | AA2: Comma? | AB2: cleaned | AC2: err^2 | AD2: all i | AE2: min
B3: ▲ -10 | C3: =VLOOKUP(S3,FlashCards!$AE$4:$AQ$2003,3,TRUE) -> διό | D3: =VLOOKUP(S3,FlashCards!$AE$4:$AQ$2003,5,TRUE) -> therefore, for this reason | E3: =VLOOKUP(S3,FlashCards!$AE$4:$AQ$2003,13,TRUE) -> 1352 | S3: =W3 -> 427 | T3: -10 | U3: =$H$10+T3 -> 427 | V3: =IF(U3>$U$2,U3-$U$2,U3) -> 427 | W3: =IF(V3<=0,V3+$U$2,V3) -> 427 | X3: =FlashCards!AQ4 -> 0 | Y3: =VALUE(X3) -> 0 | Z3: =IF(ISERR(FIND("+",X3,1)),0,FIND("+",X3,1)) -> 0 | AA3: =IF(ISERR(FIND(",",X3,1)),0,FIND(",",X3,1)) -> 0 | AB3: =IF(Z3>0,VALUE(LEFT(X3,Z3-1)),IF(AA3>0,VALUE(LEFT(X3,AA3-1)),IF(ISERR(Y3),VALUE(LEFT(X3,LEN(X3)-1)),Y3))) -> 0 | AC3: =(AB3-U$28)^2 -> 2310400 | AD3: =FlashCards!AE4 -> 1 | AE3: =IF(AB3=0,10000,AB3) -> 10000
B4: ▲ - 9 | C4: =VLOOKUP(S4,FlashCards!$AE$4:$AQ$2003,3,TRUE) -> διοδεύω | D4: =VLOOKUP(S4,FlashCards!$AE$4:$AQ$2003,5,TRUE) -> I pass through | E4: =VLOOKUP(S4,FlashCards!$AE$4:$AQ$2003,13,TRUE) -> 1353 | S4: 428 | T4: -9 | U4: 428 | V4: 428 | W4: =IF(V4<=0,V4+$U$2,V4) -> 428 | X4: =FlashCards!AQ5 -> 0 | Y4: =VALUE(X4) -> 0 | Z4: =IF(ISERR(FIND("+",X4,1)),0,FIND("+",X4,1)) -> 0 | AA4: =IF(ISERR(FIND(",",X4,1)),0,FIND(",",X4,1)) -> 0 | AB4: =IF(Z4>0,VALUE(LEFT(X4,Z4-1)),IF(AA4>0,VALUE(LEFT(X4,AA4-1)),IF(ISERR(Y4),VALUE(LEFT(X4,LEN(X4)-1)),Y4))) -> 0 | AC4: =(AB4-U$28)^2 -> 2310400 | AD4: =FlashCards!AE5 -> 2 | AE4: =IF(AB4=0,10000,AB4) -> 10000
B5: ▲ - 8 | C5: =VLOOKUP(S5,FlashCards!$AE$4:$AQ$2003,3,TRUE) -> διότι | D5: =VLOOKUP(S5,FlashCards!$AE$4:$AQ$2003,5,TRUE) -> for, because | E5: =VLOOKUP(S5,FlashCards!$AE$4:$AQ$2003,13,TRUE) -> 1360 | S5: 429 | T5: -8 | U5: 429 | V5: 429 | W5: 429 | X5: =FlashCards!AQ6 -> 0 | Y5: 0 | Z5: 0 | AA5: 0 | AB5: 0 | AC5: 2310400 | AD5: =FlashCards!AE6 -> 3 | AE5: 10000
B6: ▲ - 7 | C6: =VLOOKUP(S6,FlashCards!$AE$4:$AQ$2003,3,TRUE) -> διψάω | D6: =VLOOKUP(S6,FlashCards!$AE$4:$AQ$2003,5,TRUE) -> I thirst, I am thirsty | E6: =VLOOKUP(S6,FlashCards!$AE$4:$AQ$2003,13,TRUE) -> 1372 | G6: Jump to Index: | H6: 520 | I6: =" (1 to "&TEXT(B14,"#")&")" -> (1 to 1592) | S6: 430 | T6: -7 | U6: 430 | V6: 430 | W6: 430 | X6: =FlashCards!AQ7 -> 0 | Y6: 0 | Z6: 0 | AA6: 0 | AB6: 0 | AC6: 2310400 | AD6: =FlashCards!AE7 -> 4 | AE6: 10000
B7: ▲ - 6 | C7: =VLOOKUP(S7,FlashCards!$AE$4:$AQ$2003,3,TRUE) -> διωγμός | D7: =VLOOKUP(S7,FlashCards!$AE$4:$AQ$2003,5,TRUE) -> persecution | E7: =VLOOKUP(S7,FlashCards!$AE$4:$AQ$2003,13,TRUE) -> 1375 | S7: 431 | T7: -6 | U7: 431 | V7: 431 | W7: 431 | X7: =FlashCards!AQ8 -> 0 | Y7: 0 | Z7: 0 | AA7: 0 | AB7: 0 | AC7: 2310400 | AD7: =FlashCards!AE8 -> 5 | AE7: 10000
B8: ▲ - 5 | C8: =VLOOKUP(S8,FlashCards!$AE$4:$AQ$2003,3,TRUE) -> διώκω | D8: =VLOOKUP(S8,FlashCards!$AE$4:$AQ$2003,5,TRUE) -> I pursue, I persecute | E8: =VLOOKUP(S8,FlashCards!$AE$4:$AQ$2003,13,TRUE) -> 1377 | G8: Jump to Strongs: | H8: 1520 | I8: =" ("&TEXT(S30,"#")&" to "&TEXT(T30,"#")&")" -> (11 to 5623) | S8: 432 | T8: -5 | U8: 432 | V8: 432 | W8: 432 | X8: =FlashCards!AQ9 -> 0 | Y8: 0 | Z8: 0 | AA8: 0 | AB8: 0 | AC8: 2310400 | AD8: =FlashCards!AE9 -> 6 | AE8: 10000
B9: ▲ - 4 | C9: =VLOOKUP(S9,FlashCards!$AE$4:$AQ$2003,3,TRUE) -> δόγμα | D9: =VLOOKUP(S9,FlashCards!$AE$4:$AQ$2003,5,TRUE) -> ordinance, decision, command | E9: =VLOOKUP(S9,FlashCards!$AE$4:$AQ$2003,13,TRUE) -> 1378 | S9: 433 | T9: -4 | U9: 433 | V9: 433 | W9: 433 | X9: =FlashCards!AQ10 -> 0 | Y9: 0 | Z9: 0 | AA9: 0 | AB9: 0 | AC9: 2310400 | AD9: =FlashCards!AE10 -> 7 | AE9: 10000
B10: ▲ - 3 | C10: =VLOOKUP(S10,FlashCards!$AE$4:$AQ$2003,3,TRUE) -> δοκέω | D10: =VLOOKUP(S10,FlashCards!$AE$4:$AQ$2003,5,TRUE) -> I think, I seem | E10: =VLOOKUP(S10,FlashCards!$AE$4:$AQ$2003,13,TRUE) -> 1380 | G10: Index: | H10: =VLOOKUP($B$13,FlashCards!$AE$4:$AQ$2003,1,TRUE) -> 437 | S10: 434 | T10: -3 | U10: 434 | V10: 434 | W10: 434 | X10: =FlashCards!AQ11 -> 0 | Y10: 0 | Z10: 0 | AA10: 0 | AB10: 0 | AC10: 2310400 | AD10: =FlashCards!AE11 -> 8 | AE10: 10000
B11: ▲ - 2 | C11: =VLOOKUP(S11,FlashCards!$AE$4:$AQ$2003,3,TRUE) -> δοκιμάζω | D11: =VLOOKUP(S11,FlashCards!$AE$4:$AQ$2003,5,TRUE) -> I test, I approve | E11: =VLOOKUP(S11,FlashCards!$AE$4:$AQ$2003,13,TRUE) -> 1381 | G11: Strongs: | H11: =E13 -> 1391 | S11: 435 | T11: -2 | U11: 435 | V11: 435 | W11: 435 | X11: =FlashCards!AQ12 -> 0 | Y11: 0 | Z11: 0 | AA11: 0 | AB11: 0 | AC11: 2310400 | AD11: =FlashCards!AE12 -> 9 | AE11: 10000
B12: ▲ - 1 | C12: =VLOOKUP(S12,FlashCards!$AE$4:$AQ$2003,3,TRUE) -> δόλος | D12: =VLOOKUP(S12,FlashCards!$AE$4:$AQ$2003,5,TRUE) -> deceit, treachery | E12: =VLOOKUP(S12,FlashCards!$AE$4:$AQ$2003,13,TRUE) -> 1388 | G12: Lexical: | H12: =C13 -> δόξα | S12: 436 | T12: -1 | U12: 436 | V12: 436 | W12: 436 | X12: =FlashCards!AQ13 -> 0 | Y12: 0 | Z12: 0 | AA12: 0 | AB12: 0 | AC12: 2310400 | AD12: =FlashCards!AE13 -> 10 | AE12: 10000
B13: 437 | C13: =VLOOKUP($B$13,FlashCards!$AE$4:$AQ$2003,3,TRUE) -> δόξα | D13: =VLOOKUP($B$13,FlashCards!$AE$4:$AQ$2003,5,TRUE) -> glory, majesty, fame | E13: =VLOOKUP($B$13,FlashCards!$AE$4:$AQ$2003,13,TRUE) -> 1391 | G13: Pronunciation: | H13: =VLOOKUP($B$13,FlashCards!$AE$4:$AQ$2003,6,TRUE) -> DOX-ah | S13: 437 | T13: 0 | U13: 437 | V13: 437 | W13: 437 | X13: =FlashCards!AQ14 -> 0 | Y13: 0 | Z13: 0 | AA13: 0 | AB13: 0 | AC13: 2310400 | AD13: =FlashCards!AE14 -> 11 | AE13: 10000
B14: =FlashCards!AR2 -> 1592 | G14: Chapter: | H14: =VLOOKUP($B$13,FlashCards!$AE$4:$AQ$2003,2,TRUE) -> 04 | S14: 437 | T14: 0 | U14: 437 | V14: =IF(U14>$U$2,U14-$U$2,U14) -> 437 | W14: 437 | X14: =FlashCards!AQ15 -> 0 | Y14: 0 | Z14: 0 | AA14: 0 | AB14: 0 | AC14: 2310400 | AD14: =FlashCards!AE15 -> 12 | AE14: 10000
G15: Root: | H15: =VLOOKUP($B$13,FlashCards!$AE$4:$AQ$2003,4,TRUE) -> *δοξα | S15: 437 | T15: 0 | U15: 437 | V15: =IF(U15>$U$2,U15-$U$2,U15) -> 437 | W15: 437 | X15: =FlashCards!AQ16 -> 0 | Y15: 0 | Z15: 0 | AA15: 0 | AB15: 0 | AC15: 2310400 | AD15: =FlashCards!AE16 -> 13 | AE15: 10000
B16: ▼ + 1 | C16: =VLOOKUP(S16,FlashCards!$AE$4:$AQ$2003,3,TRUE) -> δοξάζω | D16: =VLOOKUP(S16,FlashCards!$AE$4:$AQ$2003,5,TRUE) -> I praise, I honor, I glorify | E16: =VLOOKUP(S16,FlashCards!$AE$4:$AQ$2003,13,TRUE) -> 1392 | G16: Part of Speech: | H16: =VLOOKUP($B$13,FlashCards!$AE$4:$AQ$2003,7,TRUE) -> Noun | S16: 438 | T16: 1 | U16: 438 | V16: 438 | W16: 438 | X16: =FlashCards!AQ17 -> 0 | Y16: 0 | Z16: 0 | AA16: 0 | AB16: 0 | AC16: 2310400 | AD16: =FlashCards!AE17 -> 14 | AE16: 10000
B17: ▼ + 2 | C17: =VLOOKUP(S17,FlashCards!$AE$4:$AQ$2003,3,TRUE) -> δουλεύω | D17: =VLOOKUP(S17,FlashCards!$AE$4:$AQ$2003,5,TRUE) -> I serve, I obey, I (am a) slave | E17: =VLOOKUP(S17,FlashCards!$AE$4:$AQ$2003,13,TRUE) -> 1398 | G17: Article: | H17: =VLOOKUP($B$13,FlashCards!$AE$4:$AQ$2003,8,TRUE) -> ἡ | S17: 439 | T17: 2 | U17: 439 | V17: 439 | W17: 439 | X17: =FlashCards!AQ18 -> 0 | Y17: 0 | Z17: 0 | AA17: 0 | AB17: 0 | AC17: 2310400 | AD17: =FlashCards!AE18 -> 15 | AE17: 10000
B18: ▼ + 3 | C18: =VLOOKUP(S18,FlashCards!$AE$4:$AQ$2003,3,TRUE) -> δοῦλος | D18: =VLOOKUP(S18,FlashCards!$AE$4:$AQ$2003,5,TRUE) -> slave, servant | E18: =VLOOKUP(S18,FlashCards!$AE$4:$AQ$2003,13,TRUE) -> 1401 | G18: Imperfect: | H18: =VLOOKUP($B$13,FlashCards!$AE$4:$AQ$2003,9,TRUE) ->  | S18: 440 | T18: 3 | U18: 440 | V18: 440 | W18: 440 | X18: =FlashCards!AQ19 -> 0 | Y18: 0 | Z18: 0 | AA18: 0 | AB18: 0 | AC18: 2310400 | AD18: =FlashCards!AE19 -> 16 | AE18: 10000
B19: ▼ + 4 | C19: =VLOOKUP(S19,FlashCards!$AE$4:$AQ$2003,3,TRUE) -> δράκων | D19: =VLOOKUP(S19,FlashCards!$AE$4:$AQ$2003,5,TRUE) -> dragon, serpent | E19: =VLOOKUP(S19,FlashCards!$AE$4:$AQ$2003,13,TRUE) -> 1404 | G19: Future: | H19: =VLOOKUP($B$13,FlashCards!$AE$4:$AQ$2003,10,TRUE) ->  | S19: 441 | T19: 4 | U19: 441 | V19: 441 | W19: 441 | X19: =FlashCards!AQ20 -> 0 | Y19: 0 | Z19: 0 | AA19: 0 | AB19: 0 | AC19: 2310400 | AD19: =FlashCards!AE20 -> 17 | AE19: 10000
B20: ▼ + 5 | C20: =VLOOKUP(S20,FlashCards!$AE$4:$AQ$2003,3,TRUE) -> δύναμαι | D20: =VLOOKUP(S20,FlashCards!$AE$4:$AQ$2003,5,TRUE) -> I am able, I can, I am powerful | E20: =VLOOKUP(S20,FlashCards!$AE$4:$AQ$2003,13,TRUE) -> 1410 | G20: Aorist: | H20: =VLOOKUP($B$13,FlashCards!$AE$4:$AQ$2003,11,TRUE) ->  | S20: 442 | T20: 5 | U20: 442 | V20: 442 | W20: 442 | X20: =FlashCards!AQ21 -> 0 | Y20: 0 | Z20: 0 | AA20: 0 | AB20: 0 | AC20: 2310400 | AD20: =FlashCards!AE21 -> 18 | AE20: 10000
B21: ▼ + 6 | C21: =VLOOKUP(S21,FlashCards!$AE$4:$AQ$2003,3,TRUE) -> δύναμις | D21: =VLOOKUP(S21,FlashCards!$AE$4:$AQ$2003,5,TRUE) -> power, miracle | E21: =VLOOKUP(S21,FlashCards!$AE$4:$AQ$2003,13,TRUE) -> 1411 | G21: Definition: | H21: =D13 -> glory, majesty, fame | S21: 443 | T21: 6 | U21: 443 | V21: 443 | W21: 443 | X21: =FlashCards!AQ22 -> 0 | Y21: 0 | Z21: 0 | AA21: 0 | AB21: 0 | AC21: 2310400 | AD21: =FlashCards!AE22 -> 19 | AE21: 10000
B22: ▼ + 7 | C22: =VLOOKUP(S22,FlashCards!$AE$4:$AQ$2003,3,TRUE) -> δυνατός | D22: =VLOOKUP(S22,FlashCards!$AE$4:$AQ$2003,5,TRUE) -> able, capable, possible | E22: =VLOOKUP(S22,FlashCards!$AE$4:$AQ$2003,13,TRUE) -> 1415 | S22: 444 | T22: 7 | U22: 444 | V22: 444 | W22: 444 | X22: =FlashCards!AQ23 -> 0 | Y22: 0 | Z22: 0 | AA22: 0 | AB22: 0 | AC22: 2310400 | AD22: =FlashCards!AE23 -> 20 | AE22: 10000
B23: ▼ + 8 | C23: =VLOOKUP(S23,FlashCards!$AE$4:$AQ$2003,3,TRUE) -> δύο | D23: =VLOOKUP(S23,FlashCards!$AE$4:$AQ$2003,5,TRUE) -> two | E23: =VLOOKUP(S23,FlashCards!$AE$4:$AQ$2003,13,TRUE) -> 1417 | S23: 445 | T23: 8 | U23: 445 | V23: 445 | W23: 445 | X23: =FlashCards!AQ24 -> 0 | Y23: 0 | Z23: 0 | AA23: 0 | AB23: 0 | AC23: 2310400 | AD23: =FlashCards!AE24 -> 21 | AE23: 10000
B24: ▼ + 9 | C24: =VLOOKUP(S24,FlashCards!$AE$4:$AQ$2003,3,TRUE) -> δώδεκα | D24: =VLOOKUP(S24,FlashCards!$AE$4:$AQ$2003,5,TRUE) -> twelve | E24: =VLOOKUP(S24,FlashCards!$AE$4:$AQ$2003,13,TRUE) -> 1427 | S24: 446 | T24: 9 | U24: 446 | V24: 446 | W24: 446 | X24: =FlashCards!AQ25 -> 0 | Y24: 0 | Z24: 0 | AA24: 0 | AB24: 0 | AC24: 2310400 | AD24: =FlashCards!AE25 -> 22 | AE24: 10000
B25: ▼ +10 | C25: =VLOOKUP(S25,FlashCards!$AE$4:$AQ$2003,3,TRUE) -> δωρεά | D25: =VLOOKUP(S25,FlashCards!$AE$4:$AQ$2003,5,TRUE) -> gift | E25: =VLOOKUP(S25,FlashCards!$AE$4:$AQ$2003,13,TRUE) -> 1431 | S25: =W25 -> 447 | T25: 10 | U25: 447 | V25: 447 | W25: 447 | X25: =FlashCards!AQ26 -> 0 | Y25: 0 | Z25: 0 | AA25: 0 | AB25: 0 | AC25: 2310400 | AD25: =FlashCards!AE26 -> 23 | AE25: 10000
X26: =FlashCards!AQ27 -> 0 | Y26: 0 | Z26: 0 | AA26: 0 | AB26: 0 | AC26: 2310400 | AD26: =FlashCards!AE27 -> 24 | AE26: 10000
S27: Strong | T27: Number | U27: Cleaned | V27: Index | X27: =FlashCards!AQ28 -> 0 | Y27: 0 | Z27: 0 | AA27: 0 | AB27: 0 | AC27: 2310400 | AD27: =FlashCards!AE28 -> 25 | AE27: 10000
S28: =H8 -> 1520 | T28: =VALUE(S28) -> 1520 | U28: =IF(ISERR(T28),VALUE(LEFT(S28,LEN(S28)-1)),T28) -> 1520 | V28: =VLOOKUP(T32,AC3:AD2002,2, FALSE) -> 487 | X28: =FlashCards!AQ29 -> 0 | Y28: 0 | Z28: 0 | AA28: 0 | AB28: 0 | AC28: 2310400 | AD28: =FlashCards!AE29 -> 26 | AE28: 10000
S29: Min | T29: Max | X29: =FlashCards!AQ30 -> 0 | Y29: 0 | Z29: 0 | AA29: 0 | AB29: 0 | AC29: 2310400 | AD29: =FlashCards!AE30 -> 27 | AE29: 10000
S30: =MIN(AE3:AE2002) -> 11 | T30: =MAX(AB3:AB2002) -> 5623 | X30: =FlashCards!AQ31 -> 0 | Y30: 0 | Z30: 0 | AA30: 0 | AB30: 0 | AC30: 2310400 | AD30: =FlashCards!AE31 -> 28 | AE30: 10000
X31: =FlashCards!AQ32 -> 0 | Y31: 0 | Z31: 0 | AA31: 0 | AB31: 0 | AC31: 2310400 | AD31: =FlashCards!AE32 -> 29 | AE31: 10000
S32: Min err | T32: =MIN(AC3:AC2002) -> 0 | X32: =FlashCards!AQ33 -> 0 | Y32: 0 | Z32: 0 | AA32: 0 | AB32: 0 | AC32: 2310400 | AD32: =FlashCards!AE33 -> 30 | AE32: 10000
X33: =FlashCards!AQ34 -> 0 | Y33: 0 | Z33: 0 | AA33: 0 | AB33: 0 | AC33: 2310400 | AD33: =FlashCards!AE34 -> 31 | AE33: 10000
S34: Progress Bar: | U34: =H10*100/B14 -> 27.44974874 | V34: % | X34: =FlashCards!AQ35 -> 0 | Y34: 0 | Z34: 0 | AA34: 0 | AB34: 0 | AC34: 2310400 | AD34: =FlashCards!AE35 -> 32 | AE34: 10000
O35: % from 2 to 98 | S35: 0 | T35: =S35/S$88*U$34 -> 0 | U35: =2+0.96*T35 -> 2 | V35: 0.1 | X35: =FlashCards!AQ36 -> 0 | Y35: 0 | Z35: 0 | AA35: 0 | AB35: 0 | AC35: 2310400 | AD35: =FlashCards!AE36 -> 33 | AE35: 10000
S36: 1 | T36: =S36/S$88*U$34 -> 0.5179197876 | U36: =2+0.96*T36 -> 2.497202996 | V36: 0.1 | X36: =FlashCards!AQ37 -> 0 | Y36: 0 | Z36: 0 | AA36: 0 | AB36: 0 | AC36: 2310400 | AD36: =FlashCards!AE37 -> 34 | AE36: 10000
S37: 2 | T37: 1.035839575 | U37: 2.994405992 | V37: 0.1 | X37: =FlashCards!AQ38 -> 0 | Y37: 0 | Z37: 0 | AA37: 0 | AB37: 0 | AC37: 2310400 | AD37: =FlashCards!AE38 -> 35 | AE37: 10000
